Workbook

Sheet RESUMO
A2: RESUMO DO ORÇAMENTO REFERENCIAL
A3: ANEXO III - PLANILHAS DE CUSTO DO ORÇAMENTO DE REFERÊNCIA
A4: SERVIÇOS DE APOIO À FISCALIZAÇÃO - 5ª SUPERINTENDÊNCIA REGIONAL (AL)
C5: Prazo: | D5: 12 | E5: Mês/Ano Ref.: | F5: 2025-07-01
A6: PRODUTOS | B6: DESCRIÇÃO | C6: UNIDADE | D6: QTDE | E6: á | I6: PERCENTUAL POR PRODUTO (%) | K6: PERCENTUAL MENSAL POR PRODUTO (%) | M6: VALOR MÉDIO MENSAL POR PRODUTO
E7: UNITÁRIO | F7: TOTAL
A8: 1 | B8: SERVIÇOS DE APOIO À FISCALIZAÇÃO | C8: Mensal | D8: 12 | E8: =F8/D8 -> 325242.8925 | F8: =PFP!H28 -> 3902914.71 | I8: =F8/$F$10 -> 1 | K8: =(F8/12)/$F$10 -> 0.08333333333 | M8: =F8/36 -> 108414.2975
A10: TOTAL ANUAL DO ORÇAMENTO REFERENCIAL: | F10: =SUM(F8:F8) -> 3902914.71 | I10: =SUM(I8:I8) -> 1 | K10: =SUM(K8:K8) -> 0.08333333333 | M10: =SUM(M8:M8) -> 108414.2975

Sheet PFP
E1: Ministério da Integração e do Desenvolvimento Regional - MIDR
E2: Companhia de Desenvolvimento dos Vales do São Francisco e do Parnaíba
E3: 5ª Superintendência Regional
A5: PROPOSTA FINANCEIRA DO PROJETO | J5: CODIGO:
J6: PFP
A7: NOME DA CONSULTORA:
A9: PROJETO: | F9: CONTRATANTE: | J9: BASE: setembro/2025
A10: Serviços de apoio à fiscalização de convênios, contratos, análise e elaboração de documentos técnicos específicos, no Estado de Alagoas, área de atuação da 5ª Superintendência Regional | F10: CODEVASF | J10: ORSE: julho/2025 DNIT: Abril/2025 PROP: julho/2025
A11: Base | B11: Cod1 | C11: Cod2 | D11: Categoria / Insumo | E11: Uni | F11: Qde | G11: CUD | H11: PU | I11: FatorK | J11: Encargos Complem e Adicionais | K11: PT
A12: DNIT | B12: MO2 | C12: P8065 | D12: Engenheiro Júnior (com enc. Comple. e adicionais, EPI) | E12: mês | F12: =2*12 -> 24 | G12: =ROUND(VLOOKUP(C12,'AUX-Mão de obra'!$C$7:$AA$104,4,FALSE),2) -> 12903 | H12: =ROUND(I12*G12,2) -> 27520.81 | I12: ='PFP2.1_FatorKa'!E40 -> 2.1329 | J12: =ROUND(VLOOKUP(C12,'AUX-Mão de obra'!$C$7:$AB$104,26,FALSE),2) -> 1091.8 | K12: =ROUND((F12*H12)+(J12*F12),2) -> 686702.64 | L12: =RANK(K12,$K$12:$K$23,0) -> 2
A13: DNIT | B13: MO1 | C13: P8147 | D13: Técnico de obras junior (com enc. Comple. e adicionais, EPI) | E13: mês | F13: =6*12 -> 72 | G13: =ROUND(VLOOKUP(C13,'AUX-Mão de obra'!$C$7:$AA$104,4,FALSE),2) -> 3268.63 | H13: =ROUND(I13*G13,2) -> 6971.66 | I13: ='PFP2.1_FatorKa'!$E$40 -> 2.1329 | J13: =ROUND(VLOOKUP(C13,'AUX-Mão de obra'!$C$7:$AB$104,26,FALSE),2) -> 1147.78 | K13: =ROUND((F13*H13)+(J13*F13),2) -> 584599.68 | L13: 4
A14: DNIT | B14: MO1 | C14: P8163 | D14: Topógrafo(com enc. Comple. e adicionais, EPI) | E14: mês | F14: =3*12 -> 36 | G14: =ROUND(VLOOKUP(C14,'AUX-Mão de obra'!$C$7:$AA$104,4,FALSE),2) -> 2558.11 | H14: 5456.19 | I14: ='PFP2.1_FatorKa'!$E$40 -> 2.1329 | J14: =ROUND(VLOOKUP(C14,'AUX-Mão de obra'!$C$7:$AB$104,26,FALSE),2) -> 1190.81 | K14: =ROUND((F14*H14)+(J14*F14),2) -> 239292 | L14: 6
A15: DNIT | B15: MO2 | C15: P8028 | D15: Auxiliar de topografia(com enc. Comple. e adicionais, EPI) | E15: mês | F15: =F14 -> 36 | G15: =ROUND(VLOOKUP(C15,'AUX-Mão de obra'!$C$7:$AA$104,4,FALSE),2) -> 1665.28 | H15: =ROUND(I15*G15,2) -> 3551.88 | I15: ='PFP2.1_FatorKa'!$E$40 -> 2.1329 | J15: =ROUND(VLOOKUP(C15,'AUX-Mão de obra'!$C$7:$AB$104,26,FALSE),2) -> 1248.47 | K15: =ROUND((F15*H15)+(J15*F15),2) -> 172812.6 | L15: 7
A16: DNIT | B16: MO1 | C16: P8135 | D16: Secretário(com enc. Comple. e adicionais, EPI) | E16: mês | F16: =1*12 -> 12 | G16: =ROUND(VLOOKUP(C16,'AUX-Mão de obra'!$C$7:$AA$104,4,FALSE),2) -> 2841.65 | H16: =ROUND(I16*G16,2) -> 6060.96 | I16: ='PFP2.1_FatorKa'!$E$40 -> 2.1329 | J16: =ROUND(VLOOKUP(C16,'AUX-Mão de obra'!$C$7:$AB$104,26,FALSE),2) -> 1143.79 | K16: =ROUND((F16*H16)+(J16*F16),2) -> 86457 | L16: 10
A17: CODE | B17: DP | C17: V1 | D17: Diárias per noite | E17: dia | F17: =ROUND((F12+F13+F14+F15)*4*4,2) -> 2688 | G17: 252.8 | H17: 304.02 | I17: =PFP3_FatorKd!$E$20 -> 1.2026 | K17: =ROUND(F17*H17,2) -> 817205.76 | L17: 1
A18: CODE | B18: DA | C18: V2 | D18: Alimentação | E18: dia | F18: =ROUND((F12+F13+F14+F15+F16)*22,2) -> 3960 | G18: 100.59 | H18: =ROUND(I18*G18,2) -> 120.97 | I18: =PFP3_FatorKd!$E$20 -> 1.2026 | K18: 479041.2 | L18: 5
A19: ORSE | B19: 10557 | C19: LO | D19: Telefone (celular/internet ) | E19: Unid. x Mês | F19: 154.99 | G19: 154.99 | H19: =ROUND(I19*G19,2) -> 186.39 | I19: =PFP3_FatorKd!$E$20 -> 1.2026 | K19: 28888.59 | L19: 11
A20: CPU | C20: LO | D20: Veículo leve -1.0 T. Flex 12V 5p (ou superior, com até 2 anos de uso, incluso oleo, gasolina, pneus, seguro, manutenção) | E20: mês | F20: =(F12+F13+F14) -> 132 | G20: ='CPU-VEICULO_Leve'!D7 -> 3814.223036 | H20: =ROUND(I20*G20,2) -> 4586.98 | I20: =PFP3_FatorKd!$E$20 -> 1.2026 | K20: 605481.36 | L20: 3
A21: COTAÇÃO | B21: COT | C21: LO | D21: Sistema de rastreamento veicular | E21: mês | F21: =F20 -> 132 | G21: ='Cotação '!B53+'Cotação '!B60 -> 97.50833333 | H21: =ROUND(I21*G21,2) -> 117.26 | I21: =PFP3_FatorKd!$E$20 -> 1.2026 | K21: =ROUND(F21*H21,2) -> 15478.32 | L21: 12
A22: COTAÇÃO | B22: COT | C22: LO | D22: Locação - Receptor GNSS com antena, radio UHF e canais para rastreamento de sistemas de satélite | E22: Unid. x Mês | F22: =F14 -> 36 | G22: ='Cotação '!B18 -> 2250 | H22: 2705.85 | I22: =PFP3_FatorKd!$E$20 -> 1.2026 | K22: 97410.6 | L22: 8
A23: COTAÇÃO | B23: COT | C23: LO | D23: Locação - Notebook conforme especificação | E23: Unid. x Mês | F23: =SUM(F12:F14)+F16 -> 144 | G23: ='Cotação '!B39 -> 517.0814583 | H23: 621.84 | I23: =PFP3_FatorKd!$E$20 -> 1.2026 | K23: 89544.96 | L23: 9
A26: TOTAL DOS CUSTOS DIRETOS | H26: =SUM(F12*G12+F13*G13+F14*G14+F15*G15+F16*G16+F17*G17+F18*G18+F19*G19+F20*G20+F21*G21+F22*G22+F23*G23) -> 2504848.171
A27: TOTAL DOS ENCARGOS E DISPESAS DIVERSAS | H27: =H28-H26 -> 1398066.539
A28: TOTAL DA PROPOSTA | H28: =SUM(K12:K25) -> 3902914.71
A29: OBSERVAÇÃO:
A30: Alocar os Insumos MO, com respectivo FatorK, dentro da categoria de vínculo contratual (com ou sem) de cada tipo de profissional
A31: Uni - unidade de medição do insumo;
A32: Qde - Quantidade do Insumo (não pode ocorrer alteração pela Licitante)
A33: CUD - Custo Unitário Direto do Insumo (sem encargos, taxas e impostos, valor não pode ser maior que o Orçado pela Codevasf)
A34: CT - Custo Total (sem encargos, taxas e impostos) - CT = Qde x CUD
A35: FatorK - Taxa de Ressarcimento de Despesas e Encargos (detalhar composição nas Planilhas "PFP2.1", "PFP2.2", "PFP2.3", "PFP3")
A36: PU - Preço Unitário do Insumo (incluído encargos, taxas e impostos) - PU = CUD x FatorK
A37: PT - Preço Total do Insumo (incluído encargos, taxas e impostos) - PT = Qde x PU
A38: Pagamentos dos veiculos será por km rodado.
A39: Encargos complementares e adicionais contempla: assistência médica, seguro de vida, custos de EPI e exame ocupacional. Preços de referência do SICRO para os tecnicos e topografos e auxiliares.
A40: Os valores de diárias e alimentação (almoço) foram retirados do anexo da N-201 da CODEVASF(pernoite inclui o café, jantar e acomodação)
A41: COT-Cotação de preço de mercado LO- Locação
A42: MO1 - Mão de obra sobre regime de Celetista, encargos calculados via FatorKa
A43: MO2 - Mão de obra sobre regime de Autônomo, encargos calculados via FatorKb
A44: MO3 - Mão de obra sobre regime de Societários, encargos calculados via FatorKc
A45: P - Profissionais nível superior nas áreas de Engenharia, Química, Arquitetura, Agronomia e Veterinária, conforme disposições da Lei 4.950-A/66
A46: S - Profissionais de nível superior nas demais áreas de atuação, incluindo Arqueólogo, Biólogo, Geógrafo e Socioólogo
A47: T - Profissionais de nível médio técnico nas diversas áreas de atuação
A48: A - Profissionais de nível médio de apoio técnico-administrativo

Sheet PFP2.1_FatorKa
C1: Ministério da Integração e do Desenvolvimento Regional - MIDR
C2: Companhia de Desenvolvimento dos Vales do São Francisco e do Parnaíba
C3: 5ª Superintendência Regional
A5: DETALHAMENTO DOS ENCARGOS SOCIAIS: Ka | F5: CODIGO:
F6: PFP-2.1
A7: NOME DA CONSULTORA:
A9: PROJETO: | C9: CONTRATANTE: | F9: =PFP!J9 -> BASE: setembro/2025
A10: =PFP!A10 -> Serviços de apoio à fiscalização de convênios, contratos, análise e elaboração de documentos técnicos específicos, no Estado de Alagoas, área de atuação da 5ª Superintendência Regional | C10: CODEVASF | F10: =PFP!J10 -> ORSE: julho/2025 DNIT: Abril/2025 PROP: julho/2025
A11: Cod | B11: DESCRIÇÃO | E11: % | F11: R$
A12: A | B12: ENCARGOS SOCIAIS BÁSICOS | E12: =ROUND(SUM(E13:E21),4) -> 0.368 | F12: =ROUND(E12*SUMIF(PFP!$B$12:$B$25,"MO1",PFP!$J$12:$J$25),2) -> 1281.52
A13: A1 | B13: INSS | E13: 0.2 | F13: =ROUND(E13*SUMIF(PFP!$B$12:$B$25,"MO1",PFP!$J$12:$J$25),2) -> 696.48
A14: A2 | B14: SESI | E14: 0.015 | F14: =ROUND(E14*SUMIF(PFP!$B$12:$B$25,"MO1",PFP!$J$12:$J$25),2) -> 52.24
A15: A3 | B15: SENAI | E15: 0.01 | F15: =ROUND(E15*SUMIF(PFP!$B$12:$B$25,"MO1",PFP!$J$12:$J$25),2) -> 34.82
A16: A4 | B16: INCRA | E16: 0.002 | F16: =ROUND(E16*SUMIF(PFP!$B$12:$B$25,"MO1",PFP!$J$12:$J$25),2) -> 6.96
A17: A5 | B17: SEBRAE | E17: 0.006 | F17: =ROUND(E17*SUMIF(PFP!$B$12:$B$25,"MO1",PFP!$J$12:$J$25),2) -> 20.89
A18: A6 | B18: Salário Educação | E18: 0.025 | F18: =ROUND(E18*SUMIF(PFP!$B$12:$B$25,"MO1",PFP!$J$12:$J$25),2) -> 87.06
A19: A7 | B19: Seguro Contra Acidentes de Trabalho | E19: 0.03 | F19: =ROUND(E19*SUMIF(PFP!$B$12:$B$25,"MO1",PFP!$J$12:$J$25),2) -> 104.47
A20: A8 | B20: FGTS | E20: 0.08 | F20: =ROUND(E20*SUMIF(PFP!$B$12:$B$25,"MO1",PFP!$J$12:$J$25),2) -> 278.59
A21: A9 | B21: SECONCI | F21: =ROUND(E21*SUMIF(PFP!$B$12:$B$25,"MO1",PFP!$J$12:$J$25),2) -> 0
A22: B | B22: ENCARGOS SOCIAIS QUE RECEBEM INCIDÊNCIA DE "A" | E22: =ROUND(SUM(E23:E29),4) -> 0.1764 | F22: =ROUND(E22*SUMIF(PFP!$B$12:$B$25,"MO1",PFP!$J$12:$J$25),2) -> 614.29
A23: B3 | B23: Auxílio Enfermidade | E23: 0.0065 | F23: =ROUND(E23*SUMIF(PFP!$B$12:$B$25,"MO1",PFP!$J$12:$J$25),2) -> 22.64
A24: B4 | B24: 13º Salário | E24: 0.0833 | F24: =ROUND(E24*SUMIF(PFP!$B$12:$B$25,"MO1",PFP!$J$12:$J$25),2) -> 290.08
A25: B5 | B25: Licença Paternidade | E25: 0.0005 | F25: =ROUND(E25*SUMIF(PFP!$B$12:$B$25,"MO1",PFP!$J$12:$J$25),2) -> 1.74
A26: B6 | B26: Faltas Justificadas | E26: 0.0056 | F26: =ROUND(E26*SUMIF(PFP!$B$12:$B$25,"MO1",PFP!$J$12:$J$25),2) -> 19.5
A27: B8 | B27: Auxílio Acidente de Trabalho | E27: 0.0007 | F27: =ROUND(E27*SUMIF(PFP!$B$12:$B$25,"MO1",PFP!$J$12:$J$25),2) -> 2.44
A28: B9 | B28: Férias Gozadas | E28: 0.0795 | F28: =ROUND(E28*SUMIF(PFP!$B$12:$B$25,"MO1",PFP!$J$12:$J$25),2) -> 276.85
A29: B10 | B29: Salário Maternidade | E29: 0.0003 | F29: =ROUND(E29*SUMIF(PFP!$B$12:$B$25,"MO1",PFP!$J$12:$J$25),2) -> 1.04
A30: C | B30: ENCARGOS SOCIAIS QUE NÃO RECEBEM INCIDÊNCIA DE "A" | E30: =ROUND(SUM(E31:E35),4) -> 0.0887 | F30: =ROUND(E30*SUMIF(PFP!$B$12:$B$25,"MO1",PFP!$J$12:$J$25),2) -> 308.89
A31: C1 | B31: Aviso Prévio Indenizado | E31: 0.0362 | F31: =ROUND(E31*SUMIF(PFP!$B$12:$B$25,"MO1",PFP!$J$12:$J$25),2) -> 126.06
A32: C2 | B32: Aviso Prévio Trabalhado | E32: 0.0009 | F32: =ROUND(E32*SUMIF(PFP!$B$12:$B$25,"MO1",PFP!$J$12:$J$25),2) -> 3.13
A33: C3 | B33: Férias Indenizadas | E33: 0.0265 | F33: =ROUND(E33*SUMIF(PFP!$B$12:$B$25,"MO1",PFP!$J$12:$J$25),2) -> 92.28
A34: C4 | B34: Depósito Rescisão Sem Justa Causa | E34: 0.0221 | F34: =ROUND(E34*SUMIF(PFP!$B$12:$B$25,"MO1",PFP!$J$12:$J$25),2) -> 76.96
A35: C5 | B35: Indenização Adicional | E35: 0.003 | F35: =ROUND(E35*SUMIF(PFP!$B$12:$B$25,"MO1",PFP!$J$12:$J$25),2) -> 10.45
A36: D | B36: REINCIDÊNCIAS | E36: =ROUND(SUM(E37:E38),4) -> 0.0681 | F36: =ROUND(E36*SUMIF(PFP!$B$12:$B$25,"MO1",PFP!$J$12:$J$25),2) -> 237.15
A37: D1 | B37: Reincidência de "A" sobre "B" | E37: =ROUND(E12*E22,4) -> 0.0649 | F37: =ROUND(E37*SUMIF(PFP!$B$12:$B$25,"MO1",PFP!$J$12:$J$25),2) -> 226.01
A38: D2 | B38: Reincidência de "A" sobre Aviso Prévio Trabalhado e reincidência do FGTS sobre Aviso Prévio Indenizado | E38: =ROUND((E32*E12)+(E31*E20),4) -> 0.0032 | F38: =ROUND(E38*SUMIF(PFP!$B$12:$B$25,"MO1",PFP!$J$12:$J$25),2) -> 11.14
A39: K1 | B39: ENCARGOS SOCIAIS | E39: =ROUND(E12+E22+E30+E36,4) -> 0.7012 | F39: =ROUND(E39*SUMIF(PFP!$B$12:$B$25,"MO1",PFP!$J$12:$J$25),2) -> 2441.84
A40: Ka | B40: TAXA DE RESSARCIMENTO DE DESPESAS E ENCARGOS SOBRE MO1 | E40: =ROUND((1+E39+PFP3_FatorKd!E16)*(1+PFP3_FatorKd!E15)*(1+PFP3_FatorKd!E11),4) -> 2.1329
A41: OBSERVAÇÃO: MO1 CELETISTAS
A42: 1 - DISCRIMINAR OS ENCARGOS SOCIAIS COM SEUS RESPECTIVOS PERCENTUAS TOTALIZANDO OS MESMOS.
A43: 2 - APLICAR O % TOTAL P/ CALCULAR OS E. SOCIAIS INCIDENTES NA MÃO-DE-OBRA - CELETISTAS
A44: Ka - Taxa de Ressarcimento de Despesas e Encargos sobre a Mão de Obra CELETISTAS (incide apenas no Insumo Codigo MO1)
A45: Ka = (1 + K1 + K2) x (1 + K3) x (1 + K4)

Sheet PFP2.2_FatorKb
C1: Ministério da Integração e do Desenvolvimento Regional - MIDR
C2: Companhia de Desenvolvimento dos Vales do São Francisco e do Parnaíba
C3: 5ª Superintendência Regional
A4: DETALHAMENTO DOS ENCARGOS SOCIAIS: Kb | F4: CODIGO:
F5: PFP-2.2
A6: NOME DA CONSULTORA:
A8: PROJETO: | C8: CONTRATANTE: | F8: =PFP!J9 -> BASE: setembro/2025
A9: =PFP!A10 -> Serviços de apoio à fiscalização de convênios, contratos, análise e elaboração de documentos técnicos específicos, no Estado de Alagoas, área de atuação da 5ª Superintendência Regional | C9: CODEVASF | F9: =PFP!J10 -> ORSE: julho/2025 DNIT: Abril/2025 PROP: julho/2025
A10: Cod | B10: DESCRIÇÃO | E10: % | F10: R$
A11: A | B11: ENCARGOS SOCIAIS BÁSICOS | E11: =ROUND(SUM(E12:E20),4) -> 0.2 | F11: =ROUND(E11*SUMIF(PFP!$B$12:$B$25,"MO2",PFP!$J$12:$J$25),2) -> 468.05
A12: A1 | B12: INSS | E12: 0 | F12: =ROUND(E12*SUMIF(PFP!$B$12:$B$25,"MO2",PFP!$J$12:$J$25),2) -> 0
A13: A2 | B13: SESI | E13: 0 | F13: =ROUND(E13*SUMIF(PFP!$B$12:$B$25,"MO2",PFP!$J$12:$J$25),2) -> 0
A14: A3 | B14: SENAI | E14: 0 | F14: =ROUND(E14*SUMIF(PFP!$B$12:$B$25,"MO2",PFP!$J$12:$J$25),2) -> 0
A15: A4 | B15: INCRA | E15: 0 | F15: =ROUND(E15*SUMIF(PFP!$B$12:$B$25,"MO2",PFP!$J$12:$J$25),2) -> 0
A16: A5 | B16: SEBRAE | E16: 0 | F16: =ROUND(E16*SUMIF(PFP!$B$12:$B$25,"MO2",PFP!$J$12:$J$25),2) -> 0
A17: A6 | B17: Salário Educação | E17: 0 | F17: =ROUND(E17*SUMIF(PFP!$B$12:$B$25,"MO2",PFP!$J$12:$J$25),2) -> 0
A18: A7 | B18: Seguro Contra Acidentes de Trabalho | E18: 0 | F18: =ROUND(E18*SUMIF(PFP!$B$12:$B$25,"MO2",PFP!$J$12:$J$25),2) -> 0
A19: A8 | B19: FGTS | E19: 0.2 | F19: =ROUND(E19*SUMIF(PFP!$B$12:$B$25,"MO2",PFP!$J$12:$J$25),2) -> 468.05
A20: A9 | B20: SECONCI | E20: 0 | F20: =ROUND(E20*SUMIF(PFP!$B$12:$B$25,"MO2",PFP!$J$12:$J$25),2) -> 0
A21: B | B21: ENCARGOS SOCIAIS QUE RECEBEM INCIDÊNCIA DE "A" | E21: =ROUND(SUM(E22:E28),4) -> 0 | F21: =ROUND(E21*SUMIF(PFP!$B$12:$B$25,"MO2",PFP!$J$12:$J$25),2) -> 0
A22: B3 | B22: Auxílio Enfermidade | E22: 0 | F22: =ROUND(E22*SUMIF(PFP!$B$12:$B$25,"MO2",PFP!$J$12:$J$25),2) -> 0
A23: B4 | B23: 13º Salário | E23: 0 | F23: =ROUND(E23*SUMIF(PFP!$B$12:$B$25,"MO2",PFP!$J$12:$J$25),2) -> 0
A24: B5 | B24: Licença Paternidade | E24: 0 | F24: =ROUND(E24*SUMIF(PFP!$B$12:$B$25,"MO2",PFP!$J$12:$J$25),2) -> 0
A25: B6 | B25: Faltas Justificadas | E25: 0 | F25: =ROUND(E25*SUMIF(PFP!$B$12:$B$25,"MO2",PFP!$J$12:$J$25),2) -> 0
A26: B8 | B26: Auxílio Acidente de Trabalho | E26: 0 | F26: =ROUND(E26*SUMIF(PFP!$B$12:$B$25,"MO2",PFP!$J$12:$J$25),2) -> 0
A27: B9 | B27: Férias Gozadas | E27: 0 | F27: =ROUND(E27*SUMIF(PFP!$B$12:$B$25,"MO2",PFP!$J$12:$J$25),2) -> 0
A28: B10 | B28: Salário Maternidade | E28: 0 | F28: =ROUND(E28*SUMIF(PFP!$B$12:$B$25,"MO2",PFP!$J$12:$J$25),2) -> 0
A29: C | B29: ENCARGOS SOCIAIS QUE NÃO RECEBEM INCIDÊNCIA DE "A" | E29: =ROUND(SUM(E30:E34),4) -> 0 | F29: =ROUND(E29*SUMIF(PFP!$B$12:$B$25,"MO2",PFP!$J$12:$J$25),2) -> 0
A30: C1 | B30: Aviso Prévio Indenizado | E30: 0 | F30: =ROUND(E30*SUMIF(PFP!$B$12:$B$25,"MO2",PFP!$J$12:$J$25),2) -> 0
A31: C2 | B31: Aviso Prévio Trabalhado | E31: 0 | F31: =ROUND(E31*SUMIF(PFP!$B$12:$B$25,"MO2",PFP!$J$12:$J$25),2) -> 0
A32: C3 | B32: Férias Indenizadas | E32: 0 | F32: =ROUND(E32*SUMIF(PFP!$B$12:$B$25,"MO2",PFP!$J$12:$J$25),2) -> 0
A33: C4 | B33: Depósito Rescisão Sem Justa Causa | E33: 0 | F33: =ROUND(E33*SUMIF(PFP!$B$12:$B$25,"MO2",PFP!$J$12:$J$25),2) -> 0
A34: C5 | B34: Indenização Adicional | E34: 0 | F34: =ROUND(E34*SUMIF(PFP!$B$12:$B$25,"MO2",PFP!$J$12:$J$25),2) -> 0
A35: D | B35: REINCIDÊNCIAS | E35: =ROUND(SUM(E36:E37),4) -> 0 | F35: =ROUND(E35*SUMIF(PFP!$B$12:$B$25,"MO2",PFP!$J$12:$J$25),2) -> 0
A36: D1 | B36: Reincidência de "A" sobre "B" | E36: =ROUND(E11*E21,4) -> 0 | F36: =ROUND(E36*SUMIF(PFP!$B$12:$B$25,"MO2",PFP!$J$12:$J$25),2) -> 0
A37: D2 | B37: Reincidência de "A" sobre Aviso Prévio Trabalhado e reincidência do FGTS sobre Aviso Prévio Indenizado | E37: =ROUND(E11*E31,4)+ROUND(E30*E14,4) -> 0 | F37: =ROUND(E37*SUMIF(PFP!$B$12:$B$25,"MO2",PFP!$J$12:$J$25),2) -> 0
A38: K1 | B38: ENCARGOS SOCIAIS | E38: =ROUND(E11+E21+E29+E35,4) -> 0.2 | F38: =ROUND(E38*SUMIF(PFP!$B$12:$B$25,"MO2",PFP!$J$12:$J$25),2) -> 468.05
A39: Kb | B39: TAXA DE RESSARCIMENTO DE DESPESAS E ENCARGOS SOBRE MO2 | E39: =ROUND((1+E38+PFP3_FatorKd!E16)*(1+PFP3_FatorKd!E15)*(1+PFP3_FatorKd!E11),4) -> 1.5302
A40: OBSERVAÇÃO: MO2 AUTÔNOMOS
A41: 1 - DISCRIMINAR OS ENCARGOS SOCIAIS COM SEUS RESPECTIVOS PERCENTUAS TOTALIZANDO OS MESMOS.
A42: 2 - APLICAR O % TOTAL P/ CALCULAR OS E. SOCIAIS INCIDENTES NA MÃO-DE-OBRA - AUTÔNOMOS
A43: Kb - Taxa de Ressarcimento de Despesas e Encargos sobre a Mão de Obra AUTONOMOS (incide apenas no Insumo Codigo MO2)
A44: Kb = (1 + K1 + K2) x (1 + K3) x (1 + K4)

Sheet PFP2.3_FatorKc
C1: Ministério da Integração e do Desenvolvimento Regional - MIDR
C2: Companhia de Desenvolvimento dos Vales do São Francisco e do Parnaíba
C3: 5ª Superintendência Regional
A4: DETALHAMENTO DOS ENCARGOS SOCIAIS: Kb | F4: CODIGO:
F5: PFP-2.2
A6: NOME DA CONSULTORA:
A8: PROJETO: | C8: CONTRATANTE: | F8: =PFP!J9 -> BASE: setembro/2025
A9: =PFP!A10 -> Serviços de apoio à fiscalização de convênios, contratos, análise e elaboração de documentos técnicos específicos, no Estado de Alagoas, área de atuação da 5ª Superintendência Regional | C9: CODEVASF | F9: =PFP!J10 -> ORSE: julho/2025 DNIT: Abril/2025 PROP: julho/2025
A10: Cod | B10: DESCRIÇÃO | E10: % | F10: R$
A11: A | B11: ENCARGOS SOCIAIS BÁSICOS | E11: =ROUND(SUM(E12:E20),4) -> 0 | F11: =ROUND(E11*SUMIF(PFP!$B$12:$B$25,"MO3",PFP!$J$12:$J$25),2) -> 0
A12: A1 | B12: INSS | E12: 0 | F12: =ROUND(E12*SUMIF(PFP!$B$12:$B$25,"MO3",PFP!$J$12:$J$25),2) -> 0
A13: A2 | B13: SESI | E13: 0 | F13: =ROUND(E13*SUMIF(PFP!$B$12:$B$25,"MO3",PFP!$J$12:$J$25),2) -> 0
A14: A3 | B14: SENAI | E14: 0 | F14: =ROUND(E14*SUMIF(PFP!$B$12:$B$25,"MO3",PFP!$J$12:$J$25),2) -> 0
A15: A4 | B15: INCRA | E15: 0 | F15: =ROUND(E15*SUMIF(PFP!$B$12:$B$25,"MO3",PFP!$J$12:$J$25),2) -> 0
A16: A5 | B16: SEBRAE | E16: 0 | F16: =ROUND(E16*SUMIF(PFP!$B$12:$B$25,"MO3",PFP!$J$12:$J$25),2) -> 0
A17: A6 | B17: Salário Educação | E17: 0 | F17: =ROUND(E17*SUMIF(PFP!$B$12:$B$25,"MO3",PFP!$J$12:$J$25),2) -> 0
A18: A7 | B18: Seguro Contra Acidentes de Trabalho | E18: 0 | F18: =ROUND(E18*SUMIF(PFP!$B$12:$B$25,"MO3",PFP!$J$12:$J$25),2) -> 0
A19: A8 | B19: FGTS | E19: 0 | F19: =ROUND(E19*SUMIF(PFP!$B$12:$B$25,"MO3",PFP!$J$12:$J$25),2) -> 0
A20: A9 | B20: SECONCI | E20: 0 | F20: =ROUND(E20*SUMIF(PFP!$B$12:$B$25,"MO3",PFP!$J$12:$J$25),2) -> 0
A21: B | B21: ENCARGOS SOCIAIS QUE RECEBEM INCIDÊNCIA DE "A" | E21: =ROUND(SUM(E22:E28),4) -> 0 | F21: =ROUND(E21*SUMIF(PFP!$B$12:$B$25,"MO3",PFP!$J$12:$J$25),2) -> 0
A22: B3 | B22: Auxílio Enfermidade | E22: 0 | F22: =ROUND(E22*SUMIF(PFP!$B$12:$B$25,"MO3",PFP!$J$12:$J$25),2) -> 0
A23: B4 | B23: 13º Salário | E23: 0 | F23: =ROUND(E23*SUMIF(PFP!$B$12:$B$25,"MO3",PFP!$J$12:$J$25),2) -> 0
A24: B5 | B24: Licença Paternidade | E24: 0 | F24: =ROUND(E24*SUMIF(PFP!$B$12:$B$25,"MO3",PFP!$J$12:$J$25),2) -> 0
A25: B6 | B25: Faltas Justificadas | E25: 0 | F25: =ROUND(E25*SUMIF(PFP!$B$12:$B$25,"MO3",PFP!$J$12:$J$25),2) -> 0
A26: B8 | B26: Auxílio Acidente de Trabalho | E26: 0 | F26: =ROUND(E26*SUMIF(PFP!$B$12:$B$25,"MO3",PFP!$J$12:$J$25),2) -> 0
A27: B9 | B27: Férias Gozadas | E27: 0 | F27: =ROUND(E27*SUMIF(PFP!$B$12:$B$25,"MO3",PFP!$J$12:$J$25),2) -> 0
A28: B10 | B28: Salário Maternidade | E28: 0 | F28: =ROUND(E28*SUMIF(PFP!$B$12:$B$25,"MO3",PFP!$J$12:$J$25),2) -> 0
A29: C | B29: ENCARGOS SOCIAIS QUE NÃO RECEBEM INCIDÊNCIA DE "A" | E29: =ROUND(SUM(E30:E34),4) -> 0 | F29: =ROUND(E29*SUMIF(PFP!$B$12:$B$25,"MO3",PFP!$J$12:$J$25),2) -> 0
A30: C1 | B30: Aviso Prévio Indenizado | E30: 0 | F30: =ROUND(E30*SUMIF(PFP!$B$12:$B$25,"MO3",PFP!$J$12:$J$25),2) -> 0
A31: C2 | B31: Aviso Prévio Trabalhado | E31: 0 | F31: =ROUND(E31*SUMIF(PFP!$B$12:$B$25,"MO3",PFP!$J$12:$J$25),2) -> 0
A32: C3 | B32: Férias Indenizadas | E32: 0 | F32: =ROUND(E32*SUMIF(PFP!$B$12:$B$25,"MO3",PFP!$J$12:$J$25),2) -> 0
A33: C4 | B33: Depósito Rescisão Sem Justa Causa | E33: 0 | F33: =ROUND(E33*SUMIF(PFP!$B$12:$B$25,"MO3",PFP!$J$12:$J$25),2) -> 0
A34: C5 | B34: Indenização Adicional | E34: 0 | F34: =ROUND(E34*SUMIF(PFP!$B$12:$B$25,"MO3",PFP!$J$12:$J$25),2) -> 0
A35: D | B35: REINCIDÊNCIAS | E35: =ROUND(SUM(E36:E37),4) -> 0 | F35: =ROUND(E35*SUMIF(PFP!$B$12:$B$25,"MO3",PFP!$J$12:$J$25),2) -> 0
A36: D1 | B36: Reincidência de "A" sobre "B" | E36: =ROUND(E11*E21,4) -> 0 | F36: =ROUND(E36*SUMIF(PFP!$B$12:$B$25,"MO3",PFP!$J$12:$J$25),2) -> 0
A37: D2 | B37: Reincidência de "A" sobre Aviso Prévio Trabalhado e reincidência do FGTS sobre Aviso Prévio Indenizado | E37: =ROUND(E11*E31,4)+ROUND(E30*E14,4) -> 0 | F37: =ROUND(E37*SUMIF(PFP!$B$12:$B$25,"MO3",PFP!$J$12:$J$25),2) -> 0
A38: K1 | B38: ENCARGOS SOCIAIS | E38: =ROUND(E11+E21+E29+E35,4) -> 0 | F38: =ROUND(E38*SUMIF(PFP!$B$12:$B$25,"MO3",PFP!$J$12:$J$25),2) -> 0
A39: Kb | B39: TAXA DE RESSARCIMENTO DE DESPESAS E ENCARGOS SOBRE MO3 | E39: =ROUND((1+E38+PFP3_FatorKd!E16)*(1+PFP3_FatorKd!E15)*(1+PFP3_FatorKd!E11),4) -> 1.2897
A40: OBSERVAÇÃO: MO3 SOCIETÁRIOS
A41: 1 - DISCRIMINAR OS ENCARGOS SOCIAIS COM SEUS RESPECTIVOS PERCENTUAS TOTALIZANDO OS MESMOS.
A42: 2 - APLICAR O % TOTAL P/ CALCULAR OS E. SOCIAIS INCIDENTES NA MÃO-DE-OBRA - SOCIETÁRIOS
A43: Kc - Taxa de Ressarcimento de Despesas e Encargos sobre a Mão de Obra SOCIETÁRIOS (incide apenas no Insumo Codigo MO3)
A44: Kc = (1 + K1 + K2) x (1 + K3) x (1 + K4)

Sheet PFP3_FatorKd
C1: Ministério da Integração e do Desenvolvimento Regional - MIDR
C2: Companhia de Desenvolvimento dos Vales do São Francisco e do Parnaíba
C3: 5ª Superintendência Regional
A4: DESPESAS FISCAIS E CUSTOS DIVERSOS: Kc | F4: CODIGO:
F5: PFP-3
A6: NOME DA CONSULTORA:
A8: PROJETO: | C8: CONTRATANTE: | F8: =PFP!J9 -> BASE: setembro/2025
A9: =PFP!A10 -> Serviços de apoio à fiscalização de convênios, contratos, análise e elaboração de documentos técnicos específicos, no Estado de Alagoas, área de atuação da 5ª Superintendência Regional | C9: CODEVASF | F9: =PFP!J10 -> ORSE: julho/2025 DNIT: Abril/2025 PROP: julho/2025
A10: Cod | B10: DESCRIÇÃO1 | D10: % preço2 | E10: % custo4 | F10: R$
A11: K4 | B11: TAXAS E IMPOSTOS | D11: =ROUND(D12+D13+D14,4) -> 0.104 | E11: =ROUND(E12+E13+E14,4) -> 0.1161 | F11: =E11*SUM(SUMIF(PFP!$B$12:$B$25,"MO1",PFP!$J$12:$J$25)*(1+'PFP2.1_FatorKa'!$E$39)+SUMIF(PFP!$B$12:$B$25,"MO2",PFP!$J$12:$J$25)*(1+'PFP2.2_FatorKb'!$E$38)+SUMIF(PFP!$B$12:$B$25,"<>MO*",PFP!$J$12:$J$25)+$F$16+$F$15) -> 1145.158421
A12: K4.1 | B12: ISS | D12: 0.03 | E12: =ROUND((1/(1-$D$11))*D12,4) -> 0.0335 | F12: =E12*SUM(SUMIF(PFP!$B$12:$B$25,"MO1",PFP!$J$12:$J$25)*(1+'PFP2.1_FatorKa'!$E$39)+SUMIF(PFP!$B$12:$B$25,"MO2",PFP!$J$12:$J$25)*(1+'PFP2.2_FatorKb'!$E$38)+SUMIF(PFP!$B$12:$B$25,"<>MO*",PFP!$J$12:$J$25)+$F$16+$F$15) -> 330.4290018
A13: K4.2 | B13: PIS3 - aliquota efetiva com percentual-desconto | D13: =ROUND(1.65%*0.8,4) -> 0.0132 | E13: =ROUND((1/(1-$D$11))*D13,4) -> 0.0147 | F13: =E13*SUM(SUMIF(PFP!$B$12:$B$25,"MO1",PFP!$J$12:$J$25)*(1+'PFP2.1_FatorKa'!$E$39)+SUMIF(PFP!$B$12:$B$25,"MO2",PFP!$J$12:$J$25)*(1+'PFP2.2_FatorKb'!$E$38)+SUMIF(PFP!$B$12:$B$25,"<>MO*",PFP!$J$12:$J$25)+$F$16+$F$15) -> 144.9942187
A14: K4.3 | B14: COFINS3 - aliquota efetiva com percentual-desconto | D14: =ROUND(7.6%*0.8,4) -> 0.0608 | E14: =ROUND((1/(1-$D$11))*D14,4) -> 0.0679 | F14: =E14*SUM(SUMIF(PFP!$B$12:$B$25,"MO1",PFP!$J$12:$J$25)*(1+'PFP2.1_FatorKa'!$E$39)+SUMIF(PFP!$B$12:$B$25,"MO2",PFP!$J$12:$J$25)*(1+'PFP2.2_FatorKb'!$E$38)+SUMIF(PFP!$B$12:$B$25,"<>MO*",PFP!$J$12:$J$25)+$F$16+$F$15) -> 669.7352006
A15: K3 | B15: REMUNERAÇÃO DA EMPRESA (LUCRO) | E15: 0.0775 | F15: =E15*SUM(SUMIF(PFP!$B$12:$B$25,"MO1",PFP!$J$12:$J$25)*(1+'PFP2.1_FatorKa'!$E$39)+SUMIF(PFP!$B$12:$B$25,"MO2",PFP!$J$12:$J$25)*(1+'PFP2.2_FatorKb'!$E$38)+SUMIF(PFP!$B$12:$B$25,"<>MO*",PFP!$J$12:$J$25)+$F$16) -> 709.4434363
A16: K2 | B16: CUSTOS DA ADMINISTRAÇÃO CENTRAL | E16: =ROUND(SUM(E17:E19),4) -> 0.0724 | F16: =ROUND(E16*SUMIF(PFP!$B$12:$B$25,"MO*",PFP!$J$12:$J$25),2) -> 421.56
A17: K2.1 | B17: Custos da administração central da empresa (diretoria, pessoal técnico de apoio e pessoal administrativo não diretamente vinculado à prestação dos serviços) | E17: 0.04 | F17: =ROUND(E17*SUMIF(PFP!$B$12:$B$25,"MO*",PFP!$J$12:$J$25),2) -> 232.91
A18: K2.2 | B18: Outras despesas que afetam o custo de produção como treinamento, biblioteca, programa de qualidade, programa de benefícios, auditoria interna e externa | E18: 0.02 | F18: =ROUND(E18*SUMIF(PFP!$B$12:$B$25,"MO*",PFP!$J$12:$J$25),2) -> 116.45
A19: K2.3 | B19: Despesas fixas e variaveis com patrimônio, aluguéis, comunicação, manutenção e transporte não diretamente relacionados com o custo direto dos serviços | E19: 0.0124 | F19: =ROUND(E19*SUMIF(PFP!$B$12:$B$25,"MO*",PFP!$J$12:$J$25),2) -> 72.2
A20: Kd | B20: TAXA RESSARCIMENTO DE DESPESAS SOBRE CUSTOS DIVERSOS | E20: =ROUND((1+E15)*(1+E11),4) -> 1.2026
A21: NOME DO INFORMANTE: | E21: QUALIFICAÇÃO:
A23: ASSINATURA: | E23: DATA:
A25: Observação:
A26: 1 - RELACIONAR OS CUSTOS DE ADMINISTRAÇÃO COM RESPECTIVOS PERCENTUAIS INCIDENTES NA MÃO -DE-OBRA
A27: 1 - DISCRIMINAR OS TRIBUTOS QUE INCIDEM SOBRE OS CUSTOS DA PRESTAÇÃO DOS SERVIÇOS
A28: 2 - K4 = INDICAR % DE CADA TRIBUTO E A SOMA DOS MESMOS (ex: ISS 5% + PIS 1,65% + COFINS 7,60% = 14,25%)
A29: 3 - PIS e COFINS, Regime de Incidencia Acumulativa (0,65% e 3,00% - sem percentual de desconto) ou em Regime de Incidencia Não Acumulativa (1,65% e 7,60% - aplicável percentual de desconto) de acordo com a forma de apuração do lucro no IRPJ. APRESENTAR COMPROVANTES de aproveitamento de créditos tributários dos últimos 12 meses em caso de aplicação de "percentual de desconto".
A30: 4 - AS DESPESAS FISCAIS (K4) INCIDEM SOBRE O TOTAL DA FATURA E NÃO SOBRE OS CUSTOS INCORRIDOS,
A31: DEVENDO SER CALCULADO O K4' APLICANDO-SE A SEGUINTE FÓRMULA:
A32: K4' = { [ 1 / ( 1 - K4) ] - 1 } x 100
A33: =CONCATENATE(" K4' = { [ 1 / ( 1 - ",D11," ) ] - 1 } x 100") -> K4' = { [ 1 / ( 1 - 0,104 ) ] - 1 } x 100
A34: Kd - Taxa de Ressarcimento de Despesas sobre Custos Diversos (incide sobre os Insumos Codigo DP e EM)
A35: Kd = (1 + K3) x (1 + K4)
A36: K2 - Incide sobre o Custo Total (CT) da Mão de Obra (MO* = MO1 + MO2)
A37: K3 - Incide sobre o Custo Total (CT) Mão de Obra com encargos (MO1 x Ka ou MO2 x Kb), demais Custos (DP e EM), e Custos da Administração Central (K2)
A38: K4 - Incide sobre o Custo Total (CT) Mão de Obra com encargos (MO1 x Ka ou MO2 x Kb), demais Custos (DP e EM), e Custos da Administração Central (K2) e Lucro (K3)

Sheet CRO1_Ins-Pro
C1: Ministério da Integração e do Desenvolvimento Regional - MIDR
C2: Companhia de Desenvolvimento dos Vales do São Francisco e do Parnaíba
C3: 5ª Superintendência Regional
A4: INSUMOS POR ETAPA/PRODUTO | O4: CODIGO:
O5: CRO-1
A6: Cod. | B6: Categoria / Insumo | C6: Uni | D6: Qde | E6: CUD | F6: PT | G6: FatorK | H6: 1 | I6: 2 | J6: 3 | K6: 4 | L6: 5 | M6: 6 | N6: 7 | O6: 8 | P6: 9 | Q6: 10 | R6: 11 | S6: 12 | T6: 13 | U6: 14 | V6: 15 | W6: 16 | X6: 17 | Y6: 18 | Z6: 19 | AA6: 20 | AB6: 21 | AC6: 22 | AD6: 23 | AE6: 24 | AF6: 25 | AG6: 26 | AH6: 27 | AI6: 28 | AJ6: 29 | AK6: 30 | AL6: 31 | AM6: 32 | AN6: 33 | AO6: 34 | AP6: 35 | AQ6: 36 | AR6: 37 | AS6: 38 | AT6: 39 | AU6: 40 | AV6: 41 | AW6: 42 | AX6: 43 | AY6: 44 | AZ6: 45 | BA6: 46 | BB6: 47 | BC6: 48 | BD6: 49 | BE6: 50 | BF6: 51 | BG6: 52 | BH6: 53 | BI6: 54 | BJ6: 55 | BK6: 56 | BL6: 57 | BM6: 58 | BN6: 59 | BO6: 60 | BP6: 61 | BQ6: 62 | BR6: 63 | BS6: 64 | BT6: 65 | BU6: 66 | BV6: 67 | BW6: 68 | BX6: 69 | BY6: 70 | BZ6: 71 | CA6: 72 | CB6: 73 | CC6: 74 | CD6: 75 | CE6: 76 | CF6: 77 | CG6: 78 | CH6: 79 | CI6: 80 | CJ6: 81 | CK6: 82 | CL6: 83 | CM6: 84 | CN6: 85 | CO6: 86 | CP6: 87 | CQ6: 88 | CR6: 89 | CS6: 90 | CT6: 91 | CU6: 92 | CV6: 93 | CW6: 94 | CX6: 95 | CY6: 96 | CZ6: 97 | DA6: 98 | DB6: 99 | DC6: 100 | DD6: 101 | DE6: 102 | DF6: 103 | DG6: 104 | DH6: 105 | DI6: 106 | DJ6: 107 | DK6: 108 | DL6: 109 | DM6: 110 | DN6: 111 | DO6: 112 | DP6: 113 | DQ6: 114 | DR6: 115 | DS6: 116 | DT6: 117 | DU6: 118 | DV6: 119 | DW6: 120 | DX6: 121 | DY6: 122 | DZ6: 123 | EA6: 124 | EB6: 125 | EC6: 126 | ED6: 127 | EE6: 128 | EF6: 129 | EG6: 130 | EH6: 131 | EI6: 132 | EJ6: 133 | EK6: 134 | EL6: 135 | EM6: 136 | EN6: 137 | EO6: 138 | EP6: 139 | EQ6: 140 | ER6: 141 | ES6: 142 | ET6: 143 | EU6: 144 | EV6: 145 | EW6: 146 | EX6: 147 | EY6: 148 | EZ6: 149 | FA6: 150 | FB6: 151 | FC6: 152 | FD6: 153 | FE6: 154 | FF6: 155 | FG6: 156 | FH6: 157 | FI6: 158 | FJ6: 159 | FK6: 160 | FL6: 161 | FM6: 162 | FN6: 163 | FO6: 164 | FP6: 165 | FQ6: 166 | FR6: 167 | FS6: 168 | FT6: 169 | FU6: 170 | FV6: 171 | FW6: 172 | FX6: 173 | FY6: 174 | FZ6: 175 | GA6: 176 | GB6: 177 | GC6: 178 | GD6: 179 | GE6: 180 | GF6: 181 | GG6: 182 | GH6: 183 | GI6: 184 | GJ6: 185 | GK6: 186 | GL6: 187 | GM6: 188 | GN6: 189 | GO6: 190 | GP6: 191 | GQ6: 192 | GR6: 193 | GS6: 194 | GT6: 195 | GU6: 196 | GV6: 197 | GW6: 198 | GX6: 199 | GY6: 200 | GZ6: 201 | HA6: 202 | HB6: 203 | HC6: 204 | HD6: 205 | HE6: 206 | HF6: 207 | HG6: 208 | HH6: 209 | HI6: 210 | HJ6: 211 | HK6: 212 | HL6: 213 | HM6: 214 | HN6: 215 | HO6: 216 | HP6: 217 | HQ6: 218 | HR6: 219 | HS6: 220 | HT6: 221 | HU6: 222 | HV6: 223 | HW6: 224 | HX6: 225 | HY6: 226 | HZ6: 227 | IA6: 228 | IB6: 229 | IC6: 230 | ID6: 231 | IE6: 232 | IF6: 233 | IG6: 234 | IH6: 235 | II6: 236 | IJ6: 237 | IK6: 238 | IL6: 239 | IM6: 240 | IN6: 241 | IO6: 242 | IP6: 243 | IQ6: 244 | IR6: 245 | IS6: 246 | IT6: 247 | IU6: 248 | IV6: 249 | IW6: 250 | IX6: 251 | IY6: 252 | IZ6: 253 | JA6: 254 | JB6: 255 | JC6: 256 | JD6: 257 | JE6: 258 | JF6: 259 | JG6: 260 | JH6: 261 | JI6: 262 | JJ6: 263 | JK6: 264 | JL6: 265 | JM6: 266 | JN6: 267 | JO6: 268 | JP6: 269 | JQ6: 270 | JR6: 271 | JS6: 272 | JT6: 273 | JU6: 274 | JV6: 275 | JW6: 276 | JX6: 277 | JY6: 278 | JZ6: 279 | KA6: 280 | KB6: 281 | KC6: 282 | KD6: 283 | KE6: 284 | KF6: 285 | KG6: 286 | KH6: 287 | KI6: 288 | KJ6: 289 | KK6: 290 | KL6: 291 | KM6: 292 | KN6: 293 | KO6: 294 | KP6: 295 | KQ6: 296 | KR6: 297 | KS6: 298 | KT6: 299 | KU6: 300 | KV6: 301 | KW6: 302 | KX6: 303 | KY6: 304 | KZ6: 305 | LA6: 306 | LB6: 307 | LC6: 308 | LD6: 309 | LE6: 310 | LF6: 311 | LG6: 312 | LH6: 313 | LI6: 314 | LJ6: 315 | LK6: 316 | LL6: 317 | LM6: 318 | LN6: 319 | LO6: 320 | LP6: 321 | LQ6: 322 | LR6: 323 | LS6: 324 | LT6: 325 | LU6: 326 | LV6: 327 | LW6: 328 | LX6: 329 | LY6: 330 | LZ6: 331 | MA6: 332 | MB6: 333 | MC6: 334 | MD6: 335 | ME6: 336 | MF6: 337 | MG6: 338 | MH6: 339 | MI6: 340 | MJ6: 341 | MK6: 342 | ML6: 343 | MM6: 344 | MN6: 345 | MO6: 346 | MP6: 347 | MQ6: 348 | MR6: 349 | MS6: 350 | MT6: 351 | MU6: 352 | MV6: 353 | MW6: 354 | MX6: 355 | MY6: 356 | MZ6: 357 | NA6: 358 | NB6: 359 | NC6: 360 | ND6: 361 | NE6: 362 | NF6: 363 | NG6: 364 | NH6: 365 | NI6: 366 | NJ6: 367 | NK6: 368 | NL6: 369 | NM6: 370 | NN6: 371 | NO6: 372 | NP6: 373 | NQ6: 374 | NR6: 375 | NS6: 376 | NT6: 377 | NU6: 378 | NV6: 379 | NW6: 380 | NX6: 381 | NY6: 382 | NZ6: 383 | OA6: 384 | OB6: 385 | OC6: 386 | OD6: 387 | OE6: 388 | OF6: 389 | OG6: 390 | OH6: 391 | OI6: 392 | OJ6: 393 | OK6: 394 | OL6: 395 | OM6: 396 | ON6: 397 | OO6: 398 | OP6: 399 | OQ6: 400 | OR6: 401 | OS6: 402 | OT6: 403 | OU6: 404 | OV6: 405 | OW6: 406 | OX6: 407 | OY6: 408 | OZ6: 409 | PA6: 410 | PB6: 411 | PC6: 412 | PD6: 413 | PE6: 414 | PF6: 415 | PG6: 416 | PH6: 417 | PI6: 418 | PJ6: 419 | PK6: 420 | PL6: 421 | PM6: 422 | PN6: 423 | PO6: 424 | PP6: 425 | PQ6: 426 | PR6: 427 | PS6: 428 | PT6: 429 | PU6: 430 | PV6: 431 | PW6: 432 | PX6: 433 | PY6: 434 | PZ6: 435 | QA6: 436 | QB6: 437 | QC6: 438 | QD6: 439 | QE6: 440 | QF6: 441 | QG6: 442 | QH6: 443 | QI6: 444 | QJ6: 445 | QK6: 446 | QL6: 447 | QM6: 448 | QN6: 449 | QO6: 450 | QP6: 451 | QQ6: 452 | QR6: 453 | QS6: 454 | QT6: 455 | QU6: 456 | QV6: 457 | QW6: 458 | QX6: 459 | QY6: 460 | QZ6: 461 | RA6: 462 | RB6: 463 | RC6: 464 | RD6: 465 | RE6: 466 | RF6: 467 | RG6: 468 | RH6: 469 | RI6: 470 | RJ6: 471 | RK6: 472 | RL6: 473 | RM6: 474 | RN6: 475 | RO6: 476 | RP6: 477 | RQ6: 478 | RR6: 479 | RS6: 480 | RT6: 481 | RU6: 482 | RV6: 483 | RW6: 484 | RX6: 485 | RY6: 486 | RZ6: 487 | SA6: 488 | SB6: 489 | SC6: 490 | SD6: 491 | SE6: 492 | SF6: 493 | SG6: 494 | SH6: 495 | SI6: 496 | SJ6: 497 | SK6: 498 | SL6: 499 | SM6: 500 | SN6: 501 | SO6: 502 | SP6: 503 | SQ6: 504 | SR6: 505 | SS6: 506 | ST6: 507 | SU6: 508 | SV6: 509 | SW6: 510 | SX6: 511 | SY6: 512 | SZ6: 513 | TA6: 514 | TB6: 515 | TC6: 516 | TD6: 517 | TE6: 518 | TF6: 519 | TG6: 520 | TH6: 521 | TI6: 522 | TJ6: 523 | TK6: 524 | TL6: 525 | TM6: 526 | TN6: 527 | TO6: 528 | TP6: 529 | TQ6: 530 | TR6: 531 | TS6: 532 | TT6: 533 | TU6: 534 | TV6: 535 | TW6: 536 | TX6: 537 | TY6: 538 | TZ6: 539 | UA6: 540 | UB6: 541 | UC6: 542 | UD6: 543 | UE6: 544 | UF6: 545 | UG6: 546 | UH6: 547 | UI6: 548 | UJ6: 549 | UK6: 550 | UL6: 551 | UM6: 552 | UN6: 553 | UO6: 554 | UP6: 555 | UQ6: 556 | UR6: 557 | US6: 558 | UT6: 559 | UU6: 560 | UV6: 561 | UW6: 562 | UX6: 563 | UY6: 564 | UZ6: 565 | VA6: 566 | VB6: 567 | VC6: 568 | VD6: 569 | VE6: 570 | VF6: 571 | VG6: 572 | VH6: 573 | VI6: 574 | VJ6: 575 | VK6: 576 | VL6: 577 | VM6: 578 | VN6: 579 | VO6: 580 | VP6: 581 | VQ6: 582 | VR6: 583 | VS6: 584 | VT6: 585 | VU6: 586 | VV6: 587 | VW6: 588 | VX6: 589 | VY6: 590 | VZ6: 591 | WA6: 592 | WB6: 593 | WC6: 594 | WD6: 595 | WE6: 596 | WF6: 597 | WG6: 598 | WH6: 599 | WI6: 600 | WJ6: 601 | WK6: 602 | WL6: 603 | WM6: 604 | WN6: 605 | WO6: 606 | WP6: 607 | WQ6: 608 | WR6: 609 | WS6: 610 | WT6: 611 | WU6: 612 | WV6: 613 | WW6: 614 | WX6: 615 | WY6: 616 | WZ6: 617 | XA6: 618 | XB6: 619 | XC6: 620 | XD6: 621 | XE6: 622 | XF6: 623 | XG6: 624 | XH6: 625 | XI6: 626 | XJ6: 627 | XK6: 628 | XL6: 629 | XM6: 630 | XN6: 631 | XO6: 632 | XP6: 633 | XQ6: 634 | XR6: 635 | XS6: 636 | XT6: 637 | XU6: 638 | XV6: 639 | XW6: 640 | XX6: 641 | XY6: 642 | XZ6: 643 | YA6: 644 | YB6: 645 | YC6: 646 | YD6: 647 | YE6: 648 | YF6: 649 | YG6: 650 | YH6: 651 | YI6: 652 | YJ6: 653 | YK6: 654 | YL6: 655 | YM6: 656 | YN6: 657 | YO6: 658 | YP6: 659 | YQ6: 660 | YR6: 661 | YS6: 662 | YT6: 663 | YU6: 664 | YV6: 665 | YW6: 666 | YX6: 667 | YY6: 668 | YZ6: 669 | ZA6: 670 | ZB6: 671 | ZC6: 672 | ZD6: 673 | ZE6: 674 | ZF6: 675 | ZG6: 676 | ZH6: 677 | ZI6: 678 | ZJ6: 679 | ZK6: 680 | ZL6: 681 | ZM6: 682 | ZN6: 683 | ZO6: 684 | ZP6: 685 | ZQ6: 686 | ZR6: 687 | ZS6: 688 | ZT6: 689 | ZU6: 690 | ZV6: 691 | ZW6: 692 | ZX6: 693 | ZY6: 694 | ZZ6: 695 | AAA6: 696 | AAB6: 697 | AAC6: 698 | AAD6: 699 | AAE6: 700 | AAF6: 701 | AAG6: 702 | AAH6: 703 | AAI6: 704 | AAJ6: 705 | AAK6: 706 | AAL6: 707 | AAM6: 708 | AAN6: 709 | AAO6: 710 | AAP6: 711 | AAQ6: 712 | AAR6: 713 | AAS6: 714 | AAT6: 715 | AAU6: 716 | AAV6: 717 | AAW6: 718 | AAX6: 719 | AAY6: 720 | AAZ6: 721 | ABA6: 722 | ABB6: 723 | ABC6: 724 | ABD6: 725 | ABE6: 726 | ABF6: 727 | ABG6: 728 | ABH6: 729 | ABI6: 730 | ABJ6: 731 | ABK6: 732 | ABL6: 733 | ABM6: 734 | ABN6: 735 | ABO6: 736 | ABP6: 737 | ABQ6: 738 | ABR6: 739 | ABS6: 740 | ABT6: 741 | ABU6: 742 | ABV6: 743 | ABW6: 744 | ABX6: 745 | ABY6: 746 | ABZ6: 747 | ACA6: 748 | ACB6: 749 | ACC6: 750 | ACD6: 751 | ACE6: 752 | ACF6: 753 | ACG6: 754 | ACH6: 755 | ACI6: 756 | ACJ6: 757 | ACK6: 758 | ACL6: 759 | ACM6: 760 | ACN6: 761 | ACO6: 762 | ACP6: 763 | ACQ6: 764 | ACR6: 765 | ACS6: 766 | ACT6: 767 | ACU6: 768 | ACV6: 769 | ACW6: 770 | ACX6: 771 | ACY6: 772 | ACZ6: 773 | ADA6: 774 | ADB6: 775 | ADC6: 776 | ADD6: 777 | ADE6: 778 | ADF6: 779 | ADG6: 780 | ADH6: 781 | ADI6: 782 | ADJ6: 783 | ADK6: 784 | ADL6: 785 | ADM6: 786 | ADN6: 787 | ADO6: 788 | ADP6: 789 | ADQ6: 790 | ADR6: 791 | ADS6: 792 | ADT6: 793 | ADU6: 794 | ADV6: 795 | ADW6: 796 | ADX6: 797 | ADY6: 798 | ADZ6: 799 | AEA6: 800 | AEB6: 801 | AEC6: 802 | AED6: 803 | AEE6: 804 | AEF6: 805 | AEG6: 806 | AEH6: 807 | AEI6: 808 | AEJ6: 809 | AEK6: 810 | AEL6: 811 | AEM6: 812 | AEN6: 813 | AEO6: 814 | AEP6: 815 | AEQ6: 816 | AER6: 817 | AES6: 818 | AET6: 819 | AEU6: 820 | AEV6: 821 | AEW6: 822 | AEX6: 823 | AEY6: 824 | AEZ6: 825 | AFA6: 826 | AFB6: 827 | AFC6: 828 | AFD6: 829 | AFE6: 830 | AFF6: 831 | AFG6: 832 | AFH6: 833 | AFI6: 834 | AFJ6: 835 | AFK6: 836 | AFL6: 837 | AFM6: 838 | AFN6: 839 | AFO6: 840 | AFP6: 841 | AFQ6: 842 | AFR6: 843 | AFS6: 844 | AFT6: 845 | AFU6: 846 | AFV6: 847 | AFW6: 848 | AFX6: 849 | AFY6: 850 | AFZ6: 851 | AGA6: 852 | AGB6: 853 | AGC6: 854 | AGD6: 855 | AGE6: 856 | AGF6: 857 | AGG6: 858 | AGH6: 859 | AGI6: 860 | AGJ6: 861 | AGK6: 862 | AGL6: 863 | AGM6: 864 | AGN6: 865 | AGO6: 866 | AGP6: 867 | AGQ6: 868 | AGR6: 869 | AGS6: 870 | AGT6: 871 | AGU6: 872 | AGV6: 873 | AGW6: 874 | AGX6: 875 | AGY6: 876 | AGZ6: 877 | AHA6: 878 | AHB6: 879 | AHC6: 880 | AHD6: 881 | AHE6: 882 | AHF6: 883 | AHG6: 884 | AHH6: 885 | AHI6: 886 | AHJ6: 887 | AHK6: 888 | AHL6: 889 | AHM6: 890 | AHN6: 891 | AHO6: 892 | AHP6: 893 | AHQ6: 894 | AHR6: 895 | AHS6: 896 | AHT6: 897 | AHU6: 898 | AHV6: 899 | AHW6: 900 | AHX6: 901 | AHY6: 902 | AHZ6: 903 | AIA6: 904 | AIB6: 905 | AIC6: 906 | AID6: 907 | AIE6: 908 | AIF6: 909 | AIG6: 910 | AIH6: 911 | AII6: 912 | AIJ6: 913 | AIK6: 914 | AIL6: 915 | AIM6: 916 | AIN6: 917 | AIO6: 918 | AIP6: 919 | AIQ6: 920 | AIR6: 921 | AIS6: 922 | AIT6: 923 | AIU6: 924 | AIV6: 925 | AIW6: 926 | AIX6: 927 | AIY6: 928 | AIZ6: 929 | AJA6: 930 | AJB6: 931 | AJC6: 932 | AJD6: 933 | AJE6: 934 | AJF6: 935 | AJG6: 936 | AJH6: 937 | AJI6: 938 | AJJ6: 939 | AJK6: 940 | AJL6: 941 | AJM6: 942 | AJN6: 943 | AJO6: 944 | AJP6: 945 | AJQ6: 946 | AJR6: 947 | AJS6: 948 | AJT6: 949 | AJU6: 950 | AJV6: 951 | AJW6: 952 | AJX6: 953 | AJY6: 954 | AJZ6: 955 | AKA6: 956 | AKB6: 957 | AKC6: 958 | AKD6: 959 | AKE6: 960 | AKF6: 961 | AKG6: 962 | AKH6: 963 | AKI6: 964 | AKJ6: 965 | AKK6: 966 | AKL6: 967 | AKM6: 968 | AKN6: 969 | AKO6: 970 | AKP6: 971 | AKQ6: 972 | AKR6: 973 | AKS6: 974 | AKT6: 975 | AKU6: 976 | AKV6: 977 | AKW6: 978 | AKX6: 979 | AKY6: 980 | AKZ6: 981 | ALA6: 982 | ALB6: 983 | ALC6: 984 | ALD6: 985 | ALE6: 986 | ALF6: 987 | ALG6: 988 | ALH6: 989 | ALI6: 990 | ALJ6: 991 | ALK6: 992 | ALL6: 993 | ALM6: 994 | ALN6: 995 | ALO6: 996 | ALP6: 997 | ALQ6: 998 | ALR6: 999 | ALS6: 1000 | ALT6: 1001 | ALU6: 1002 | ALV6: 1003 | ALW6: 1004 | ALX6: 1005 | ALY6: 1006 | ALZ6: 1007 | AMA6: 1008 | AMB6: 1009 | AMC6: 1010 | AMD6: 1011 | AME6: 1012 | AMF6: 1013 | AMG6: 1014 | AMH6: 1015 | AMI6: 1016 | AMJ6: 1017 | AMK6: 1018 | AML6: 1019 | AMM6: 1020 | AMN6: 1021 | AMO6: 1022 | AMP6: 1023 | AMQ6: 1024 | AMR6: 1025 | AMS6: 1026 | AMT6: 1027 | AMU6: 1028 | AMV6: 1029 | AMW6: 1030 | AMX6: 1031 | AMY6: 1032 | AMZ6: 1033 | ANA6: 1034 | ANB6: 1035 | ANC6: 1036 | AND6: 1037 | ANE6: 1038 | ANF6: 1039 | ANG6: 1040 | ANH6: 1041 | ANI6: 1042 | ANJ6: 1043 | ANK6: 1044 | ANL6: 1045 | ANM6: 1046 | ANN6: 1047 | ANO6: 1048 | ANP6: 1049 | ANQ6: 1050 | ANR6: 1051 | ANS6: 1052 | ANT6: 1053 | ANU6: 1054 | ANV6: 1055 | ANW6: 1056 | ANX6: 1057 | ANY6: 1058 | ANZ6: 1059 | AOA6: 1060 | AOB6: 1061 | AOC6: 1062 | AOD6: 1063 | AOE6: 1064 | AOF6: 1065 | AOG6: 1066 | AOH6: 1067 | AOI6: 1068 | AOJ6: 1069 | AOK6: 1070 | AOL6: 1071 | AOM6: 1072 | AON6: 1073 | AOO6: 1074 | AOP6: 1075 | AOQ6: 1076 | AOR6: 1077 | AOS6: 1078 | AOT6: 1079 | AOU6: 1080 | AOV6: 1081 | AOW6: 1082 | AOX6: 1083 | AOY6: 1084 | AOZ6: 1085 | APA6: 1086 | APB6: 1087 | APC6: 1088 | APD6: 1089 | APE6: 1090 | APF6: 1091 | APG6: 1092 | APH6: 1093 | API6: 1094 | APJ6: 1095 | APK6: 1096 | APL6: 1097 | APM6: 1098 | APN6: 1099 | APO6: 1100 | APP6: 1101 | APQ6: 1102 | APR6: 1103 | APS6: 1104 | APT6: 1105 | APU6: 1106 | APV6: 1107 | APW6: 1108 | APX6: 1109 | APY6: 1110 | APZ6: 1111 | AQA6: 1112 | AQB6: 1113 | AQC6: 1114 | AQD6: 1115 | AQE6: 1116 | AQF6: 1117 | AQG6: 1118 | AQH6: 1119 | AQI6: 1120 | AQJ6: 1121 | AQK6: 1122 | AQL6: 1123 | AQM6: 1124 | AQN6: 1125 | AQO6: 1126 | AQP6: 1127 | AQQ6: 1128 | AQR6: 1129 | AQS6: 1130 | AQT6: 1131 | AQU6: 1132 | AQV6: 1133 | AQW6: 1134 | AQX6: 1135 | AQY6: 1136 | AQZ6: 1137 | ARA6: 1138 | ARB6: 1139 | ARC6: 1140 | ARD6: 1141 | ARE6: 1142 | ARF6: 1143 | ARG6: 1144 | ARH6: 1145 | ARI6: 1146 | ARJ6: 1147 | ARK6: 1148 | ARL6: 1149 | ARM6: 1150 | ARN6: 1151 | ARO6: 1152 | ARP6: 1153 | ARQ6: 1154 | ARR6: 1155 | ARS6: 1156 | ART6: 1157 | ARU6: 1158 | ARV6: 1159 | ARW6: 1160 | ARX6: 1161 | ARY6: 1162 | ARZ6: 1163 | ASA6: 1164 | ASB6: 1165 | ASC6: 1166 | ASD6: 1167 | ASE6: 1168 | ASF6: 1169 | ASG6: 1170 | ASH6: 1171 | ASI6: 1172 | ASJ6: 1173 | ASK6: 1174 | ASL6: 1175 | ASM6: 1176 | ASN6: 1177 | ASO6: 1178 | ASP6: 1179 | ASQ6: 1180 | ASR6: 1181 | ASS6: 1182 | AST6: 1183 | ASU6: 1184 | ASV6: 1185 | ASW6: 1186 | ASX6: 1187 | ASY6: 1188 | ASZ6: 1189 | ATA6: 1190 | ATB6: 1191 | ATC6: 1192 | ATD6: 1193 | ATE6: 1194 | ATF6: 1195 | ATG6: 1196 | ATH6: 1197 | ATI6: 1198 | ATJ6: 1199 | ATK6: 1200 | ATL6: 1201 | ATM6: 1202 | ATN6: 1203 | ATO6: 1204 | ATP6: 1205 | ATQ6: 1206 | ATR6: 1207 | ATS6: 1208 | ATT6: 1209 | ATU6: 1210 | ATV6: 1211 | ATW6: 1212 | ATX6: 1213 | ATY6: 1214 | ATZ6: 1215 | AUA6: 1216 | AUB6: 1217 | AUC6: 1218 | AUD6: 1219 | AUE6: 1220 | AUF6: 1221 | AUG6: 1222 | AUH6: 1223 | AUI6: 1224 | AUJ6: 1225 | AUK6: 1226 | AUL6: 1227 | AUM6: 1228 | AUN6: 1229 | AUO6: 1230 | AUP6: 1231 | AUQ6: 1232 | AUR6: 1233 | AUS6: 1234 | AUT6: 1235 | AUU6: 1236 | AUV6: 1237 | AUW6: 1238 | AUX6: 1239 | AUY6: 1240 | AUZ6: 1241 | AVA6: 1242 | AVB6: 1243 | AVC6: 1244 | AVD6: 1245 | AVE6: 1246 | AVF6: 1247 | AVG6: 1248 | AVH6: 1249 | AVI6: 1250 | AVJ6: 1251 | AVK6: 1252 | AVL6: 1253 | AVM6: 1254 | AVN6: 1255 | AVO6: 1256 | AVP6: 1257 | AVQ6: 1258 | AVR6: 1259 | AVS6: 1260 | AVT6: 1261 | AVU6: 1262 | AVV6: 1263 | AVW6: 1264 | AVX6: 1265 | AVY6: 1266 | AVZ6: 1267 | AWA6: 1268 | AWB6: 1269 | AWC6: 1270 | AWD6: 1271 | AWE6: 1272 | AWF6: 1273 | AWG6: 1274 | AWH6: 1275 | AWI6: 1276 | AWJ6: 1277 | AWK6: 1278 | AWL6: 1279 | AWM6: 1280 | AWN6: 1281 | AWO6: 1282 | AWP6: 1283 | AWQ6: 1284 | AWR6: 1285 | AWS6: 1286 | AWT6: 1287 | AWU6: 1288 | AWV6: 1289 | AWW6: 1290 | AWX6: 1291 | AWY6: 1292 | AWZ6: 1293 | AXA6: 1294 | AXB6: 1295 | AXC6: 1296 | AXD6: 1297 | AXE6: 1298 | AXF6: 1299 | AXG6: 1300 | AXH6: 1301 | AXI6: 1302 | AXJ6: 1303 | AXK6: 1304 | AXL6: 1305 | AXM6: 1306 | AXN6: 1307 | AXO6: 1308 | AXP6: 1309 | AXQ6: 1310 | AXR6: 1311 | AXS6: 1312 | AXT6: 1313 | AXU6: 1314 | AXV6: 1315 | AXW6: 1316 | AXX6: 1317 | AXY6: 1318 | AXZ6: 1319 | AYA6: 1320 | AYB6: 1321 | AYC6: 1322 | AYD6: 1323 | AYE6: 1324 | AYF6: 1325 | AYG6: 1326 | AYH6: 1327 | AYI6: 1328 | AYJ6: 1329 | AYK6: 1330 | AYL6: 1331 | AYM6: 1332 | AYN6: 1333 | AYO6: 1334 | AYP6: 1335 | AYQ6: 1336 | AYR6: 1337 | AYS6: 1338 | AYT6: 1339 | AYU6: 1340 | AYV6: 1341 | AYW6: 1342 | AYX6: 1343 | AYY6: 1344 | AYZ6: 1345 | AZA6: 1346 | AZB6: 1347 | AZC6: 1348 | AZD6: 1349 | AZE6: 1350 | AZF6: 1351 | AZG6: 1352 | AZH6: 1353 | AZI6: 1354 | AZJ6: 1355 | AZK6: 1356 | AZL6: 1357 | AZM6: 1358 | AZN6: 1359 | AZO6: 1360 | AZP6: 1361 | AZQ6: 1362 | AZR6: 1363 | AZS6: 1364 | AZT6: 1365 | AZU6: 1366 | AZV6: 1367 | AZW6: 1368 | AZX6: 1369 | AZY6: 1370 | AZZ6: 1371 | BAA6: 1372 | BAB6: 1373 | BAC6: 1374 | BAD6: 1375 | BAE6: 1376 | BAF6: 1377 | BAG6: 1378 | BAH6: 1379 | BAI6: 1380 | BAJ6: 1381 | BAK6: 1382 | BAL6: 1383 | BAM6: 1384 | BAN6: 1385 | BAO6: 1386 | BAP6: 1387 | BAQ6: 1388 | BAR6: 1389 | BAS6: 1390 | BAT6: 1391 | BAU6: 1392 | BAV6: 1393 | BAW6: 1394 | BAX6: 1395 | BAY6: 1396 | BAZ6: 1397 | BBA6: 1398 | BBB6: 1399 | BBC6: 1400 | BBD6: 1401 | BBE6: 1402 | BBF6: 1403 | BBG6: 1404 | BBH6: 1405 | BBI6: 1406 | BBJ6: 1407 | BBK6: 1408 | BBL6: 1409 | BBM6: 1410 | BBN6: 1411 | BBO6: 1412 | BBP6: 1413 | BBQ6: 1414 | BBR6: 1415 | BBS6: 1416 | BBT6: 1417 | BBU6: 1418 | BBV6: 1419 | BBW6: 1420 | BBX6: 1421 | BBY6: 1422 | BBZ6: 1423 | BCA6: 1424 | BCB6: 1425 | BCC6: 1426 | BCD6: 1427 | BCE6: 1428 | BCF6: 1429 | BCG6: 1430 | BCH6: 1431 | BCI6: 1432 | BCJ6: 1433 | BCK6: 1434 | BCL6: 1435 | BCM6: 1436 | BCN6: 1437 | BCO6: 1438 | BCP6: 1439 | BCQ6: 1440 | BCR6: 1441 | BCS6: 1442 | BCT6: 1443 | BCU6: 1444 | BCV6: 1445 | BCW6: 1446 | BCX6: 1447 | BCY6: 1448 | BCZ6: 1449 | BDA6: 1450 | BDB6: 1451 | BDC6: 1452 | BDD6: 1453 | BDE6: 1454 | BDF6: 1455 | BDG6: 1456 | BDH6: 1457 | BDI6: 1458 | BDJ6: 1459 | BDK6: 1460 | BDL6: 1461 | BDM6: 1462 | BDN6: 1463 | BDO6: 1464 | BDP6: 1465 | BDQ6: 1466 | BDR6: 1467 | BDS6: 1468 | BDT6: 1469 | BDU6: 1470 | BDV6: 1471 | BDW6: 1472 | BDX6: 1473 | BDY6: 1474 | BDZ6: 1475 | BEA6: 1476 | BEB6: 1477 | BEC6: 1478 | BED6: 1479 | BEE6: 1480 | BEF6: 1481 | BEG6: 1482 | BEH6: 1483 | BEI6: 1484 | BEJ6: 1485 | BEK6: 1486 | BEL6: 1487 | BEM6: 1488 | BEN6: 1489 | BEO6: 1490 | BEP6: 1491 | BEQ6: 1492 | BER6: 1493 | BES6: 1494 | BET6: 1495 | BEU6: 1496 | BEV6: 1497 | BEW6: 1498 | BEX6: 1499 | BEY6: 1500 | BEZ6: 1501 | BFA6: 1502 | BFB6: 1503 | BFC6: 1504 | BFD6: 1505 | BFE6: 1506 | BFF6: 1507 | BFG6: 1508 | BFH6: 1509 | BFI6: 1510 | BFJ6: 1511 | BFK6: 1512 | BFL6: 1513 | BFM6: 1514 | BFN6: 1515 | BFO6: 1516 | BFP6: 1517 | BFQ6: 1518 | BFR6: 1519 | BFS6: 1520 | BFT6: 1521 | BFU6: 1522 | BFV6: 1523 | BFW6: 1524 | BFX6: 1525 | BFY6: 1526 | BFZ6: 1527 | BGA6: 1528 | BGB6: 1529 | BGC6: 1530 | BGD6: 1531 | BGE6: 1532 | BGF6: 1533 | BGG6: 1534 | BGH6: 1535 | BGI6: 1536 | BGJ6: 1537 | BGK6: 1538 | BGL6: 1539 | BGM6: 1540 | BGN6: 1541 | BGO6: 1542 | BGP6: 1543 | BGQ6: 1544 | BGR6: 1545 | BGS6: 1546 | BGT6: 1547 | BGU6: 1548 | BGV6: 1549 | BGW6: 1550 | BGX6: 1551 | BGY6: 1552 | BGZ6: 1553 | BHA6: 1554 | BHB6: 1555 | BHC6: 1556 | BHD6: 1557 | BHE6: 1558 | BHF6: 1559 | BHG6: 1560 | BHH6: 1561 | BHI6: 1562 | BHJ6: 1563 | BHK6: 1564 | BHL6: 1565 | BHM6: 1566 | BHN6: 1567 | BHO6: 1568 | BHP6: 1569 | BHQ6: 1570 | BHR6: 1571 | BHS6: 1572 | BHT6: 1573 | BHU6: 1574 | BHV6: 1575 | BHW6: 1576 | BHX6: 1577 | BHY6: 1578 | BHZ6: 1579 | BIA6: 1580 | BIB6: 1581 | BIC6: 1582 | BID6: 1583 | BIE6: 1584 | BIF6: 1585 | BIG6: 1586 | BIH6: 1587 | BII6: 1588 | BIJ6: 1589 | BIK6: 1590 | BIL6: 1591 | BIM6: 1592 | BIN6: 1593 | BIO6: 1594 | BIP6: 1595 | BIQ6: 1596 | BIR6: 1597 | BIS6: 1598 | BIT6: 1599 | BIU6: 1600 | BIV6: 1601 | BIW6: 1602 | BIX6: 1603 | BIY6: 1604 | BIZ6: 1605 | BJA6: 1606 | BJB6: 1607 | BJC6: 1608 | BJD6: 1609 | BJE6: 1610 | BJF6: 1611 | BJG6: 1612 | BJH6: 1613 | BJI6: 1614 | BJJ6: 1615 | BJK6: 1616 | BJL6: 1617 | BJM6: 1618 | BJN6: 1619 | BJO6: 1620 | BJP6: 1621 | BJQ6: 1622 | BJR6: 1623 | BJS6: 1624 | BJT6: 1625 | BJU6: 1626 | BJV6: 1627 | BJW6: 1628 | BJX6: 1629 | BJY6: 1630 | BJZ6: 1631 | BKA6: 1632 | BKB6: 1633 | BKC6: 1634 | BKD6: 1635 | BKE6: 1636 | BKF6: 1637 | BKG6: 1638 | BKH6: 1639 | BKI6: 1640 | BKJ6: 1641 | BKK6: 1642 | BKL6: 1643 | BKM6: 1644 | BKN6: 1645 | BKO6: 1646 | BKP6: 1647 | BKQ6: 1648 | BKR6: 1649 | BKS6: 1650 | BKT6: 1651 | BKU6: 1652 | BKV6: 1653 | BKW6: 1654 | BKX6: 1655 | BKY6: 1656 | BKZ6: 1657 | BLA6: 1658 | BLB6: 1659 | BLC6: 1660 | BLD6: 1661 | BLE6: 1662 | BLF6: 1663 | BLG6: 1664 | BLH6: 1665 | BLI6: 1666 | BLJ6: 1667 | BLK6: 1668 | BLL6: 1669 | BLM6: 1670 | BLN6: 1671 | BLO6: 1672 | BLP6: 1673 | BLQ6: 1674 | BLR6: 1675 | BLS6: 1676 | BLT6: 1677 | BLU6: 1678 | BLV6: 1679 | BLW6: 1680 | BLX6: 1681 | BLY6: 1682 | BLZ6: 1683 | BMA6: 1684 | BMB6: 1685 | BMC6: 1686 | BMD6: 1687 | BME6: 1688 | BMF6: 1689 | BMG6: 1690 | BMH6: 1691 | BMI6: 1692 | BMJ6: 1693 | BMK6: 1694 | BML6: 1695 | BMM6: 1696 | BMN6: 1697 | BMO6: 1698 | BMP6: 1699 | BMQ6: 1700 | BMR6: 1701 | BMS6: 1702 | BMT6: 1703 | BMU6: 1704 | BMV6: 1705 | BMW6: 1706 | BMX6: 1707 | BMY6: 1708 | BMZ6: 1709 | BNA6: 1710 | BNB6: 1711 | BNC6: 1712 | BND6: 1713 | BNE6: 1714 | BNF6: 1715 | BNG6: 1716 | BNH6: 1717 | BNI6: 1718 | BNJ6: 1719 | BNK6: 1720 | BNL6: 1721 | BNM6: 1722 | BNN6: 1723 | BNO6: 1724 | BNP6: 1725 | BNQ6: 1726 | BNR6: 1727 | BNS6: 1728 | BNT6: 1729 | BNU6: 1730 | BNV6: 1731 | BNW6: 1732 | BNX6: 1733 | BNY6: 1734 | BNZ6: 1735 | BOA6: 1736 | BOB6: 1737 | BOC6: 1738 | BOD6: 1739 | BOE6: 1740 | BOF6: 1741 | BOG6: 1742 | BOH6: 1743 | BOI6: 1744 | BOJ6: 1745 | BOK6: 1746 | BOL6: 1747 | BOM6: 1748 | BON6: 1749 | BOO6: 1750 | BOP6: 1751 | BOQ6: 1752 | BOR6: 1753 | BOS6: 1754 | BOT6: 1755 | BOU6: 1756 | BOV6: 1757 | BOW6: 1758 | BOX6: 1759 | BOY6: 1760 | BOZ6: 1761 | BPA6: 1762 | BPB6: 1763 | BPC6: 1764 | BPD6: 1765 | BPE6: 1766 | BPF6: 1767 | BPG6: 1768 | BPH6: 1769 | BPI6: 1770 | BPJ6: 1771 | BPK6: 1772 | BPL6: 1773 | BPM6: 1774 | BPN6: 1775 | BPO6: 1776 | BPP6: 1777 | BPQ6: 1778 | BPR6: 1779 | BPS6: 1780 | BPT6: 1781 | BPU6: 1782 | BPV6: 1783 | BPW6: 1784 | BPX6: 1785 | BPY6: 1786 | BPZ6: 1787 | BQA6: 1788 | BQB6: 1789 | BQC6: 1790 | BQD6: 1791 | BQE6: 1792 | BQF6: 1793 | BQG6: 1794 | BQH6: 1795 | BQI6: 1796 | BQJ6: 1797 | BQK6: 1798 | BQL6: 1799 | BQM6: 1800 | BQN6: 1801 | BQO6: 1802 | BQP6: 1803 | BQQ6: 1804 | BQR6: 1805 | BQS6: 1806 | BQT6: 1807 | BQU6: 1808 | BQV6: 1809 | BQW6: 1810 | BQX6: 1811 | BQY6: 1812 | BQZ6: 1813 | BRA6: 1814 | BRB6: 1815 | BRC6: 1816 | BRD6: 1817 | BRE6: 1818 | BRF6: 1819 | BRG6: 1820 | BRH6: 1821 | BRI6: 1822 | BRJ6: 1823 | BRK6: 1824 | BRL6: 1825 | BRM6: 1826 | BRN6: 1827 | BRO6: 1828 | BRP6: 1829 | BRQ6: 1830 | BRR6: 1831 | BRS6: 1832 | BRT6: 1833 | BRU6: 1834 | BRV6: 1835 | BRW6: 1836 | BRX6: 1837 | BRY6: 1838 | BRZ6: 1839 | BSA6: 1840 | BSB6: 1841 | BSC6: 1842 | BSD6: 1843 | BSE6: 1844 | BSF6: 1845 | BSG6: 1846 | BSH6: 1847 | BSI6: 1848 | BSJ6: 1849 | BSK6: 1850 | BSL6: 1851 | BSM6: 1852 | BSN6: 1853 | BSO6: 1854 | BSP6: 1855 | BSQ6: 1856 | BSR6: 1857 | BSS6: 1858 | BST6: 1859 | BSU6: 1860 | BSV6: 1861 | BSW6: 1862 | BSX6: 1863 | BSY6: 1864 | BSZ6: 1865 | BTA6: 1866 | BTB6: 1867 | BTC6: 1868 | BTD6: 1869 | BTE6: 1870 | BTF6: 1871 | BTG6: 1872 | BTH6: 1873 | BTI6: 1874 | BTJ6: 1875 | BTK6: 1876 | BTL6: 1877 | BTM6: 1878 | BTN6: 1879 | BTO6: 1880 | BTP6: 1881 | BTQ6: 1882 | BTR6: 1883 | BTS6: 1884 | BTT6: 1885 | BTU6: 1886 | BTV6: 1887 | BTW6: 1888 | BTX6: 1889 | BTY6: 1890 | BTZ6: 1891 | BUA6: 1892 | BUB6: 1893 | BUC6: 1894 | BUD6: 1895 | BUE6: 1896 | BUF6: 1897 | BUG6: 1898 | BUH6: 1899 | BUI6: 1900 | BUJ6: 1901 | BUK6: 1902 | BUL6: 1903 | BUM6: 1904 | BUN6: 1905 | BUO6: 1906 | BUP6: 1907 | BUQ6: 1908 | BUR6: 1909 | BUS6: 1910 | BUT6: 1911 | BUU6: 1912 | BUV6: 1913 | BUW6: 1914 | BUX6: 1915 | BUY6: 1916 | BUZ6: 1917 | BVA6: 1918 | BVB6: 1919 | BVC6: 1920 | BVD6: 1921 | BVE6: 1922 | BVF6: 1923 | BVG6: 1924 | BVH6: 1925 | BVI6: 1926 | BVJ6: 1927 | BVK6: 1928 | BVL6: 1929 | BVM6: 1930 | BVN6: 1931 | BVO6: 1932 | BVP6: 1933 | BVQ6: 1934 | BVR6: 1935 | BVS6: 1936 | BVT6: 1937 | BVU6: 1938 | BVV6: 1939 | BVW6: 1940 | BVX6: 1941 | BVY6: 1942 | BVZ6: 1943 | BWA6: 1944 | BWB6: 1945 | BWC6: 1946 | BWD6: 1947 | BWE6: 1948 | BWF6: 1949 | BWG6: 1950 | BWH6: 1951 | BWI6: 1952 | BWJ6: 1953 | BWK6: 1954 | BWL6: 1955 | BWM6: 1956 | BWN6: 1957 | BWO6: 1958 | BWP6: 1959 | BWQ6: 1960 | BWR6: 1961 | BWS6: 1962 | BWT6: 1963 | BWU6: 1964 | BWV6: 1965 | BWW6: 1966 | BWX6: 1967 | BWY6: 1968 | BWZ6: 1969 | BXA6: 1970 | BXB6: 1971 | BXC6: 1972 | BXD6: 1973 | BXE6: 1974 | BXF6: 1975 | BXG6: 1976 | BXH6: 1977 | BXI6: 1978 | BXJ6: 1979 | BXK6: 1980 | BXL6: 1981 | BXM6: 1982 | BXN6: 1983 | BXO6: 1984 | BXP6: 1985 | BXQ6: 1986 | BXR6: 1987 | BXS6: 1988 | BXT6: 1989 | BXU6: 1990 | BXV6: 1991 | BXW6: 1992 | BXX6: 1993 | BXY6: 1994 | BXZ6: 1995 | BYA6: 1996 | BYB6: 1997 | BYC6: 1998 | BYD6: 1999 | BYE6: 2000 | BYF6: 2001 | BYG6: 2002 | BYH6: 2003 | BYI6: 2004 | BYJ6: 2005 | BYK6: 2006 | BYL6: 2007 | BYM6: 2008 | BYN6: 2009 | BYO6: 2010 | BYP6: 2011 | BYQ6: 2012 | BYR6: 2013 | BYS6: 2014 | BYT6: 2015 | BYU6: 2016 | BYV6: 2017 | BYW6: 2018 | BYX6: 2019 | BYY6: 2020 | BYZ6: 2021 | BZA6: 2022 | BZB6: 2023 | BZC6: 2024 | BZD6: 2025 | BZE6: 2026 | BZF6: 2027 | BZG6: 2028 | BZH6: 2029 | BZI6: 2030 | BZJ6: 2031 | BZK6: 2032 | BZL6: 2033 | BZM6: 2034 | BZN6: 2035 | BZO6: 2036 | BZP6: 2037 | BZQ6: 2038 | BZR6: 2039 | BZS6: 2040 | BZT6: 2041 | BZU6: 2042 | BZV6: 2043 | BZW6: 2044 | BZX6: 2045 | BZY6: 2046 | BZZ6: 2047 | CAA6: 2048 | CAB6: 2049 | CAC6: 2050 | CAD6: 2051 | CAE6: 2052 | CAF6: 2053 | CAG6: 2054 | CAH6: 2055 | CAI6: 2056 | CAJ6: 2057 | CAK6: 2058 | CAL6: 2059 | CAM6: 2060 | CAN6: 2061 | CAO6: 2062 | CAP6: 2063 | CAQ6: 2064 | CAR6: 2065 | CAS6: 2066 | CAT6: 2067 | CAU6: 2068 | CAV6: 2069 | CAW6: 2070 | CAX6: 2071 | CAY6: 2072 | CAZ6: 2073 | CBA6: 2074 | CBB6: 2075 | CBC6: 2076 | CBD6: 2077 | CBE6: 2078 | CBF6: 2079 | CBG6: 2080 | CBH6: 2081 | CBI6: 2082 | CBJ6: 2083 | CBK6: 2084 | CBL6: 2085 | CBM6: 2086 | CBN6: 2087 | CBO6: 2088 | CBP6: 2089 | CBQ6: 2090 | CBR6: 2091 | CBS6: 2092 | CBT6: 2093 | CBU6: 2094 | CBV6: 2095 | CBW6: 2096 | CBX6: 2097 | CBY6: 2098 | CBZ6: 2099 | CCA6: 2100 | CCB6: 2101 | CCC6: 2102 | CCD6: 2103 | CCE6: 2104 | CCF6: 2105 | CCG6: 2106 | CCH6: 2107 | CCI6: 2108 | CCJ6: 2109 | CCK6: 2110 | CCL6: 2111 | CCM6: 2112 | CCN6: 2113 | CCO6: 2114 | CCP6: 2115 | CCQ6: 2116 | CCR6: 2117 | CCS6: 2118 | CCT6: 2119 | CCU6: 2120 | CCV6: 2121 | CCW6: 2122 | CCX6: 2123 | CCY6: 2124 | CCZ6: 2125 | CDA6: 2126 | CDB6: 2127 | CDC6: 2128 | CDD6: 2129 | CDE6: 2130 | CDF6: 2131 | CDG6: 2132 | CDH6: 2133 | CDI6: 2134 | CDJ6: 2135 | CDK6: 2136 | CDL6: 2137 | CDM6: 2138 | CDN6: 2139 | CDO6: 2140 | CDP6: 2141 | CDQ6: 2142 | CDR6: 2143 | CDS6: 2144 | CDT6: 2145 | CDU6: 2146 | CDV6: 2147 | CDW6: 2148 | CDX6: 2149 | CDY6: 2150 | CDZ6: 2151 | CEA6: 2152 | CEB6: 2153 | CEC6: 2154 | CED6: 2155 | CEE6: 2156 | CEF6: 2157 | CEG6: 2158 | CEH6: 2159 | CEI6: 2160 | CEJ6: 2161 | CEK6: 2162 | CEL6: 2163 | CEM6: 2164 | CEN6: 2165 | CEO6: 2166 | CEP6: 2167 | CEQ6: 2168 | CER6: 2169 | CES6: 2170 | CET6: 2171 | CEU6: 2172 | CEV6: 2173 | CEW6: 2174 | CEX6: 2175 | CEY6: 2176 | CEZ6: 2177 | CFA6: 2178 | CFB6: 2179 | CFC6: 2180 | CFD6: 2181 | CFE6: 2182 | CFF6: 2183 | CFG6: 2184 | CFH6: 2185 | CFI6: 2186 | CFJ6: 2187 | CFK6: 2188 | CFL6: 2189 | CFM6: 2190 | CFN6: 2191 | CFO6: 2192 | CFP6: 2193 | CFQ6: 2194 | CFR6: 2195 | CFS6: 2196 | CFT6: 2197 | CFU6: 2198 | CFV6: 2199 | CFW6: 2200 | CFX6: 2201 | CFY6: 2202 | CFZ6: 2203 | CGA6: 2204 | CGB6: 2205 | CGC6: 2206 | CGD6: 2207 | CGE6: 2208 | CGF6: 2209 | CGG6: 2210 | CGH6: 2211 | CGI6: 2212 | CGJ6: 2213 | CGK6: 2214 | CGL6: 2215 | CGM6: 2216 | CGN6: 2217 | CGO6: 2218 | CGP6: 2219 | CGQ6: 2220 | CGR6: 2221 | CGS6: 2222 | CGT6: 2223 | CGU6: 2224 | CGV6: 2225 | CGW6: 2226 | CGX6: 2227 | CGY6: 2228 | CGZ6: 2229 | CHA6: 2230 | CHB6: 2231 | CHC6: 2232 | CHD6: 2233 | CHE6: 2234 | CHF6: 2235 | CHG6: 2236 | CHH6: 2237 | CHI6: 2238 | CHJ6: 2239 | CHK6: 2240 | CHL6: 2241 | CHM6: 2242 | CHN6: 2243 | CHO6: 2244 | CHP6: 2245 | CHQ6: 2246 | CHR6: 2247 | CHS6: 2248 | CHT6: 2249 | CHU6: 2250 | CHV6: 2251 | CHW6: 2252 | CHX6: 2253 | CHY6: 2254 | CHZ6: 2255 | CIA6: 2256 | CIB6: 2257 | CIC6: 2258 | CID6: 2259 | CIE6: 2260 | CIF6: 2261 | CIG6: 2262 | CIH6: 2263 | CII6: 2264 | CIJ6: 2265 | CIK6: 2266 | CIL6: 2267 | CIM6: 2268 | CIN6: 2269 | CIO6: 2270 | CIP6: 2271 | CIQ6: 2272 | CIR6: 2273 | CIS6: 2274 | CIT6: 2275 | CIU6: 2276 | CIV6: 2277 | CIW6: 2278 | CIX6: 2279 | CIY6: 2280 | CIZ6: 2281 | CJA6: 2282 | CJB6: 2283 | CJC6: 2284 | CJD6: 2285 | CJE6: 2286 | CJF6: 2287 | CJG6: 2288 | CJH6: 2289 | CJI6: 2290 | CJJ6: 2291 | CJK6: 2292 | CJL6: 2293 | CJM6: 2294 | CJN6: 2295 | CJO6: 2296 | CJP6: 2297 | CJQ6: 2298 | CJR6: 2299 | CJS6: 2300 | CJT6: 2301 | CJU6: 2302 | CJV6: 2303 | CJW6: 2304 | CJX6: 2305 | CJY6: 2306 | CJZ6: 2307 | CKA6: 2308 | CKB6: 2309 | CKC6: 2310 | CKD6: 2311 | CKE6: 2312 | CKF6: 2313 | CKG6: 2314 | CKH6: 2315 | CKI6: 2316 | CKJ6: 2317 | CKK6: 2318 | CKL6: 2319 | CKM6: 2320 | CKN6: 2321 | CKO6: 2322 | CKP6: 2323 | CKQ6: 2324 | CKR6: 2325 | CKS6: 2326 | CKT6: 2327 | CKU6: 2328 | CKV6: 2329 | CKW6: 2330 | CKX6: 2331 | CKY6: 2332 | CKZ6: 2333 | CLA6: 2334 | CLB6: 2335 | CLC6: 2336 | CLD6: 2337 | CLE6: 2338 | CLF6: 2339 | CLG6: 2340 | CLH6: 2341 | CLI6: 2342 | CLJ6: 2343 | CLK6: 2344 | CLL6: 2345 | CLM6: 2346 | CLN6: 2347 | CLO6: 2348 | CLP6: 2349 | CLQ6: 2350 | CLR6: 2351 | CLS6: 2352 | CLT6: 2353 | CLU6: 2354 | CLV6: 2355 | CLW6: 2356 | CLX6: 2357 | CLY6: 2358 | CLZ6: 2359 | CMA6: 2360 | CMB6: 2361 | CMC6: 2362 | CMD6: 2363 | CME6: 2364 | CMF6: 2365 | CMG6: 2366 | CMH6: 2367 | CMI6: 2368 | CMJ6: 2369 | CMK6: 2370 | CML6: 2371 | CMM6: 2372 | CMN6: 2373 | CMO6: 2374 | CMP6: 2375 | CMQ6: 2376 | CMR6: 2377 | CMS6: 2378 | CMT6: 2379 | CMU6: 2380 | CMV6: 2381 | CMW6: 2382 | CMX6: 2383 | CMY6: 2384 | CMZ6: 2385 | CNA6: 2386 | CNB6: 2387 | CNC6: 2388 | CND6: 2389 | CNE6: 2390 | CNF6: 2391 | CNG6: 2392 | CNH6: 2393 | CNI6: 2394 | CNJ6: 2395 | CNK6: 2396 | CNL6: 2397 | CNM6: 2398 | CNN6: 2399 | CNO6: 2400 | CNP6: 2401 | CNQ6: 2402 | CNR6: 2403 | CNS6: 2404 | CNT6: 2405 | CNU6: 2406 | CNV6: 2407 | CNW6: 2408 | CNX6: 2409 | CNY6: 2410 | CNZ6: 2411 | COA6: 2412 | COB6: 2413 | COC6: 2414 | COD6: 2415 | COE6: 2416 | COF6: 2417 | COG6: 2418 | COH6: 2419 | COI6: 2420 | COJ6: 2421 | COK6: 2422 | COL6: 2423 | COM6: 2424 | CON6: 2425 | COO6: 2426 | COP6: 2427 | COQ6: 2428 | COR6: 2429 | COS6: 2430 | COT6: 2431 | COU6: 2432 | COV6: 2433 | COW6: 2434 | COX6: 2435 | COY6: 2436 | COZ6: 2437 | CPA6: 2438 | CPB6: 2439 | CPC6: 2440 | CPD6: 2441 | CPE6: 2442 | CPF6: 2443 | CPG6: 2444 | CPH6: 2445 | CPI6: 2446 | CPJ6: 2447 | CPK6: 2448 | CPL6: 2449 | CPM6: 2450 | CPN6: 2451 | CPO6: 2452 | CPP6: 2453 | CPQ6: 2454 | CPR6: 2455 | CPS6: 2456 | CPT6: 2457 | CPU6: 2458 | CPV6: 2459 | CPW6: 2460 | CPX6: 2461 | CPY6: 2462 | CPZ6: 2463 | CQA6: 2464 | CQB6: 2465 | CQC6: 2466 | CQD6: 2467 | CQE6: 2468 | CQF6: 2469 | CQG6: 2470 | CQH6: 2471 | CQI6: 2472 | CQJ6: 2473 | CQK6: 2474 | CQL6: 2475 | CQM6: 2476 | CQN6: 2477 | CQO6: 2478 | CQP6: 2479 | CQQ6: 2480 | CQR6: 2481 | CQS6: 2482 | CQT6: 2483 | CQU6: 2484 | CQV6: 2485 | CQW6: 2486 | CQX6: 2487 | CQY6: 2488 | CQZ6: 2489 | CRA6: 2490 | CRB6: 2491 | CRC6: 2492 | CRD6: 2493 | CRE6: 2494 | CRF6: 2495 | CRG6: 2496 | CRH6: 2497 | CRI6: 2498 | CRJ6: 2499 | CRK6: 2500 | CRL6: 2501 | CRM6: 2502 | CRN6: 2503 | CRO6: 2504 | CRP6: 2505 | CRQ6: 2506 | CRR6: 2507 | CRS6: 2508 | CRT6: 2509 | CRU6: 2510 | CRV6: 2511 | CRW6: 2512 | CRX6: 2513 | CRY6: 2514 | CRZ6: 2515 | CSA6: 2516 | CSB6: 2517 | CSC6: 2518 | CSD6: 2519 | CSE6: 2520 | CSF6: 2521 | CSG6: 2522 | CSH6: 2523 | CSI6: 2524 | CSJ6: 2525 | CSK6: 2526 | CSL6: 2527 | CSM6: 2528 | CSN6: 2529 | CSO6: 2530 | CSP6: 2531 | CSQ6: 2532 | CSR6: 2533 | CSS6: 2534 | CST6: 2535 | CSU6: 2536 | CSV6: 2537 | CSW6: 2538 | CSX6: 2539 | CSY6: 2540 | CSZ6: 2541 | CTA6: 2542 | CTB6: 2543 | CTC6: 2544 | CTD6: 2545 | CTE6: 2546 | CTF6: 2547 | CTG6: 2548 | CTH6: 2549 | CTI6: 2550 | CTJ6: 2551 | CTK6: 2552 | CTL6: 2553 | CTM6: 2554 | CTN6: 2555 | CTO6: 2556 | CTP6: 2557 | CTQ6: 2558 | CTR6: 2559 | CTS6: 2560 | CTT6: 2561 | CTU6: 2562 | CTV6: 2563 | CTW6: 2564 | CTX6: 2565 | CTY6: 2566 | CTZ6: 2567 | CUA6: 2568 | CUB6: 2569 | CUC6: 2570 | CUD6: 2571 | CUE6: 2572 | CUF6: 2573 | CUG6: 2574 | CUH6: 2575 | CUI6: 2576 | CUJ6: 2577 | CUK6: 2578 | CUL6: 2579 | CUM6: 2580 | CUN6: 2581 | CUO6: 2582 | CUP6: 2583 | CUQ6: 2584 | CUR6: 2585 | CUS6: 2586 | CUT6: 2587 | CUU6: 2588 | CUV6: 2589 | CUW6: 2590 | CUX6: 2591 | CUY6: 2592 | CUZ6: 2593 | CVA6: 2594 | CVB6: 2595 | CVC6: 2596 | CVD6: 2597 | CVE6: 2598 | CVF6: 2599 | CVG6: 2600 | CVH6: 2601 | CVI6: 2602 | CVJ6: 2603 | CVK6: 2604 | CVL6: 2605 | CVM6: 2606 | CVN6: 2607 | CVO6: 2608 | CVP6: 2609 | CVQ6: 2610 | CVR6: 2611 | CVS6: 2612 | CVT6: 2613 | CVU6: 2614 | CVV6: 2615 | CVW6: 2616 | CVX6: 2617 | CVY6: 2618 | CVZ6: 2619 | CWA6: 2620 | CWB6: 2621 | CWC6: 2622 | CWD6: 2623 | CWE6: 2624 | CWF6: 2625 | CWG6: 2626 | CWH6: 2627 | CWI6: 2628 | CWJ6: 2629 | CWK6: 2630 | CWL6: 2631 | CWM6: 2632 | CWN6: 2633 | CWO6: 2634 | CWP6: 2635 | CWQ6: 2636 | CWR6: 2637 | CWS6: 2638 | CWT6: 2639 | CWU6: 2640 | CWV6: 2641 | CWW6: 2642 | CWX6: 2643 | CWY6: 2644 | CWZ6: 2645 | CXA6: 2646 | CXB6: 2647 | CXC6: 2648 | CXD6: 2649 | CXE6: 2650 | CXF6: 2651 | CXG6: 2652 | CXH6: 2653 | CXI6: 2654 | CXJ6: 2655 | CXK6: 2656 | CXL6: 2657 | CXM6: 2658 | CXN6: 2659 | CXO6: 2660 | CXP6: 2661 | CXQ6: 2662 | CXR6: 2663 | CXS6: 2664 | CXT6: 2665 | CXU6: 2666 | CXV6: 2667 | CXW6: 2668 | CXX6: 2669 | CXY6: 2670 | CXZ6: 2671 | CYA6: 2672 | CYB6: 2673 | CYC6: 2674 | CYD6: 2675 | CYE6: 2676 | CYF6: 2677 | CYG6: 2678 | CYH6: 2679 | CYI6: 2680 | CYJ6: 2681 | CYK6: 2682 | CYL6: 2683 | CYM6: 2684 | CYN6: 2685 | CYO6: 2686 | CYP6: 2687 | CYQ6: 2688 | CYR6: 2689 | CYS6: 2690 | CYT6: 2691 | CYU6: 2692 | CYV6: 2693 | CYW6: 2694 | CYX6: 2695 | CYY6: 2696 | CYZ6: 2697 | CZA6: 2698 | CZB6: 2699 | CZC6: 2700 | CZD6: 2701 | CZE6: 2702 | CZF6: 2703 | CZG6: 2704 | CZH6: 2705 | CZI6: 2706 | CZJ6: 2707 | CZK6: 2708 | CZL6: 2709 | CZM6: 2710 | CZN6: 2711 | CZO6: 2712 | CZP6: 2713 | CZQ6: 2714 | CZR6: 2715 | CZS6: 2716 | CZT6: 2717 | CZU6: 2718 | CZV6: 2719 | CZW6: 2720 | CZX6: 2721 | CZY6: 2722 | CZZ6: 2723 | DAA6: 2724 | DAB6: 2725 | DAC6: 2726 | DAD6: 2727 | DAE6: 2728 | DAF6: 2729 | DAG6: 2730 | DAH6: 2731 | DAI6: 2732 | DAJ6: 2733 | DAK6: 2734 | DAL6: 2735 | DAM6: 2736 | DAN6: 2737 | DAO6: 2738 | DAP6: 2739 | DAQ6: 2740 | DAR6: 2741 | DAS6: 2742 | DAT6: 2743 | DAU6: 2744 | DAV6: 2745 | DAW6: 2746 | DAX6: 2747 | DAY6: 2748 | DAZ6: 2749 | DBA6: 2750 | DBB6: 2751 | DBC6: 2752 | DBD6: 2753 | DBE6: 2754 | DBF6: 2755 | DBG6: 2756 | DBH6: 2757 | DBI6: 2758 | DBJ6: 2759 | DBK6: 2760 | DBL6: 2761 | DBM6: 2762 | DBN6: 2763 | DBO6: 2764 | DBP6: 2765 | DBQ6: 2766 | DBR6: 2767 | DBS6: 2768 | DBT6: 2769 | DBU6: 2770 | DBV6: 2771 | DBW6: 2772 | DBX6: 2773 | DBY6: 2774 | DBZ6: 2775 | DCA6: 2776 | DCB6: 2777 | DCC6: 2778 | DCD6: 2779 | DCE6: 2780 | DCF6: 2781 | DCG6: 2782 | DCH6: 2783 | DCI6: 2784 | DCJ6: 2785 | DCK6: 2786 | DCL6: 2787 | DCM6: 2788 | DCN6: 2789 | DCO6: 2790 | DCP6: 2791 | DCQ6: 2792 | DCR6: 2793 | DCS6: 2794 | DCT6: 2795 | DCU6: 2796 | DCV6: 2797 | DCW6: 2798 | DCX6: 2799 | DCY6: 2800 | DCZ6: 2801 | DDA6: 2802 | DDB6: 2803 | DDC6: 2804 | DDD6: 2805 | DDE6: 2806 | DDF6: 2807 | DDG6: 2808 | DDH6: 2809 | DDI6: 2810 | DDJ6: 2811 | DDK6: 2812 | DDL6: 2813 | DDM6: 2814 | DDN6: 2815 | DDO6: 2816 | DDP6: 2817 | DDQ6: 2818 | DDR6: 2819 | DDS6: 2820 | DDT6: 2821 | DDU6: 2822 | DDV6: 2823 | DDW6: 2824 | DDX6: 2825 | DDY6: 2826 | DDZ6: 2827 | DEA6: 2828 | DEB6: 2829 | DEC6: 2830 | DED6: 2831 | DEE6: 2832 | DEF6: 2833 | DEG6: 2834 | DEH6: 2835 | DEI6: 2836 | DEJ6: 2837 | DEK6: 2838 | DEL6: 2839 | DEM6: 2840 | DEN6: 2841 | DEO6: 2842 | DEP6: 2843 | DEQ6: 2844 | DER6: 2845 | DES6: 2846 | DET6: 2847 | DEU6: 2848 | DEV6: 2849 | DEW6: 2850 | DEX6: 2851 | DEY6: 2852 | DEZ6: 2853 | DFA6: 2854 | DFB6: 2855 | DFC6: 2856 | DFD6: 2857 | DFE6: 2858 | DFF6: 2859 | DFG6: 2860 | DFH6: 2861 | DFI6: 2862 | DFJ6: 2863 | DFK6: 2864 | DFL6: 2865 | DFM6: 2866 | DFN6: 2867 | DFO6: 2868 | DFP6: 2869 | DFQ6: 2870 | DFR6: 2871 | DFS6: 2872 | DFT6: 2873 | DFU6: 2874 | DFV6: 2875 | DFW6: 2876 | DFX6: 2877 | DFY6: 2878 | DFZ6: 2879 | DGA6: 2880 | DGB6: 2881 | DGC6: 2882 | DGD6: 2883 | DGE6: 2884 | DGF6: 2885 | DGG6: 2886 | DGH6: 2887 | DGI6: 2888 | DGJ6: 2889 | DGK6: 2890 | DGL6: 2891 | DGM6: 2892 | DGN6: 2893 | DGO6: 2894 | DGP6: 2895 | DGQ6: 2896 | DGR6: 2897 | DGS6: 2898 | DGT6: 2899 | DGU6: 2900 | DGV6: 2901 | DGW6: 2902 | DGX6: 2903 | DGY6: 2904 | DGZ6: 2905 | DHA6: 2906 | DHB6: 2907 | DHC6: 2908 | DHD6: 2909 | DHE6: 2910 | DHF6: 2911 | DHG6: 2912 | DHH6: 2913 | DHI6: 2914 | DHJ6: 2915 | DHK6: 2916 | DHL6: 2917 | DHM6: 2918 | DHN6: 2919 | DHO6: 2920 | DHP6: 2921 | DHQ6: 2922 | DHR6: 2923 | DHS6: 2924 | DHT6: 2925 | DHU6: 2926 | DHV6: 2927 | DHW6: 2928 | DHX6: 2929 | DHY6: 2930 | DHZ6: 2931 | DIA6: 2932 | DIB6: 2933 | DIC6: 2934 | DID6: 2935 | DIE6: 2936 | DIF6: 2937 | DIG6: 2938 | DIH6: 2939 | DII6: 2940 | DIJ6: 2941 | DIK6: 2942 | DIL6: 2943 | DIM6: 2944 | DIN6: 2945 | DIO6: 2946 | DIP6: 2947 | DIQ6: 2948 | DIR6: 2949 | DIS6: 2950 | DIT6: 2951 | DIU6: 2952 | DIV6: 2953 | DIW6: 2954 | DIX6: 2955 | DIY6: 2956 | DIZ6: 2957 | DJA6: 2958 | DJB6: 2959 | DJC6: 2960 | DJD6: 2961 | DJE6: 2962 | DJF6: 2963 | DJG6: 2964 | DJH6: 2965 | DJI6: 2966 | DJJ6: 2967 | DJK6: 2968 | DJL6: 2969 | DJM6: 2970 | DJN6: 2971 | DJO6: 2972 | DJP6: 2973 | DJQ6: 2974 | DJR6: 2975 | DJS6: 2976 | DJT6: 2977 | DJU6: 2978 | DJV6: 2979 | DJW6: 2980 | DJX6: 2981 | DJY6: 2982 | DJZ6: 2983 | DKA6: 2984 | DKB6: 2985 | DKC6: 2986 | DKD6: 2987 | DKE6: 2988 | DKF6: 2989 | DKG6: 2990 | DKH6: 2991 | DKI6: 2992 | DKJ6: 2993 | DKK6: 2994 | DKL6: 2995 | DKM6: 2996 | DKN6: 2997 | DKO6: 2998 | DKP6: 2999 | DKQ6: 3000 | DKR6: 3001 | DKS6: 3002 | DKT6: 3003 | DKU6: 3004 | DKV6: 3005 | DKW6: 3006 | DKX6: 3007 | DKY6: 3008 | DKZ6: 3009 | DLA6: 3010 | DLB6: 3011 | DLC6: 3012 | DLD6: 3013 | DLE6: 3014 | DLF6: 3015 | DLG6: 3016 | DLH6: 3017 | DLI6: 3018 | DLJ6: 3019 | DLK6: 3020 | DLL6: 3021 | DLM6: 3022 | DLN6: 3023 | DLO6: 3024 | DLP6: 3025 | DLQ6: 3026 | DLR6: 3027 | DLS6: 3028 | DLT6: 3029 | DLU6: 3030 | DLV6: 3031 | DLW6: 3032 | DLX6: 3033 | DLY6: 3034 | DLZ6: 3035 | DMA6: 3036 | DMB6: 3037 | DMC6: 3038 | DMD6: 3039 | DME6: 3040 | DMF6: 3041 | DMG6: 3042 | DMH6: 3043 | DMI6: 3044 | DMJ6: 3045 | DMK6: 3046 | DML6: 3047 | DMM6: 3048 | DMN6: 3049 | DMO6: 3050 | DMP6: 3051 | DMQ6: 3052 | DMR6: 3053 | DMS6: 3054 | DMT6: 3055 | DMU6: 3056 | DMV6: 3057 | DMW6: 3058 | DMX6: 3059 | DMY6: 3060 | DMZ6: 3061 | DNA6: 3062 | DNB6: 3063 | DNC6: 3064 | DND6: 3065 | DNE6: 3066 | DNF6: 3067 | DNG6: 3068 | DNH6: 3069 | DNI6: 3070 | DNJ6: 3071 | DNK6: 3072 | DNL6: 3073 | DNM6: 3074 | DNN6: 3075 | DNO6: 3076 | DNP6: 3077 | DNQ6: 3078 | DNR6: 3079 | DNS6: 3080 | DNT6: 3081 | DNU6: 3082 | DNV6: 3083 | DNW6: 3084 | DNX6: 3085 | DNY6: 3086 | DNZ6: 3087 | DOA6: 3088 | DOB6: 3089 | DOC6: 3090 | DOD6: 3091 | DOE6: 3092 | DOF6: 3093 | DOG6: 3094 | DOH6: 3095 | DOI6: 3096 | DOJ6: 3097 | DOK6: 3098 | DOL6: 3099 | DOM6: 3100 | DON6: 3101 | DOO6: 3102 | DOP6: 3103 | DOQ6: 3104 | DOR6: 3105 | DOS6: 3106 | DOT6: 3107 | DOU6: 3108 | DOV6: 3109 | DOW6: 3110 | DOX6: 3111 | DOY6: 3112 | DOZ6: 3113 | DPA6: 3114 | DPB6: 3115 | DPC6: 3116 | DPD6: 3117 | DPE6: 3118 | DPF6: 3119 | DPG6: 3120 | DPH6: 3121 | DPI6: 3122 | DPJ6: 3123 | DPK6: 3124 | DPL6: 3125 | DPM6: 3126 | DPN6: 3127 | DPO6: 3128 | DPP6: 3129 | DPQ6: 3130 | DPR6: 3131 | DPS6: 3132 | DPT6: 3133 | DPU6: 3134 | DPV6: 3135 | DPW6: 3136 | DPX6: 3137 | DPY6: 3138 | DPZ6: 3139 | DQA6: 3140 | DQB6: 3141 | DQC6: 3142 | DQD6: 3143 | DQE6: 3144 | DQF6: 3145 | DQG6: 3146 | DQH6: 3147 | DQI6: 3148 | DQJ6: 3149 | DQK6: 3150 | DQL6: 3151 | DQM6: 3152 | DQN6: 3153 | DQO6: 3154 | DQP6: 3155 | DQQ6: 3156 | DQR6: 3157 | DQS6: 3158 | DQT6: 3159 | DQU6: 3160 | DQV6: 3161 | DQW6: 3162 | DQX6: 3163 | DQY6: 3164 | DQZ6: 3165 | DRA6: 3166 | DRB6: 3167 | DRC6: 3168 | DRD6: 3169 | DRE6: 3170 | DRF6: 3171 | DRG6: 3172 | DRH6: 3173 | DRI6: 3174 | DRJ6: 3175 | DRK6: 3176 | DRL6: 3177 | DRM6: 3178 | DRN6: 3179 | DRO6: 3180 | DRP6: 3181 | DRQ6: 3182 | DRR6: 3183 | DRS6: 3184 | DRT6: 3185 | DRU6: 3186 | DRV6: 3187 | DRW6: 3188 | DRX6: 3189 | DRY6: 3190 | DRZ6: 3191 | DSA6: 3192 | DSB6: 3193 | DSC6: 3194 | DSD6: 3195 | DSE6: 3196 | DSF6: 3197 | DSG6: 3198 | DSH6: 3199 | DSI6: 3200 | DSJ6: 3201 | DSK6: 3202 | DSL6: 3203 | DSM6: 3204 | DSN6: 3205 | DSO6: 3206 | DSP6: 3207 | DSQ6: 3208 | DSR6: 3209 | DSS6: 3210 | DST6: 3211 | DSU6: 3212 | DSV6: 3213 | DSW6: 3214 | DSX6: 3215 | DSY6: 3216 | DSZ6: 3217 | DTA6: 3218 | DTB6: 3219 | DTC6: 3220 | DTD6: 3221 | DTE6: 3222 | DTF6: 3223 | DTG6: 3224 | DTH6: 3225 | DTI6: 3226 | DTJ6: 3227 | DTK6: 3228 | DTL6: 3229 | DTM6: 3230 | DTN6: 3231 | DTO6: 3232 | DTP6: 3233 | DTQ6: 3234 | DTR6: 3235 | DTS6: 3236 | DTT6: 3237 | DTU6: 3238 | DTV6: 3239 | DTW6: 3240 | DTX6: 3241 | DTY6: 3242 | DTZ6: 3243 | DUA6: 3244 | DUB6: 3245 | DUC6: 3246 | DUD6: 3247 | DUE6: 3248 | DUF6: 3249 | DUG6: 3250 | DUH6: 3251 | DUI6: 3252 | DUJ6: 3253 | DUK6: 3254 | DUL6: 3255 | DUM6: 3256 | DUN6: 3257 | DUO6: 3258 | DUP6: 3259 | DUQ6: 3260 | DUR6: 3261 | DUS6: 3262 | DUT6: 3263 | DUU6: 3264 | DUV6: 3265 | DUW6: 3266 | DUX6: 3267 | DUY6: 3268 | DUZ6: 3269 | DVA6: 3270 | DVB6: 3271 | DVC6: 3272 | DVD6: 3273 | DVE6: 3274 | DVF6: 3275 | DVG6: 3276 | DVH6: 3277 | DVI6: 3278 | DVJ6: 3279 | DVK6: 3280 | DVL6: 3281 | DVM6: 3282 | DVN6: 3283 | DVO6: 3284 | DVP6: 3285 | DVQ6: 3286 | DVR6: 3287 | DVS6: 3288 | DVT6: 3289 | DVU6: 3290 | DVV6: 3291 | DVW6: 3292 | DVX6: 3293 | DVY6: 3294 | DVZ6: 3295 | DWA6: 3296 | DWB6: 3297 | DWC6: 3298 | DWD6: 3299 | DWE6: 3300 | DWF6: 3301 | DWG6: 3302 | DWH6: 3303 | DWI6: 3304 | DWJ6: 3305 | DWK6: 3306 | DWL6: 3307 | DWM6: 3308 | DWN6: 3309 | DWO6: 3310 | DWP6: 3311 | DWQ6: 3312 | DWR6: 3313 | DWS6: 3314 | DWT6: 3315 | DWU6: 3316 | DWV6: 3317 | DWW6: 3318 | DWX6: 3319 | DWY6: 3320 | DWZ6: 3321 | DXA6: 3322 | DXB6: 3323 | DXC6: 3324 | DXD6: 3325 | DXE6: 3326 | DXF6: 3327 | DXG6: 3328 | DXH6: 3329 | DXI6: 3330 | DXJ6: 3331 | DXK6: 3332 | DXL6: 3333 | DXM6: 3334 | DXN6: 3335 | DXO6: 3336 | DXP6: 3337 | DXQ6: 3338 | DXR6: 3339 | DXS6: 3340 | DXT6: 3341 | DXU6: 3342 | DXV6: 3343 | DXW6: 3344 | DXX6: 3345 | DXY6: 3346 | DXZ6: 3347 | DYA6: 3348 | DYB6: 3349 | DYC6: 3350 | DYD6: 3351 | DYE6: 3352 | DYF6: 3353 | DYG6: 3354 | DYH6: 3355 | DYI6: 3356 | DYJ6: 3357 | DYK6: 3358 | DYL6: 3359 | DYM6: 3360 | DYN6: 3361 | DYO6: 3362 | DYP6: 3363 | DYQ6: 3364 | DYR6: 3365 | DYS6: 3366 | DYT6: 3367 | DYU6: 3368 | DYV6: 3369 | DYW6: 3370 | DYX6: 3371 | DYY6: 3372 | DYZ6: 3373 | DZA6: 3374 | DZB6: 3375 | DZC6: 3376 | DZD6: 3377 | DZE6: 3378 | DZF6: 3379 | DZG6: 3380 | DZH6: 3381 | DZI6: 3382 | DZJ6: 3383 | DZK6: 3384 | DZL6: 3385 | DZM6: 3386 | DZN6: 3387 | DZO6: 3388 | DZP6: 3389 | DZQ6: 3390 | DZR6: 3391 | DZS6: 3392 | DZT6: 3393 | DZU6: 3394 | DZV6: 3395 | DZW6: 3396 | DZX6: 3397 | DZY6: 3398 | DZZ6: 3399 | EAA6: 3400 | EAB6: 3401 | EAC6: 3402 | EAD6: 3403 | EAE6: 3404 | EAF6: 3405 | EAG6: 3406 | EAH6: 3407 | EAI6: 3408 | EAJ6: 3409 | EAK6: 3410 | EAL6: 3411 | EAM6: 3412 | EAN6: 3413 | EAO6: 3414 | EAP6: 3415 | EAQ6: 3416 | EAR6: 3417 | EAS6: 3418 | EAT6: 3419 | EAU6: 3420 | EAV6: 3421 | EAW6: 3422 | EAX6: 3423 | EAY6: 3424 | EAZ6: 3425 | EBA6: 3426 | EBB6: 3427 | EBC6: 3428 | EBD6: 3429 | EBE6: 3430 | EBF6: 3431 | EBG6: 3432 | EBH6: 3433 | EBI6: 3434 | EBJ6: 3435 | EBK6: 3436 | EBL6: 3437 | EBM6: 3438 | EBN6: 3439 | EBO6: 3440 | EBP6: 3441 | EBQ6: 3442 | EBR6: 3443 | EBS6: 3444 | EBT6: 3445 | EBU6: 3446 | EBV6: 3447 | EBW6: 3448 | EBX6: 3449 | EBY6: 3450 | EBZ6: 3451 | ECA6: 3452 | ECB6: 3453 | ECC6: 3454 | ECD6: 3455 | ECE6: 3456 | ECF6: 3457 | ECG6: 3458 | ECH6: 3459 | ECI6: 3460 | ECJ6: 3461 | ECK6: 3462 | ECL6: 3463 | ECM6: 3464 | ECN6: 3465 | ECO6: 3466 | ECP6: 3467 | ECQ6: 3468 | ECR6: 3469 | ECS6: 3470 | ECT6: 3471 | ECU6: 3472 | ECV6: 3473 | ECW6: 3474 | ECX6: 3475 | ECY6: 3476 | ECZ6: 3477 | EDA6: 3478 | EDB6: 3479 | EDC6: 3480 | EDD6: 3481 | EDE6: 3482 | EDF6: 3483 | EDG6: 3484 | EDH6: 3485 | EDI6: 3486 | EDJ6: 3487 | EDK6: 3488 | EDL6: 3489 | EDM6: 3490 | EDN6: 3491 | EDO6: 3492 | EDP6: 3493 | EDQ6: 3494 | EDR6: 3495 | EDS6: 3496 | EDT6: 3497 | EDU6: 3498 | EDV6: 3499 | EDW6: 3500 | EDX6: 3501 | EDY6: 3502 | EDZ6: 3503 | EEA6: 3504 | EEB6: 3505 | EEC6: 3506 | EED6: 3507 | EEE6: 3508 | EEF6: 3509 | EEG6: 3510 | EEH6: 3511 | EEI6: 3512 | EEJ6: 3513 | EEK6: 3514 | EEL6: 3515 | EEM6: 3516 | EEN6: 3517 | EEO6: 3518 | EEP6: 3519 | EEQ6: 3520 | EER6: 3521 | EES6: 3522 | EET6: 3523 | EEU6: 3524 | EEV6: 3525 | EEW6: 3526 | EEX6: 3527 | EEY6: 3528 | EEZ6: 3529 | EFA6: 3530 | EFB6: 3531 | EFC6: 3532 | EFD6: 3533 | EFE6: 3534 | EFF6: 3535 | EFG6: 3536 | EFH6: 3537 | EFI6: 3538 | EFJ6: 3539 | EFK6: 3540 | EFL6: 3541 | EFM6: 3542 | EFN6: 3543 | EFO6: 3544 | EFP6: 3545 | EFQ6: 3546 | EFR6: 3547 | EFS6: 3548 | EFT6: 3549 | EFU6: 3550 | EFV6: 3551 | EFW6: 3552 | EFX6: 3553 | EFY6: 3554 | EFZ6: 3555 | EGA6: 3556 | EGB6: 3557 | EGC6: 3558 | EGD6: 3559 | EGE6: 3560 | EGF6: 3561 | EGG6: 3562 | EGH6: 3563 | EGI6: 3564 | EGJ6: 3565 | EGK6: 3566 | EGL6: 3567 | EGM6: 3568 | EGN6: 3569 | EGO6: 3570 | EGP6: 3571 | EGQ6: 3572 | EGR6: 3573 | EGS6: 3574 | EGT6: 3575 | EGU6: 3576 | EGV6: 3577 | EGW6: 3578 | EGX6: 3579 | EGY6: 3580 | EGZ6: 3581 | EHA6: 3582 | EHB6: 3583 | EHC6: 3584 | EHD6: 3585 | EHE6: 3586 | EHF6: 3587 | EHG6: 3588 | EHH6: 3589 | EHI6: 3590 | EHJ6: 3591 | EHK6: 3592 | EHL6: 3593 | EHM6: 3594 | EHN6: 3595 | EHO6: 3596 | EHP6: 3597 | EHQ6: 3598 | EHR6: 3599 | EHS6: 3600 | EHT6: 3601 | EHU6: 3602 | EHV6: 3603 | EHW6: 3604 | EHX6: 3605 | EHY6: 3606 | EHZ6: 3607 | EIA6: 3608 | EIB6: 3609 | EIC6: 3610 | EID6: 3611 | EIE6: 3612 | EIF6: 3613 | EIG6: 3614 | EIH6: 3615 | EII6: 3616 | EIJ6: 3617 | EIK6: 3618 | EIL6: 3619 | EIM6: 3620 | EIN6: 3621 | EIO6: 3622 | EIP6: 3623 | EIQ6: 3624 | EIR6: 3625 | EIS6: 3626 | EIT6: 3627 | EIU6: 3628 | EIV6: 3629 | EIW6: 3630 | EIX6: 3631 | EIY6: 3632 | EIZ6: 3633 | EJA6: 3634 | EJB6: 3635 | EJC6: 3636 | EJD6: 3637 | EJE6: 3638 | EJF6: 3639 | EJG6: 3640 | EJH6: 3641 | EJI6: 3642 | EJJ6: 3643 | EJK6: 3644 | EJL6: 3645 | EJM6: 3646 | EJN6: 3647 | EJO6: 3648 | EJP6: 3649 | EJQ6: 3650 | EJR6: 3651 | EJS6: 3652 | EJT6: 3653 | EJU6: 3654 | EJV6: 3655 | EJW6: 3656 | EJX6: 3657 | EJY6: 3658 | EJZ6: 3659 | EKA6: 3660 | EKB6: 3661 | EKC6: 3662 | EKD6: 3663 | EKE6: 3664 | EKF6: 3665 | EKG6: 3666 | EKH6: 3667 | EKI6: 3668 | EKJ6: 3669 | EKK6: 3670 | EKL6: 3671 | EKM6: 3672 | EKN6: 3673 | EKO6: 3674 | EKP6: 3675 | EKQ6: 3676 | EKR6: 3677 | EKS6: 3678 | EKT6: 3679 | EKU6: 3680 | EKV6: 3681 | EKW6: 3682 | EKX6: 3683 | EKY6: 3684 | EKZ6: 3685 | ELA6: 3686 | ELB6: 3687 | ELC6: 3688 | ELD6: 3689 | ELE6: 3690 | ELF6: 3691 | ELG6: 3692 | ELH6: 3693 | ELI6: 3694 | ELJ6: 3695 | ELK6: 3696 | ELL6: 3697 | ELM6: 3698 | ELN6: 3699 | ELO6: 3700 | ELP6: 3701 | ELQ6: 3702 | ELR6: 3703 | ELS6: 3704 | ELT6: 3705 | ELU6: 3706 | ELV6: 3707 | ELW6: 3708 | ELX6: 3709 | ELY6: 3710 | ELZ6: 3711 | EMA6: 3712 | EMB6: 3713 | EMC6: 3714 | EMD6: 3715 | EME6: 3716 | EMF6: 3717 | EMG6: 3718 | EMH6: 3719 | EMI6: 3720 | EMJ6: 3721 | EMK6: 3722 | EML6: 3723 | EMM6: 3724 | EMN6: 3725 | EMO6: 3726 | EMP6: 3727 | EMQ6: 3728 | EMR6: 3729 | EMS6: 3730 | EMT6: 3731 | EMU6: 3732 | EMV6: 3733 | EMW6: 3734 | EMX6: 3735 | EMY6: 3736 | EMZ6: 3737 | ENA6: 3738 | ENB6: 3739 | ENC6: 3740 | END6: 3741 | ENE6: 3742 | ENF6: 3743 | ENG6: 3744 | ENH6: 3745 | ENI6: 3746 | ENJ6: 3747 | ENK6: 3748 | ENL6: 3749 | ENM6: 3750 | ENN6: 3751 | ENO6: 3752 | ENP6: 3753 | ENQ6: 3754 | ENR6: 3755 | ENS6: 3756 | ENT6: 3757 | ENU6: 3758 | ENV6: 3759 | ENW6: 3760 | ENX6: 3761 | ENY6: 3762 | ENZ6: 3763 | EOA6: 3764 | EOB6: 3765 | EOC6: 3766 | EOD6: 3767 | EOE6: 3768 | EOF6: 3769 | EOG6: 3770 | EOH6: 3771 | EOI6: 3772 | EOJ6: 3773 | EOK6: 3774 | EOL6: 3775 | EOM6: 3776 | EON6: 3777 | EOO6: 3778 | EOP6: 3779 | EOQ6: 3780 | EOR6: 3781 | EOS6: 3782 | EOT6: 3783 | EOU6: 3784 | EOV6: 3785 | EOW6: 3786 | EOX6: 3787 | EOY6: 3788 | EOZ6: 3789 | EPA6: 3790 | EPB6: 3791 | EPC6: 3792 | EPD6: 3793 | EPE6: 3794 | EPF6: 3795 | EPG6: 3796 | EPH6: 3797 | EPI6: 3798 | EPJ6: 3799 | EPK6: 3800 | EPL6: 3801 | EPM6: 3802 | EPN6: 3803 | EPO6: 3804 | EPP6: 3805 | EPQ6: 3806 | EPR6: 3807 | EPS6: 3808 | EPT6: 3809 | EPU6: 3810 | EPV6: 3811 | EPW6: 3812 | EPX6: 3813 | EPY6: 3814 | EPZ6: 3815 | EQA6: 3816 | EQB6: 3817 | EQC6: 3818 | EQD6: 3819 | EQE6: 3820 | EQF6: 3821 | EQG6: 3822 | EQH6: 3823 | EQI6: 3824 | EQJ6: 3825 | EQK6: 3826 | EQL6: 3827 | EQM6: 3828 | EQN6: 3829 | EQO6: 3830 | EQP6: 3831 | EQQ6: 3832 | EQR6: 3833 | EQS6: 3834 | EQT6: 3835 | EQU6: 3836 | EQV6: 3837 | EQW6: 3838 | EQX6: 3839 | EQY6: 3840 | EQZ6: 3841 | ERA6: 3842 | ERB6: 3843 | ERC6: 3844 | ERD6: 3845 | ERE6: 3846 | ERF6: 3847 | ERG6: 3848 | ERH6: 3849 | ERI6: 3850 | ERJ6: 3851 | ERK6: 3852 | ERL6: 3853 | ERM6: 3854 | ERN6: 3855 | ERO6: 3856 | ERP6: 3857 | ERQ6: 3858 | ERR6: 3859 | ERS6: 3860 | ERT6: 3861 | ERU6: 3862 | ERV6: 3863 | ERW6: 3864 | ERX6: 3865 | ERY6: 3866 | ERZ6: 3867 | ESA6: 3868 | ESB6: 3869 | ESC6: 3870 | ESD6: 3871 | ESE6: 3872 | ESF6: 3873 | ESG6: 3874 | ESH6: 3875 | ESI6: 3876 | ESJ6: 3877 | ESK6: 3878 | ESL6: 3879 | ESM6: 3880 | ESN6: 3881 | ESO6: 3882 | ESP6: 3883 | ESQ6: 3884 | ESR6: 3885 | ESS6: 3886 | EST6: 3887 | ESU6: 3888 | ESV6: 3889 | ESW6: 3890 | ESX6: 3891 | ESY6: 3892 | ESZ6: 3893 | ETA6: 3894 | ETB6: 3895 | ETC6: 3896 | ETD6: 3897 | ETE6: 3898 | ETF6: 3899 | ETG6: 3900 | ETH6: 3901 | ETI6: 3902 | ETJ6: 3903 | ETK6: 3904 | ETL6: 3905 | ETM6: 3906 | ETN6: 3907 | ETO6: 3908 | ETP6: 3909 | ETQ6: 3910 | ETR6: 3911 | ETS6: 3912 | ETT6: 3913 | ETU6: 3914 | ETV6: 3915 | ETW6: 3916 | ETX6: 3917 | ETY6: 3918 | ETZ6: 3919 | EUA6: 3920 | EUB6: 3921 | EUC6: 3922 | EUD6: 3923 | EUE6: 3924 | EUF6: 3925 | EUG6: 3926 | EUH6: 3927 | EUI6: 3928 | EUJ6: 3929 | EUK6: 3930 | EUL6: 3931 | EUM6: 3932 | EUN6: 3933 | EUO6: 3934 | EUP6: 3935 | EUQ6: 3936 | EUR6: 3937 | EUS6: 3938 | EUT6: 3939 | EUU6: 3940 | EUV6: 3941 | EUW6: 3942 | EUX6: 3943 | EUY6: 3944 | EUZ6: 3945 | EVA6: 3946 | EVB6: 3947 | EVC6: 3948 | EVD6: 3949 | EVE6: 3950 | EVF6: 3951 | EVG6: 3952 | EVH6: 3953 | EVI6: 3954 | EVJ6: 3955 | EVK6: 3956 | EVL6: 3957 | EVM6: 3958 | EVN6: 3959 | EVO6: 3960 | EVP6: 3961 | EVQ6: 3962 | EVR6: 3963 | EVS6: 3964 | EVT6: 3965 | EVU6: 3966 | EVV6: 3967 | EVW6: 3968 | EVX6: 3969 | EVY6: 3970 | EVZ6: 3971 | EWA6: 3972 | EWB6: 3973 | EWC6: 3974 | EWD6: 3975 | EWE6: 3976 | EWF6: 3977 | EWG6: 3978 | EWH6: 3979 | EWI6: 3980 | EWJ6: 3981 | EWK6: 3982 | EWL6: 3983 | EWM6: 3984 | EWN6: 3985 | EWO6: 3986 | EWP6: 3987 | EWQ6: 3988 | EWR6: 3989 | EWS6: 3990 | EWT6: 3991 | EWU6: 3992 | EWV6: 3993 | EWW6: 3994 | EWX6: 3995 | EWY6: 3996 | EWZ6: 3997 | EXA6: 3998 | EXB6: 3999 | EXC6: 4000 | EXD6: 4001 | EXE6: 4002 | EXF6: 4003 | EXG6: 4004 | EXH6: 4005 | EXI6: 4006 | EXJ6: 4007 | EXK6: 4008 | EXL6: 4009 | EXM6: 4010 | EXN6: 4011 | EXO6: 4012 | EXP6: 4013 | EXQ6: 4014 | EXR6: 4015 | EXS6: 4016 | EXT6: 4017 | EXU6: 4018 | EXV6: 4019 | EXW6: 4020 | EXX6: 4021 | EXY6: 4022 | EXZ6: 4023 | EYA6: 4024 | EYB6: 4025 | EYC6: 4026 | EYD6: 4027 | EYE6: 4028 | EYF6: 4029 | EYG6: 4030 | EYH6: 4031 | EYI6: 4032 | EYJ6: 4033 | EYK6: 4034 | EYL6: 4035 | EYM6: 4036 | EYN6: 4037 | EYO6: 4038 | EYP6: 4039 | EYQ6: 4040 | EYR6: 4041 | EYS6: 4042 | EYT6: 4043 | EYU6: 4044 | EYV6: 4045 | EYW6: 4046 | EYX6: 4047 | EYY6: 4048 | EYZ6: 4049 | EZA6: 4050 | EZB6: 4051 | EZC6: 4052 | EZD6: 4053 | EZE6: 4054 | EZF6: 4055 | EZG6: 4056 | EZH6: 4057 | EZI6: 4058 | EZJ6: 4059 | EZK6: 4060 | EZL6: 4061 | EZM6: 4062 | EZN6: 4063 | EZO6: 4064 | EZP6: 4065 | EZQ6: 4066 | EZR6: 4067 | EZS6: 4068 | EZT6: 4069 | EZU6: 4070 | EZV6: 4071 | EZW6: 4072 | EZX6: 4073 | EZY6: 4074 | EZZ6: 4075 | FAA6: 4076 | FAB6: 4077 | FAC6: 4078 | FAD6: 4079 | FAE6: 4080 | FAF6: 4081 | FAG6: 4082 | FAH6: 4083 | FAI6: 4084 | FAJ6: 4085 | FAK6: 4086 | FAL6: 4087 | FAM6: 4088 | FAN6: 4089 | FAO6: 4090 | FAP6: 4091 | FAQ6: 4092 | FAR6: 4093 | FAS6: 4094 | FAT6: 4095 | FAU6: 4096 | FAV6: 4097 | FAW6: 4098 | FAX6: 4099 | FAY6: 4100 | FAZ6: 4101 | FBA6: 4102 | FBB6: 4103 | FBC6: 4104 | FBD6: 4105 | FBE6: 4106 | FBF6: 4107 | FBG6: 4108 | FBH6: 4109 | FBI6: 4110 | FBJ6: 4111 | FBK6: 4112 | FBL6: 4113 | FBM6: 4114 | FBN6: 4115 | FBO6: 4116 | FBP6: 4117 | FBQ6: 4118 | FBR6: 4119 | FBS6: 4120 | FBT6: 4121 | FBU6: 4122 | FBV6: 4123 | FBW6: 4124 | FBX6: 4125 | FBY6: 4126 | FBZ6: 4127 | FCA6: 4128 | FCB6: 4129 | FCC6: 4130 | FCD6: 4131 | FCE6: 4132 | FCF6: 4133 | FCG6: 4134 | FCH6: 4135 | FCI6: 4136 | FCJ6: 4137 | FCK6: 4138 | FCL6: 4139 | FCM6: 4140 | FCN6: 4141 | FCO6: 4142 | FCP6: 4143 | FCQ6: 4144 | FCR6: 4145 | FCS6: 4146 | FCT6: 4147 | FCU6: 4148 | FCV6: 4149 | FCW6: 4150 | FCX6: 4151 | FCY6: 4152 | FCZ6: 4153 | FDA6: 4154 | FDB6: 4155 | FDC6: 4156 | FDD6: 4157 | FDE6: 4158 | FDF6: 4159 | FDG6: 4160 | FDH6: 4161 | FDI6: 4162 | FDJ6: 4163 | FDK6: 4164 | FDL6: 4165 | FDM6: 4166 | FDN6: 4167 | FDO6: 4168 | FDP6: 4169 | FDQ6: 4170 | FDR6: 4171 | FDS6: 4172 | FDT6: 4173 | FDU6: 4174 | FDV6: 4175 | FDW6: 4176 | FDX6: 4177 | FDY6: 4178 | FDZ6: 4179 | FEA6: 4180 | FEB6: 4181 | FEC6: 4182 | FED6: 4183 | FEE6: 4184 | FEF6: 4185 | FEG6: 4186 | FEH6: 4187 | FEI6: 4188 | FEJ6: 4189 | FEK6: 4190 | FEL6: 4191 | FEM6: 4192 | FEN6: 4193 | FEO6: 4194 | FEP6: 4195 | FEQ6: 4196 | FER6: 4197 | FES6: 4198 | FET6: 4199 | FEU6: 4200 | FEV6: 4201 | FEW6: 4202 | FEX6: 4203 | FEY6: 4204 | FEZ6: 4205 | FFA6: 4206 | FFB6: 4207 | FFC6: 4208 | FFD6: 4209 | FFE6: 4210 | FFF6: 4211 | FFG6: 4212 | FFH6: 4213 | FFI6: 4214 | FFJ6: 4215 | FFK6: 4216 | FFL6: 4217 | FFM6: 4218 | FFN6: 4219 | FFO6: 4220 | FFP6: 4221 | FFQ6: 4222 | FFR6: 4223 | FFS6: 4224 | FFT6: 4225 | FFU6: 4226 | FFV6: 4227 | FFW6: 4228 | FFX6: 4229 | FFY6: 4230 | FFZ6: 4231 | FGA6: 4232 | FGB6: 4233 | FGC6: 4234 | FGD6: 4235 | FGE6: 4236 | FGF6: 4237 | FGG6: 4238 | FGH6: 4239 | FGI6: 4240 | FGJ6: 4241 | FGK6: 4242 | FGL6: 4243 | FGM6: 4244 | FGN6: 4245 | FGO6: 4246 | FGP6: 4247 | FGQ6: 4248 | FGR6: 4249 | FGS6: 4250 | FGT6: 4251 | FGU6: 4252 | FGV6: 4253 | FGW6: 4254 | FGX6: 4255 | FGY6: 4256 | FGZ6: 4257 | FHA6: 4258 | FHB6: 4259 | FHC6: 4260 | FHD6: 4261 | FHE6: 4262 | FHF6: 4263 | FHG6: 4264 | FHH6: 4265 | FHI6: 4266 | FHJ6: 4267 | FHK6: 4268 | FHL6: 4269 | FHM6: 4270 | FHN6: 4271 | FHO6: 4272 | FHP6: 4273 | FHQ6: 4274 | FHR6: 4275 | FHS6: 4276 | FHT6: 4277 | FHU6: 4278 | FHV6: 4279 | FHW6: 4280 | FHX6: 4281 | FHY6: 4282 | FHZ6: 4283 | FIA6: 4284 | FIB6: 4285 | FIC6: 4286 | FID6: 4287 | FIE6: 4288 | FIF6: 4289 | FIG6: 4290 | FIH6: 4291 | FII6: 4292 | FIJ6: 4293 | FIK6: 4294 | FIL6: 4295 | FIM6: 4296 | FIN6: 4297 | FIO6: 4298 | FIP6: 4299 | FIQ6: 4300 | FIR6: 4301 | FIS6: 4302 | FIT6: 4303 | FIU6: 4304 | FIV6: 4305 | FIW6: 4306 | FIX6: 4307 | FIY6: 4308 | FIZ6: 4309 | FJA6: 4310 | FJB6: 4311 | FJC6: 4312 | FJD6: 4313 | FJE6: 4314 | FJF6: 4315 | FJG6: 4316 | FJH6: 4317 | FJI6: 4318 | FJJ6: 4319 | FJK6: 4320 | FJL6: 4321 | FJM6: 4322 | FJN6: 4323 | FJO6: 4324 | FJP6: 4325 | FJQ6: 4326 | FJR6: 4327 | FJS6: 4328 | FJT6: 4329 | FJU6: 4330 | FJV6: 4331 | FJW6: 4332 | FJX6: 4333 | FJY6: 4334 | FJZ6: 4335 | FKA6: 4336 | FKB6: 4337 | FKC6: 4338 | FKD6: 4339 | FKE6: 4340 | FKF6: 4341 | FKG6: 4342 | FKH6: 4343 | FKI6: 4344 | FKJ6: 4345 | FKK6: 4346 | FKL6: 4347 | FKM6: 4348 | FKN6: 4349 | FKO6: 4350 | FKP6: 4351 | FKQ6: 4352 | FKR6: 4353 | FKS6: 4354 | FKT6: 4355 | FKU6: 4356 | FKV6: 4357 | FKW6: 4358 | FKX6: 4359 | FKY6: 4360 | FKZ6: 4361 | FLA6: 4362 | FLB6: 4363 | FLC6: 4364 | FLD6: 4365 | FLE6: 4366 | FLF6: 4367 | FLG6: 4368 | FLH6: 4369 | FLI6: 4370 | FLJ6: 4371 | FLK6: 4372 | FLL6: 4373 | FLM6: 4374 | FLN6: 4375 | FLO6: 4376 | FLP6: 4377 | FLQ6: 4378 | FLR6: 4379 | FLS6: 4380 | FLT6: 4381 | FLU6: 4382 | FLV6: 4383 | FLW6: 4384 | FLX6: 4385 | FLY6: 4386 | FLZ6: 4387 | FMA6: 4388 | FMB6: 4389 | FMC6: 4390 | FMD6: 4391 | FME6: 4392 | FMF6: 4393 | FMG6: 4394 | FMH6: 4395 | FMI6: 4396 | FMJ6: 4397 | FMK6: 4398 | FML6: 4399 | FMM6: 4400 | FMN6: 4401 | FMO6: 4402 | FMP6: 4403 | FMQ6: 4404 | FMR6: 4405 | FMS6: 4406 | FMT6: 4407 | FMU6: 4408 | FMV6: 4409 | FMW6: 4410 | FMX6: 4411 | FMY6: 4412 | FMZ6: 4413 | FNA6: 4414 | FNB6: 4415 | FNC6: 4416 | FND6: 4417 | FNE6: 4418 | FNF6: 4419 | FNG6: 4420 | FNH6: 4421 | FNI6: 4422 | FNJ6: 4423 | FNK6: 4424 | FNL6: 4425 | FNM6: 4426 | FNN6: 4427 | FNO6: 4428 | FNP6: 4429 | FNQ6: 4430 | FNR6: 4431 | FNS6: 4432 | FNT6: 4433 | FNU6: 4434 | FNV6: 4435 | FNW6: 4436 | FNX6: 4437 | FNY6: 4438 | FNZ6: 4439 | FOA6: 4440 | FOB6: 4441 | FOC6: 4442 | FOD6: 4443 | FOE6: 4444 | FOF6: 4445 | FOG6: 4446 | FOH6: 4447 | FOI6: 4448 | FOJ6: 4449 | FOK6: 4450 | FOL6: 4451 | FOM6: 4452 | FON6: 4453 | FOO6: 4454 | FOP6: 4455 | FOQ6: 4456 | FOR6: 4457 | FOS6: 4458 | FOT6: 4459 | FOU6: 4460 | FOV6: 4461 | FOW6: 4462 | FOX6: 4463 | FOY6: 4464 | FOZ6: 4465 | FPA6: 4466 | FPB6: 4467 | FPC6: 4468 | FPD6: 4469 | FPE6: 4470 | FPF6: 4471 | FPG6: 4472 | FPH6: 4473 | FPI6: 4474 | FPJ6: 4475 | FPK6: 4476 | FPL6: 4477 | FPM6: 4478 | FPN6: 4479 | FPO6: 4480 | FPP6: 4481 | FPQ6: 4482 | FPR6: 4483 | FPS6: 4484 | FPT6: 4485 | FPU6: 4486 | FPV6: 4487 | FPW6: 4488 | FPX6: 4489 | FPY6: 4490 | FPZ6: 4491 | FQA6: 4492 | FQB6: 4493 | FQC6: 4494 | FQD6: 4495 | FQE6: 4496 | FQF6: 4497 | FQG6: 4498 | FQH6: 4499 | FQI6: 4500 | FQJ6: 4501 | FQK6: 4502 | FQL6: 4503 | FQM6: 4504 | FQN6: 4505 | FQO6: 4506 | FQP6: 4507 | FQQ6: 4508 | FQR6: 4509 | FQS6: 4510 | FQT6: 4511 | FQU6: 4512 | FQV6: 4513 | FQW6: 4514 | FQX6: 4515 | FQY6: 4516 | FQZ6: 4517 | FRA6: 4518 | FRB6: 4519 | FRC6: 4520 | FRD6: 4521 | FRE6: 4522 | FRF6: 4523 | FRG6: 4524 | FRH6: 4525 | FRI6: 4526 | FRJ6: 4527 | FRK6: 4528 | FRL6: 4529 | FRM6: 4530 | FRN6: 4531 | FRO6: 4532 | FRP6: 4533 | FRQ6: 4534 | FRR6: 4535 | FRS6: 4536 | FRT6: 4537 | FRU6: 4538 | FRV6: 4539 | FRW6: 4540 | FRX6: 4541 | FRY6: 4542 | FRZ6: 4543 | FSA6: 4544 | FSB6: 4545 | FSC6: 4546 | FSD6: 4547 | FSE6: 4548 | FSF6: 4549 | FSG6: 4550 | FSH6: 4551 | FSI6: 4552 | FSJ6: 4553 | FSK6: 4554 | FSL6: 4555 | FSM6: 4556 | FSN6: 4557 | FSO6: 4558 | FSP6: 4559 | FSQ6: 4560 | FSR6: 4561 | FSS6: 4562 | FST6: 4563 | FSU6: 4564 | FSV6: 4565 | FSW6: 4566 | FSX6: 4567 | FSY6: 4568 | FSZ6: 4569 | FTA6: 4570 | FTB6: 4571 | FTC6: 4572 | FTD6: 4573 | FTE6: 4574 | FTF6: 4575 | FTG6: 4576 | FTH6: 4577 | FTI6: 4578 | FTJ6: 4579 | FTK6: 4580 | FTL6: 4581 | FTM6: 4582 | FTN6: 4583 | FTO6: 4584 | FTP6: 4585 | FTQ6: 4586 | FTR6: 4587 | FTS6: 4588 | FTT6: 4589 | FTU6: 4590 | FTV6: 4591 | FTW6: 4592 | FTX6: 4593 | FTY6: 4594 | FTZ6: 4595 | FUA6: 4596 | FUB6: 4597 | FUC6: 4598 | FUD6: 4599 | FUE6: 4600 | FUF6: 4601 | FUG6: 4602 | FUH6: 4603 | FUI6: 4604 | FUJ6: 4605 | FUK6: 4606 | FUL6: 4607 | FUM6: 4608 | FUN6: 4609 | FUO6: 4610 | FUP6: 4611 | FUQ6: 4612 | FUR6: 4613 | FUS6: 4614 | FUT6: 4615 | FUU6: 4616 | FUV6: 4617 | FUW6: 4618 | FUX6: 4619 | FUY6: 4620 | FUZ6: 4621 | FVA6: 4622 | FVB6: 4623 | FVC6: 4624 | FVD6: 4625 | FVE6: 4626 | FVF6: 4627 | FVG6: 4628 | FVH6: 4629 | FVI6: 4630 | FVJ6: 4631 | FVK6: 4632 | FVL6: 4633 | FVM6: 4634 | FVN6: 4635 | FVO6: 4636 | FVP6: 4637 | FVQ6: 4638 | FVR6: 4639 | FVS6: 4640 | FVT6: 4641 | FVU6: 4642 | FVV6: 4643 | FVW6: 4644 | FVX6: 4645 | FVY6: 4646 | FVZ6: 4647 | FWA6: 4648 | FWB6: 4649 | FWC6: 4650 | FWD6: 4651 | FWE6: 4652 | FWF6: 4653 | FWG6: 4654 | FWH6: 4655 | FWI6: 4656 | FWJ6: 4657 | FWK6: 4658 | FWL6: 4659 | FWM6: 4660 | FWN6: 4661 | FWO6: 4662 | FWP6: 4663 | FWQ6: 4664 | FWR6: 4665 | FWS6: 4666 | FWT6: 4667 | FWU6: 4668 | FWV6: 4669 | FWW6: 4670 | FWX6: 4671 | FWY6: 4672 | FWZ6: 4673 | FXA6: 4674 | FXB6: 4675 | FXC6: 4676 | FXD6: 4677 | FXE6: 4678 | FXF6: 4679 | FXG6: 4680 | FXH6: 4681 | FXI6: 4682 | FXJ6: 4683 | FXK6: 4684 | FXL6: 4685 | FXM6: 4686 | FXN6: 4687 | FXO6: 4688 | FXP6: 4689 | FXQ6: 4690 | FXR6: 4691 | FXS6: 4692 | FXT6: 4693 | FXU6: 4694 | FXV6: 4695 | FXW6: 4696 | FXX6: 4697 | FXY6: 4698 | FXZ6: 4699 | FYA6: 4700 | FYB6: 4701 | FYC6: 4702 | FYD6: 4703 | FYE6: 4704 | FYF6: 4705 | FYG6: 4706 | FYH6: 4707 | FYI6: 4708 | FYJ6: 4709 | FYK6: 4710 | FYL6: 4711 | FYM6: 4712 | FYN6: 4713 | FYO6: 4714 | FYP6: 4715 | FYQ6: 4716 | FYR6: 4717 | FYS6: 4718 | FYT6: 4719 | FYU6: 4720 | FYV6: 4721 | FYW6: 4722 | FYX6: 4723 | FYY6: 4724 | FYZ6: 4725 | FZA6: 4726 | FZB6: 4727 | FZC6: 4728 | FZD6: 4729 | FZE6: 4730 | FZF6: 4731 | FZG6: 4732 | FZH6: 4733 | FZI6: 4734 | FZJ6: 4735 | FZK6: 4736 | FZL6: 4737 | FZM6: 4738 | FZN6: 4739 | FZO6: 4740 | FZP6: 4741 | FZQ6: 4742 | FZR6: 4743 | FZS6: 4744 | FZT6: 4745 | FZU6: 4746 | FZV6: 4747 | FZW6: 4748 | FZX6: 4749 | FZY6: 4750 | FZZ6: 4751 | GAA6: 4752 | GAB6: 4753 | GAC6: 4754 | GAD6: 4755 | GAE6: 4756 | GAF6: 4757 | GAG6: 4758 | GAH6: 4759 | GAI6: 4760 | GAJ6: 4761 | GAK6: 4762 | GAL6: 4763 | GAM6: 4764 | GAN6: 4765 | GAO6: 4766 | GAP6: 4767 | GAQ6: 4768 | GAR6: 4769 | GAS6: 4770 | GAT6: 4771 | GAU6: 4772 | GAV6: 4773 | GAW6: 4774 | GAX6: 4775 | GAY6: 4776 | GAZ6: 4777 | GBA6: 4778 | GBB6: 4779 | GBC6: 4780 | GBD6: 4781 | GBE6: 4782 | GBF6: 4783 | GBG6: 4784 | GBH6: 4785 | GBI6: 4786 | GBJ6: 4787 | GBK6: 4788 | GBL6: 4789 | GBM6: 4790 | GBN6: 4791 | GBO6: 4792 | GBP6: 4793 | GBQ6: 4794 | GBR6: 4795 | GBS6: 4796 | GBT6: 4797 | GBU6: 4798 | GBV6: 4799 | GBW6: 4800 | GBX6: 4801 | GBY6: 4802 | GBZ6: 4803 | GCA6: 4804 | GCB6: 4805 | GCC6: 4806 | GCD6: 4807 | GCE6: 4808 | GCF6: 4809 | GCG6: 4810 | GCH6: 4811 | GCI6: 4812 | GCJ6: 4813 | GCK6: 4814 | GCL6: 4815 | GCM6: 4816 | GCN6: 4817 | GCO6: 4818 | GCP6: 4819 | GCQ6: 4820 | GCR6: 4821 | GCS6: 4822 | GCT6: 4823 | GCU6: 4824 | GCV6: 4825 | GCW6: 4826 | GCX6: 4827 | GCY6: 4828 | GCZ6: 4829 | GDA6: 4830 | GDB6: 4831 | GDC6: 4832 | GDD6: 4833 | GDE6: 4834 | GDF6: 4835 | GDG6: 4836 | GDH6: 4837 | GDI6: 4838 | GDJ6: 4839 | GDK6: 4840 | GDL6: 4841 | GDM6: 4842 | GDN6: 4843 | GDO6: 4844 | GDP6: 4845 | GDQ6: 4846 | GDR6: 4847 | GDS6: 4848 | GDT6: 4849 | GDU6: 4850 | GDV6: 4851 | GDW6: 4852 | GDX6: 4853 | GDY6: 4854 | GDZ6: 4855 | GEA6: 4856 | GEB6: 4857 | GEC6: 4858 | GED6: 4859 | GEE6: 4860 | GEF6: 4861 | GEG6: 4862 | GEH6: 4863 | GEI6: 4864 | GEJ6: 4865 | GEK6: 4866 | GEL6: 4867 | GEM6: 4868 | GEN6: 4869 | GEO6: 4870 | GEP6: 4871 | GEQ6: 4872 | GER6: 4873 | GES6: 4874 | GET6: 4875 | GEU6: 4876 | GEV6: 4877 | GEW6: 4878 | GEX6: 4879 | GEY6: 4880 | GEZ6: 4881 | GFA6: 4882 | GFB6: 4883 | GFC6: 4884 | GFD6: 4885 | GFE6: 4886 | GFF6: 4887 | GFG6: 4888 | GFH6: 4889 | GFI6: 4890 | GFJ6: 4891 | GFK6: 4892 | GFL6: 4893 | GFM6: 4894 | GFN6: 4895 | GFO6: 4896 | GFP6: 4897 | GFQ6: 4898 | GFR6: 4899 | GFS6: 4900 | GFT6: 4901 | GFU6: 4902 | GFV6: 4903 | GFW6: 4904 | GFX6: 4905 | GFY6: 4906 | GFZ6: 4907 | GGA6: 4908 | GGB6: 4909 | GGC6: 4910 | GGD6: 4911 | GGE6: 4912 | GGF6: 4913 | GGG6: 4914 | GGH6: 4915 | GGI6: 4916 | GGJ6: 4917 | GGK6: 4918 | GGL6: 4919 | GGM6: 4920 | GGN6: 4921 | GGO6: 4922 | GGP6: 4923 | GGQ6: 4924 | GGR6: 4925 | GGS6: 4926 | GGT6: 4927 | GGU6: 4928 | GGV6: 4929 | GGW6: 4930 | GGX6: 4931 | GGY6: 4932 | GGZ6: 4933 | GHA6: 4934 | GHB6: 4935 | GHC6: 4936 | GHD6: 4937 | GHE6: 4938 | GHF6: 4939 | GHG6: 4940 | GHH6: 4941 | GHI6: 4942 | GHJ6: 4943 | GHK6: 4944 | GHL6: 4945 | GHM6: 4946 | GHN6: 4947 | GHO6: 4948 | GHP6: 4949 | GHQ6: 4950 | GHR6: 4951 | GHS6: 4952 | GHT6: 4953 | GHU6: 4954 | GHV6: 4955 | GHW6: 4956 | GHX6: 4957 | GHY6: 4958 | GHZ6: 4959 | GIA6: 4960 | GIB6: 4961 | GIC6: 4962 | GID6: 4963 | GIE6: 4964 | GIF6: 4965 | GIG6: 4966 | GIH6: 4967 | GII6: 4968 | GIJ6: 4969 | GIK6: 4970 | GIL6: 4971 | GIM6: 4972 | GIN6: 4973 | GIO6: 4974 | GIP6: 4975 | GIQ6: 4976 | GIR6: 4977 | GIS6: 4978 | GIT6: 4979 | GIU6: 4980 | GIV6: 4981 | GIW6: 4982 | GIX6: 4983 | GIY6: 4984 | GIZ6: 4985 | GJA6: 4986 | GJB6: 4987 | GJC6: 4988 | GJD6: 4989 | GJE6: 4990 | GJF6: 4991 | GJG6: 4992 | GJH6: 4993 | GJI6: 4994 | GJJ6: 4995 | GJK6: 4996 | GJL6: 4997 | GJM6: 4998 | GJN6: 4999 | GJO6: 5000 | GJP6: 5001 | GJQ6: 5002 | GJR6: 5003 | GJS6: 5004 | GJT6: 5005 | GJU6: 5006 | GJV6: 5007 | GJW6: 5008 | GJX6: 5009 | GJY6: 5010 | GJZ6: 5011 | GKA6: 5012 | GKB6: 5013 | GKC6: 5014 | GKD6: 5015 | GKE6: 5016 | GKF6: 5017 | GKG6: 5018 | GKH6: 5019 | GKI6: 5020 | GKJ6: 5021 | GKK6: 5022 | GKL6: 5023 | GKM6: 5024 | GKN6: 5025 | GKO6: 5026 | GKP6: 5027 | GKQ6: 5028 | GKR6: 5029 | GKS6: 5030 | GKT6: 5031 | GKU6: 5032 | GKV6: 5033 | GKW6: 5034 | GKX6: 5035 | GKY6: 5036 | GKZ6: 5037 | GLA6: 5038 | GLB6: 5039 | GLC6: 5040 | GLD6: 5041 | GLE6: 5042 | GLF6: 5043 | GLG6: 5044 | GLH6: 5045 | GLI6: 5046 | GLJ6: 5047 | GLK6: 5048 | GLL6: 5049 | GLM6: 5050 | GLN6: 5051 | GLO6: 5052 | GLP6: 5053 | GLQ6: 5054 | GLR6: 5055 | GLS6: 5056 | GLT6: 5057 | GLU6: 5058 | GLV6: 5059 | GLW6: 5060 | GLX6: 5061 | GLY6: 5062 | GLZ6: 5063 | GMA6: 5064 | GMB6: 5065 | GMC6: 5066 | GMD6: 5067 | GME6: 5068 | GMF6: 5069 | GMG6: 5070 | GMH6: 5071 | GMI6: 5072 | GMJ6: 5073 | GMK6: 5074 | GML6: 5075 | GMM6: 5076 | GMN6: 5077 | GMO6: 5078 | GMP6: 5079 | GMQ6: 5080 | GMR6: 5081 | GMS6: 5082 | GMT6: 5083 | GMU6: 5084 | GMV6: 5085 | GMW6: 5086 | GMX6: 5087 | GMY6: 5088 | GMZ6: 5089 | GNA6: 5090 | GNB6: 5091 | GNC6: 5092 | GND6: 5093 | GNE6: 5094 | GNF6: 5095 | GNG6: 5096 | GNH6: 5097 | GNI6: 5098 | GNJ6: 5099 | GNK6: 5100 | GNL6: 5101 | GNM6: 5102 | GNN6: 5103 | GNO6: 5104 | GNP6: 5105 | GNQ6: 5106 | GNR6: 5107 | GNS6: 5108 | GNT6: 5109 | GNU6: 5110 | GNV6: 5111 | GNW6: 5112 | GNX6: 5113 | GNY6: 5114 | GNZ6: 5115 | GOA6: 5116 | GOB6: 5117 | GOC6: 5118 | GOD6: 5119 | GOE6: 5120 | GOF6: 5121 | GOG6: 5122 | GOH6: 5123 | GOI6: 5124 | GOJ6: 5125 | GOK6: 5126 | GOL6: 5127 | GOM6: 5128 | GON6: 5129 | GOO6: 5130 | GOP6: 5131 | GOQ6: 5132 | GOR6: 5133 | GOS6: 5134 | GOT6: 5135 | GOU6: 5136 | GOV6: 5137 | GOW6: 5138 | GOX6: 5139 | GOY6: 5140 | GOZ6: 5141 | GPA6: 5142 | GPB6: 5143 | GPC6: 5144 | GPD6: 5145 | GPE6: 5146 | GPF6: 5147 | GPG6: 5148 | GPH6: 5149 | GPI6: 5150 | GPJ6: 5151 | GPK6: 5152 | GPL6: 5153 | GPM6: 5154 | GPN6: 5155 | GPO6: 5156 | GPP6: 5157 | GPQ6: 5158 | GPR6: 5159 | GPS6: 5160 | GPT6: 5161 | GPU6: 5162 | GPV6: 5163 | GPW6: 5164 | GPX6: 5165 | GPY6: 5166 | GPZ6: 5167 | GQA6: 5168 | GQB6: 5169 | GQC6: 5170 | GQD6: 5171 | GQE6: 5172 | GQF6: 5173 | GQG6: 5174 | GQH6: 5175 | GQI6: 5176 | GQJ6: 5177 | GQK6: 5178 | GQL6: 5179 | GQM6: 5180 | GQN6: 5181 | GQO6: 5182 | GQP6: 5183 | GQQ6: 5184 | GQR6: 5185 | GQS6: 5186 | GQT6: 5187 | GQU6: 5188 | GQV6: 5189 | GQW6: 5190 | GQX6: 5191 | GQY6: 5192 | GQZ6: 5193 | GRA6: 5194 | GRB6: 5195 | GRC6: 5196 | GRD6: 5197 | GRE6: 5198 | GRF6: 5199 | GRG6: 5200 | GRH6: 5201 | GRI6: 5202 | GRJ6: 5203 | GRK6: 5204 | GRL6: 5205 | GRM6: 5206 | GRN6: 5207 | GRO6: 5208 | GRP6: 5209 | GRQ6: 5210 | GRR6: 5211 | GRS6: 5212 | GRT6: 5213 | GRU6: 5214 | GRV6: 5215 | GRW6: 5216 | GRX6: 5217 | GRY6: 5218 | GRZ6: 5219 | GSA6: 5220 | GSB6: 5221 | GSC6: 5222 | GSD6: 5223 | GSE6: 5224 | GSF6: 5225 | GSG6: 5226 | GSH6: 5227 | GSI6: 5228 | GSJ6: 5229 | GSK6: 5230 | GSL6: 5231 | GSM6: 5232 | GSN6: 5233 | GSO6: 5234 | GSP6: 5235 | GSQ6: 5236 | GSR6: 5237 | GSS6: 5238 | GST6: 5239 | GSU6: 5240 | GSV6: 5241 | GSW6: 5242 | GSX6: 5243 | GSY6: 5244 | GSZ6: 5245 | GTA6: 5246 | GTB6: 5247 | GTC6: 5248 | GTD6: 5249 | GTE6: 5250 | GTF6: 5251 | GTG6: 5252 | GTH6: 5253 | GTI6: 5254 | GTJ6: 5255 | GTK6: 5256 | GTL6: 5257 | GTM6: 5258 | GTN6: 5259 | GTO6: 5260 | GTP6: 5261 | GTQ6: 5262 | GTR6: 5263 | GTS6: 5264 | GTT6: 5265 | GTU6: 5266 | GTV6: 5267 | GTW6: 5268 | GTX6: 5269 | GTY6: 5270 | GTZ6: 5271 | GUA6: 5272 | GUB6: 5273 | GUC6: 5274 | GUD6: 5275 | GUE6: 5276 | GUF6: 5277 | GUG6: 5278 | GUH6: 5279 | GUI6: 5280 | GUJ6: 5281 | GUK6: 5282 | GUL6: 5283 | GUM6: 5284 | GUN6: 5285 | GUO6: 5286 | GUP6: 5287 | GUQ6: 5288 | GUR6: 5289 | GUS6: 5290 | GUT6: 5291 | GUU6: 5292 | GUV6: 5293 | GUW6: 5294 | GUX6: 5295 | GUY6: 5296 | GUZ6: 5297 | GVA6: 5298 | GVB6: 5299 | GVC6: 5300 | GVD6: 5301 | GVE6: 5302 | GVF6: 5303 | GVG6: 5304 | GVH6: 5305 | GVI6: 5306 | GVJ6: 5307 | GVK6: 5308 | GVL6: 5309 | GVM6: 5310 | GVN6: 5311 | GVO6: 5312 | GVP6: 5313 | GVQ6: 5314 | GVR6: 5315 | GVS6: 5316 | GVT6: 5317 | GVU6: 5318 | GVV6: 5319 | GVW6: 5320 | GVX6: 5321 | GVY6: 5322 | GVZ6: 5323 | GWA6: 5324 | GWB6: 5325 | GWC6: 5326 | GWD6: 5327 | GWE6: 5328 | GWF6: 5329 | GWG6: 5330 | GWH6: 5331 | GWI6: 5332 | GWJ6: 5333 | GWK6: 5334 | GWL6: 5335 | GWM6: 5336 | GWN6: 5337 | GWO6: 5338 | GWP6: 5339 | GWQ6: 5340 | GWR6: 5341 | GWS6: 5342 | GWT6: 5343 | GWU6: 5344 | GWV6: 5345 | GWW6: 5346 | GWX6: 5347 | GWY6: 5348 | GWZ6: 5349 | GXA6: 5350 | GXB6: 5351 | GXC6: 5352 | GXD6: 5353 | GXE6: 5354 | GXF6: 5355 | GXG6: 5356 | GXH6: 5357 | GXI6: 5358 | GXJ6: 5359 | GXK6: 5360 | GXL6: 5361 | GXM6: 5362 | GXN6: 5363 | GXO6: 5364 | GXP6: 5365 | GXQ6: 5366 | GXR6: 5367 | GXS6: 5368 | GXT6: 5369 | GXU6: 5370 | GXV6: 5371 | GXW6: 5372 | GXX6: 5373 | GXY6: 5374 | GXZ6: 5375 | GYA6: 5376 | GYB6: 5377 | GYC6: 5378 | GYD6: 5379 | GYE6: 5380 | GYF6: 5381 | GYG6: 5382 | GYH6: 5383 | GYI6: 5384 | GYJ6: 5385 | GYK6: 5386 | GYL6: 5387 | GYM6: 5388 | GYN6: 5389 | GYO6: 5390 | GYP6: 5391 | GYQ6: 5392 | GYR6: 5393 | GYS6: 5394 | GYT6: 5395 | GYU6: 5396 | GYV6: 5397 | GYW6: 5398 | GYX6: 5399 | GYY6: 5400 | GYZ6: 5401 | GZA6: 5402 | GZB6: 5403 | GZC6: 5404 | GZD6: 5405 | GZE6: 5406 | GZF6: 5407 | GZG6: 5408 | GZH6: 5409 | GZI6: 5410 | GZJ6: 5411 | GZK6: 5412 | GZL6: 5413 | GZM6: 5414 | GZN6: 5415 | GZO6: 5416 | GZP6: 5417 | GZQ6: 5418 | GZR6: 5419 | GZS6: 5420 | GZT6: 5421 | GZU6: 5422 | GZV6: 5423 | GZW6: 5424 | GZX6: 5425 | GZY6: 5426 | GZZ6: 5427 | HAA6: 5428 | HAB6: 5429 | HAC6: 5430 | HAD6: 5431 | HAE6: 5432 | HAF6: 5433 | HAG6: 5434 | HAH6: 5435 | HAI6: 5436 | HAJ6: 5437 | HAK6: 5438 | HAL6: 5439 | HAM6: 5440 | HAN6: 5441 | HAO6: 5442 | HAP6: 5443 | HAQ6: 5444 | HAR6: 5445 | HAS6: 5446 | HAT6: 5447 | HAU6: 5448 | HAV6: 5449 | HAW6: 5450 | HAX6: 5451 | HAY6: 5452 | HAZ6: 5453 | HBA6: 5454 | HBB6: 5455 | HBC6: 5456 | HBD6: 5457 | HBE6: 5458 | HBF6: 5459 | HBG6: 5460 | HBH6: 5461 | HBI6: 5462 | HBJ6: 5463 | HBK6: 5464 | HBL6: 5465 | HBM6: 5466 | HBN6: 5467 | HBO6: 5468 | HBP6: 5469 | HBQ6: 5470 | HBR6: 5471 | HBS6: 5472 | HBT6: 5473 | HBU6: 5474 | HBV6: 5475 | HBW6: 5476 | HBX6: 5477 | HBY6: 5478 | HBZ6: 5479 | HCA6: 5480 | HCB6: 5481 | HCC6: 5482 | HCD6: 5483 | HCE6: 5484 | HCF6: 5485 | HCG6: 5486 | HCH6: 5487 | HCI6: 5488 | HCJ6: 5489 | HCK6: 5490 | HCL6: 5491 | HCM6: 5492 | HCN6: 5493 | HCO6: 5494 | HCP6: 5495 | HCQ6: 5496 | HCR6: 5497 | HCS6: 5498 | HCT6: 5499 | HCU6: 5500 | HCV6: 5501 | HCW6: 5502 | HCX6: 5503 | HCY6: 5504 | HCZ6: 5505 | HDA6: 5506 | HDB6: 5507 | HDC6: 5508 | HDD6: 5509 | HDE6: 5510 | HDF6: 5511 | HDG6: 5512 | HDH6: 5513 | HDI6: 5514 | HDJ6: 5515 | HDK6: 5516 | HDL6: 5517 | HDM6: 5518 | HDN6: 5519 | HDO6: 5520 | HDP6: 5521 | HDQ6: 5522 | HDR6: 5523 | HDS6: 5524 | HDT6: 5525 | HDU6: 5526 | HDV6: 5527 | HDW6: 5528 | HDX6: 5529 | HDY6: 5530 | HDZ6: 5531 | HEA6: 5532 | HEB6: 5533 | HEC6: 5534 | HED6: 5535 | HEE6: 5536 | HEF6: 5537 | HEG6: 5538 | HEH6: 5539 | HEI6: 5540 | HEJ6: 5541 | HEK6: 5542 | HEL6: 5543 | HEM6: 5544 | HEN6: 5545 | HEO6: 5546 | HEP6: 5547 | HEQ6: 5548 | HER6: 5549 | HES6: 5550 | HET6: 5551 | HEU6: 5552 | HEV6: 5553 | HEW6: 5554 | HEX6: 5555 | HEY6: 5556 | HEZ6: 5557 | HFA6: 5558 | HFB6: 5559 | HFC6: 5560 | HFD6: 5561 | HFE6: 5562 | HFF6: 5563 | HFG6: 5564 | HFH6: 5565 | HFI6: 5566 | HFJ6: 5567 | HFK6: 5568 | HFL6: 5569 | HFM6: 5570 | HFN6: 5571 | HFO6: 5572 | HFP6: 5573 | HFQ6: 5574 | HFR6: 5575 | HFS6: 5576 | HFT6: 5577 | HFU6: 5578 | HFV6: 5579 | HFW6: 5580 | HFX6: 5581 | HFY6: 5582 | HFZ6: 5583 | HGA6: 5584 | HGB6: 5585 | HGC6: 5586 | HGD6: 5587 | HGE6: 5588 | HGF6: 5589 | HGG6: 5590 | HGH6: 5591 | HGI6: 5592 | HGJ6: 5593 | HGK6: 5594 | HGL6: 5595 | HGM6: 5596 | HGN6: 5597 | HGO6: 5598 | HGP6: 5599 | HGQ6: 5600 | HGR6: 5601 | HGS6: 5602 | HGT6: 5603 | HGU6: 5604 | HGV6: 5605 | HGW6: 5606 | HGX6: 5607 | HGY6: 5608 | HGZ6: 5609 | HHA6: 5610 | HHB6: 5611 | HHC6: 5612 | HHD6: 5613 | HHE6: 5614 | HHF6: 5615 | HHG6: 5616 | HHH6: 5617 | HHI6: 5618 | HHJ6: 5619 | HHK6: 5620 | HHL6: 5621 | HHM6: 5622 | HHN6: 5623 | HHO6: 5624 | HHP6: 5625 | HHQ6: 5626 | HHR6: 5627 | HHS6: 5628 | HHT6: 5629 | HHU6: 5630 | HHV6: 5631 | HHW6: 5632 | HHX6: 5633 | HHY6: 5634 | HHZ6: 5635 | HIA6: 5636 | HIB6: 5637 | HIC6: 5638 | HID6: 5639 | HIE6: 5640 | HIF6: 5641 | HIG6: 5642 | HIH6: 5643 | HII6: 5644 | HIJ6: 5645 | HIK6: 5646 | HIL6: 5647 | HIM6: 5648 | HIN6: 5649 | HIO6: 5650 | HIP6: 5651 | HIQ6: 5652 | HIR6: 5653 | HIS6: 5654 | HIT6: 5655 | HIU6: 5656 | HIV6: 5657 | HIW6: 5658 | HIX6: 5659 | HIY6: 5660 | HIZ6: 5661 | HJA6: 5662 | HJB6: 5663 | HJC6: 5664 | HJD6: 5665 | HJE6: 5666 | HJF6: 5667 | HJG6: 5668 | HJH6: 5669 | HJI6: 5670 | HJJ6: 5671 | HJK6: 5672 | HJL6: 5673 | HJM6: 5674 | HJN6: 5675 | HJO6: 5676 | HJP6: 5677 | HJQ6: 5678 | HJR6: 5679 | HJS6: 5680 | HJT6: 5681 | HJU6: 5682 | HJV6: 5683 | HJW6: 5684 | HJX6: 5685 | HJY6: 5686 | HJZ6: 5687 | HKA6: 5688 | HKB6: 5689 | HKC6: 5690 | HKD6: 5691 | HKE6: 5692 | HKF6: 5693 | HKG6: 5694 | HKH6: 5695 | HKI6: 5696 | HKJ6: 5697 | HKK6: 5698 | HKL6: 5699 | HKM6: 5700 | HKN6: 5701 | HKO6: 5702 | HKP6: 5703 | HKQ6: 5704 | HKR6: 5705 | HKS6: 5706 | HKT6: 5707 | HKU6: 5708 | HKV6: 5709 | HKW6: 5710 | HKX6: 5711 | HKY6: 5712 | HKZ6: 5713 | HLA6: 5714 | HLB6: 5715 | HLC6: 5716 | HLD6: 5717 | HLE6: 5718 | HLF6: 5719 | HLG6: 5720 | HLH6: 5721 | HLI6: 5722 | HLJ6: 5723 | HLK6: 5724 | HLL6: 5725 | HLM6: 5726 | HLN6: 5727 | HLO6: 5728 | HLP6: 5729 | HLQ6: 5730 | HLR6: 5731 | HLS6: 5732 | HLT6: 5733 | HLU6: 5734 | HLV6: 5735 | HLW6: 5736 | HLX6: 5737 | HLY6: 5738 | HLZ6: 5739 | HMA6: 5740 | HMB6: 5741 | HMC6: 5742 | HMD6: 5743 | HME6: 5744 | HMF6: 5745 | HMG6: 5746 | HMH6: 5747 | HMI6: 5748 | HMJ6: 5749 | HMK6: 5750 | HML6: 5751 | HMM6: 5752 | HMN6: 5753 | HMO6: 5754 | HMP6: 5755 | HMQ6: 5756 | HMR6: 5757 | HMS6: 5758 | HMT6: 5759 | HMU6: 5760 | HMV6: 5761 | HMW6: 5762 | HMX6: 5763 | HMY6: 5764 | HMZ6: 5765 | HNA6: 5766 | HNB6: 5767 | HNC6: 5768 | HND6: 5769 | HNE6: 5770 | HNF6: 5771 | HNG6: 5772 | HNH6: 5773 | HNI6: 5774 | HNJ6: 5775 | HNK6: 5776 | HNL6: 5777 | HNM6: 5778 | HNN6: 5779 | HNO6: 5780 | HNP6: 5781 | HNQ6: 5782 | HNR6: 5783 | HNS6: 5784 | HNT6: 5785 | HNU6: 5786 | HNV6: 5787 | HNW6: 5788 | HNX6: 5789 | HNY6: 5790 | HNZ6: 5791 | HOA6: 5792 | HOB6: 5793 | HOC6: 5794 | HOD6: 5795 | HOE6: 5796 | HOF6: 5797 | HOG6: 5798 | HOH6: 5799 | HOI6: 5800 | HOJ6: 5801 | HOK6: 5802 | HOL6: 5803 | HOM6: 5804 | HON6: 5805 | HOO6: 5806 | HOP6: 5807 | HOQ6: 5808 | HOR6: 5809 | HOS6: 5810 | HOT6: 5811 | HOU6: 5812 | HOV6: 5813 | HOW6: 5814 | HOX6: 5815 | HOY6: 5816 | HOZ6: 5817 | HPA6: 5818 | HPB6: 5819 | HPC6: 5820 | HPD6: 5821 | HPE6: 5822 | HPF6: 5823 | HPG6: 5824 | HPH6: 5825 | HPI6: 5826 | HPJ6: 5827 | HPK6: 5828 | HPL6: 5829 | HPM6: 5830 | HPN6: 5831 | HPO6: 5832 | HPP6: 5833 | HPQ6: 5834 | HPR6: 5835 | HPS6: 5836 | HPT6: 5837 | HPU6: 5838 | HPV6: 5839 | HPW6: 5840 | HPX6: 5841 | HPY6: 5842 | HPZ6: 5843 | HQA6: 5844 | HQB6: 5845 | HQC6: 5846 | HQD6: 5847 | HQE6: 5848 | HQF6: 5849 | HQG6: 5850 | HQH6: 5851 | HQI6: 5852 | HQJ6: 5853 | HQK6: 5854 | HQL6: 5855 | HQM6: 5856 | HQN6: 5857 | HQO6: 5858 | HQP6: 5859 | HQQ6: 5860 | HQR6: 5861 | HQS6: 5862 | HQT6: 5863 | HQU6: 5864 | HQV6: 5865 | HQW6: 5866 | HQX6: 5867 | HQY6: 5868 | HQZ6: 5869 | HRA6: 5870 | HRB6: 5871 | HRC6: 5872 | HRD6: 5873 | HRE6: 5874 | HRF6: 5875 | HRG6: 5876 | HRH6: 5877 | HRI6: 5878 | HRJ6: 5879 | HRK6: 5880 | HRL6: 5881 | HRM6: 5882 | HRN6: 5883 | HRO6: 5884 | HRP6: 5885 | HRQ6: 5886 | HRR6: 5887 | HRS6: 5888 | HRT6: 5889 | HRU6: 5890 | HRV6: 5891 | HRW6: 5892 | HRX6: 5893 | HRY6: 5894 | HRZ6: 5895 | HSA6: 5896 | HSB6: 5897 | HSC6: 5898 | HSD6: 5899 | HSE6: 5900 | HSF6: 5901 | HSG6: 5902 | HSH6: 5903 | HSI6: 5904 | HSJ6: 5905 | HSK6: 5906 | HSL6: 5907 | HSM6: 5908 | HSN6: 5909 | HSO6: 5910 | HSP6: 5911 | HSQ6: 5912 | HSR6: 5913 | HSS6: 5914 | HST6: 5915 | HSU6: 5916 | HSV6: 5917 | HSW6: 5918 | HSX6: 5919 | HSY6: 5920 | HSZ6: 5921 | HTA6: 5922 | HTB6: 5923 | HTC6: 5924 | HTD6: 5925 | HTE6: 5926 | HTF6: 5927 | HTG6: 5928 | HTH6: 5929 | HTI6: 5930 | HTJ6: 5931 | HTK6: 5932 | HTL6: 5933 | HTM6: 5934 | HTN6: 5935 | HTO6: 5936 | HTP6: 5937 | HTQ6: 5938 | HTR6: 5939 | HTS6: 5940 | HTT6: 5941 | HTU6: 5942 | HTV6: 5943 | HTW6: 5944 | HTX6: 5945 | HTY6: 5946 | HTZ6: 5947 | HUA6: 5948 | HUB6: 5949 | HUC6: 5950 | HUD6: 5951 | HUE6: 5952 | HUF6: 5953 | HUG6: 5954 | HUH6: 5955 | HUI6: 5956 | HUJ6: 5957 | HUK6: 5958 | HUL6: 5959 | HUM6: 5960 | HUN6: 5961 | HUO6: 5962 | HUP6: 5963 | HUQ6: 5964 | HUR6: 5965 | HUS6: 5966 | HUT6: 5967 | HUU6: 5968 | HUV6: 5969 | HUW6: 5970 | HUX6: 5971 | HUY6: 5972 | HUZ6: 5973 | HVA6: 5974 | HVB6: 5975 | HVC6: 5976 | HVD6: 5977 | HVE6: 5978 | HVF6: 5979 | HVG6: 5980 | HVH6: 5981 | HVI6: 5982 | HVJ6: 5983 | HVK6: 5984 | HVL6: 5985 | HVM6: 5986 | HVN6: 5987 | HVO6: 5988 | HVP6: 5989 | HVQ6: 5990 | HVR6: 5991 | HVS6: 5992 | HVT6: 5993 | HVU6: 5994 | HVV6: 5995 | HVW6: 5996 | HVX6: 5997 | HVY6: 5998 | HVZ6: 5999 | HWA6: 6000 | HWB6: 6001 | HWC6: 6002 | HWD6: 6003 | HWE6: 6004 | HWF6: 6005 | HWG6: 6006 | HWH6: 6007 | HWI6: 6008 | HWJ6: 6009 | HWK6: 6010 | HWL6: 6011 | HWM6: 6012 | HWN6: 6013 | HWO6: 6014 | HWP6: 6015 | HWQ6: 6016 | HWR6: 6017 | HWS6: 6018 | HWT6: 6019 | HWU6: 6020 | HWV6: 6021 | HWW6: 6022 | HWX6: 6023 | HWY6: 6024 | HWZ6: 6025 | HXA6: 6026 | HXB6: 6027 | HXC6: 6028 | HXD6: 6029 | HXE6: 6030 | HXF6: 6031 | HXG6: 6032 | HXH6: 6033 | HXI6: 6034 | HXJ6: 6035 | HXK6: 6036 | HXL6: 6037 | HXM6: 6038 | HXN6: 6039 | HXO6: 6040 | HXP6: 6041 | HXQ6: 6042 | HXR6: 6043 | HXS6: 6044 | HXT6: 6045 | HXU6: 6046 | HXV6: 6047 | HXW6: 6048 | HXX6: 6049 | HXY6: 6050 | HXZ6: 6051 | HYA6: 6052 | HYB6: 6053 | HYC6: 6054 | HYD6: 6055 | HYE6: 6056 | HYF6: 6057 | HYG6: 6058 | HYH6: 6059 | HYI6: 6060 | HYJ6: 6061 | HYK6: 6062 | HYL6: 6063 | HYM6: 6064 | HYN6: 6065 | HYO6: 6066 | HYP6: 6067 | HYQ6: 6068 | HYR6: 6069 | HYS6: 6070 | HYT6: 6071 | HYU6: 6072 | HYV6: 6073 | HYW6: 6074 | HYX6: 6075 | HYY6: 6076 | HYZ6: 6077 | HZA6: 6078 | HZB6: 6079 | HZC6: 6080 | HZD6: 6081 | HZE6: 6082 | HZF6: 6083 | HZG6: 6084 | HZH6: 6085 | HZI6: 6086 | HZJ6: 6087 | HZK6: 6088 | HZL6: 6089 | HZM6: 6090 | HZN6: 6091 | HZO6: 6092 | HZP6: 6093 | HZQ6: 6094 | HZR6: 6095 | HZS6: 6096 | HZT6: 6097 | HZU6: 6098 | HZV6: 6099 | HZW6: 6100 | HZX6: 6101 | HZY6: 6102 | HZZ6: 6103 | IAA6: 6104 | IAB6: 6105 | IAC6: 6106 | IAD6: 6107 | IAE6: 6108 | IAF6: 6109 | IAG6: 6110 | IAH6: 6111 | IAI6: 6112 | IAJ6: 6113 | IAK6: 6114 | IAL6: 6115 | IAM6: 6116 | IAN6: 6117 | IAO6: 6118 | IAP6: 6119 | IAQ6: 6120 | IAR6: 6121 | IAS6: 6122 | IAT6: 6123 | IAU6: 6124 | IAV6: 6125 | IAW6: 6126 | IAX6: 6127 | IAY6: 6128 | IAZ6: 6129 | IBA6: 6130 | IBB6: 6131 | IBC6: 6132 | IBD6: 6133 | IBE6: 6134 | IBF6: 6135 | IBG6: 6136 | IBH6: 6137 | IBI6: 6138 | IBJ6: 6139 | IBK6: 6140 | IBL6: 6141 | IBM6: 6142 | IBN6: 6143 | IBO6: 6144 | IBP6: 6145 | IBQ6: 6146 | IBR6: 6147 | IBS6: 6148 | IBT6: 6149 | IBU6: 6150 | IBV6: 6151 | IBW6: 6152 | IBX6: 6153 | IBY6: 6154 | IBZ6: 6155 | ICA6: 6156 | ICB6: 6157 | ICC6: 6158 | ICD6: 6159 | ICE6: 6160 | ICF6: 6161 | ICG6: 6162 | ICH6: 6163 | ICI6: 6164 | ICJ6: 6165 | ICK6: 6166 | ICL6: 6167 | ICM6: 6168 | ICN6: 6169 | ICO6: 6170 | ICP6: 6171 | ICQ6: 6172 | ICR6: 6173 | ICS6: 6174 | ICT6: 6175 | ICU6: 6176 | ICV6: 6177 | ICW6: 6178 | ICX6: 6179 | ICY6: 6180 | ICZ6: 6181 | IDA6: 6182 | IDB6: 6183 | IDC6: 6184 | IDD6: 6185 | IDE6: 6186 | IDF6: 6187 | IDG6: 6188 | IDH6: 6189 | IDI6: 6190 | IDJ6: 6191 | IDK6: 6192 | IDL6: 6193 | IDM6: 6194 | IDN6: 6195 | IDO6: 6196 | IDP6: 6197 | IDQ6: 6198 | IDR6: 6199 | IDS6: 6200 | IDT6: 6201 | IDU6: 6202 | IDV6: 6203 | IDW6: 6204 | IDX6: 6205 | IDY6: 6206 | IDZ6: 6207 | IEA6: 6208 | IEB6: 6209 | IEC6: 6210 | IED6: 6211 | IEE6: 6212 | IEF6: 6213 | IEG6: 6214 | IEH6: 6215 | IEI6: 6216 | IEJ6: 6217 | IEK6: 6218 | IEL6: 6219 | IEM6: 6220 | IEN6: 6221 | IEO6: 6222 | IEP6: 6223 | IEQ6: 6224 | IER6: 6225 | IES6: 6226 | IET6: 6227 | IEU6: 6228 | IEV6: 6229 | IEW6: 6230 | IEX6: 6231 | IEY6: 6232 | IEZ6: 6233 | IFA6: 6234 | IFB6: 6235 | IFC6: 6236 | IFD6: 6237 | IFE6: 6238 | IFF6: 6239 | IFG6: 6240 | IFH6: 6241 | IFI6: 6242 | IFJ6: 6243 | IFK6: 6244 | IFL6: 6245 | IFM6: 6246 | IFN6: 6247 | IFO6: 6248 | IFP6: 6249 | IFQ6: 6250 | IFR6: 6251 | IFS6: 6252 | IFT6: 6253 | IFU6: 6254 | IFV6: 6255 | IFW6: 6256 | IFX6: 6257 | IFY6: 6258 | IFZ6: 6259 | IGA6: 6260 | IGB6: 6261 | IGC6: 6262 | IGD6: 6263 | IGE6: 6264 | IGF6: 6265 | IGG6: 6266 | IGH6: 6267 | IGI6: 6268 | IGJ6: 6269 | IGK6: 6270 | IGL6: 6271 | IGM6: 6272 | IGN6: 6273 | IGO6: 6274 | IGP6: 6275 | IGQ6: 6276 | IGR6: 6277 | IGS6: 6278 | IGT6: 6279 | IGU6: 6280 | IGV6: 6281 | IGW6: 6282 | IGX6: 6283 | IGY6: 6284 | IGZ6: 6285 | IHA6: 6286 | IHB6: 6287 | IHC6: 6288 | IHD6: 6289 | IHE6: 6290 | IHF6: 6291 | IHG6: 6292 | IHH6: 6293 | IHI6: 6294 | IHJ6: 6295 | IHK6: 6296 | IHL6: 6297 | IHM6: 6298 | IHN6: 6299 | IHO6: 6300 | IHP6: 6301 | IHQ6: 6302 | IHR6: 6303 | IHS6: 6304 | IHT6: 6305 | IHU6: 6306 | IHV6: 6307 | IHW6: 6308 | IHX6: 6309 | IHY6: 6310 | IHZ6: 6311 | IIA6: 6312 | IIB6: 6313 | IIC6: 6314 | IID6: 6315 | IIE6: 6316 | IIF6: 6317 | IIG6: 6318 | IIH6: 6319 | III6: 6320 | IIJ6: 6321 | IIK6: 6322 | IIL6: 6323 | IIM6: 6324 | IIN6: 6325 | IIO6: 6326 | IIP6: 6327 | IIQ6: 6328 | IIR6: 6329 | IIS6: 6330 | IIT6: 6331 | IIU6: 6332 | IIV6: 6333 | IIW6: 6334 | IIX6: 6335 | IIY6: 6336 | IIZ6: 6337 | IJA6: 6338 | IJB6: 6339 | IJC6: 6340 | IJD6: 6341 | IJE6: 6342 | IJF6: 6343 | IJG6: 6344 | IJH6: 6345 | IJI6: 6346 | IJJ6: 6347 | IJK6: 6348 | IJL6: 6349 | IJM6: 6350 | IJN6: 6351 | IJO6: 6352 | IJP6: 6353 | IJQ6: 6354 | IJR6: 6355 | IJS6: 6356 | IJT6: 6357 | IJU6: 6358 | IJV6: 6359 | IJW6: 6360 | IJX6: 6361 | IJY6: 6362 | IJZ6: 6363 | IKA6: 6364 | IKB6: 6365 | IKC6: 6366 | IKD6: 6367 | IKE6: 6368 | IKF6: 6369 | IKG6: 6370 | IKH6: 6371 | IKI6: 6372 | IKJ6: 6373 | IKK6: 6374 | IKL6: 6375 | IKM6: 6376 | IKN6: 6377 | IKO6: 6378 | IKP6: 6379 | IKQ6: 6380 | IKR6: 6381 | IKS6: 6382 | IKT6: 6383 | IKU6: 6384 | IKV6: 6385 | IKW6: 6386 | IKX6: 6387 | IKY6: 6388 | IKZ6: 6389 | ILA6: 6390 | ILB6: 6391 | ILC6: 6392 | ILD6: 6393 | ILE6: 6394 | ILF6: 6395 | ILG6: 6396 | ILH6: 6397 | ILI6: 6398 | ILJ6: 6399 | ILK6: 6400 | ILL6: 6401 | ILM6: 6402 | ILN6: 6403 | ILO6: 6404 | ILP6: 6405 | ILQ6: 6406 | ILR6: 6407 | ILS6: 6408 | ILT6: 6409 | ILU6: 6410 | ILV6: 6411 | ILW6: 6412 | ILX6: 6413 | ILY6: 6414 | ILZ6: 6415 | IMA6: 6416 | IMB6: 6417 | IMC6: 6418 | IMD6: 6419 | IME6: 6420 | IMF6: 6421 | IMG6: 6422 | IMH6: 6423 | IMI6: 6424 | IMJ6: 6425 | IMK6: 6426 | IML6: 6427 | IMM6: 6428 | IMN6: 6429 | IMO6: 6430 | IMP6: 6431 | IMQ6: 6432 | IMR6: 6433 | IMS6: 6434 | IMT6: 6435 | IMU6: 6436 | IMV6: 6437 | IMW6: 6438 | IMX6: 6439 | IMY6: 6440 | IMZ6: 6441 | INA6: 6442 | INB6: 6443 | INC6: 6444 | IND6: 6445 | INE6: 6446 | INF6: 6447 | ING6: 6448 | INH6: 6449 | INI6: 6450 | INJ6: 6451 | INK6: 6452 | INL6: 6453 | INM6: 6454 | INN6: 6455 | INO6: 6456 | INP6: 6457 | INQ6: 6458 | INR6: 6459 | INS6: 6460 | INT6: 6461 | INU6: 6462 | INV6: 6463 | INW6: 6464 | INX6: 6465 | INY6: 6466 | INZ6: 6467 | IOA6: 6468 | IOB6: 6469 | IOC6: 6470 | IOD6: 6471 | IOE6: 6472 | IOF6: 6473 | IOG6: 6474 | IOH6: 6475 | IOI6: 6476 | IOJ6: 6477 | IOK6: 6478 | IOL6: 6479 | IOM6: 6480 | ION6: 6481 | IOO6: 6482 | IOP6: 6483 | IOQ6: 6484 | IOR6: 6485 | IOS6: 6486 | IOT6: 6487 | IOU6: 6488 | IOV6: 6489 | IOW6: 6490 | IOX6: 6491 | IOY6: 6492 | IOZ6: 6493 | IPA6: 6494 | IPB6: 6495 | IPC6: 6496 | IPD6: 6497 | IPE6: 6498 | IPF6: 6499 | IPG6: 6500 | IPH6: 6501 | IPI6: 6502 | IPJ6: 6503 | IPK6: 6504 | IPL6: 6505 | IPM6: 6506 | IPN6: 6507 | IPO6: 6508 | IPP6: 6509 | IPQ6: 6510 | IPR6: 6511 | IPS6: 6512 | IPT6: 6513 | IPU6: 6514 | IPV6: 6515 | IPW6: 6516 | IPX6: 6517 | IPY6: 6518 | IPZ6: 6519 | IQA6: 6520 | IQB6: 6521 | IQC6: 6522 | IQD6: 6523 | IQE6: 6524 | IQF6: 6525 | IQG6: 6526 | IQH6: 6527 | IQI6: 6528 | IQJ6: 6529 | IQK6: 6530 | IQL6: 6531 | IQM6: 6532 | IQN6: 6533 | IQO6: 6534 | IQP6: 6535 | IQQ6: 6536 | IQR6: 6537 | IQS6: 6538 | IQT6: 6539 | IQU6: 6540 | IQV6: 6541 | IQW6: 6542 | IQX6: 6543 | IQY6: 6544 | IQZ6: 6545 | IRA6: 6546 | IRB6: 6547 | IRC6: 6548 | IRD6: 6549 | IRE6: 6550 | IRF6: 6551 | IRG6: 6552 | IRH6: 6553 | IRI6: 6554 | IRJ6: 6555 | IRK6: 6556 | IRL6: 6557 | IRM6: 6558 | IRN6: 6559 | IRO6: 6560 | IRP6: 6561 | IRQ6: 6562 | IRR6: 6563 | IRS6: 6564 | IRT6: 6565 | IRU6: 6566 | IRV6: 6567 | IRW6: 6568 | IRX6: 6569 | IRY6: 6570 | IRZ6: 6571 | ISA6: 6572 | ISB6: 6573 | ISC6: 6574 | ISD6: 6575 | ISE6: 6576 | ISF6: 6577 | ISG6: 6578 | ISH6: 6579 | ISI6: 6580 | ISJ6: 6581 | ISK6: 6582 | ISL6: 6583 | ISM6: 6584 | ISN6: 6585 | ISO6: 6586 | ISP6: 6587 | ISQ6: 6588 | ISR6: 6589 | ISS6: 6590 | IST6: 6591 | ISU6: 6592 | ISV6: 6593 | ISW6: 6594 | ISX6: 6595 | ISY6: 6596 | ISZ6: 6597 | ITA6: 6598 | ITB6: 6599 | ITC6: 6600 | ITD6: 6601 | ITE6: 6602 | ITF6: 6603 | ITG6: 6604 | ITH6: 6605 | ITI6: 6606 | ITJ6: 6607 | ITK6: 6608 | ITL6: 6609 | ITM6: 6610 | ITN6: 6611 | ITO6: 6612 | ITP6: 6613 | ITQ6: 6614 | ITR6: 6615 | ITS6: 6616 | ITT6: 6617 | ITU6: 6618 | ITV6: 6619 | ITW6: 6620 | ITX6: 6621 | ITY6: 6622 | ITZ6: 6623 | IUA6: 6624 | IUB6: 6625 | IUC6: 6626 | IUD6: 6627 | IUE6: 6628 | IUF6: 6629 | IUG6: 6630 | IUH6: 6631 | IUI6: 6632 | IUJ6: 6633 | IUK6: 6634 | IUL6: 6635 | IUM6: 6636 | IUN6: 6637 | IUO6: 6638 | IUP6: 6639 | IUQ6: 6640 | IUR6: 6641 | IUS6: 6642 | IUT6: 6643 | IUU6: 6644 | IUV6: 6645 | IUW6: 6646 | IUX6: 6647 | IUY6: 6648 | IUZ6: 6649 | IVA6: 6650 | IVB6: 6651 | IVC6: 6652 | IVD6: 6653 | IVE6: 6654 | IVF6: 6655 | IVG6: 6656 | IVH6: 6657 | IVI6: 6658 | IVJ6: 6659 | IVK6: 6660 | IVL6: 6661 | IVM6: 6662 | IVN6: 6663 | IVO6: 6664 | IVP6: 6665 | IVQ6: 6666 | IVR6: 6667 | IVS6: 6668 | IVT6: 6669 | IVU6: 6670 | IVV6: 6671 | IVW6: 6672 | IVX6: 6673 | IVY6: 6674 | IVZ6: 6675 | IWA6: 6676 | IWB6: 6677 | IWC6: 6678 | IWD6: 6679 | IWE6: 6680 | IWF6: 6681 | IWG6: 6682 | IWH6: 6683 | IWI6: 6684 | IWJ6: 6685 | IWK6: 6686 | IWL6: 6687 | IWM6: 6688 | IWN6: 6689 | IWO6: 6690 | IWP6: 6691 | IWQ6: 6692 | IWR6: 6693 | IWS6: 6694 | IWT6: 6695 | IWU6: 6696 | IWV6: 6697 | IWW6: 6698 | IWX6: 6699 | IWY6: 6700 | IWZ6: 6701 | IXA6: 6702 | IXB6: 6703 | IXC6: 6704 | IXD6: 6705 | IXE6: 6706 | IXF6: 6707 | IXG6: 6708 | IXH6: 6709 | IXI6: 6710 | IXJ6: 6711 | IXK6: 6712 | IXL6: 6713 | IXM6: 6714 | IXN6: 6715 | IXO6: 6716 | IXP6: 6717 | IXQ6: 6718 | IXR6: 6719 | IXS6: 6720 | IXT6: 6721 | IXU6: 6722 | IXV6: 6723 | IXW6: 6724 | IXX6: 6725 | IXY6: 6726 | IXZ6: 6727 | IYA6: 6728 | IYB6: 6729 | IYC6: 6730 | IYD6: 6731 | IYE6: 6732 | IYF6: 6733 | IYG6: 6734 | IYH6: 6735 | IYI6: 6736 | IYJ6: 6737 | IYK6: 6738 | IYL6: 6739 | IYM6: 6740 | IYN6: 6741 | IYO6: 6742 | IYP6: 6743 | IYQ6: 6744 | IYR6: 6745 | IYS6: 6746 | IYT6: 6747 | IYU6: 6748 | IYV6: 6749 | IYW6: 6750 | IYX6: 6751 | IYY6: 6752 | IYZ6: 6753 | IZA6: 6754 | IZB6: 6755 | IZC6: 6756 | IZD6: 6757 | IZE6: 6758 | IZF6: 6759 | IZG6: 6760 | IZH6: 6761 | IZI6: 6762 | IZJ6: 6763 | IZK6: 6764 | IZL6: 6765 | IZM6: 6766 | IZN6: 6767 | IZO6: 6768 | IZP6: 6769 | IZQ6: 6770 | IZR6: 6771 | IZS6: 6772 | IZT6: 6773 | IZU6: 6774 | IZV6: 6775 | IZW6: 6776 | IZX6: 6777 | IZY6: 6778 | IZZ6: 6779 | JAA6: 6780 | JAB6: 6781 | JAC6: 6782 | JAD6: 6783 | JAE6: 6784 | JAF6: 6785 | JAG6: 6786 | JAH6: 6787 | JAI6: 6788 | JAJ6: 6789 | JAK6: 6790 | JAL6: 6791 | JAM6: 6792 | JAN6: 6793 | JAO6: 6794 | JAP6: 6795 | JAQ6: 6796 | JAR6: 6797 | JAS6: 6798 | JAT6: 6799 | JAU6: 6800 | JAV6: 6801 | JAW6: 6802 | JAX6: 6803 | JAY6: 6804 | JAZ6: 6805 | JBA6: 6806 | JBB6: 6807 | JBC6: 6808 | JBD6: 6809 | JBE6: 6810 | JBF6: 6811 | JBG6: 6812 | JBH6: 6813 | JBI6: 6814 | JBJ6: 6815 | JBK6: 6816 | JBL6: 6817 | JBM6: 6818 | JBN6: 6819 | JBO6: 6820 | JBP6: 6821 | JBQ6: 6822 | JBR6: 6823 | JBS6: 6824 | JBT6: 6825 | JBU6: 6826 | JBV6: 6827 | JBW6: 6828 | JBX6: 6829 | JBY6: 6830 | JBZ6: 6831 | JCA6: 6832 | JCB6: 6833 | JCC6: 6834 | JCD6: 6835 | JCE6: 6836 | JCF6: 6837 | JCG6: 6838 | JCH6: 6839 | JCI6: 6840 | JCJ6: 6841 | JCK6: 6842 | JCL6: 6843 | JCM6: 6844 | JCN6: 6845 | JCO6: 6846 | JCP6: 6847 | JCQ6: 6848 | JCR6: 6849 | JCS6: 6850 | JCT6: 6851 | JCU6: 6852 | JCV6: 6853 | JCW6: 6854 | JCX6: 6855 | JCY6: 6856 | JCZ6: 6857 | JDA6: 6858 | JDB6: 6859 | JDC6: 6860 | JDD6: 6861 | JDE6: 6862 | JDF6: 6863 | JDG6: 6864 | JDH6: 6865 | JDI6: 6866 | JDJ6: 6867 | JDK6: 6868 | JDL6: 6869 | JDM6: 6870 | JDN6: 6871 | JDO6: 6872 | JDP6: 6873 | JDQ6: 6874 | JDR6: 6875 | JDS6: 6876 | JDT6: 6877 | JDU6: 6878 | JDV6: 6879 | JDW6: 6880 | JDX6: 6881 | JDY6: 6882 | JDZ6: 6883 | JEA6: 6884 | JEB6: 6885 | JEC6: 6886 | JED6: 6887 | JEE6: 6888 | JEF6: 6889 | JEG6: 6890 | JEH6: 6891 | JEI6: 6892 | JEJ6: 6893 | JEK6: 6894 | JEL6: 6895 | JEM6: 6896 | JEN6: 6897 | JEO6: 6898 | JEP6: 6899 | JEQ6: 6900 | JER6: 6901 | JES6: 6902 | JET6: 6903 | JEU6: 6904 | JEV6: 6905 | JEW6: 6906 | JEX6: 6907 | JEY6: 6908 | JEZ6: 6909 | JFA6: 6910 | JFB6: 6911 | JFC6: 6912 | JFD6: 6913 | JFE6: 6914 | JFF6: 6915 | JFG6: 6916 | JFH6: 6917 | JFI6: 6918 | JFJ6: 6919 | JFK6: 6920 | JFL6: 6921 | JFM6: 6922 | JFN6: 6923 | JFO6: 6924 | JFP6: 6925 | JFQ6: 6926 | JFR6: 6927 | JFS6: 6928 | JFT6: 6929 | JFU6: 6930 | JFV6: 6931 | JFW6: 6932 | JFX6: 6933 | JFY6: 6934 | JFZ6: 6935 | JGA6: 6936 | JGB6: 6937 | JGC6: 6938 | JGD6: 6939 | JGE6: 6940 | JGF6: 6941 | JGG6: 6942 | JGH6: 6943 | JGI6: 6944 | JGJ6: 6945 | JGK6: 6946 | JGL6: 6947 | JGM6: 6948 | JGN6: 6949 | JGO6: 6950 | JGP6: 6951 | JGQ6: 6952 | JGR6: 6953 | JGS6: 6954 | JGT6: 6955 | JGU6: 6956 | JGV6: 6957 | JGW6: 6958 | JGX6: 6959 | JGY6: 6960 | JGZ6: 6961 | JHA6: 6962 | JHB6: 6963 | JHC6: 6964 | JHD6: 6965 | JHE6: 6966 | JHF6: 6967 | JHG6: 6968 | JHH6: 6969 | JHI6: 6970 | JHJ6: 6971 | JHK6: 6972 | JHL6: 6973 | JHM6: 6974 | JHN6: 6975 | JHO6: 6976 | JHP6: 6977 | JHQ6: 6978 | JHR6: 6979 | JHS6: 6980 | JHT6: 6981 | JHU6: 6982 | JHV6: 6983 | JHW6: 6984 | JHX6: 6985 | JHY6: 6986 | JHZ6: 6987 | JIA6: 6988 | JIB6: 6989 | JIC6: 6990 | JID6: 6991 | JIE6: 6992 | JIF6: 6993 | JIG6: 6994 | JIH6: 6995 | JII6: 6996 | JIJ6: 6997 | JIK6: 6998 | JIL6: 6999 | JIM6: 7000 | JIN6: 7001 | JIO6: 7002 | JIP6: 7003 | JIQ6: 7004 | JIR6: 7005 | JIS6: 7006 | JIT6: 7007 | JIU6: 7008 | JIV6: 7009 | JIW6: 7010 | JIX6: 7011 | JIY6: 7012 | JIZ6: 7013 | JJA6: 7014 | JJB6: 7015 | JJC6: 7016 | JJD6: 7017 | JJE6: 7018 | JJF6: 7019 | JJG6: 7020 | JJH6: 7021 | JJI6: 7022 | JJJ6: 7023 | JJK6: 7024 | JJL6: 7025 | JJM6: 7026 | JJN6: 7027 | JJO6: 7028 | JJP6: 7029 | JJQ6: 7030 | JJR6: 7031 | JJS6: 7032 | JJT6: 7033 | JJU6: 7034 | JJV6: 7035 | JJW6: 7036 | JJX6: 7037 | JJY6: 7038 | JJZ6: 7039 | JKA6: 7040 | JKB6: 7041 | JKC6: 7042 | JKD6: 7043 | JKE6: 7044 | JKF6: 7045 | JKG6: 7046 | JKH6: 7047 | JKI6: 7048 | JKJ6: 7049 | JKK6: 7050 | JKL6: 7051 | JKM6: 7052 | JKN6: 7053 | JKO6: 7054 | JKP6: 7055 | JKQ6: 7056 | JKR6: 7057 | JKS6: 7058 | JKT6: 7059 | JKU6: 7060 | JKV6: 7061 | JKW6: 7062 | JKX6: 7063 | JKY6: 7064 | JKZ6: 7065 | JLA6: 7066 | JLB6: 7067 | JLC6: 7068 | JLD6: 7069 | JLE6: 7070 | JLF6: 7071 | JLG6: 7072 | JLH6: 7073 | JLI6: 7074 | JLJ6: 7075 | JLK6: 7076 | JLL6: 7077 | JLM6: 7078 | JLN6: 7079 | JLO6: 7080 | JLP6: 7081 | JLQ6: 7082 | JLR6: 7083 | JLS6: 7084 | JLT6: 7085 | JLU6: 7086 | JLV6: 7087 | JLW6: 7088 | JLX6: 7089 | JLY6: 7090 | JLZ6: 7091 | JMA6: 7092 | JMB6: 7093 | JMC6: 7094 | JMD6: 7095 | JME6: 7096 | JMF6: 7097 | JMG6: 7098 | JMH6: 7099 | JMI6: 7100 | JMJ6: 7101 | JMK6: 7102 | JML6: 7103 | JMM6: 7104 | JMN6: 7105 | JMO6: 7106 | JMP6: 7107 | JMQ6: 7108 | JMR6: 7109 | JMS6: 7110 | JMT6: 7111 | JMU6: 7112 | JMV6: 7113 | JMW6: 7114 | JMX6: 7115 | JMY6: 7116 | JMZ6: 7117 | JNA6: 7118 | JNB6: 7119 | JNC6: 7120 | JND6: 7121 | JNE6: 7122 | JNF6: 7123 | JNG6: 7124 | JNH6: 7125 | JNI6: 7126 | JNJ6: 7127 | JNK6: 7128 | JNL6: 7129 | JNM6: 7130 | JNN6: 7131 | JNO6: 7132 | JNP6: 7133 | JNQ6: 7134 | JNR6: 7135 | JNS6: 7136 | JNT6: 7137 | JNU6: 7138 | JNV6: 7139 | JNW6: 7140 | JNX6: 7141 | JNY6: 7142 | JNZ6: 7143 | JOA6: 7144 | JOB6: 7145 | JOC6: 7146 | JOD6: 7147 | JOE6: 7148 | JOF6: 7149 | JOG6: 7150 | JOH6: 7151 | JOI6: 7152 | JOJ6: 7153 | JOK6: 7154 | JOL6: 7155 | JOM6: 7156 | JON6: 7157 | JOO6: 7158 | JOP6: 7159 | JOQ6: 7160 | JOR6: 7161 | JOS6: 7162 | JOT6: 7163 | JOU6: 7164 | JOV6: 7165 | JOW6: 7166 | JOX6: 7167 | JOY6: 7168 | JOZ6: 7169 | JPA6: 7170 | JPB6: 7171 | JPC6: 7172 | JPD6: 7173 | JPE6: 7174 | JPF6: 7175 | JPG6: 7176 | JPH6: 7177 | JPI6: 7178 | JPJ6: 7179 | JPK6: 7180 | JPL6: 7181 | JPM6: 7182 | JPN6: 7183 | JPO6: 7184 | JPP6: 7185 | JPQ6: 7186 | JPR6: 7187 | JPS6: 7188 | JPT6: 7189 | JPU6: 7190 | JPV6: 7191 | JPW6: 7192 | JPX6: 7193 | JPY6: 7194 | JPZ6: 7195 | JQA6: 7196 | JQB6: 7197 | JQC6: 7198 | JQD6: 7199 | JQE6: 7200 | JQF6: 7201 | JQG6: 7202 | JQH6: 7203 | JQI6: 7204 | JQJ6: 7205 | JQK6: 7206 | JQL6: 7207 | JQM6: 7208 | JQN6: 7209 | JQO6: 7210 | JQP6: 7211 | JQQ6: 7212 | JQR6: 7213 | JQS6: 7214 | JQT6: 7215 | JQU6: 7216 | JQV6: 7217 | JQW6: 7218 | JQX6: 7219 | JQY6: 7220 | JQZ6: 7221 | JRA6: 7222 | JRB6: 7223 | JRC6: 7224 | JRD6: 7225 | JRE6: 7226 | JRF6: 7227 | JRG6: 7228 | JRH6: 7229 | JRI6: 7230 | JRJ6: 7231 | JRK6: 7232 | JRL6: 7233 | JRM6: 7234 | JRN6: 7235 | JRO6: 7236 | JRP6: 7237 | JRQ6: 7238 | JRR6: 7239 | JRS6: 7240 | JRT6: 7241 | JRU6: 7242 | JRV6: 7243 | JRW6: 7244 | JRX6: 7245 | JRY6: 7246 | JRZ6: 7247 | JSA6: 7248 | JSB6: 7249 | JSC6: 7250 | JSD6: 7251 | JSE6: 7252 | JSF6: 7253 | JSG6: 7254 | JSH6: 7255 | JSI6: 7256 | JSJ6: 7257 | JSK6: 7258 | JSL6: 7259 | JSM6: 7260 | JSN6: 7261 | JSO6: 7262 | JSP6: 7263 | JSQ6: 7264 | JSR6: 7265 | JSS6: 7266 | JST6: 7267 | JSU6: 7268 | JSV6: 7269 | JSW6: 7270 | JSX6: 7271 | JSY6: 7272 | JSZ6: 7273 | JTA6: 7274 | JTB6: 7275 | JTC6: 7276 | JTD6: 7277 | JTE6: 7278 | JTF6: 7279 | JTG6: 7280 | JTH6: 7281 | JTI6: 7282 | JTJ6: 7283 | JTK6: 7284 | JTL6: 7285 | JTM6: 7286 | JTN6: 7287 | JTO6: 7288 | JTP6: 7289 | JTQ6: 7290 | JTR6: 7291 | JTS6: 7292 | JTT6: 7293 | JTU6: 7294 | JTV6: 7295 | JTW6: 7296 | JTX6: 7297 | JTY6: 7298 | JTZ6: 7299 | JUA6: 7300 | JUB6: 7301 | JUC6: 7302 | JUD6: 7303 | JUE6: 7304 | JUF6: 7305 | JUG6: 7306 | JUH6: 7307 | JUI6: 7308 | JUJ6: 7309 | JUK6: 7310 | JUL6: 7311 | JUM6: 7312 | JUN6: 7313 | JUO6: 7314 | JUP6: 7315 | JUQ6: 7316 | JUR6: 7317 | JUS6: 7318 | JUT6: 7319 | JUU6: 7320 | JUV6: 7321 | JUW6: 7322 | JUX6: 7323 | JUY6: 7324 | JUZ6: 7325 | JVA6: 7326 | JVB6: 7327 | JVC6: 7328 | JVD6: 7329 | JVE6: 7330 | JVF6: 7331 | JVG6: 7332 | JVH6: 7333 | JVI6: 7334 | JVJ6: 7335 | JVK6: 7336 | JVL6: 7337 | JVM6: 7338 | JVN6: 7339 | JVO6: 7340 | JVP6: 7341 | JVQ6: 7342 | JVR6: 7343 | JVS6: 7344 | JVT6: 7345 | JVU6: 7346 | JVV6: 7347 | JVW6: 7348 | JVX6: 7349 | JVY6: 7350 | JVZ6: 7351 | JWA6: 7352 | JWB6: 7353 | JWC6: 7354 | JWD6: 7355 | JWE6: 7356 | JWF6: 7357 | JWG6: 7358 | JWH6: 7359 | JWI6: 7360 | JWJ6: 7361 | JWK6: 7362 | JWL6: 7363 | JWM6: 7364 | JWN6: 7365 | JWO6: 7366 | JWP6: 7367 | JWQ6: 7368 | JWR6: 7369 | JWS6: 7370 | JWT6: 7371 | JWU6: 7372 | JWV6: 7373 | JWW6: 7374 | JWX6: 7375 | JWY6: 7376 | JWZ6: 7377 | JXA6: 7378 | JXB6: 7379 | JXC6: 7380 | JXD6: 7381 | JXE6: 7382 | JXF6: 7383 | JXG6: 7384 | JXH6: 7385 | JXI6: 7386 | JXJ6: 7387 | JXK6: 7388 | JXL6: 7389 | JXM6: 7390 | JXN6: 7391 | JXO6: 7392 | JXP6: 7393 | JXQ6: 7394 | JXR6: 7395 | JXS6: 7396 | JXT6: 7397 | JXU6: 7398 | JXV6: 7399 | JXW6: 7400 | JXX6: 7401 | JXY6: 7402 | JXZ6: 7403 | JYA6: 7404 | JYB6: 7405 | JYC6: 7406 | JYD6: 7407 | JYE6: 7408 | JYF6: 7409 | JYG6: 7410 | JYH6: 7411 | JYI6: 7412 | JYJ6: 7413 | JYK6: 7414 | JYL6: 7415 | JYM6: 7416 | JYN6: 7417 | JYO6: 7418 | JYP6: 7419 | JYQ6: 7420 | JYR6: 7421 | JYS6: 7422 | JYT6: 7423 | JYU6: 7424 | JYV6: 7425 | JYW6: 7426 | JYX6: 7427 | JYY6: 7428 | JYZ6: 7429 | JZA6: 7430 | JZB6: 7431 | JZC6: 7432 | JZD6: 7433 | JZE6: 7434 | JZF6: 7435 | JZG6: 7436 | JZH6: 7437 | JZI6: 7438 | JZJ6: 7439 | JZK6: 7440 | JZL6: 7441 | JZM6: 7442 | JZN6: 7443 | JZO6: 7444 | JZP6: 7445 | JZQ6: 7446 | JZR6: 7447 | JZS6: 7448 | JZT6: 7449 | JZU6: 7450 | JZV6: 7451 | JZW6: 7452 | JZX6: 7453 | JZY6: 7454 | JZZ6: 7455 | KAA6: 7456 | KAB6: 7457 | KAC6: 7458 | KAD6: 7459 | KAE6: 7460 | KAF6: 7461 | KAG6: 7462 | KAH6: 7463 | KAI6: 7464 | KAJ6: 7465 | KAK6: 7466 | KAL6: 7467 | KAM6: 7468 | KAN6: 7469 | KAO6: 7470 | KAP6: 7471 | KAQ6: 7472 | KAR6: 7473 | KAS6: 7474 | KAT6: 7475 | KAU6: 7476 | KAV6: 7477 | KAW6: 7478 | KAX6: 7479 | KAY6: 7480 | KAZ6: 7481 | KBA6: 7482 | KBB6: 7483 | KBC6: 7484 | KBD6: 7485 | KBE6: 7486 | KBF6: 7487 | KBG6: 7488 | KBH6: 7489 | KBI6: 7490 | KBJ6: 7491 | KBK6: 7492 | KBL6: 7493 | KBM6: 7494 | KBN6: 7495 | KBO6: 7496 | KBP6: 7497 | KBQ6: 7498 | KBR6: 7499 | KBS6: 7500 | KBT6: 7501 | KBU6: 7502 | KBV6: 7503 | KBW6: 7504 | KBX6: 7505 | KBY6: 7506 | KBZ6: 7507 | KCA6: 7508 | KCB6: 7509 | KCC6: 7510 | KCD6: 7511 | KCE6: 7512 | KCF6: 7513 | KCG6: 7514 | KCH6: 7515 | KCI6: 7516 | KCJ6: 7517 | KCK6: 7518 | KCL6: 7519 | KCM6: 7520 | KCN6: 7521 | KCO6: 7522 | KCP6: 7523 | KCQ6: 7524 | KCR6: 7525 | KCS6: 7526 | KCT6: 7527 | KCU6: 7528 | KCV6: 7529 | KCW6: 7530 | KCX6: 7531 | KCY6: 7532 | KCZ6: 7533 | KDA6: 7534 | KDB6: 7535 | KDC6: 7536 | KDD6: 7537 | KDE6: 7538 | KDF6: 7539 | KDG6: 7540 | KDH6: 7541 | KDI6: 7542 | KDJ6: 7543 | KDK6: 7544 | KDL6: 7545 | KDM6: 7546 | KDN6: 7547 | KDO6: 7548 | KDP6: 7549 | KDQ6: 7550 | KDR6: 7551 | KDS6: 7552 | KDT6: 7553 | KDU6: 7554 | KDV6: 7555 | KDW6: 7556 | KDX6: 7557 | KDY6: 7558 | KDZ6: 7559 | KEA6: 7560 | KEB6: 7561 | KEC6: 7562 | KED6: 7563 | KEE6: 7564 | KEF6: 7565 | KEG6: 7566 | KEH6: 7567 | KEI6: 7568 | KEJ6: 7569 | KEK6: 7570 | KEL6: 7571 | KEM6: 7572 | KEN6: 7573 | KEO6: 7574 | KEP6: 7575 | KEQ6: 7576 | KER6: 7577 | KES6: 7578 | KET6: 7579 | KEU6: 7580 | KEV6: 7581 | KEW6: 7582 | KEX6: 7583 | KEY6: 7584 | KEZ6: 7585 | KFA6: 7586 | KFB6: 7587 | KFC6: 7588 | KFD6: 7589 | KFE6: 7590 | KFF6: 7591 | KFG6: 7592 | KFH6: 7593 | KFI6: 7594 | KFJ6: 7595 | KFK6: 7596 | KFL6: 7597 | KFM6: 7598 | KFN6: 7599 | KFO6: 7600 | KFP6: 7601 | KFQ6: 7602 | KFR6: 7603 | KFS6: 7604 | KFT6: 7605 | KFU6: 7606 | KFV6: 7607 | KFW6: 7608 | KFX6: 7609 | KFY6: 7610 | KFZ6: 7611 | KGA6: 7612 | KGB6: 7613 | KGC6: 7614 | KGD6: 7615 | KGE6: 7616 | KGF6: 7617 | KGG6: 7618 | KGH6: 7619 | KGI6: 7620 | KGJ6: 7621 | KGK6: 7622 | KGL6: 7623 | KGM6: 7624 | KGN6: 7625 | KGO6: 7626 | KGP6: 7627 | KGQ6: 7628 | KGR6: 7629 | KGS6: 7630 | KGT6: 7631 | KGU6: 7632 | KGV6: 7633 | KGW6: 7634 | KGX6: 7635 | KGY6: 7636 | KGZ6: 7637 | KHA6: 7638 | KHB6: 7639 | KHC6: 7640 | KHD6: 7641 | KHE6: 7642 | KHF6: 7643 | KHG6: 7644 | KHH6: 7645 | KHI6: 7646 | KHJ6: 7647 | KHK6: 7648 | KHL6: 7649 | KHM6: 7650 | KHN6: 7651 | KHO6: 7652 | KHP6: 7653 | KHQ6: 7654 | KHR6: 7655 | KHS6: 7656 | KHT6: 7657 | KHU6: 7658 | KHV6: 7659 | KHW6: 7660 | KHX6: 7661 | KHY6: 7662 | KHZ6: 7663 | KIA6: 7664 | KIB6: 7665 | KIC6: 7666 | KID6: 7667 | KIE6: 7668 | KIF6: 7669 | KIG6: 7670 | KIH6: 7671 | KII6: 7672 | KIJ6: 7673 | KIK6: 7674 | KIL6: 7675 | KIM6: 7676 | KIN6: 7677 | KIO6: 7678 | KIP6: 7679 | KIQ6: 7680 | KIR6: 7681 | KIS6: 7682 | KIT6: 7683 | KIU6: 7684 | KIV6: 7685 | KIW6: 7686 | KIX6: 7687 | KIY6: 7688 | KIZ6: 7689 | KJA6: 7690 | KJB6: 7691 | KJC6: 7692 | KJD6: 7693 | KJE6: 7694 | KJF6: 7695 | KJG6: 7696 | KJH6: 7697 | KJI6: 7698 | KJJ6: 7699 | KJK6: 7700 | KJL6: 7701 | KJM6: 7702 | KJN6: 7703 | KJO6: 7704 | KJP6: 7705 | KJQ6: 7706 | KJR6: 7707 | KJS6: 7708 | KJT6: 7709 | KJU6: 7710 | KJV6: 7711 | KJW6: 7712 | KJX6: 7713 | KJY6: 7714 | KJZ6: 7715 | KKA6: 7716 | KKB6: 7717 | KKC6: 7718 | KKD6: 7719 | KKE6: 7720 | KKF6: 7721 | KKG6: 7722 | KKH6: 7723 | KKI6: 7724 | KKJ6: 7725 | KKK6: 7726 | KKL6: 7727 | KKM6: 7728 | KKN6: 7729 | KKO6: 7730 | KKP6: 7731 | KKQ6: 7732 | KKR6: 7733 | KKS6: 7734 | KKT6: 7735 | KKU6: 7736 | KKV6: 7737 | KKW6: 7738 | KKX6: 7739 | KKY6: 7740 | KKZ6: 7741 | KLA6: 7742 | KLB6: 7743 | KLC6: 7744 | KLD6: 7745 | KLE6: 7746 | KLF6: 7747 | KLG6: 7748 | KLH6: 7749 | KLI6: 7750 | KLJ6: 7751 | KLK6: 7752 | KLL6: 7753 | KLM6: 7754 | KLN6: 7755 | KLO6: 7756 | KLP6: 7757 | KLQ6: 7758 | KLR6: 7759 | KLS6: 7760 | KLT6: 7761 | KLU6: 7762 | KLV6: 7763 | KLW6: 7764 | KLX6: 7765 | KLY6: 7766 | KLZ6: 7767 | KMA6: 7768 | KMB6: 7769 | KMC6: 7770 | KMD6: 7771 | KME6: 7772 | KMF6: 7773 | KMG6: 7774 | KMH6: 7775 | KMI6: 7776 | KMJ6: 7777 | KMK6: 7778 | KML6: 7779 | KMM6: 7780 | KMN6: 7781 | KMO6: 7782 | KMP6: 7783 | KMQ6: 7784 | KMR6: 7785 | KMS6: 7786 | KMT6: 7787 | KMU6: 7788 | KMV6: 7789 | KMW6: 7790 | KMX6: 7791 | KMY6: 7792 | KMZ6: 7793 | KNA6: 7794 | KNB6: 7795 | KNC6: 7796 | KND6: 7797 | KNE6: 7798 | KNF6: 7799 | KNG6: 7800 | KNH6: 7801 | KNI6: 7802 | KNJ6: 7803 | KNK6: 7804 | KNL6: 7805 | KNM6: 7806 | KNN6: 7807 | KNO6: 7808 | KNP6: 7809 | KNQ6: 7810 | KNR6: 7811 | KNS6: 7812 | KNT6: 7813 | KNU6: 7814 | KNV6: 7815 | KNW6: 7816 | KNX6: 7817 | KNY6: 7818 | KNZ6: 7819 | KOA6: 7820 | KOB6: 7821 | KOC6: 7822 | KOD6: 7823 | KOE6: 7824 | KOF6: 7825 | KOG6: 7826 | KOH6: 7827 | KOI6: 7828 | KOJ6: 7829 | KOK6: 7830 | KOL6: 7831 | KOM6: 7832 | KON6: 7833 | KOO6: 7834 | KOP6: 7835 | KOQ6: 7836 | KOR6: 7837 | KOS6: 7838 | KOT6: 7839 | KOU6: 7840 | KOV6: 7841 | KOW6: 7842 | KOX6: 7843 | KOY6: 7844 | KOZ6: 7845 | KPA6: 7846 | KPB6: 7847 | KPC6: 7848 | KPD6: 7849 | KPE6: 7850 | KPF6: 7851 | KPG6: 7852 | KPH6: 7853 | KPI6: 7854 | KPJ6: 7855 | KPK6: 7856 | KPL6: 7857 | KPM6: 7858 | KPN6: 7859 | KPO6: 7860 | KPP6: 7861 | KPQ6: 7862 | KPR6: 7863 | KPS6: 7864 | KPT6: 7865 | KPU6: 7866 | KPV6: 7867 | KPW6: 7868 | KPX6: 7869 | KPY6: 7870 | KPZ6: 7871 | KQA6: 7872 | KQB6: 7873 | KQC6: 7874 | KQD6: 7875 | KQE6: 7876 | KQF6: 7877 | KQG6: 7878 | KQH6: 7879 | KQI6: 7880 | KQJ6: 7881 | KQK6: 7882 | KQL6: 7883 | KQM6: 7884 | KQN6: 7885 | KQO6: 7886 | KQP6: 7887 | KQQ6: 7888 | KQR6: 7889 | KQS6: 7890 | KQT6: 7891 | KQU6: 7892 | KQV6: 7893 | KQW6: 7894 | KQX6: 7895 | KQY6: 7896 | KQZ6: 7897 | KRA6: 7898 | KRB6: 7899 | KRC6: 7900 | KRD6: 7901 | KRE6: 7902 | KRF6: 7903 | KRG6: 7904 | KRH6: 7905 | KRI6: 7906 | KRJ6: 7907 | KRK6: 7908 | KRL6: 7909 | KRM6: 7910 | KRN6: 7911 | KRO6: 7912 | KRP6: 7913 | KRQ6: 7914 | KRR6: 7915 | KRS6: 7916 | KRT6: 7917 | KRU6: 7918 | KRV6: 7919 | KRW6: 7920 | KRX6: 7921 | KRY6: 7922 | KRZ6: 7923 | KSA6: 7924 | KSB6: 7925 | KSC6: 7926 | KSD6: 7927 | KSE6: 7928 | KSF6: 7929 | KSG6: 7930 | KSH6: 7931 | KSI6: 7932 | KSJ6: 7933 | KSK6: 7934 | KSL6: 7935 | KSM6: 7936 | KSN6: 7937 | KSO6: 7938 | KSP6: 7939 | KSQ6: 7940 | KSR6: 7941 | KSS6: 7942 | KST6: 7943 | KSU6: 7944 | KSV6: 7945 | KSW6: 7946 | KSX6: 7947 | KSY6: 7948 | KSZ6: 7949 | KTA6: 7950 | KTB6: 7951 | KTC6: 7952 | KTD6: 7953 | KTE6: 7954 | KTF6: 7955 | KTG6: 7956 | KTH6: 7957 | KTI6: 7958 | KTJ6: 7959 | KTK6: 7960 | KTL6: 7961 | KTM6: 7962 | KTN6: 7963 | KTO6: 7964 | KTP6: 7965 | KTQ6: 7966 | KTR6: 7967 | KTS6: 7968 | KTT6: 7969 | KTU6: 7970 | KTV6: 7971 | KTW6: 7972 | KTX6: 7973 | KTY6: 7974 | KTZ6: 7975 | KUA6: 7976 | KUB6: 7977 | KUC6: 7978 | KUD6: 7979 | KUE6: 7980 | KUF6: 7981 | KUG6: 7982 | KUH6: 7983 | KUI6: 7984 | KUJ6: 7985 | KUK6: 7986 | KUL6: 7987 | KUM6: 7988 | KUN6: 7989 | KUO6: 7990 | KUP6: 7991 | KUQ6: 7992 | KUR6: 7993 | KUS6: 7994 | KUT6: 7995 | KUU6: 7996 | KUV6: 7997 | KUW6: 7998 | KUX6: 7999 | KUY6: 8000 | KUZ6: 8001 | KVA6: 8002 | KVB6: 8003 | KVC6: 8004 | KVD6: 8005 | KVE6: 8006 | KVF6: 8007 | KVG6: 8008 | KVH6: 8009 | KVI6: 8010 | KVJ6: 8011 | KVK6: 8012 | KVL6: 8013 | KVM6: 8014 | KVN6: 8015 | KVO6: 8016 | KVP6: 8017 | KVQ6: 8018 | KVR6: 8019 | KVS6: 8020 | KVT6: 8021 | KVU6: 8022 | KVV6: 8023 | KVW6: 8024 | KVX6: 8025 | KVY6: 8026 | KVZ6: 8027 | KWA6: 8028 | KWB6: 8029 | KWC6: 8030 | KWD6: 8031 | KWE6: 8032 | KWF6: 8033 | KWG6: 8034 | KWH6: 8035 | KWI6: 8036 | KWJ6: 8037 | KWK6: 8038 | KWL6: 8039 | KWM6: 8040 | KWN6: 8041 | KWO6: 8042 | KWP6: 8043 | KWQ6: 8044 | KWR6: 8045 | KWS6: 8046 | KWT6: 8047 | KWU6: 8048 | KWV6: 8049 | KWW6: 8050 | KWX6: 8051 | KWY6: 8052 | KWZ6: 8053 | KXA6: 8054 | KXB6: 8055 | KXC6: 8056 | KXD6: 8057 | KXE6: 8058 | KXF6: 8059 | KXG6: 8060 | KXH6: 8061 | KXI6: 8062 | KXJ6: 8063 | KXK6: 8064 | KXL6: 8065 | KXM6: 8066 | KXN6: 8067 | KXO6: 8068 | KXP6: 8069 | KXQ6: 8070 | KXR6: 8071 | KXS6: 8072 | KXT6: 8073 | KXU6: 8074 | KXV6: 8075 | KXW6: 8076 | KXX6: 8077 | KXY6: 8078 | KXZ6: 8079 | KYA6: 8080 | KYB6: 8081 | KYC6: 8082 | KYD6: 8083 | KYE6: 8084 | KYF6: 8085 | KYG6: 8086 | KYH6: 8087 | KYI6: 8088 | KYJ6: 8089 | KYK6: 8090 | KYL6: 8091 | KYM6: 8092 | KYN6: 8093 | KYO6: 8094 | KYP6: 8095 | KYQ6: 8096 | KYR6: 8097 | KYS6: 8098 | KYT6: 8099 | KYU6: 8100 | KYV6: 8101 | KYW6: 8102 | KYX6: 8103 | KYY6: 8104 | KYZ6: 8105 | KZA6: 8106 | KZB6: 8107 | KZC6: 8108 | KZD6: 8109 | KZE6: 8110 | KZF6: 8111 | KZG6: 8112 | KZH6: 8113 | KZI6: 8114 | KZJ6: 8115 | KZK6: 8116 | KZL6: 8117 | KZM6: 8118 | KZN6: 8119 | KZO6: 8120 | KZP6: 8121 | KZQ6: 8122 | KZR6: 8123 | KZS6: 8124 | KZT6: 8125 | KZU6: 8126 | KZV6: 8127 | KZW6: 8128 | KZX6: 8129 | KZY6: 8130 | KZZ6: 8131 | LAA6: 8132 | LAB6: 8133 | LAC6: 8134 | LAD6: 8135 | LAE6: 8136 | LAF6: 8137 | LAG6: 8138 | LAH6: 8139 | LAI6: 8140 | LAJ6: 8141 | LAK6: 8142 | LAL6: 8143 | LAM6: 8144 | LAN6: 8145 | LAO6: 8146 | LAP6: 8147 | LAQ6: 8148 | LAR6: 8149 | LAS6: 8150 | LAT6: 8151 | LAU6: 8152 | LAV6: 8153 | LAW6: 8154 | LAX6: 8155 | LAY6: 8156 | LAZ6: 8157 | LBA6: 8158 | LBB6: 8159 | LBC6: 8160 | LBD6: 8161 | LBE6: 8162 | LBF6: 8163 | LBG6: 8164 | LBH6: 8165 | LBI6: 8166 | LBJ6: 8167 | LBK6: 8168 | LBL6: 8169 | LBM6: 8170 | LBN6: 8171 | LBO6: 8172 | LBP6: 8173 | LBQ6: 8174 | LBR6: 8175 | LBS6: 8176 | LBT6: 8177 | LBU6: 8178 | LBV6: 8179 | LBW6: 8180 | LBX6: 8181 | LBY6: 8182 | LBZ6: 8183 | LCA6: 8184 | LCB6: 8185 | LCC6: 8186 | LCD6: 8187 | LCE6: 8188 | LCF6: 8189 | LCG6: 8190 | LCH6: 8191 | LCI6: 8192 | LCJ6: 8193 | LCK6: 8194 | LCL6: 8195 | LCM6: 8196 | LCN6: 8197 | LCO6: 8198 | LCP6: 8199 | LCQ6: 8200 | LCR6: 8201 | LCS6: 8202 | LCT6: 8203 | LCU6: 8204 | LCV6: 8205 | LCW6: 8206 | LCX6: 8207 | LCY6: 8208 | LCZ6: 8209 | LDA6: 8210 | LDB6: 8211 | LDC6: 8212 | LDD6: 8213 | LDE6: 8214 | LDF6: 8215 | LDG6: 8216 | LDH6: 8217 | LDI6: 8218 | LDJ6: 8219 | LDK6: 8220 | LDL6: 8221 | LDM6: 8222 | LDN6: 8223 | LDO6: 8224 | LDP6: 8225 | LDQ6: 8226 | LDR6: 8227 | LDS6: 8228 | LDT6: 8229 | LDU6: 8230 | LDV6: 8231 | LDW6: 8232 | LDX6: 8233 | LDY6: 8234 | LDZ6: 8235 | LEA6: 8236 | LEB6: 8237 | LEC6: 8238 | LED6: 8239 | LEE6: 8240 | LEF6: 8241 | LEG6: 8242 | LEH6: 8243 | LEI6: 8244 | LEJ6: 8245 | LEK6: 8246 | LEL6: 8247 | LEM6: 8248 | LEN6: 8249 | LEO6: 8250 | LEP6: 8251 | LEQ6: 8252 | LER6: 8253 | LES6: 8254 | LET6: 8255 | LEU6: 8256 | LEV6: 8257 | LEW6: 8258 | LEX6: 8259 | LEY6: 8260 | LEZ6: 8261 | LFA6: 8262 | LFB6: 8263 | LFC6: 8264 | LFD6: 8265 | LFE6: 8266 | LFF6: 8267 | LFG6: 8268 | LFH6: 8269 | LFI6: 8270 | LFJ6: 8271 | LFK6: 8272 | LFL6: 8273 | LFM6: 8274 | LFN6: 8275 | LFO6: 8276 | LFP6: 8277 | LFQ6: 8278 | LFR6: 8279 | LFS6: 8280 | LFT6: 8281 | LFU6: 8282 | LFV6: 8283 | LFW6: 8284 | LFX6: 8285 | LFY6: 8286 | LFZ6: 8287 | LGA6: 8288 | LGB6: 8289 | LGC6: 8290 | LGD6: 8291 | LGE6: 8292 | LGF6: 8293 | LGG6: 8294 | LGH6: 8295 | LGI6: 8296 | LGJ6: 8297 | LGK6: 8298 | LGL6: 8299 | LGM6: 8300 | LGN6: 8301 | LGO6: 8302 | LGP6: 8303 | LGQ6: 8304 | LGR6: 8305 | LGS6: 8306 | LGT6: 8307 | LGU6: 8308 | LGV6: 8309 | LGW6: 8310 | LGX6: 8311 | LGY6: 8312 | LGZ6: 8313 | LHA6: 8314 | LHB6: 8315 | LHC6: 8316 | LHD6: 8317 | LHE6: 8318 | LHF6: 8319 | LHG6: 8320 | LHH6: 8321 | LHI6: 8322 | LHJ6: 8323 | LHK6: 8324 | LHL6: 8325 | LHM6: 8326 | LHN6: 8327 | LHO6: 8328 | LHP6: 8329 | LHQ6: 8330 | LHR6: 8331 | LHS6: 8332 | LHT6: 8333 | LHU6: 8334 | LHV6: 8335 | LHW6: 8336 | LHX6: 8337 | LHY6: 8338 | LHZ6: 8339 | LIA6: 8340 | LIB6: 8341 | LIC6: 8342 | LID6: 8343 | LIE6: 8344 | LIF6: 8345 | LIG6: 8346 | LIH6: 8347 | LII6: 8348 | LIJ6: 8349 | LIK6: 8350 | LIL6: 8351 | LIM6: 8352 | LIN6: 8353 | LIO6: 8354 | LIP6: 8355 | LIQ6: 8356 | LIR6: 8357 | LIS6: 8358 | LIT6: 8359 | LIU6: 8360 | LIV6: 8361 | LIW6: 8362 | LIX6: 8363 | LIY6: 8364 | LIZ6: 8365 | LJA6: 8366 | LJB6: 8367 | LJC6: 8368 | LJD6: 8369 | LJE6: 8370 | LJF6: 8371 | LJG6: 8372 | LJH6: 8373 | LJI6: 8374 | LJJ6: 8375 | LJK6: 8376 | LJL6: 8377 | LJM6: 8378 | LJN6: 8379 | LJO6: 8380 | LJP6: 8381 | LJQ6: 8382 | LJR6: 8383 | LJS6: 8384 | LJT6: 8385 | LJU6: 8386 | LJV6: 8387 | LJW6: 8388 | LJX6: 8389 | LJY6: 8390 | LJZ6: 8391 | LKA6: 8392 | LKB6: 8393 | LKC6: 8394 | LKD6: 8395 | LKE6: 8396 | LKF6: 8397 | LKG6: 8398 | LKH6: 8399 | LKI6: 8400 | LKJ6: 8401 | LKK6: 8402 | LKL6: 8403 | LKM6: 8404 | LKN6: 8405 | LKO6: 8406 | LKP6: 8407 | LKQ6: 8408 | LKR6: 8409 | LKS6: 8410 | LKT6: 8411 | LKU6: 8412 | LKV6: 8413 | LKW6: 8414 | LKX6: 8415 | LKY6: 8416 | LKZ6: 8417 | LLA6: 8418 | LLB6: 8419 | LLC6: 8420 | LLD6: 8421 | LLE6: 8422 | LLF6: 8423 | LLG6: 8424 | LLH6: 8425 | LLI6: 8426 | LLJ6: 8427 | LLK6: 8428 | LLL6: 8429 | LLM6: 8430 | LLN6: 8431 | LLO6: 8432 | LLP6: 8433 | LLQ6: 8434 | LLR6: 8435 | LLS6: 8436 | LLT6: 8437 | LLU6: 8438 | LLV6: 8439 | LLW6: 8440 | LLX6: 8441 | LLY6: 8442 | LLZ6: 8443 | LMA6: 8444 | LMB6: 8445 | LMC6: 8446 | LMD6: 8447 | LME6: 8448 | LMF6: 8449 | LMG6: 8450 | LMH6: 8451 | LMI6: 8452 | LMJ6: 8453 | LMK6: 8454 | LML6: 8455 | LMM6: 8456 | LMN6: 8457 | LMO6: 8458 | LMP6: 8459 | LMQ6: 8460 | LMR6: 8461 | LMS6: 8462 | LMT6: 8463 | LMU6: 8464 | LMV6: 8465 | LMW6: 8466 | LMX6: 8467 | LMY6: 8468 | LMZ6: 8469 | LNA6: 8470 | LNB6: 8471 | LNC6: 8472 | LND6: 8473 | LNE6: 8474 | LNF6: 8475 | LNG6: 8476 | LNH6: 8477 | LNI6: 8478 | LNJ6: 8479 | LNK6: 8480 | LNL6: 8481 | LNM6: 8482 | LNN6: 8483 | LNO6: 8484 | LNP6: 8485 | LNQ6: 8486 | LNR6: 8487 | LNS6: 8488 | LNT6: 8489 | LNU6: 8490 | LNV6: 8491 | LNW6: 8492 | LNX6: 8493 | LNY6: 8494 | LNZ6: 8495 | LOA6: 8496 | LOB6: 8497 | LOC6: 8498 | LOD6: 8499 | LOE6: 8500 | LOF6: 8501 | LOG6: 8502 | LOH6: 8503 | LOI6: 8504 | LOJ6: 8505 | LOK6: 8506 | LOL6: 8507 | LOM6: 8508 | LON6: 8509 | LOO6: 8510 | LOP6: 8511 | LOQ6: 8512 | LOR6: 8513 | LOS6: 8514 | LOT6: 8515 | LOU6: 8516 | LOV6: 8517 | LOW6: 8518 | LOX6: 8519 | LOY6: 8520 | LOZ6: 8521 | LPA6: 8522 | LPB6: 8523 | LPC6: 8524 | LPD6: 8525 | LPE6: 8526 | LPF6: 8527 | LPG6: 8528 | LPH6: 8529 | LPI6: 8530 | LPJ6: 8531 | LPK6: 8532 | LPL6: 8533 | LPM6: 8534 | LPN6: 8535 | LPO6: 8536 | LPP6: 8537 | LPQ6: 8538 | LPR6: 8539 | LPS6: 8540 | LPT6: 8541 | LPU6: 8542 | LPV6: 8543 | LPW6: 8544 | LPX6: 8545 | LPY6: 8546 | LPZ6: 8547 | LQA6: 8548 | LQB6: 8549 | LQC6: 8550 | LQD6: 8551 | LQE6: 8552 | LQF6: 8553 | LQG6: 8554 | LQH6: 8555 | LQI6: 8556 | LQJ6: 8557 | LQK6: 8558 | LQL6: 8559 | LQM6: 8560 | LQN6: 8561 | LQO6: 8562 | LQP6: 8563 | LQQ6: 8564 | LQR6: 8565 | LQS6: 8566 | LQT6: 8567 | LQU6: 8568 | LQV6: 8569 | LQW6: 8570 | LQX6: 8571 | LQY6: 8572 | LQZ6: 8573 | LRA6: 8574 | LRB6: 8575 | LRC6: 8576 | LRD6: 8577 | LRE6: 8578 | LRF6: 8579 | LRG6: 8580 | LRH6: 8581 | LRI6: 8582 | LRJ6: 8583 | LRK6: 8584 | LRL6: 8585 | LRM6: 8586 | LRN6: 8587 | LRO6: 8588 | LRP6: 8589 | LRQ6: 8590 | LRR6: 8591 | LRS6: 8592 | LRT6: 8593 | LRU6: 8594 | LRV6: 8595 | LRW6: 8596 | LRX6: 8597 | LRY6: 8598 | LRZ6: 8599 | LSA6: 8600 | LSB6: 8601 | LSC6: 8602 | LSD6: 8603 | LSE6: 8604 | LSF6: 8605 | LSG6: 8606 | LSH6: 8607 | LSI6: 8608 | LSJ6: 8609 | LSK6: 8610 | LSL6: 8611 | LSM6: 8612 | LSN6: 8613 | LSO6: 8614 | LSP6: 8615 | LSQ6: 8616 | LSR6: 8617 | LSS6: 8618 | LST6: 8619 | LSU6: 8620 | LSV6: 8621 | LSW6: 8622 | LSX6: 8623 | LSY6: 8624 | LSZ6: 8625 | LTA6: 8626 | LTB6: 8627 | LTC6: 8628 | LTD6: 8629 | LTE6: 8630 | LTF6: 8631 | LTG6: 8632 | LTH6: 8633 | LTI6: 8634 | LTJ6: 8635 | LTK6: 8636 | LTL6: 8637 | LTM6: 8638 | LTN6: 8639 | LTO6: 8640 | LTP6: 8641 | LTQ6: 8642 | LTR6: 8643 | LTS6: 8644 | LTT6: 8645 | LTU6: 8646 | LTV6: 8647 | LTW6: 8648 | LTX6: 8649 | LTY6: 8650 | LTZ6: 8651 | LUA6: 8652 | LUB6: 8653 | LUC6: 8654 | LUD6: 8655 | LUE6: 8656 | LUF6: 8657 | LUG6: 8658 | LUH6: 8659 | LUI6: 8660 | LUJ6: 8661 | LUK6: 8662 | LUL6: 8663 | LUM6: 8664 | LUN6: 8665 | LUO6: 8666 | LUP6: 8667 | LUQ6: 8668 | LUR6: 8669 | LUS6: 8670 | LUT6: 8671 | LUU6: 8672 | LUV6: 8673 | LUW6: 8674 | LUX6: 8675 | LUY6: 8676 | LUZ6: 8677 | LVA6: 8678 | LVB6: 8679 | LVC6: 8680 | LVD6: 8681 | LVE6: 8682 | LVF6: 8683 | LVG6: 8684 | LVH6: 8685 | LVI6: 8686 | LVJ6: 8687 | LVK6: 8688 | LVL6: 8689 | LVM6: 8690 | LVN6: 8691 | LVO6: 8692 | LVP6: 8693 | LVQ6: 8694 | LVR6: 8695 | LVS6: 8696 | LVT6: 8697 | LVU6: 8698 | LVV6: 8699 | LVW6: 8700 | LVX6: 8701 | LVY6: 8702 | LVZ6: 8703 | LWA6: 8704 | LWB6: 8705 | LWC6: 8706 | LWD6: 8707 | LWE6: 8708 | LWF6: 8709 | LWG6: 8710 | LWH6: 8711 | LWI6: 8712 | LWJ6: 8713 | LWK6: 8714 | LWL6: 8715 | LWM6: 8716 | LWN6: 8717 | LWO6: 8718 | LWP6: 8719 | LWQ6: 8720 | LWR6: 8721 | LWS6: 8722 | LWT6: 8723 | LWU6: 8724 | LWV6: 8725 | LWW6: 8726 | LWX6: 8727 | LWY6: 8728 | LWZ6: 8729 | LXA6: 8730 | LXB6: 8731 | LXC6: 8732 | LXD6: 8733 | LXE6: 8734 | LXF6: 8735 | LXG6: 8736 | LXH6: 8737 | LXI6: 8738 | LXJ6: 8739 | LXK6: 8740 | LXL6: 8741 | LXM6: 8742 | LXN6: 8743 | LXO6: 8744 | LXP6: 8745 | LXQ6: 8746 | LXR6: 8747 | LXS6: 8748 | LXT6: 8749 | LXU6: 8750 | LXV6: 8751 | LXW6: 8752 | LXX6: 8753 | LXY6: 8754 | LXZ6: 8755 | LYA6: 8756 | LYB6: 8757 | LYC6: 8758 | LYD6: 8759 | LYE6: 8760 | LYF6: 8761 | LYG6: 8762 | LYH6: 8763 | LYI6: 8764 | LYJ6: 8765 | LYK6: 8766 | LYL6: 8767 | LYM6: 8768 | LYN6: 8769 | LYO6: 8770 | LYP6: 8771 | LYQ6: 8772 | LYR6: 8773 | LYS6: 8774 | LYT6: 8775 | LYU6: 8776 | LYV6: 8777 | LYW6: 8778 | LYX6: 8779 | LYY6: 8780 | LYZ6: 8781 | LZA6: 8782 | LZB6: 8783 | LZC6: 8784 | LZD6: 8785 | LZE6: 8786 | LZF6: 8787 | LZG6: 8788 | LZH6: 8789 | LZI6: 8790 | LZJ6: 8791 | LZK6: 8792 | LZL6: 8793 | LZM6: 8794 | LZN6: 8795 | LZO6: 8796 | LZP6: 8797 | LZQ6: 8798 | LZR6: 8799 | LZS6: 8800 | LZT6: 8801 | LZU6: 8802 | LZV6: 8803 | LZW6: 8804 | LZX6: 8805 | LZY6: 8806 | LZZ6: 8807 | MAA6: 8808 | MAB6: 8809 | MAC6: 8810 | MAD6: 8811 | MAE6: 8812 | MAF6: 8813 | MAG6: 8814 | MAH6: 8815 | MAI6: 8816 | MAJ6: 8817 | MAK6: 8818 | MAL6: 8819 | MAM6: 8820 | MAN6: 8821 | MAO6: 8822 | MAP6: 8823 | MAQ6: 8824 | MAR6: 8825 | MAS6: 8826 | MAT6: 8827 | MAU6: 8828 | MAV6: 8829 | MAW6: 8830 | MAX6: 8831 | MAY6: 8832 | MAZ6: 8833 | MBA6: 8834 | MBB6: 8835 | MBC6: 8836 | MBD6: 8837 | MBE6: 8838 | MBF6: 8839 | MBG6: 8840 | MBH6: 8841 | MBI6: 8842 | MBJ6: 8843 | MBK6: 8844 | MBL6: 8845 | MBM6: 8846 | MBN6: 8847 | MBO6: 8848 | MBP6: 8849 | MBQ6: 8850 | MBR6: 8851 | MBS6: 8852 | MBT6: 8853 | MBU6: 8854 | MBV6: 8855 | MBW6: 8856 | MBX6: 8857 | MBY6: 8858 | MBZ6: 8859 | MCA6: 8860 | MCB6: 8861 | MCC6: 8862 | MCD6: 8863 | MCE6: 8864 | MCF6: 8865 | MCG6: 8866 | MCH6: 8867 | MCI6: 8868 | MCJ6: 8869 | MCK6: 8870 | MCL6: 8871 | MCM6: 8872 | MCN6: 8873 | MCO6: 8874 | MCP6: 8875 | MCQ6: 8876 | MCR6: 8877 | MCS6: 8878 | MCT6: 8879 | MCU6: 8880 | MCV6: 8881 | MCW6: 8882 | MCX6: 8883 | MCY6: 8884 | MCZ6: 8885 | MDA6: 8886 | MDB6: 8887 | MDC6: 8888 | MDD6: 8889 | MDE6: 8890 | MDF6: 8891 | MDG6: 8892 | MDH6: 8893 | MDI6: 8894 | MDJ6: 8895 | MDK6: 8896 | MDL6: 8897 | MDM6: 8898 | MDN6: 8899 | MDO6: 8900 | MDP6: 8901 | MDQ6: 8902 | MDR6: 8903 | MDS6: 8904 | MDT6: 8905 | MDU6: 8906 | MDV6: 8907 | MDW6: 8908 | MDX6: 8909 | MDY6: 8910 | MDZ6: 8911 | MEA6: 8912 | MEB6: 8913 | MEC6: 8914 | MED6: 8915 | MEE6: 8916 | MEF6: 8917 | MEG6: 8918 | MEH6: 8919 | MEI6: 8920 | MEJ6: 8921 | MEK6: 8922 | MEL6: 8923 | MEM6: 8924 | MEN6: 8925 | MEO6: 8926 | MEP6: 8927 | MEQ6: 8928 | MER6: 8929 | MES6: 8930 | MET6: 8931 | MEU6: 8932 | MEV6: 8933 | MEW6: 8934 | MEX6: 8935 | MEY6: 8936 | MEZ6: 8937 | MFA6: 8938 | MFB6: 8939 | MFC6: 8940 | MFD6: 8941 | MFE6: 8942 | MFF6: 8943 | MFG6: 8944 | MFH6: 8945 | MFI6: 8946 | MFJ6: 8947 | MFK6: 8948 | MFL6: 8949 | MFM6: 8950 | MFN6: 8951 | MFO6: 8952 | MFP6: 8953 | MFQ6: 8954 | MFR6: 8955 | MFS6: 8956 | MFT6: 8957 | MFU6: 8958 | MFV6: 8959 | MFW6: 8960 | MFX6: 8961 | MFY6: 8962 | MFZ6: 8963 | MGA6: 8964 | MGB6: 8965 | MGC6: 8966 | MGD6: 8967 | MGE6: 8968 | MGF6: 8969 | MGG6: 8970 | MGH6: 8971 | MGI6: 8972 | MGJ6: 8973 | MGK6: 8974 | MGL6: 8975 | MGM6: 8976 | MGN6: 8977 | MGO6: 8978 | MGP6: 8979 | MGQ6: 8980 | MGR6: 8981 | MGS6: 8982 | MGT6: 8983 | MGU6: 8984 | MGV6: 8985 | MGW6: 8986 | MGX6: 8987 | MGY6: 8988 | MGZ6: 8989 | MHA6: 8990 | MHB6: 8991 | MHC6: 8992 | MHD6: 8993 | MHE6: 8994 | MHF6: 8995 | MHG6: 8996 | MHH6: 8997 | MHI6: 8998 | MHJ6: 8999 | MHK6: 9000 | MHL6: 9001 | MHM6: 9002 | MHN6: 9003 | MHO6: 9004 | MHP6: 9005 | MHQ6: 9006 | MHR6: 9007 | MHS6: 9008 | MHT6: 9009 | MHU6: 9010 | MHV6: 9011 | MHW6: 9012 | MHX6: 9013 | MHY6: 9014 | MHZ6: 9015 | MIA6: 9016 | MIB6: 9017 | MIC6: 9018 | MID6: 9019 | MIE6: 9020 | MIF6: 9021 | MIG6: 9022 | MIH6: 9023 | MII6: 9024 | MIJ6: 9025 | MIK6: 9026 | MIL6: 9027 | MIM6: 9028 | MIN6: 9029 | MIO6: 9030 | MIP6: 9031 | MIQ6: 9032 | MIR6: 9033 | MIS6: 9034 | MIT6: 9035 | MIU6: 9036 | MIV6: 9037 | MIW6: 9038 | MIX6: 9039 | MIY6: 9040 | MIZ6: 9041 | MJA6: 9042 | MJB6: 9043 | MJC6: 9044 | MJD6: 9045 | MJE6: 9046 | MJF6: 9047 | MJG6: 9048 | MJH6: 9049 | MJI6: 9050 | MJJ6: 9051 | MJK6: 9052 | MJL6: 9053 | MJM6: 9054 | MJN6: 9055 | MJO6: 9056 | MJP6: 9057 | MJQ6: 9058 | MJR6: 9059 | MJS6: 9060 | MJT6: 9061 | MJU6: 9062 | MJV6: 9063 | MJW6: 9064 | MJX6: 9065 | MJY6: 9066 | MJZ6: 9067 | MKA6: 9068 | MKB6: 9069 | MKC6: 9070 | MKD6: 9071 | MKE6: 9072 | MKF6: 9073 | MKG6: 9074 | MKH6: 9075 | MKI6: 9076 | MKJ6: 9077 | MKK6: 9078 | MKL6: 9079 | MKM6: 9080 | MKN6: 9081 | MKO6: 9082 | MKP6: 9083 | MKQ6: 9084 | MKR6: 9085 | MKS6: 9086 | MKT6: 9087 | MKU6: 9088 | MKV6: 9089 | MKW6: 9090 | MKX6: 9091 | MKY6: 9092 | MKZ6: 9093 | MLA6: 9094 | MLB6: 9095 | MLC6: 9096 | MLD6: 9097 | MLE6: 9098 | MLF6: 9099 | MLG6: 9100 | MLH6: 9101 | MLI6: 9102 | MLJ6: 9103 | MLK6: 9104 | MLL6: 9105 | MLM6: 9106 | MLN6: 9107 | MLO6: 9108 | MLP6: 9109 | MLQ6: 9110 | MLR6: 9111 | MLS6: 9112 | MLT6: 9113 | MLU6: 9114 | MLV6: 9115 | MLW6: 9116 | MLX6: 9117 | MLY6: 9118 | MLZ6: 9119 | MMA6: 9120 | MMB6: 9121 | MMC6: 9122 | MMD6: 9123 | MME6: 9124 | MMF6: 9125 | MMG6: 9126 | MMH6: 9127 | MMI6: 9128 | MMJ6: 9129 | MMK6: 9130 | MML6: 9131 | MMM6: 9132 | MMN6: 9133 | MMO6: 9134 | MMP6: 9135 | MMQ6: 9136 | MMR6: 9137 | MMS6: 9138 | MMT6: 9139 | MMU6: 9140 | MMV6: 9141 | MMW6: 9142 | MMX6: 9143 | MMY6: 9144 | MMZ6: 9145 | MNA6: 9146 | MNB6: 9147 | MNC6: 9148 | MND6: 9149 | MNE6: 9150 | MNF6: 9151 | MNG6: 9152 | MNH6: 9153 | MNI6: 9154 | MNJ6: 9155 | MNK6: 9156 | MNL6: 9157 | MNM6: 9158 | MNN6: 9159 | MNO6: 9160 | MNP6: 9161 | MNQ6: 9162 | MNR6: 9163 | MNS6: 9164 | MNT6: 9165 | MNU6: 9166 | MNV6: 9167 | MNW6: 9168 | MNX6: 9169 | MNY6: 9170 | MNZ6: 9171 | MOA6: 9172 | MOB6: 9173 | MOC6: 9174 | MOD6: 9175 | MOE6: 9176 | MOF6: 9177 | MOG6: 9178 | MOH6: 9179 | MOI6: 9180 | MOJ6: 9181 | MOK6: 9182 | MOL6: 9183 | MOM6: 9184 | MON6: 9185 | MOO6: 9186 | MOP6: 9187 | MOQ6: 9188 | MOR6: 9189 | MOS6: 9190 | MOT6: 9191 | MOU6: 9192 | MOV6: 9193 | MOW6: 9194 | MOX6: 9195 | MOY6: 9196 | MOZ6: 9197 | MPA6: 9198 | MPB6: 9199 | MPC6: 9200 | MPD6: 9201 | MPE6: 9202 | MPF6: 9203 | MPG6: 9204 | MPH6: 9205 | MPI6: 9206 | MPJ6: 9207 | MPK6: 9208 | MPL6: 9209 | MPM6: 9210 | MPN6: 9211 | MPO6: 9212 | MPP6: 9213 | MPQ6: 9214 | MPR6: 9215 | MPS6: 9216 | MPT6: 9217 | MPU6: 9218 | MPV6: 9219 | MPW6: 9220 | MPX6: 9221 | MPY6: 9222 | MPZ6: 9223 | MQA6: 9224 | MQB6: 9225 | MQC6: 9226 | MQD6: 9227 | MQE6: 9228 | MQF6: 9229 | MQG6: 9230 | MQH6: 9231 | MQI6: 9232 | MQJ6: 9233 | MQK6: 9234 | MQL6: 9235 | MQM6: 9236 | MQN6: 9237 | MQO6: 9238 | MQP6: 9239 | MQQ6: 9240 | MQR6: 9241 | MQS6: 9242 | MQT6: 9243 | MQU6: 9244 | MQV6: 9245 | MQW6: 9246 | MQX6: 9247 | MQY6: 9248 | MQZ6: 9249 | MRA6: 9250 | MRB6: 9251 | MRC6: 9252 | MRD6: 9253 | MRE6: 9254 | MRF6: 9255 | MRG6: 9256 | MRH6: 9257 | MRI6: 9258 | MRJ6: 9259 | MRK6: 9260 | MRL6: 9261 | MRM6: 9262 | MRN6: 9263 | MRO6: 9264 | MRP6: 9265 | MRQ6: 9266 | MRR6: 9267 | MRS6: 9268 | MRT6: 9269 | MRU6: 9270 | MRV6: 9271 | MRW6: 9272 | MRX6: 9273 | MRY6: 9274 | MRZ6: 9275 | MSA6: 9276 | MSB6: 9277 | MSC6: 9278 | MSD6: 9279 | MSE6: 9280 | MSF6: 9281 | MSG6: 9282 | MSH6: 9283 | MSI6: 9284 | MSJ6: 9285 | MSK6: 9286 | MSL6: 9287 | MSM6: 9288 | MSN6: 9289 | MSO6: 9290 | MSP6: 9291 | MSQ6: 9292 | MSR6: 9293 | MSS6: 9294 | MST6: 9295 | MSU6: 9296 | MSV6: 9297 | MSW6: 9298 | MSX6: 9299 | MSY6: 9300 | MSZ6: 9301 | MTA6: 9302 | MTB6: 9303 | MTC6: 9304 | MTD6: 9305 | MTE6: 9306 | MTF6: 9307 | MTG6: 9308 | MTH6: 9309 | MTI6: 9310 | MTJ6: 9311 | MTK6: 9312 | MTL6: 9313 | MTM6: 9314 | MTN6: 9315 | MTO6: 9316 | MTP6: 9317 | MTQ6: 9318 | MTR6: 9319 | MTS6: 9320 | MTT6: 9321 | MTU6: 9322 | MTV6: 9323 | MTW6: 9324 | MTX6: 9325 | MTY6: 9326 | MTZ6: 9327 | MUA6: 9328 | MUB6: 9329 | MUC6: 9330 | MUD6: 9331 | MUE6: 9332 | MUF6: 9333 | MUG6: 9334 | MUH6: 9335 | MUI6: 9336 | MUJ6: 9337 | MUK6: 9338 | MUL6: 9339 | MUM6: 9340 | MUN6: 9341 | MUO6: 9342 | MUP6: 9343 | MUQ6: 9344 | MUR6: 9345 | MUS6: 9346 | MUT6: 9347 | MUU6: 9348 | MUV6: 9349 | MUW6: 9350 | MUX6: 9351 | MUY6: 9352 | MUZ6: 9353 | MVA6: 9354 | MVB6: 9355 | MVC6: 9356 | MVD6: 9357 | MVE6: 9358 | MVF6: 9359 | MVG6: 9360 | MVH6: 9361 | MVI6: 9362 | MVJ6: 9363 | MVK6: 9364 | MVL6: 9365 | MVM6: 9366 | MVN6: 9367 | MVO6: 9368 | MVP6: 9369 | MVQ6: 9370 | MVR6: 9371 | MVS6: 9372 | MVT6: 9373 | MVU6: 9374 | MVV6: 9375 | MVW6: 9376 | MVX6: 9377 | MVY6: 9378 | MVZ6: 9379 | MWA6: 9380 | MWB6: 9381 | MWC6: 9382 | MWD6: 9383 | MWE6: 9384 | MWF6: 9385 | MWG6: 9386 | MWH6: 9387 | MWI6: 9388 | MWJ6: 9389 | MWK6: 9390 | MWL6: 9391 | MWM6: 9392 | MWN6: 9393 | MWO6: 9394 | MWP6: 9395 | MWQ6: 9396 | MWR6: 9397 | MWS6: 9398 | MWT6: 9399 | MWU6: 9400 | MWV6: 9401 | MWW6: 9402 | MWX6: 9403 | MWY6: 9404 | MWZ6: 9405 | MXA6: 9406 | MXB6: 9407 | MXC6: 9408 | MXD6: 9409 | MXE6: 9410 | MXF6: 9411 | MXG6: 9412 | MXH6: 9413 | MXI6: 9414 | MXJ6: 9415 | MXK6: 9416 | MXL6: 9417 | MXM6: 9418 | MXN6: 9419 | MXO6: 9420 | MXP6: 9421 | MXQ6: 9422 | MXR6: 9423 | MXS6: 9424 | MXT6: 9425 | MXU6: 9426 | MXV6: 9427 | MXW6: 9428 | MXX6: 9429 | MXY6: 9430 | MXZ6: 9431 | MYA6: 9432 | MYB6: 9433 | MYC6: 9434 | MYD6: 9435 | MYE6: 9436 | MYF6: 9437 | MYG6: 9438 | MYH6: 9439 | MYI6: 9440 | MYJ6: 9441 | MYK6: 9442 | MYL6: 9443 | MYM6: 9444 | MYN6: 9445 | MYO6: 9446 | MYP6: 9447 | MYQ6: 9448 | MYR6: 9449 | MYS6: 9450 | MYT6: 9451 | MYU6: 9452 | MYV6: 9453 | MYW6: 9454 | MYX6: 9455 | MYY6: 9456 | MYZ6: 9457 | MZA6: 9458 | MZB6: 9459 | MZC6: 9460 | MZD6: 9461 | MZE6: 9462 | MZF6: 9463 | MZG6: 9464 | MZH6: 9465 | MZI6: 9466 | MZJ6: 9467 | MZK6: 9468 | MZL6: 9469 | MZM6: 9470 | MZN6: 9471 | MZO6: 9472 | MZP6: 9473 | MZQ6: 9474 | MZR6: 9475 | MZS6: 9476 | MZT6: 9477 | MZU6: 9478 | MZV6: 9479 | MZW6: 9480 | MZX6: 9481 | MZY6: 9482 | MZZ6: 9483 | NAA6: 9484 | NAB6: 9485 | NAC6: 9486 | NAD6: 9487 | NAE6: 9488 | NAF6: 9489 | NAG6: 9490 | NAH6: 9491 | NAI6: 9492 | NAJ6: 9493 | NAK6: 9494 | NAL6: 9495 | NAM6: 9496 | NAN6: 9497 | NAO6: 9498 | NAP6: 9499 | NAQ6: 9500 | NAR6: 9501 | NAS6: 9502 | NAT6: 9503 | NAU6: 9504 | NAV6: 9505 | NAW6: 9506 | NAX6: 9507 | NAY6: 9508 | NAZ6: 9509 | NBA6: 9510 | NBB6: 9511 | NBC6: 9512 | NBD6: 9513 | NBE6: 9514 | NBF6: 9515 | NBG6: 9516 | NBH6: 9517 | NBI6: 9518 | NBJ6: 9519 | NBK6: 9520 | NBL6: 9521 | NBM6: 9522 | NBN6: 9523 | NBO6: 9524 | NBP6: 9525 | NBQ6: 9526 | NBR6: 9527 | NBS6: 9528 | NBT6: 9529 | NBU6: 9530 | NBV6: 9531 | NBW6: 9532 | NBX6: 9533 | NBY6: 9534 | NBZ6: 9535 | NCA6: 9536 | NCB6: 9537 | NCC6: 9538 | NCD6: 9539 | NCE6: 9540 | NCF6: 9541 | NCG6: 9542 | NCH6: 9543 | NCI6: 9544 | NCJ6: 9545 | NCK6: 9546 | NCL6: 9547 | NCM6: 9548 | NCN6: 9549 | NCO6: 9550 | NCP6: 9551 | NCQ6: 9552 | NCR6: 9553 | NCS6: 9554 | NCT6: 9555 | NCU6: 9556 | NCV6: 9557 | NCW6: 9558 | NCX6: 9559 | NCY6: 9560 | NCZ6: 9561 | NDA6: 9562 | NDB6: 9563 | NDC6: 9564 | NDD6: 9565 | NDE6: 9566 | NDF6: 9567 | NDG6: 9568 | NDH6: 9569 | NDI6: 9570 | NDJ6: 9571 | NDK6: 9572 | NDL6: 9573 | NDM6: 9574 | NDN6: 9575 | NDO6: 9576 | NDP6: 9577 | NDQ6: 9578 | NDR6: 9579 | NDS6: 9580 | NDT6: 9581 | NDU6: 9582 | NDV6: 9583 | NDW6: 9584 | NDX6: 9585 | NDY6: 9586 | NDZ6: 9587 | NEA6: 9588 | NEB6: 9589 | NEC6: 9590 | NED6: 9591 | NEE6: 9592 | NEF6: 9593 | NEG6: 9594 | NEH6: 9595 | NEI6: 9596 | NEJ6: 9597 | NEK6: 9598 | NEL6: 9599 | NEM6: 9600 | NEN6: 9601 | NEO6: 9602 | NEP6: 9603 | NEQ6: 9604 | NER6: 9605 | NES6: 9606 | NET6: 9607 | NEU6: 9608 | NEV6: 9609 | NEW6: 9610 | NEX6: 9611 | NEY6: 9612 | NEZ6: 9613 | NFA6: 9614 | NFB6: 9615 | NFC6: 9616 | NFD6: 9617 | NFE6: 9618 | NFF6: 9619 | NFG6: 9620 | NFH6: 9621 | NFI6: 9622 | NFJ6: 9623 | NFK6: 9624 | NFL6: 9625 | NFM6: 9626 | NFN6: 9627 | NFO6: 9628 | NFP6: 9629 | NFQ6: 9630 | NFR6: 9631 | NFS6: 9632 | NFT6: 9633 | NFU6: 9634 | NFV6: 9635 | NFW6: 9636 | NFX6: 9637 | NFY6: 9638 | NFZ6: 9639 | NGA6: 9640 | NGB6: 9641 | NGC6: 9642 | NGD6: 9643 | NGE6: 9644 | NGF6: 9645 | NGG6: 9646 | NGH6: 9647 | NGI6: 9648 | NGJ6: 9649 | NGK6: 9650 | NGL6: 9651 | NGM6: 9652 | NGN6: 9653 | NGO6: 9654 | NGP6: 9655 | NGQ6: 9656 | NGR6: 9657 | NGS6: 9658 | NGT6: 9659 | NGU6: 9660 | NGV6: 9661 | NGW6: 9662 | NGX6: 9663 | NGY6: 9664 | NGZ6: 9665 | NHA6: 9666 | NHB6: 9667 | NHC6: 9668 | NHD6: 9669 | NHE6: 9670 | NHF6: 9671 | NHG6: 9672 | NHH6: 9673 | NHI6: 9674 | NHJ6: 9675 | NHK6: 9676 | NHL6: 9677 | NHM6: 9678 | NHN6: 9679 | NHO6: 9680 | NHP6: 9681 | NHQ6: 9682 | NHR6: 9683 | NHS6: 9684 | NHT6: 9685 | NHU6: 9686 | NHV6: 9687 | NHW6: 9688 | NHX6: 9689 | NHY6: 9690 | NHZ6: 9691 | NIA6: 9692 | NIB6: 9693 | NIC6: 9694 | NID6: 9695 | NIE6: 9696 | NIF6: 9697 | NIG6: 9698 | NIH6: 9699 | NII6: 9700 | NIJ6: 9701 | NIK6: 9702 | NIL6: 9703 | NIM6: 9704 | NIN6: 9705 | NIO6: 9706 | NIP6: 9707 | NIQ6: 9708 | NIR6: 9709 | NIS6: 9710 | NIT6: 9711 | NIU6: 9712 | NIV6: 9713 | NIW6: 9714 | NIX6: 9715 | NIY6: 9716 | NIZ6: 9717 | NJA6: 9718 | NJB6: 9719 | NJC6: 9720 | NJD6: 9721 | NJE6: 9722 | NJF6: 9723 | NJG6: 9724 | NJH6: 9725 | NJI6: 9726 | NJJ6: 9727 | NJK6: 9728 | NJL6: 9729 | NJM6: 9730 | NJN6: 9731 | NJO6: 9732 | NJP6: 9733 | NJQ6: 9734 | NJR6: 9735 | NJS6: 9736 | NJT6: 9737 | NJU6: 9738 | NJV6: 9739 | NJW6: 9740 | NJX6: 9741 | NJY6: 9742 | NJZ6: 9743 | NKA6: 9744 | NKB6: 9745 | NKC6: 9746 | NKD6: 9747 | NKE6: 9748 | NKF6: 9749 | NKG6: 9750 | NKH6: 9751 | NKI6: 9752 | NKJ6: 9753 | NKK6: 9754 | NKL6: 9755 | NKM6: 9756 | NKN6: 9757 | NKO6: 9758 | NKP6: 9759 | NKQ6: 9760 | NKR6: 9761 | NKS6: 9762 | NKT6: 9763 | NKU6: 9764 | NKV6: 9765 | NKW6: 9766 | NKX6: 9767 | NKY6: 9768 | NKZ6: 9769 | NLA6: 9770 | NLB6: 9771 | NLC6: 9772 | NLD6: 9773 | NLE6: 9774 | NLF6: 9775 | NLG6: 9776 | NLH6: 9777 | NLI6: 9778 | NLJ6: 9779 | NLK6: 9780 | NLL6: 9781 | NLM6: 9782 | NLN6: 9783 | NLO6: 9784 | NLP6: 9785 | NLQ6: 9786 | NLR6: 9787 | NLS6: 9788 | NLT6: 9789 | NLU6: 9790 | NLV6: 9791 | NLW6: 9792 | NLX6: 9793 | NLY6: 9794 | NLZ6: 9795 | NMA6: 9796 | NMB6: 9797 | NMC6: 9798 | NMD6: 9799 | NME6: 9800 | NMF6: 9801 | NMG6: 9802 | NMH6: 9803 | NMI6: 9804 | NMJ6: 9805 | NMK6: 9806 | NML6: 9807 | NMM6: 9808 | NMN6: 9809 | NMO6: 9810 | NMP6: 9811 | NMQ6: 9812 | NMR6: 9813 | NMS6: 9814 | NMT6: 9815 | NMU6: 9816 | NMV6: 9817 | NMW6: 9818 | NMX6: 9819 | NMY6: 9820 | NMZ6: 9821 | NNA6: 9822 | NNB6: 9823 | NNC6: 9824 | NND6: 9825 | NNE6: 9826 | NNF6: 9827 | NNG6: 9828 | NNH6: 9829 | NNI6: 9830 | NNJ6: 9831 | NNK6: 9832 | NNL6: 9833 | NNM6: 9834 | NNN6: 9835 | NNO6: 9836 | NNP6: 9837 | NNQ6: 9838 | NNR6: 9839 | NNS6: 9840 | NNT6: 9841 | NNU6: 9842 | NNV6: 9843 | NNW6: 9844 | NNX6: 9845 | NNY6: 9846 | NNZ6: 9847 | NOA6: 9848 | NOB6: 9849 | NOC6: 9850 | NOD6: 9851 | NOE6: 9852 | NOF6: 9853 | NOG6: 9854 | NOH6: 9855 | NOI6: 9856 | NOJ6: 9857 | NOK6: 9858 | NOL6: 9859 | NOM6: 9860 | NON6: 9861 | NOO6: 9862 | NOP6: 9863 | NOQ6: 9864 | NOR6: 9865 | NOS6: 9866 | NOT6: 9867 | NOU6: 9868 | NOV6: 9869 | NOW6: 9870 | NOX6: 9871 | NOY6: 9872 | NOZ6: 9873 | NPA6: 9874 | NPB6: 9875 | NPC6: 9876 | NPD6: 9877 | NPE6: 9878 | NPF6: 9879 | NPG6: 9880 | NPH6: 9881 | NPI6: 9882 | NPJ6: 9883 | NPK6: 9884 | NPL6: 9885 | NPM6: 9886 | NPN6: 9887 | NPO6: 9888 | NPP6: 9889 | NPQ6: 9890 | NPR6: 9891 | NPS6: 9892 | NPT6: 9893 | NPU6: 9894 | NPV6: 9895 | NPW6: 9896 | NPX6: 9897 | NPY6: 9898 | NPZ6: 9899 | NQA6: 9900 | NQB6: 9901 | NQC6: 9902 | NQD6: 9903 | NQE6: 9904 | NQF6: 9905 | NQG6: 9906 | NQH6: 9907 | NQI6: 9908 | NQJ6: 9909 | NQK6: 9910 | NQL6: 9911 | NQM6: 9912 | NQN6: 9913 | NQO6: 9914 | NQP6: 9915 | NQQ6: 9916 | NQR6: 9917 | NQS6: 9918 | NQT6: 9919 | NQU6: 9920 | NQV6: 9921 | NQW6: 9922 | NQX6: 9923 | NQY6: 9924 | NQZ6: 9925 | NRA6: 9926 | NRB6: 9927 | NRC6: 9928 | NRD6: 9929 | NRE6: 9930 | NRF6: 9931 | NRG6: 9932 | NRH6: 9933 | NRI6: 9934 | NRJ6: 9935 | NRK6: 9936 | NRL6: 9937 | NRM6: 9938 | NRN6: 9939 | NRO6: 9940 | NRP6: 9941 | NRQ6: 9942 | NRR6: 9943 | NRS6: 9944 | NRT6: 9945 | NRU6: 9946 | NRV6: 9947 | NRW6: 9948 | NRX6: 9949 | NRY6: 9950 | NRZ6: 9951 | NSA6: 9952 | NSB6: 9953 | NSC6: 9954 | NSD6: 9955 | NSE6: 9956 | NSF6: 9957 | NSG6: 9958 | NSH6: 9959 | NSI6: 9960 | NSJ6: 9961 | NSK6: 9962 | NSL6: 9963 | NSM6: 9964 | NSN6: 9965 | NSO6: 9966 | NSP6: 9967 | NSQ6: 9968 | NSR6: 9969 | NSS6: 9970 | NST6: 9971 | NSU6: 9972 | NSV6: 9973 | NSW6: 9974 | NSX6: 9975 | NSY6: 9976 | NSZ6: 9977 | NTA6: 9978 | NTB6: 9979 | NTC6: 9980 | NTD6: 9981 | NTE6: 9982 | NTF6: 9983 | NTG6: 9984 | NTH6: 9985 | NTI6: 9986 | NTJ6: 9987 | NTK6: 9988 | NTL6: 9989 | NTM6: 9990 | NTN6: 9991 | NTO6: 9992 | NTP6: 9993 | NTQ6: 9994 | NTR6: 9995 | NTS6: 9996 | NTT6: 9997 | NTU6: 9998 | NTV6: 9999 | NTW6: 10000 | NTX6: 10001 | NTY6: 10002 | NTZ6: 10003 | NUA6: 10004 | NUB6: 10005 | NUC6: 10006 | NUD6: 10007 | NUE6: 10008 | NUF6: 10009 | NUG6: 10010 | NUH6: 10011 | NUI6: 10012 | NUJ6: 10013 | NUK6: 10014 | NUL6: 10015 | NUM6: 10016 | NUN6: 10017 | NUO6: 10018 | NUP6: 10019 | NUQ6: 10020 | NUR6: 10021 | NUS6: 10022 | NUT6: 10023 | NUU6: 10024 | NUV6: 10025 | NUW6: 10026 | NUX6: 10027 | NUY6: 10028 | NUZ6: 10029 | NVA6: 10030 | NVB6: 10031 | NVC6: 10032 | NVD6: 10033 | NVE6: 10034 | NVF6: 10035 | NVG6: 10036 | NVH6: 10037 | NVI6: 10038 | NVJ6: 10039 | NVK6: 10040 | NVL6: 10041 | NVM6: 10042 | NVN6: 10043 | NVO6: 10044 | NVP6: 10045 | NVQ6: 10046 | NVR6: 10047 | NVS6: 10048 | NVT6: 10049 | NVU6: 10050 | NVV6: 10051 | NVW6: 10052 | NVX6: 10053 | NVY6: 10054 | NVZ6: 10055 | NWA6: 10056 | NWB6: 10057 | NWC6: 10058 | NWD6: 10059 | NWE6: 10060 | NWF6: 10061 | NWG6: 10062 | NWH6: 10063 | NWI6: 10064 | NWJ6: 10065 | NWK6: 10066 | NWL6: 10067 | NWM6: 10068 | NWN6: 10069 | NWO6: 10070 | NWP6: 10071 | NWQ6: 10072 | NWR6: 10073 | NWS6: 10074 | NWT6: 10075 | NWU6: 10076 | NWV6: 10077 | NWW6: 10078 | NWX6: 10079 | NWY6: 10080 | NWZ6: 10081 | NXA6: 10082 | NXB6: 10083 | NXC6: 10084 | NXD6: 10085 | NXE6: 10086 | NXF6: 10087 | NXG6: 10088 | NXH6: 10089 | NXI6: 10090 | NXJ6: 10091 | NXK6: 10092 | NXL6: 10093 | NXM6: 10094 | NXN6: 10095 | NXO6: 10096 | NXP6: 10097 | NXQ6: 10098 | NXR6: 10099 | NXS6: 10100 | NXT6: 10101 | NXU6: 10102 | NXV6: 10103 | NXW6: 10104 | NXX6: 10105 | NXY6: 10106 | NXZ6: 10107 | NYA6: 10108 | NYB6: 10109 | NYC6: 10110 | NYD6: 10111 | NYE6: 10112 | NYF6: 10113 | NYG6: 10114 | NYH6: 10115 | NYI6: 10116 | NYJ6: 10117 | NYK6: 10118 | NYL6: 10119 | NYM6: 10120 | NYN6: 10121 | NYO6: 10122 | NYP6: 10123 | NYQ6: 10124 | NYR6: 10125 | NYS6: 10126 | NYT6: 10127 | NYU6: 10128 | NYV6: 10129 | NYW6: 10130 | NYX6: 10131 | NYY6: 10132 | NYZ6: 10133 | NZA6: 10134 | NZB6: 10135 | NZC6: 10136 | NZD6: 10137 | NZE6: 10138 | NZF6: 10139 | NZG6: 10140 | NZH6: 10141 | NZI6: 10142 | NZJ6: 10143 | NZK6: 10144 | NZL6: 10145 | NZM6: 10146 | NZN6: 10147 | NZO6: 10148 | NZP6: 10149 | NZQ6: 10150 | NZR6: 10151 | NZS6: 10152 | NZT6: 10153 | NZU6: 10154 | NZV6: 10155 | NZW6: 10156 | NZX6: 10157 | NZY6: 10158 | NZZ6: 10159 | OAA6: 10160 | OAB6: 10161 | OAC6: 10162 | OAD6: 10163 | OAE6: 10164 | OAF6: 10165 | OAG6: 10166 | OAH6: 10167 | OAI6: 10168 | OAJ6: 10169 | OAK6: 10170 | OAL6: 10171 | OAM6: 10172 | OAN6: 10173 | OAO6: 10174 | OAP6: 10175 | OAQ6: 10176 | OAR6: 10177 | OAS6: 10178 | OAT6: 10179 | OAU6: 10180 | OAV6: 10181 | OAW6: 10182 | OAX6: 10183 | OAY6: 10184 | OAZ6: 10185 | OBA6: 10186 | OBB6: 10187 | OBC6: 10188 | OBD6: 10189 | OBE6: 10190 | OBF6: 10191 | OBG6: 10192 | OBH6: 10193 | OBI6: 10194 | OBJ6: 10195 | OBK6: 10196 | OBL6: 10197 | OBM6: 10198 | OBN6: 10199 | OBO6: 10200 | OBP6: 10201 | OBQ6: 10202 | OBR6: 10203 | OBS6: 10204 | OBT6: 10205 | OBU6: 10206 | OBV6: 10207 | OBW6: 10208 | OBX6: 10209 | OBY6: 10210 | OBZ6: 10211 | OCA6: 10212 | OCB6: 10213 | OCC6: 10214 | OCD6: 10215 | OCE6: 10216 | OCF6: 10217 | OCG6: 10218 | OCH6: 10219 | OCI6: 10220 | OCJ6: 10221 | OCK6: 10222 | OCL6: 10223 | OCM6: 10224 | OCN6: 10225 | OCO6: 10226 | OCP6: 10227 | OCQ6: 10228 | OCR6: 10229 | OCS6: 10230 | OCT6: 10231 | OCU6: 10232 | OCV6: 10233 | OCW6: 10234 | OCX6: 10235 | OCY6: 10236 | OCZ6: 10237 | ODA6: 10238 | ODB6: 10239 | ODC6: 10240 | ODD6: 10241 | ODE6: 10242 | ODF6: 10243 | ODG6: 10244 | ODH6: 10245 | ODI6: 10246 | ODJ6: 10247 | ODK6: 10248 | ODL6: 10249 | ODM6: 10250 | ODN6: 10251 | ODO6: 10252 | ODP6: 10253 | ODQ6: 10254 | ODR6: 10255 | ODS6: 10256 | ODT6: 10257 | ODU6: 10258 | ODV6: 10259 | ODW6: 10260 | ODX6: 10261 | ODY6: 10262 | ODZ6: 10263 | OEA6: 10264 | OEB6: 10265 | OEC6: 10266 | OED6: 10267 | OEE6: 10268 | OEF6: 10269 | OEG6: 10270 | OEH6: 10271 | OEI6: 10272 | OEJ6: 10273 | OEK6: 10274 | OEL6: 10275 | OEM6: 10276 | OEN6: 10277 | OEO6: 10278 | OEP6: 10279 | OEQ6: 10280 | OER6: 10281 | OES6: 10282 | OET6: 10283 | OEU6: 10284 | OEV6: 10285 | OEW6: 10286 | OEX6: 10287 | OEY6: 10288 | OEZ6: 10289 | OFA6: 10290 | OFB6: 10291 | OFC6: 10292 | OFD6: 10293 | OFE6: 10294 | OFF6: 10295 | OFG6: 10296 | OFH6: 10297 | OFI6: 10298 | OFJ6: 10299 | OFK6: 10300 | OFL6: 10301 | OFM6: 10302 | OFN6: 10303 | OFO6: 10304 | OFP6: 10305 | OFQ6: 10306 | OFR6: 10307 | OFS6: 10308 | OFT6: 10309 | OFU6: 10310 | OFV6: 10311 | OFW6: 10312 | OFX6: 10313 | OFY6: 10314 | OFZ6: 10315 | OGA6: 10316 | OGB6: 10317 | OGC6: 10318 | OGD6: 10319 | OGE6: 10320 | OGF6: 10321 | OGG6: 10322 | OGH6: 10323 | OGI6: 10324 | OGJ6: 10325 | OGK6: 10326 | OGL6: 10327 | OGM6: 10328 | OGN6: 10329 | OGO6: 10330 | OGP6: 10331 | OGQ6: 10332 | OGR6: 10333 | OGS6: 10334 | OGT6: 10335 | OGU6: 10336 | OGV6: 10337 | OGW6: 10338 | OGX6: 10339 | OGY6: 10340 | OGZ6: 10341 | OHA6: 10342 | OHB6: 10343 | OHC6: 10344 | OHD6: 10345 | OHE6: 10346 | OHF6: 10347 | OHG6: 10348 | OHH6: 10349 | OHI6: 10350 | OHJ6: 10351 | OHK6: 10352 | OHL6: 10353 | OHM6: 10354 | OHN6: 10355 | OHO6: 10356 | OHP6: 10357 | OHQ6: 10358 | OHR6: 10359 | OHS6: 10360 | OHT6: 10361 | OHU6: 10362 | OHV6: 10363 | OHW6: 10364 | OHX6: 10365 | OHY6: 10366 | OHZ6: 10367 | OIA6: 10368 | OIB6: 10369 | OIC6: 10370 | OID6: 10371 | OIE6: 10372 | OIF6: 10373 | OIG6: 10374 | OIH6: 10375 | OII6: 10376 | OIJ6: 10377 | OIK6: 10378 | OIL6: 10379 | OIM6: 10380 | OIN6: 10381 | OIO6: 10382 | OIP6: 10383 | OIQ6: 10384 | OIR6: 10385 | OIS6: 10386 | OIT6: 10387 | OIU6: 10388 | OIV6: 10389 | OIW6: 10390 | OIX6: 10391 | OIY6: 10392 | OIZ6: 10393 | OJA6: 10394 | OJB6: 10395 | OJC6: 10396 | OJD6: 10397 | OJE6: 10398 | OJF6: 10399 | OJG6: 10400 | OJH6: 10401 | OJI6: 10402 | OJJ6: 10403 | OJK6: 10404 | OJL6: 10405 | OJM6: 10406 | OJN6: 10407 | OJO6: 10408 | OJP6: 10409 | OJQ6: 10410 | OJR6: 10411 | OJS6: 10412 | OJT6: 10413 | OJU6: 10414 | OJV6: 10415 | OJW6: 10416 | OJX6: 10417 | OJY6: 10418 | OJZ6: 10419 | OKA6: 10420 | OKB6: 10421 | OKC6: 10422 | OKD6: 10423 | OKE6: 10424 | OKF6: 10425 | OKG6: 10426 | OKH6: 10427 | OKI6: 10428 | OKJ6: 10429 | OKK6: 10430 | OKL6: 10431 | OKM6: 10432 | OKN6: 10433 | OKO6: 10434 | OKP6: 10435 | OKQ6: 10436 | OKR6: 10437 | OKS6: 10438 | OKT6: 10439 | OKU6: 10440 | OKV6: 10441 | OKW6: 10442 | OKX6: 10443 | OKY6: 10444 | OKZ6: 10445 | OLA6: 10446 | OLB6: 10447 | OLC6: 10448 | OLD6: 10449 | OLE6: 10450 | OLF6: 10451 | OLG6: 10452 | OLH6: 10453 | OLI6: 10454 | OLJ6: 10455 | OLK6: 10456 | OLL6: 10457 | OLM6: 10458 | OLN6: 10459 | OLO6: 10460 | OLP6: 10461 | OLQ6: 10462 | OLR6: 10463 | OLS6: 10464 | OLT6: 10465 | OLU6: 10466 | OLV6: 10467 | OLW6: 10468 | OLX6: 10469 | OLY6: 10470 | OLZ6: 10471 | OMA6: 10472 | OMB6: 10473 | OMC6: 10474 | OMD6: 10475 | OME6: 10476 | OMF6: 10477 | OMG6: 10478 | OMH6: 10479 | OMI6: 10480 | OMJ6: 10481 | OMK6: 10482 | OML6: 10483 | OMM6: 10484 | OMN6: 10485 | OMO6: 10486 | OMP6: 10487 | OMQ6: 10488 | OMR6: 10489 | OMS6: 10490 | OMT6: 10491 | OMU6: 10492 | OMV6: 10493 | OMW6: 10494 | OMX6: 10495 | OMY6: 10496 | OMZ6: 10497 | ONA6: 10498 | ONB6: 10499 | ONC6: 10500 | OND6: 10501 | ONE6: 10502 | ONF6: 10503 | ONG6: 10504 | ONH6: 10505 | ONI6: 10506 | ONJ6: 10507 | ONK6: 10508 | ONL6: 10509 | ONM6: 10510 | ONN6: 10511 | ONO6: 10512 | ONP6: 10513 | ONQ6: 10514 | ONR6: 10515 | ONS6: 10516 | ONT6: 10517 | ONU6: 10518 | ONV6: 10519 | ONW6: 10520 | ONX6: 10521 | ONY6: 10522 | ONZ6: 10523 | OOA6: 10524 | OOB6: 10525 | OOC6: 10526 | OOD6: 10527 | OOE6: 10528 | OOF6: 10529 | OOG6: 10530 | OOH6: 10531 | OOI6: 10532 | OOJ6: 10533 | OOK6: 10534 | OOL6: 10535 | OOM6: 10536 | OON6: 10537 | OOO6: 10538 | OOP6: 10539 | OOQ6: 10540 | OOR6: 10541 | OOS6: 10542 | OOT6: 10543 | OOU6: 10544 | OOV6: 10545 | OOW6: 10546 | OOX6: 10547 | OOY6: 10548 | OOZ6: 10549 | OPA6: 10550 | OPB6: 10551 | OPC6: 10552 | OPD6: 10553 | OPE6: 10554 | OPF6: 10555 | OPG6: 10556 | OPH6: 10557 | OPI6: 10558 | OPJ6: 10559 | OPK6: 10560 | OPL6: 10561 | OPM6: 10562 | OPN6: 10563 | OPO6: 10564 | OPP6: 10565 | OPQ6: 10566 | OPR6: 10567 | OPS6: 10568 | OPT6: 10569 | OPU6: 10570 | OPV6: 10571 | OPW6: 10572 | OPX6: 10573 | OPY6: 10574 | OPZ6: 10575 | OQA6: 10576 | OQB6: 10577 | OQC6: 10578 | OQD6: 10579 | OQE6: 10580 | OQF6: 10581 | OQG6: 10582 | OQH6: 10583 | OQI6: 10584 | OQJ6: 10585 | OQK6: 10586 | OQL6: 10587 | OQM6: 10588 | OQN6: 10589 | OQO6: 10590 | OQP6: 10591 | OQQ6: 10592 | OQR6: 10593 | OQS6: 10594 | OQT6: 10595 | OQU6: 10596 | OQV6: 10597 | OQW6: 10598 | OQX6: 10599 | OQY6: 10600 | OQZ6: 10601 | ORA6: 10602 | ORB6: 10603 | ORC6: 10604 | ORD6: 10605 | ORE6: 10606 | ORF6: 10607 | ORG6: 10608 | ORH6: 10609 | ORI6: 10610 | ORJ6: 10611 | ORK6: 10612 | ORL6: 10613 | ORM6: 10614 | ORN6: 10615 | ORO6: 10616 | ORP6: 10617 | ORQ6: 10618 | ORR6: 10619 | ORS6: 10620 | ORT6: 10621 | ORU6: 10622 | ORV6: 10623 | ORW6: 10624 | ORX6: 10625 | ORY6: 10626 | ORZ6: 10627 | OSA6: 10628 | OSB6: 10629 | OSC6: 10630 | OSD6: 10631 | OSE6: 10632 | OSF6: 10633 | OSG6: 10634 | OSH6: 10635 | OSI6: 10636 | OSJ6: 10637 | OSK6: 10638 | OSL6: 10639 | OSM6: 10640 | OSN6: 10641 | OSO6: 10642 | OSP6: 10643 | OSQ6: 10644 | OSR6: 10645 | OSS6: 10646 | OST6: 10647 | OSU6: 10648 | OSV6: 10649 | OSW6: 10650 | OSX6: 10651 | OSY6: 10652 | OSZ6: 10653 | OTA6: 10654 | OTB6: 10655 | OTC6: 10656 | OTD6: 10657 | OTE6: 10658 | OTF6: 10659 | OTG6: 10660 | OTH6: 10661 | OTI6: 10662 | OTJ6: 10663 | OTK6: 10664 | OTL6: 10665 | OTM6: 10666 | OTN6: 10667 | OTO6: 10668 | OTP6: 10669 | OTQ6: 10670 | OTR6: 10671 | OTS6: 10672 | OTT6: 10673 | OTU6: 10674 | OTV6: 10675 | OTW6: 10676 | OTX6: 10677 | OTY6: 10678 | OTZ6: 10679 | OUA6: 10680 | OUB6: 10681 | OUC6: 10682 | OUD6: 10683 | OUE6: 10684 | OUF6: 10685 | OUG6: 10686 | OUH6: 10687 | OUI6: 10688 | OUJ6: 10689 | OUK6: 10690 | OUL6: 10691 | OUM6: 10692 | OUN6: 10693 | OUO6: 10694 | OUP6: 10695 | OUQ6: 10696 | OUR6: 10697 | OUS6: 10698 | OUT6: 10699 | OUU6: 10700 | OUV6: 10701 | OUW6: 10702 | OUX6: 10703 | OUY6: 10704 | OUZ6: 10705 | OVA6: 10706 | OVB6: 10707 | OVC6: 10708 | OVD6: 10709 | OVE6: 10710 | OVF6: 10711 | OVG6: 10712 | OVH6: 10713 | OVI6: 10714 | OVJ6: 10715 | OVK6: 10716 | OVL6: 10717 | OVM6: 10718 | OVN6: 10719 | OVO6: 10720 | OVP6: 10721 | OVQ6: 10722 | OVR6: 10723 | OVS6: 10724 | OVT6: 10725 | OVU6: 10726 | OVV6: 10727 | OVW6: 10728 | OVX6: 10729 | OVY6: 10730 | OVZ6: 10731 | OWA6: 10732 | OWB6: 10733 | OWC6: 10734 | OWD6: 10735 | OWE6: 10736 | OWF6: 10737 | OWG6: 10738 | OWH6: 10739 | OWI6: 10740 | OWJ6: 10741 | OWK6: 10742 | OWL6: 10743 | OWM6: 10744 | OWN6: 10745 | OWO6: 10746 | OWP6: 10747 | OWQ6: 10748 | OWR6: 10749 | OWS6: 10750 | OWT6: 10751 | OWU6: 10752 | OWV6: 10753 | OWW6: 10754 | OWX6: 10755 | OWY6: 10756 | OWZ6: 10757 | OXA6: 10758 | OXB6: 10759 | OXC6: 10760 | OXD6: 10761 | OXE6: 10762 | OXF6: 10763 | OXG6: 10764 | OXH6: 10765 | OXI6: 10766 | OXJ6: 10767 | OXK6: 10768 | OXL6: 10769 | OXM6: 10770 | OXN6: 10771 | OXO6: 10772 | OXP6: 10773 | OXQ6: 10774 | OXR6: 10775 | OXS6: 10776 | OXT6: 10777 | OXU6: 10778 | OXV6: 10779 | OXW6: 10780 | OXX6: 10781 | OXY6: 10782 | OXZ6: 10783 | OYA6: 10784 | OYB6: 10785 | OYC6: 10786 | OYD6: 10787 | OYE6: 10788 | OYF6: 10789 | OYG6: 10790 | OYH6: 10791 | OYI6: 10792 | OYJ6: 10793 | OYK6: 10794 | OYL6: 10795 | OYM6: 10796 | OYN6: 10797 | OYO6: 10798 | OYP6: 10799 | OYQ6: 10800 | OYR6: 10801 | OYS6: 10802 | OYT6: 10803 | OYU6: 10804 | OYV6: 10805 | OYW6: 10806 | OYX6: 10807 | OYY6: 10808 | OYZ6: 10809 | OZA6: 10810 | OZB6: 10811 | OZC6: 10812 | OZD6: 10813 | OZE6: 10814 | OZF6: 10815 | OZG6: 10816 | OZH6: 10817 | OZI6: 10818 | OZJ6: 10819 | OZK6: 10820 | OZL6: 10821 | OZM6: 10822 | OZN6: 10823 | OZO6: 10824 | OZP6: 10825 | OZQ6: 10826 | OZR6: 10827 | OZS6: 10828 | OZT6: 10829 | OZU6: 10830 | OZV6: 10831 | OZW6: 10832 | OZX6: 10833 | OZY6: 10834 | OZZ6: 10835 | PAA6: 10836 | PAB6: 10837 | PAC6: 10838 | PAD6: 10839 | PAE6: 10840 | PAF6: 10841 | PAG6: 10842 | PAH6: 10843 | PAI6: 10844 | PAJ6: 10845 | PAK6: 10846 | PAL6: 10847 | PAM6: 10848 | PAN6: 10849 | PAO6: 10850 | PAP6: 10851 | PAQ6: 10852 | PAR6: 10853 | PAS6: 10854 | PAT6: 10855 | PAU6: 10856 | PAV6: 10857 | PAW6: 10858 | PAX6: 10859 | PAY6: 10860 | PAZ6: 10861 | PBA6: 10862 | PBB6: 10863 | PBC6: 10864 | PBD6: 10865 | PBE6: 10866 | PBF6: 10867 | PBG6: 10868 | PBH6: 10869 | PBI6: 10870 | PBJ6: 10871 | PBK6: 10872 | PBL6: 10873 | PBM6: 10874 | PBN6: 10875 | PBO6: 10876 | PBP6: 10877 | PBQ6: 10878 | PBR6: 10879 | PBS6: 10880 | PBT6: 10881 | PBU6: 10882 | PBV6: 10883 | PBW6: 10884 | PBX6: 10885 | PBY6: 10886 | PBZ6: 10887 | PCA6: 10888 | PCB6: 10889 | PCC6: 10890 | PCD6: 10891 | PCE6: 10892 | PCF6: 10893 | PCG6: 10894 | PCH6: 10895 | PCI6: 10896 | PCJ6: 10897 | PCK6: 10898 | PCL6: 10899 | PCM6: 10900 | PCN6: 10901 | PCO6: 10902 | PCP6: 10903 | PCQ6: 10904 | PCR6: 10905 | PCS6: 10906 | PCT6: 10907 | PCU6: 10908 | PCV6: 10909 | PCW6: 10910 | PCX6: 10911 | PCY6: 10912 | PCZ6: 10913 | PDA6: 10914 | PDB6: 10915 | PDC6: 10916 | PDD6: 10917 | PDE6: 10918 | PDF6: 10919 | PDG6: 10920 | PDH6: 10921 | PDI6: 10922 | PDJ6: 10923 | PDK6: 10924 | PDL6: 10925 | PDM6: 10926 | PDN6: 10927 | PDO6: 10928 | PDP6: 10929 | PDQ6: 10930 | PDR6: 10931 | PDS6: 10932 | PDT6: 10933 | PDU6: 10934 | PDV6: 10935 | PDW6: 10936 | PDX6: 10937 | PDY6: 10938 | PDZ6: 10939 | PEA6: 10940 | PEB6: 10941 | PEC6: 10942 | PED6: 10943 | PEE6: 10944 | PEF6: 10945 | PEG6: 10946 | PEH6: 10947 | PEI6: 10948 | PEJ6: 10949 | PEK6: 10950 | PEL6: 10951 | PEM6: 10952 | PEN6: 10953 | PEO6: 10954 | PEP6: 10955 | PEQ6: 10956 | PER6: 10957 | PES6: 10958 | PET6: 10959 | PEU6: 10960 | PEV6: 10961 | PEW6: 10962 | PEX6: 10963 | PEY6: 10964 | PEZ6: 10965 | PFA6: 10966 | PFB6: 10967 | PFC6: 10968 | PFD6: 10969 | PFE6: 10970 | PFF6: 10971 | PFG6: 10972 | PFH6: 10973 | PFI6: 10974 | PFJ6: 10975 | PFK6: 10976 | PFL6: 10977 | PFM6: 10978 | PFN6: 10979 | PFO6: 10980 | PFP6: 10981 | PFQ6: 10982 | PFR6: 10983 | PFS6: 10984 | PFT6: 10985 | PFU6: 10986 | PFV6: 10987 | PFW6: 10988 | PFX6: 10989 | PFY6: 10990 | PFZ6: 10991 | PGA6: 10992 | PGB6: 10993 | PGC6: 10994 | PGD6: 10995 | PGE6: 10996 | PGF6: 10997 | PGG6: 10998 | PGH6: 10999 | PGI6: 11000 | PGJ6: 11001 | PGK6: 11002 | PGL6: 11003 | PGM6: 11004 | PGN6: 11005 | PGO6: 11006 | PGP6: 11007 | PGQ6: 11008 | PGR6: 11009 | PGS6: 11010 | PGT6: 11011 | PGU6: 11012 | PGV6: 11013 | PGW6: 11014 | PGX6: 11015 | PGY6: 11016 | PGZ6: 11017 | PHA6: 11018 | PHB6: 11019 | PHC6: 11020 | PHD6: 11021 | PHE6: 11022 | PHF6: 11023 | PHG6: 11024 | PHH6: 11025 | PHI6: 11026 | PHJ6: 11027 | PHK6: 11028 | PHL6: 11029 | PHM6: 11030 | PHN6: 11031 | PHO6: 11032 | PHP6: 11033 | PHQ6: 11034 | PHR6: 11035 | PHS6: 11036 | PHT6: 11037 | PHU6: 11038 | PHV6: 11039 | PHW6: 11040 | PHX6: 11041 | PHY6: 11042 | PHZ6: 11043 | PIA6: 11044 | PIB6: 11045 | PIC6: 11046 | PID6: 11047 | PIE6: 11048 | PIF6: 11049 | PIG6: 11050 | PIH6: 11051 | PII6: 11052 | PIJ6: 11053 | PIK6: 11054 | PIL6: 11055 | PIM6: 11056 | PIN6: 11057 | PIO6: 11058 | PIP6: 11059 | PIQ6: 11060 | PIR6: 11061 | PIS6: 11062 | PIT6: 11063 | PIU6: 11064 | PIV6: 11065 | PIW6: 11066 | PIX6: 11067 | PIY6: 11068 | PIZ6: 11069 | PJA6: 11070 | PJB6: 11071 | PJC6: 11072 | PJD6: 11073 | PJE6: 11074 | PJF6: 11075 | PJG6: 11076 | PJH6: 11077 | PJI6: 11078 | PJJ6: 11079 | PJK6: 11080 | PJL6: 11081 | PJM6: 11082 | PJN6: 11083 | PJO6: 11084 | PJP6: 11085 | PJQ6: 11086 | PJR6: 11087 | PJS6: 11088 | PJT6: 11089 | PJU6: 11090 | PJV6: 11091 | PJW6: 11092 | PJX6: 11093 | PJY6: 11094 | PJZ6: 11095 | PKA6: 11096 | PKB6: 11097 | PKC6: 11098 | PKD6: 11099 | PKE6: 11100 | PKF6: 11101 | PKG6: 11102 | PKH6: 11103 | PKI6: 11104 | PKJ6: 11105 | PKK6: 11106 | PKL6: 11107 | PKM6: 11108 | PKN6: 11109 | PKO6: 11110 | PKP6: 11111 | PKQ6: 11112 | PKR6: 11113 | PKS6: 11114 | PKT6: 11115 | PKU6: 11116 | PKV6: 11117 | PKW6: 11118 | PKX6: 11119 | PKY6: 11120 | PKZ6: 11121 | PLA6: 11122 | PLB6: 11123 | PLC6: 11124 | PLD6: 11125 | PLE6: 11126 | PLF6: 11127 | PLG6: 11128 | PLH6: 11129 | PLI6: 11130 | PLJ6: 11131 | PLK6: 11132 | PLL6: 11133 | PLM6: 11134 | PLN6: 11135 | PLO6: 11136 | PLP6: 11137 | PLQ6: 11138 | PLR6: 11139 | PLS6: 11140 | PLT6: 11141 | PLU6: 11142 | PLV6: 11143 | PLW6: 11144 | PLX6: 11145 | PLY6: 11146 | PLZ6: 11147 | PMA6: 11148 | PMB6: 11149 | PMC6: 11150 | PMD6: 11151 | PME6: 11152 | PMF6: 11153 | PMG6: 11154 | PMH6: 11155 | PMI6: 11156 | PMJ6: 11157 | PMK6: 11158 | PML6: 11159 | PMM6: 11160 | PMN6: 11161 | PMO6: 11162 | PMP6: 11163 | PMQ6: 11164 | PMR6: 11165 | PMS6: 11166 | PMT6: 11167 | PMU6: 11168 | PMV6: 11169 | PMW6: 11170 | PMX6: 11171 | PMY6: 11172 | PMZ6: 11173 | PNA6: 11174 | PNB6: 11175 | PNC6: 11176 | PND6: 11177 | PNE6: 11178 | PNF6: 11179 | PNG6: 11180 | PNH6: 11181 | PNI6: 11182 | PNJ6: 11183 | PNK6: 11184 | PNL6: 11185 | PNM6: 11186 | PNN6: 11187 | PNO6: 11188 | PNP6: 11189 | PNQ6: 11190 | PNR6: 11191 | PNS6: 11192 | PNT6: 11193 | PNU6: 11194 | PNV6: 11195 | PNW6: 11196 | PNX6: 11197 | PNY6: 11198 | PNZ6: 11199 | POA6: 11200 | POB6: 11201 | POC6: 11202 | POD6: 11203 | POE6: 11204 | POF6: 11205 | POG6: 11206 | POH6: 11207 | POI6: 11208 | POJ6: 11209 | POK6: 11210 | POL6: 11211 | POM6: 11212 | PON6: 11213 | POO6: 11214 | POP6: 11215 | POQ6: 11216 | POR6: 11217 | POS6: 11218 | POT6: 11219 | POU6: 11220 | POV6: 11221 | POW6: 11222 | POX6: 11223 | POY6: 11224 | POZ6: 11225 | PPA6: 11226 | PPB6: 11227 | PPC6: 11228 | PPD6: 11229 | PPE6: 11230 | PPF6: 11231 | PPG6: 11232 | PPH6: 11233 | PPI6: 11234 | PPJ6: 11235 | PPK6: 11236 | PPL6: 11237 | PPM6: 11238 | PPN6: 11239 | PPO6: 11240 | PPP6: 11241 | PPQ6: 11242 | PPR6: 11243 | PPS6: 11244 | PPT6: 11245 | PPU6: 11246 | PPV6: 11247 | PPW6: 11248 | PPX6: 11249 | PPY6: 11250 | PPZ6: 11251 | PQA6: 11252 | PQB6: 11253 | PQC6: 11254 | PQD6: 11255 | PQE6: 11256 | PQF6: 11257 | PQG6: 11258 | PQH6: 11259 | PQI6: 11260 | PQJ6: 11261 | PQK6: 11262 | PQL6: 11263 | PQM6: 11264 | PQN6: 11265 | PQO6: 11266 | PQP6: 11267 | PQQ6: 11268 | PQR6: 11269 | PQS6: 11270 | PQT6: 11271 | PQU6: 11272 | PQV6: 11273 | PQW6: 11274 | PQX6: 11275 | PQY6: 11276 | PQZ6: 11277 | PRA6: 11278 | PRB6: 11279 | PRC6: 11280 | PRD6: 11281 | PRE6: 11282 | PRF6: 11283 | PRG6: 11284 | PRH6: 11285 | PRI6: 11286 | PRJ6: 11287 | PRK6: 11288 | PRL6: 11289 | PRM6: 11290 | PRN6: 11291 | PRO6: 11292 | PRP6: 11293 | PRQ6: 11294 | PRR6: 11295 | PRS6: 11296 | PRT6: 11297 | PRU6: 11298 | PRV6: 11299 | PRW6: 11300 | PRX6: 11301 | PRY6: 11302 | PRZ6: 11303 | PSA6: 11304 | PSB6: 11305 | PSC6: 11306 | PSD6: 11307 | PSE6: 11308 | PSF6: 11309 | PSG6: 11310 | PSH6: 11311 | PSI6: 11312 | PSJ6: 11313 | PSK6: 11314 | PSL6: 11315 | PSM6: 11316 | PSN6: 11317 | PSO6: 11318 | PSP6: 11319 | PSQ6: 11320 | PSR6: 11321 | PSS6: 11322 | PST6: 11323 | PSU6: 11324 | PSV6: 11325 | PSW6: 11326 | PSX6: 11327 | PSY6: 11328 | PSZ6: 11329 | PTA6: 11330 | PTB6: 11331 | PTC6: 11332 | PTD6: 11333 | PTE6: 11334 | PTF6: 11335 | PTG6: 11336 | PTH6: 11337 | PTI6: 11338 | PTJ6: 11339 | PTK6: 11340 | PTL6: 11341 | PTM6: 11342 | PTN6: 11343 | PTO6: 11344 | PTP6: 11345 | PTQ6: 11346 | PTR6: 11347 | PTS6: 11348 | PTT6: 11349 | PTU6: 11350 | PTV6: 11351 | PTW6: 11352 | PTX6: 11353 | PTY6: 11354 | PTZ6: 11355 | PUA6: 11356 | PUB6: 11357 | PUC6: 11358 | PUD6: 11359 | PUE6: 11360 | PUF6: 11361 | PUG6: 11362 | PUH6: 11363 | PUI6: 11364 | PUJ6: 11365 | PUK6: 11366 | PUL6: 11367 | PUM6: 11368 | PUN6: 11369 | PUO6: 11370 | PUP6: 11371 | PUQ6: 11372 | PUR6: 11373 | PUS6: 11374 | PUT6: 11375 | PUU6: 11376 | PUV6: 11377 | PUW6: 11378 | PUX6: 11379 | PUY6: 11380 | PUZ6: 11381 | PVA6: 11382 | PVB6: 11383 | PVC6: 11384 | PVD6: 11385 | PVE6: 11386 | PVF6: 11387 | PVG6: 11388 | PVH6: 11389 | PVI6: 11390 | PVJ6: 11391 | PVK6: 11392 | PVL6: 11393 | PVM6: 11394 | PVN6: 11395 | PVO6: 11396 | PVP6: 11397 | PVQ6: 11398 | PVR6: 11399 | PVS6: 11400 | PVT6: 11401 | PVU6: 11402 | PVV6: 11403 | PVW6: 11404 | PVX6: 11405 | PVY6: 11406 | PVZ6: 11407 | PWA6: 11408 | PWB6: 11409 | PWC6: 11410 | PWD6: 11411 | PWE6: 11412 | PWF6: 11413 | PWG6: 11414 | PWH6: 11415 | PWI6: 11416 | PWJ6: 11417 | PWK6: 11418 | PWL6: 11419 | PWM6: 11420 | PWN6: 11421 | PWO6: 11422 | PWP6: 11423 | PWQ6: 11424 | PWR6: 11425 | PWS6: 11426 | PWT6: 11427 | PWU6: 11428 | PWV6: 11429 | PWW6: 11430 | PWX6: 11431 | PWY6: 11432 | PWZ6: 11433 | PXA6: 11434 | PXB6: 11435 | PXC6: 11436 | PXD6: 11437 | PXE6: 11438 | PXF6: 11439 | PXG6: 11440 | PXH6: 11441 | PXI6: 11442 | PXJ6: 11443 | PXK6: 11444 | PXL6: 11445 | PXM6: 11446 | PXN6: 11447 | PXO6: 11448 | PXP6: 11449 | PXQ6: 11450 | PXR6: 11451 | PXS6: 11452 | PXT6: 11453 | PXU6: 11454 | PXV6: 11455 | PXW6: 11456 | PXX6: 11457 | PXY6: 11458 | PXZ6: 11459 | PYA6: 11460 | PYB6: 11461 | PYC6: 11462 | PYD6: 11463 | PYE6: 11464 | PYF6: 11465 | PYG6: 11466 | PYH6: 11467 | PYI6: 11468 | PYJ6: 11469 | PYK6: 11470 | PYL6: 11471 | PYM6: 11472 | PYN6: 11473 | PYO6: 11474 | PYP6: 11475 | PYQ6: 11476 | PYR6: 11477 | PYS6: 11478 | PYT6: 11479 | PYU6: 11480 | PYV6: 11481 | PYW6: 11482 | PYX6: 11483 | PYY6: 11484 | PYZ6: 11485 | PZA6: 11486 | PZB6: 11487 | PZC6: 11488 | PZD6: 11489 | PZE6: 11490 | PZF6: 11491 | PZG6: 11492 | PZH6: 11493 | PZI6: 11494 | PZJ6: 11495 | PZK6: 11496 | PZL6: 11497 | PZM6: 11498 | PZN6: 11499 | PZO6: 11500 | PZP6: 11501 | PZQ6: 11502 | PZR6: 11503 | PZS6: 11504 | PZT6: 11505 | PZU6: 11506 | PZV6: 11507 | PZW6: 11508 | PZX6: 11509 | PZY6: 11510 | PZZ6: 11511 | QAA6: 11512 | QAB6: 11513 | QAC6: 11514 | QAD6: 11515 | QAE6: 11516 | QAF6: 11517 | QAG6: 11518 | QAH6: 11519 | QAI6: 11520 | QAJ6: 11521 | QAK6: 11522 | QAL6: 11523 | QAM6: 11524 | QAN6: 11525 | QAO6: 11526 | QAP6: 11527 | QAQ6: 11528 | QAR6: 11529 | QAS6: 11530 | QAT6: 11531 | QAU6: 11532 | QAV6: 11533 | QAW6: 11534 | QAX6: 11535 | QAY6: 11536 | QAZ6: 11537 | QBA6: 11538 | QBB6: 11539 | QBC6: 11540 | QBD6: 11541 | QBE6: 11542 | QBF6: 11543 | QBG6: 11544 | QBH6: 11545 | QBI6: 11546 | QBJ6: 11547 | QBK6: 11548 | QBL6: 11549 | QBM6: 11550 | QBN6: 11551 | QBO6: 11552 | QBP6: 11553 | QBQ6: 11554 | QBR6: 11555 | QBS6: 11556 | QBT6: 11557 | QBU6: 11558 | QBV6: 11559 | QBW6: 11560 | QBX6: 11561 | QBY6: 11562 | QBZ6: 11563 | QCA6: 11564 | QCB6: 11565 | QCC6: 11566 | QCD6: 11567 | QCE6: 11568 | QCF6: 11569 | QCG6: 11570 | QCH6: 11571 | QCI6: 11572 | QCJ6: 11573 | QCK6: 11574 | QCL6: 11575 | QCM6: 11576 | QCN6: 11577 | QCO6: 11578 | QCP6: 11579 | QCQ6: 11580 | QCR6: 11581 | QCS6: 11582 | QCT6: 11583 | QCU6: 11584 | QCV6: 11585 | QCW6: 11586 | QCX6: 11587 | QCY6: 11588 | QCZ6: 11589 | QDA6: 11590 | QDB6: 11591 | QDC6: 11592 | QDD6: 11593 | QDE6: 11594 | QDF6: 11595 | QDG6: 11596 | QDH6: 11597 | QDI6: 11598 | QDJ6: 11599 | QDK6: 11600 | QDL6: 11601 | QDM6: 11602 | QDN6: 11603 | QDO6: 11604 | QDP6: 11605 | QDQ6: 11606 | QDR6: 11607 | QDS6: 11608 | QDT6: 11609 | QDU6: 11610 | QDV6: 11611 | QDW6: 11612 | QDX6: 11613 | QDY6: 11614 | QDZ6: 11615 | QEA6: 11616 | QEB6: 11617 | QEC6: 11618 | QED6: 11619 | QEE6: 11620 | QEF6: 11621 | QEG6: 11622 | QEH6: 11623 | QEI6: 11624 | QEJ6: 11625 | QEK6: 11626 | QEL6: 11627 | QEM6: 11628 | QEN6: 11629 | QEO6: 11630 | QEP6: 11631 | QEQ6: 11632 | QER6: 11633 | QES6: 11634 | QET6: 11635 | QEU6: 11636 | QEV6: 11637 | QEW6: 11638 | QEX6: 11639 | QEY6: 11640 | QEZ6: 11641 | QFA6: 11642 | QFB6: 11643 | QFC6: 11644 | QFD6: 11645 | QFE6: 11646 | QFF6: 11647 | QFG6: 11648 | QFH6: 11649 | QFI6: 11650 | QFJ6: 11651 | QFK6: 11652 | QFL6: 11653 | QFM6: 11654 | QFN6: 11655 | QFO6: 11656 | QFP6: 11657 | QFQ6: 11658 | QFR6: 11659 | QFS6: 11660 | QFT6: 11661 | QFU6: 11662 | QFV6: 11663 | QFW6: 11664 | QFX6: 11665 | QFY6: 11666 | QFZ6: 11667 | QGA6: 11668 | QGB6: 11669 | QGC6: 11670 | QGD6: 11671 | QGE6: 11672 | QGF6: 11673 | QGG6: 11674 | QGH6: 11675 | QGI6: 11676 | QGJ6: 11677 | QGK6: 11678 | QGL6: 11679 | QGM6: 11680 | QGN6: 11681 | QGO6: 11682 | QGP6: 11683 | QGQ6: 11684 | QGR6: 11685 | QGS6: 11686 | QGT6: 11687 | QGU6: 11688 | QGV6: 11689 | QGW6: 11690 | QGX6: 11691 | QGY6: 11692 | QGZ6: 11693 | QHA6: 11694 | QHB6: 11695 | QHC6: 11696 | QHD6: 11697 | QHE6: 11698 | QHF6: 11699 | QHG6: 11700 | QHH6: 11701 | QHI6: 11702 | QHJ6: 11703 | QHK6: 11704 | QHL6: 11705 | QHM6: 11706 | QHN6: 11707 | QHO6: 11708 | QHP6: 11709 | QHQ6: 11710 | QHR6: 11711 | QHS6: 11712 | QHT6: 11713 | QHU6: 11714 | QHV6: 11715 | QHW6: 11716 | QHX6: 11717 | QHY6: 11718 | QHZ6: 11719 | QIA6: 11720 | QIB6: 11721 | QIC6: 11722 | QID6: 11723 | QIE6: 11724 | QIF6: 11725 | QIG6: 11726 | QIH6: 11727 | QII6: 11728 | QIJ6: 11729 | QIK6: 11730 | QIL6: 11731 | QIM6: 11732 | QIN6: 11733 | QIO6: 11734 | QIP6: 11735 | QIQ6: 11736 | QIR6: 11737 | QIS6: 11738 | QIT6: 11739 | QIU6: 11740 | QIV6: 11741 | QIW6: 11742 | QIX6: 11743 | QIY6: 11744 | QIZ6: 11745 | QJA6: 11746 | QJB6: 11747 | QJC6: 11748 | QJD6: 11749 | QJE6: 11750 | QJF6: 11751 | QJG6: 11752 | QJH6: 11753 | QJI6: 11754 | QJJ6: 11755 | QJK6: 11756 | QJL6: 11757 | QJM6: 11758 | QJN6: 11759 | QJO6: 11760 | QJP6: 11761 | QJQ6: 11762 | QJR6: 11763 | QJS6: 11764 | QJT6: 11765 | QJU6: 11766 | QJV6: 11767 | QJW6: 11768 | QJX6: 11769 | QJY6: 11770 | QJZ6: 11771 | QKA6: 11772 | QKB6: 11773 | QKC6: 11774 | QKD6: 11775 | QKE6: 11776 | QKF6: 11777 | QKG6: 11778 | QKH6: 11779 | QKI6: 11780 | QKJ6: 11781 | QKK6: 11782 | QKL6: 11783 | QKM6: 11784 | QKN6: 11785 | QKO6: 11786 | QKP6: 11787 | QKQ6: 11788 | QKR6: 11789 | QKS6: 11790 | QKT6: 11791 | QKU6: 11792 | QKV6: 11793 | QKW6: 11794 | QKX6: 11795 | QKY6: 11796 | QKZ6: 11797 | QLA6: 11798 | QLB6: 11799 | QLC6: 11800 | QLD6: 11801 | QLE6: 11802 | QLF6: 11803 | QLG6: 11804 | QLH6: 11805 | QLI6: 11806 | QLJ6: 11807 | QLK6: 11808 | QLL6: 11809 | QLM6: 11810 | QLN6: 11811 | QLO6: 11812 | QLP6: 11813 | QLQ6: 11814 | QLR6: 11815 | QLS6: 11816 | QLT6: 11817 | QLU6: 11818 | QLV6: 11819 | QLW6: 11820 | QLX6: 11821 | QLY6: 11822 | QLZ6: 11823 | QMA6: 11824 | QMB6: 11825 | QMC6: 11826 | QMD6: 11827 | QME6: 11828 | QMF6: 11829 | QMG6: 11830 | QMH6: 11831 | QMI6: 11832 | QMJ6: 11833 | QMK6: 11834 | QML6: 11835 | QMM6: 11836 | QMN6: 11837 | QMO6: 11838 | QMP6: 11839 | QMQ6: 11840 | QMR6: 11841 | QMS6: 11842 | QMT6: 11843 | QMU6: 11844 | QMV6: 11845 | QMW6: 11846 | QMX6: 11847 | QMY6: 11848 | QMZ6: 11849 | QNA6: 11850 | QNB6: 11851 | QNC6: 11852 | QND6: 11853 | QNE6: 11854 | QNF6: 11855 | QNG6: 11856 | QNH6: 11857 | QNI6: 11858 | QNJ6: 11859 | QNK6: 11860 | QNL6: 11861 | QNM6: 11862 | QNN6: 11863 | QNO6: 11864 | QNP6: 11865 | QNQ6: 11866 | QNR6: 11867 | QNS6: 11868 | QNT6: 11869 | QNU6: 11870 | QNV6: 11871 | QNW6: 11872 | QNX6: 11873 | QNY6: 11874 | QNZ6: 11875 | QOA6: 11876 | QOB6: 11877 | QOC6: 11878 | QOD6: 11879 | QOE6: 11880 | QOF6: 11881 | QOG6: 11882 | QOH6: 11883 | QOI6: 11884 | QOJ6: 11885 | QOK6: 11886 | QOL6: 11887 | QOM6: 11888 | QON6: 11889 | QOO6: 11890 | QOP6: 11891 | QOQ6: 11892 | QOR6: 11893 | QOS6: 11894 | QOT6: 11895 | QOU6: 11896 | QOV6: 11897 | QOW6: 11898 | QOX6: 11899 | QOY6: 11900 | QOZ6: 11901 | QPA6: 11902 | QPB6: 11903 | QPC6: 11904 | QPD6: 11905 | QPE6: 11906 | QPF6: 11907 | QPG6: 11908 | QPH6: 11909 | QPI6: 11910 | QPJ6: 11911 | QPK6: 11912 | QPL6: 11913 | QPM6: 11914 | QPN6: 11915 | QPO6: 11916 | QPP6: 11917 | QPQ6: 11918 | QPR6: 11919 | QPS6: 11920 | QPT6: 11921 | QPU6: 11922 | QPV6: 11923 | QPW6: 11924 | QPX6: 11925 | QPY6: 11926 | QPZ6: 11927 | QQA6: 11928 | QQB6: 11929 | QQC6: 11930 | QQD6: 11931 | QQE6: 11932 | QQF6: 11933 | QQG6: 11934 | QQH6: 11935 | QQI6: 11936 | QQJ6: 11937 | QQK6: 11938 | QQL6: 11939 | QQM6: 11940 | QQN6: 11941 | QQO6: 11942 | QQP6: 11943 | QQQ6: 11944 | QQR6: 11945 | QQS6: 11946 | QQT6: 11947 | QQU6: 11948 | QQV6: 11949 | QQW6: 11950 | QQX6: 11951 | QQY6: 11952 | QQZ6: 11953 | QRA6: 11954 | QRB6: 11955 | QRC6: 11956 | QRD6: 11957 | QRE6: 11958 | QRF6: 11959 | QRG6: 11960 | QRH6: 11961 | QRI6: 11962 | QRJ6: 11963 | QRK6: 11964 | QRL6: 11965 | QRM6: 11966 | QRN6: 11967 | QRO6: 11968 | QRP6: 11969 | QRQ6: 11970 | QRR6: 11971 | QRS6: 11972 | QRT6: 11973 | QRU6: 11974 | QRV6: 11975 | QRW6: 11976 | QRX6: 11977 | QRY6: 11978 | QRZ6: 11979 | QSA6: 11980 | QSB6: 11981 | QSC6: 11982 | QSD6: 11983 | QSE6: 11984 | QSF6: 11985 | QSG6: 11986 | QSH6: 11987 | QSI6: 11988 | QSJ6: 11989 | QSK6: 11990 | QSL6: 11991 | QSM6: 11992 | QSN6: 11993 | QSO6: 11994 | QSP6: 11995 | QSQ6: 11996 | QSR6: 11997 | QSS6: 11998 | QST6: 11999 | QSU6: 12000 | QSV6: 12001 | QSW6: 12002 | QSX6: 12003 | QSY6: 12004 | QSZ6: 12005 | QTA6: 12006 | QTB6: 12007 | QTC6: 12008 | QTD6: 12009 | QTE6: 12010 | QTF6: 12011 | QTG6: 12012 | QTH6: 12013 | QTI6: 12014 | QTJ6: 12015 | QTK6: 12016 | QTL6: 12017 | QTM6: 12018 | QTN6: 12019 | QTO6: 12020 | QTP6: 12021 | QTQ6: 12022 | QTR6: 12023 | QTS6: 12024 | QTT6: 12025 | QTU6: 12026 | QTV6: 12027 | QTW6: 12028 | QTX6: 12029 | QTY6: 12030 | QTZ6: 12031 | QUA6: 12032 | QUB6: 12033 | QUC6: 12034 | QUD6: 12035 | QUE6: 12036 | QUF6: 12037 | QUG6: 12038 | QUH6: 12039 | QUI6: 12040 | QUJ6: 12041 | QUK6: 12042 | QUL6: 12043 | QUM6: 12044 | QUN6: 12045 | QUO6: 12046 | QUP6: 12047 | QUQ6: 12048 | QUR6: 12049 | QUS6: 12050 | QUT6: 12051 | QUU6: 12052 | QUV6: 12053 | QUW6: 12054 | QUX6: 12055 | QUY6: 12056 | QUZ6: 12057 | QVA6: 12058 | QVB6: 12059 | QVC6: 12060 | QVD6: 12061 | QVE6: 12062 | QVF6: 12063 | QVG6: 12064 | QVH6: 12065 | QVI6: 12066 | QVJ6: 12067 | QVK6: 12068 | QVL6: 12069 | QVM6: 12070 | QVN6: 12071 | QVO6: 12072 | QVP6: 12073 | QVQ6: 12074 | QVR6: 12075 | QVS6: 12076 | QVT6: 12077 | QVU6: 12078 | QVV6: 12079 | QVW6: 12080 | QVX6: 12081 | QVY6: 12082 | QVZ6: 12083 | QWA6: 12084 | QWB6: 12085 | QWC6: 12086 | QWD6: 12087 | QWE6: 12088 | QWF6: 12089 | QWG6: 12090 | QWH6: 12091 | QWI6: 12092 | QWJ6: 12093 | QWK6: 12094 | QWL6: 12095 | QWM6: 12096 | QWN6: 12097 | QWO6: 12098 | QWP6: 12099 | QWQ6: 12100 | QWR6: 12101 | QWS6: 12102 | QWT6: 12103 | QWU6: 12104 | QWV6: 12105 | QWW6: 12106 | QWX6: 12107 | QWY6: 12108 | QWZ6: 12109 | QXA6: 12110 | QXB6: 12111 | QXC6: 12112 | QXD6: 12113 | QXE6: 12114 | QXF6: 12115 | QXG6: 12116 | QXH6: 12117 | QXI6: 12118 | QXJ6: 12119 | QXK6: 12120 | QXL6: 12121 | QXM6: 12122 | QXN6: 12123 | QXO6: 12124 | QXP6: 12125 | QXQ6: 12126 | QXR6: 12127 | QXS6: 12128 | QXT6: 12129 | QXU6: 12130 | QXV6: 12131 | QXW6: 12132 | QXX6: 12133 | QXY6: 12134 | QXZ6: 12135 | QYA6: 12136 | QYB6: 12137 | QYC6: 12138 | QYD6: 12139 | QYE6: 12140 | QYF6: 12141 | QYG6: 12142 | QYH6: 12143 | QYI6: 12144 | QYJ6: 12145 | QYK6: 12146 | QYL6: 12147 | QYM6: 12148 | QYN6: 12149 | QYO6: 12150 | QYP6: 12151 | QYQ6: 12152 | QYR6: 12153 | QYS6: 12154 | QYT6: 12155 | QYU6: 12156 | QYV6: 12157 | QYW6: 12158 | QYX6: 12159 | QYY6: 12160 | QYZ6: 12161 | QZA6: 12162 | QZB6: 12163 | QZC6: 12164 | QZD6: 12165 | QZE6: 12166 | QZF6: 12167 | QZG6: 12168 | QZH6: 12169 | QZI6: 12170 | QZJ6: 12171 | QZK6: 12172 | QZL6: 12173 | QZM6: 12174 | QZN6: 12175 | QZO6: 12176 | QZP6: 12177 | QZQ6: 12178 | QZR6: 12179 | QZS6: 12180 | QZT6: 12181 | QZU6: 12182 | QZV6: 12183 | QZW6: 12184 | QZX6: 12185 | QZY6: 12186 | QZZ6: 12187 | RAA6: 12188 | RAB6: 12189 | RAC6: 12190 | RAD6: 12191 | RAE6: 12192 | RAF6: 12193 | RAG6: 12194 | RAH6: 12195 | RAI6: 12196 | RAJ6: 12197 | RAK6: 12198 | RAL6: 12199 | RAM6: 12200 | RAN6: 12201 | RAO6: 12202 | RAP6: 12203 | RAQ6: 12204 | RAR6: 12205 | RAS6: 12206 | RAT6: 12207 | RAU6: 12208 | RAV6: 12209 | RAW6: 12210 | RAX6: 12211 | RAY6: 12212 | RAZ6: 12213 | RBA6: 12214 | RBB6: 12215 | RBC6: 12216 | RBD6: 12217 | RBE6: 12218 | RBF6: 12219 | RBG6: 12220 | RBH6: 12221 | RBI6: 12222 | RBJ6: 12223 | RBK6: 12224 | RBL6: 12225 | RBM6: 12226 | RBN6: 12227 | RBO6: 12228 | RBP6: 12229 | RBQ6: 12230 | RBR6: 12231 | RBS6: 12232 | RBT6: 12233 | RBU6: 12234 | RBV6: 12235 | RBW6: 12236 | RBX6: 12237 | RBY6: 12238 | RBZ6: 12239 | RCA6: 12240 | RCB6: 12241 | RCC6: 12242 | RCD6: 12243 | RCE6: 12244 | RCF6: 12245 | RCG6: 12246 | RCH6: 12247 | RCI6: 12248 | RCJ6: 12249 | RCK6: 12250 | RCL6: 12251 | RCM6: 12252 | RCN6: 12253 | RCO6: 12254 | RCP6: 12255 | RCQ6: 12256 | RCR6: 12257 | RCS6: 12258 | RCT6: 12259 | RCU6: 12260 | RCV6: 12261 | RCW6: 12262 | RCX6: 12263 | RCY6: 12264 | RCZ6: 12265 | RDA6: 12266 | RDB6: 12267 | RDC6: 12268 | RDD6: 12269 | RDE6: 12270 | RDF6: 12271 | RDG6: 12272 | RDH6: 12273 | RDI6: 12274 | RDJ6: 12275 | RDK6: 12276 | RDL6: 12277 | RDM6: 12278 | RDN6: 12279 | RDO6: 12280 | RDP6: 12281 | RDQ6: 12282 | RDR6: 12283 | RDS6: 12284 | RDT6: 12285 | RDU6: 12286 | RDV6: 12287 | RDW6: 12288 | RDX6: 12289 | RDY6: 12290 | RDZ6: 12291 | REA6: 12292 | REB6: 12293 | REC6: 12294 | RED6: 12295 | REE6: 12296 | REF6: 12297 | REG6: 12298 | REH6: 12299 | REI6: 12300 | REJ6: 12301 | REK6: 12302 | REL6: 12303 | REM6: 12304 | REN6: 12305 | REO6: 12306 | REP6: 12307 | REQ6: 12308 | RER6: 12309 | RES6: 12310 | RET6: 12311 | REU6: 12312 | REV6: 12313 | REW6: 12314 | REX6: 12315 | REY6: 12316 | REZ6: 12317 | RFA6: 12318 | RFB6: 12319 | RFC6: 12320 | RFD6: 12321 | RFE6: 12322 | RFF6: 12323 | RFG6: 12324 | RFH6: 12325 | RFI6: 12326 | RFJ6: 12327 | RFK6: 12328 | RFL6: 12329 | RFM6: 12330 | RFN6: 12331 | RFO6: 12332 | RFP6: 12333 | RFQ6: 12334 | RFR6: 12335 | RFS6: 12336 | RFT6: 12337 | RFU6: 12338 | RFV6: 12339 | RFW6: 12340 | RFX6: 12341 | RFY6: 12342 | RFZ6: 12343 | RGA6: 12344 | RGB6: 12345 | RGC6: 12346 | RGD6: 12347 | RGE6: 12348 | RGF6: 12349 | RGG6: 12350 | RGH6: 12351 | RGI6: 12352 | RGJ6: 12353 | RGK6: 12354 | RGL6: 12355 | RGM6: 12356 | RGN6: 12357 | RGO6: 12358 | RGP6: 12359 | RGQ6: 12360 | RGR6: 12361 | RGS6: 12362 | RGT6: 12363 | RGU6: 12364 | RGV6: 12365 | RGW6: 12366 | RGX6: 12367 | RGY6: 12368 | RGZ6: 12369 | RHA6: 12370 | RHB6: 12371 | RHC6: 12372 | RHD6: 12373 | RHE6: 12374 | RHF6: 12375 | RHG6: 12376 | RHH6: 12377 | RHI6: 12378 | RHJ6: 12379 | RHK6: 12380 | RHL6: 12381 | RHM6: 12382 | RHN6: 12383 | RHO6: 12384 | RHP6: 12385 | RHQ6: 12386 | RHR6: 12387 | RHS6: 12388 | RHT6: 12389 | RHU6: 12390 | RHV6: 12391 | RHW6: 12392 | RHX6: 12393 | RHY6: 12394 | RHZ6: 12395 | RIA6: 12396 | RIB6: 12397 | RIC6: 12398 | RID6: 12399 | RIE6: 12400 | RIF6: 12401 | RIG6: 12402 | RIH6: 12403 | RII6: 12404 | RIJ6: 12405 | RIK6: 12406 | RIL6: 12407 | RIM6: 12408 | RIN6: 12409 | RIO6: 12410 | RIP6: 12411 | RIQ6: 12412 | RIR6: 12413 | RIS6: 12414 | RIT6: 12415 | RIU6: 12416 | RIV6: 12417 | RIW6: 12418 | RIX6: 12419 | RIY6: 12420 | RIZ6: 12421 | RJA6: 12422 | RJB6: 12423 | RJC6: 12424 | RJD6: 12425 | RJE6: 12426 | RJF6: 12427 | RJG6: 12428 | RJH6: 12429 | RJI6: 12430 | RJJ6: 12431 | RJK6: 12432 | RJL6: 12433 | RJM6: 12434 | RJN6: 12435 | RJO6: 12436 | RJP6: 12437 | RJQ6: 12438 | RJR6: 12439 | RJS6: 12440 | RJT6: 12441 | RJU6: 12442 | RJV6: 12443 | RJW6: 12444 | RJX6: 12445 | RJY6: 12446 | RJZ6: 12447 | RKA6: 12448 | RKB6: 12449 | RKC6: 12450 | RKD6: 12451 | RKE6: 12452 | RKF6: 12453 | RKG6: 12454 | RKH6: 12455 | RKI6: 12456 | RKJ6: 12457 | RKK6: 12458 | RKL6: 12459 | RKM6: 12460 | RKN6: 12461 | RKO6: 12462 | RKP6: 12463 | RKQ6: 12464 | RKR6: 12465 | RKS6: 12466 | RKT6: 12467 | RKU6: 12468 | RKV6: 12469 | RKW6: 12470 | RKX6: 12471 | RKY6: 12472 | RKZ6: 12473 | RLA6: 12474 | RLB6: 12475 | RLC6: 12476 | RLD6: 12477 | RLE6: 12478 | RLF6: 12479 | RLG6: 12480 | RLH6: 12481 | RLI6: 12482 | RLJ6: 12483 | RLK6: 12484 | RLL6: 12485 | RLM6: 12486 | RLN6: 12487 | RLO6: 12488 | RLP6: 12489 | RLQ6: 12490 | RLR6: 12491 | RLS6: 12492 | RLT6: 12493 | RLU6: 12494 | RLV6: 12495 | RLW6: 12496 | RLX6: 12497 | RLY6: 12498 | RLZ6: 12499 | RMA6: 12500 | RMB6: 12501 | RMC6: 12502 | RMD6: 12503 | RME6: 12504 | RMF6: 12505 | RMG6: 12506 | RMH6: 12507 | RMI6: 12508 | RMJ6: 12509 | RMK6: 12510 | RML6: 12511 | RMM6: 12512 | RMN6: 12513 | RMO6: 12514 | RMP6: 12515 | RMQ6: 12516 | RMR6: 12517 | RMS6: 12518 | RMT6: 12519 | RMU6: 12520 | RMV6: 12521 | RMW6: 12522 | RMX6: 12523 | RMY6: 12524 | RMZ6: 12525 | RNA6: 12526 | RNB6: 12527 | RNC6: 12528 | RND6: 12529 | RNE6: 12530 | RNF6: 12531 | RNG6: 12532 | RNH6: 12533 | RNI6: 12534 | RNJ6: 12535 | RNK6: 12536 | RNL6: 12537 | RNM6: 12538 | RNN6: 12539 | RNO6: 12540 | RNP6: 12541 | RNQ6: 12542 | RNR6: 12543 | RNS6: 12544 | RNT6: 12545 | RNU6: 12546 | RNV6: 12547 | RNW6: 12548 | RNX6: 12549 | RNY6: 12550 | RNZ6: 12551 | ROA6: 12552 | ROB6: 12553 | ROC6: 12554 | ROD6: 12555 | ROE6: 12556 | ROF6: 12557 | ROG6: 12558 | ROH6: 12559 | ROI6: 12560 | ROJ6: 12561 | ROK6: 12562 | ROL6: 12563 | ROM6: 12564 | RON6: 12565 | ROO6: 12566 | ROP6: 12567 | ROQ6: 12568 | ROR6: 12569 | ROS6: 12570 | ROT6: 12571 | ROU6: 12572 | ROV6: 12573 | ROW6: 12574 | ROX6: 12575 | ROY6: 12576 | ROZ6: 12577 | RPA6: 12578 | RPB6: 12579 | RPC6: 12580 | RPD6: 12581 | RPE6: 12582 | RPF6: 12583 | RPG6: 12584 | RPH6: 12585 | RPI6: 12586 | RPJ6: 12587 | RPK6: 12588 | RPL6: 12589 | RPM6: 12590 | RPN6: 12591 | RPO6: 12592 | RPP6: 12593 | RPQ6: 12594 | RPR6: 12595 | RPS6: 12596 | RPT6: 12597 | RPU6: 12598 | RPV6: 12599 | RPW6: 12600 | RPX6: 12601 | RPY6: 12602 | RPZ6: 12603 | RQA6: 12604 | RQB6: 12605 | RQC6: 12606 | RQD6: 12607 | RQE6: 12608 | RQF6: 12609 | RQG6: 12610 | RQH6: 12611 | RQI6: 12612 | RQJ6: 12613 | RQK6: 12614 | RQL6: 12615 | RQM6: 12616 | RQN6: 12617 | RQO6: 12618 | RQP6: 12619 | RQQ6: 12620 | RQR6: 12621 | RQS6: 12622 | RQT6: 12623 | RQU6: 12624 | RQV6: 12625 | RQW6: 12626 | RQX6: 12627 | RQY6: 12628 | RQZ6: 12629 | RRA6: 12630 | RRB6: 12631 | RRC6: 12632 | RRD6: 12633 | RRE6: 12634 | RRF6: 12635 | RRG6: 12636 | RRH6: 12637 | RRI6: 12638 | RRJ6: 12639 | RRK6: 12640 | RRL6: 12641 | RRM6: 12642 | RRN6: 12643 | RRO6: 12644 | RRP6: 12645 | RRQ6: 12646 | RRR6: 12647 | RRS6: 12648 | RRT6: 12649 | RRU6: 12650 | RRV6: 12651 | RRW6: 12652 | RRX6: 12653 | RRY6: 12654 | RRZ6: 12655 | RSA6: 12656 | RSB6: 12657 | RSC6: 12658 | RSD6: 12659 | RSE6: 12660 | RSF6: 12661 | RSG6: 12662 | RSH6: 12663 | RSI6: 12664 | RSJ6: 12665 | RSK6: 12666 | RSL6: 12667 | RSM6: 12668 | RSN6: 12669 | RSO6: 12670 | RSP6: 12671 | RSQ6: 12672 | RSR6: 12673 | RSS6: 12674 | RST6: 12675 | RSU6: 12676 | RSV6: 12677 | RSW6: 12678 | RSX6: 12679 | RSY6: 12680 | RSZ6: 12681 | RTA6: 12682 | RTB6: 12683 | RTC6: 12684 | RTD6: 12685 | RTE6: 12686 | RTF6: 12687 | RTG6: 12688 | RTH6: 12689 | RTI6: 12690 | RTJ6: 12691 | RTK6: 12692 | RTL6: 12693 | RTM6: 12694 | RTN6: 12695 | RTO6: 12696 | RTP6: 12697 | RTQ6: 12698 | RTR6: 12699 | RTS6: 12700 | RTT6: 12701 | RTU6: 12702 | RTV6: 12703 | RTW6: 12704 | RTX6: 12705 | RTY6: 12706 | RTZ6: 12707 | RUA6: 12708 | RUB6: 12709 | RUC6: 12710 | RUD6: 12711 | RUE6: 12712 | RUF6: 12713 | RUG6: 12714 | RUH6: 12715 | RUI6: 12716 | RUJ6: 12717 | RUK6: 12718 | RUL6: 12719 | RUM6: 12720 | RUN6: 12721 | RUO6: 12722 | RUP6: 12723 | RUQ6: 12724 | RUR6: 12725 | RUS6: 12726 | RUT6: 12727 | RUU6: 12728 | RUV6: 12729 | RUW6: 12730 | RUX6: 12731 | RUY6: 12732 | RUZ6: 12733 | RVA6: 12734 | RVB6: 12735 | RVC6: 12736 | RVD6: 12737 | RVE6: 12738 | RVF6: 12739 | RVG6: 12740 | RVH6: 12741 | RVI6: 12742 | RVJ6: 12743 | RVK6: 12744 | RVL6: 12745 | RVM6: 12746 | RVN6: 12747 | RVO6: 12748 | RVP6: 12749 | RVQ6: 12750 | RVR6: 12751 | RVS6: 12752 | RVT6: 12753 | RVU6: 12754 | RVV6: 12755 | RVW6: 12756 | RVX6: 12757 | RVY6: 12758 | RVZ6: 12759 | RWA6: 12760 | RWB6: 12761 | RWC6: 12762 | RWD6: 12763 | RWE6: 12764 | RWF6: 12765 | RWG6: 12766 | RWH6: 12767 | RWI6: 12768 | RWJ6: 12769 | RWK6: 12770 | RWL6: 12771 | RWM6: 12772 | RWN6: 12773 | RWO6: 12774 | RWP6: 12775 | RWQ6: 12776 | RWR6: 12777 | RWS6: 12778 | RWT6: 12779 | RWU6: 12780 | RWV6: 12781 | RWW6: 12782 | RWX6: 12783 | RWY6: 12784 | RWZ6: 12785 | RXA6: 12786 | RXB6: 12787 | RXC6: 12788 | RXD6: 12789 | RXE6: 12790 | RXF6: 12791 | RXG6: 12792 | RXH6: 12793 | RXI6: 12794 | RXJ6: 12795 | RXK6: 12796 | RXL6: 12797 | RXM6: 12798 | RXN6: 12799 | RXO6: 12800 | RXP6: 12801 | RXQ6: 12802 | RXR6: 12803 | RXS6: 12804 | RXT6: 12805 | RXU6: 12806 | RXV6: 12807 | RXW6: 12808 | RXX6: 12809 | RXY6: 12810 | RXZ6: 12811 | RYA6: 12812 | RYB6: 12813 | RYC6: 12814 | RYD6: 12815 | RYE6: 12816 | RYF6: 12817 | RYG6: 12818 | RYH6: 12819 | RYI6: 12820 | RYJ6: 12821 | RYK6: 12822 | RYL6: 12823 | RYM6: 12824 | RYN6: 12825 | RYO6: 12826 | RYP6: 12827 | RYQ6: 12828 | RYR6: 12829 | RYS6: 12830 | RYT6: 12831 | RYU6: 12832 | RYV6: 12833 | RYW6: 12834 | RYX6: 12835 | RYY6: 12836 | RYZ6: 12837 | RZA6: 12838 | RZB6: 12839 | RZC6: 12840 | RZD6: 12841 | RZE6: 12842 | RZF6: 12843 | RZG6: 12844 | RZH6: 12845 | RZI6: 12846 | RZJ6: 12847 | RZK6: 12848 | RZL6: 12849 | RZM6: 12850 | RZN6: 12851 | RZO6: 12852 | RZP6: 12853 | RZQ6: 12854 | RZR6: 12855 | RZS6: 12856 | RZT6: 12857 | RZU6: 12858 | RZV6: 12859 | RZW6: 12860 | RZX6: 12861 | RZY6: 12862 | RZZ6: 12863 | SAA6: 12864 | SAB6: 12865 | SAC6: 12866 | SAD6: 12867 | SAE6: 12868 | SAF6: 12869 | SAG6: 12870 | SAH6: 12871 | SAI6: 12872 | SAJ6: 12873 | SAK6: 12874 | SAL6: 12875 | SAM6: 12876 | SAN6: 12877 | SAO6: 12878 | SAP6: 12879 | SAQ6: 12880 | SAR6: 12881 | SAS6: 12882 | SAT6: 12883 | SAU6: 12884 | SAV6: 12885 | SAW6: 12886 | SAX6: 12887 | SAY6: 12888 | SAZ6: 12889 | SBA6: 12890 | SBB6: 12891 | SBC6: 12892 | SBD6: 12893 | SBE6: 12894 | SBF6: 12895 | SBG6: 12896 | SBH6: 12897 | SBI6: 12898 | SBJ6: 12899 | SBK6: 12900 | SBL6: 12901 | SBM6: 12902 | SBN6: 12903 | SBO6: 12904 | SBP6: 12905 | SBQ6: 12906 | SBR6: 12907 | SBS6: 12908 | SBT6: 12909 | SBU6: 12910 | SBV6: 12911 | SBW6: 12912 | SBX6: 12913 | SBY6: 12914 | SBZ6: 12915 | SCA6: 12916 | SCB6: 12917 | SCC6: 12918 | SCD6: 12919 | SCE6: 12920 | SCF6: 12921 | SCG6: 12922 | SCH6: 12923 | SCI6: 12924 | SCJ6: 12925 | SCK6: 12926 | SCL6: 12927 | SCM6: 12928 | SCN6: 12929 | SCO6: 12930 | SCP6: 12931 | SCQ6: 12932 | SCR6: 12933 | SCS6: 12934 | SCT6: 12935 | SCU6: 12936 | SCV6: 12937 | SCW6: 12938 | SCX6: 12939 | SCY6: 12940 | SCZ6: 12941 | SDA6: 12942 | SDB6: 12943 | SDC6: 12944 | SDD6: 12945 | SDE6: 12946 | SDF6: 12947 | SDG6: 12948 | SDH6: 12949 | SDI6: 12950 | SDJ6: 12951 | SDK6: 12952 | SDL6: 12953 | SDM6: 12954 | SDN6: 12955 | SDO6: 12956 | SDP6: 12957 | SDQ6: 12958 | SDR6: 12959 | SDS6: 12960 | SDT6: 12961 | SDU6: 12962 | SDV6: 12963 | SDW6: 12964 | SDX6: 12965 | SDY6: 12966 | SDZ6: 12967 | SEA6: 12968 | SEB6: 12969 | SEC6: 12970 | SED6: 12971 | SEE6: 12972 | SEF6: 12973 | SEG6: 12974 | SEH6: 12975 | SEI6: 12976 | SEJ6: 12977 | SEK6: 12978 | SEL6: 12979 | SEM6: 12980 | SEN6: 12981 | SEO6: 12982 | SEP6: 12983 | SEQ6: 12984 | SER6: 12985 | SES6: 12986 | SET6: 12987 | SEU6: 12988 | SEV6: 12989 | SEW6: 12990 | SEX6: 12991 | SEY6: 12992 | SEZ6: 12993 | SFA6: 12994 | SFB6: 12995 | SFC6: 12996 | SFD6: 12997 | SFE6: 12998 | SFF6: 12999 | SFG6: 13000 | SFH6: 13001 | SFI6: 13002 | SFJ6: 13003 | SFK6: 13004 | SFL6: 13005 | SFM6: 13006 | SFN6: 13007 | SFO6: 13008 | SFP6: 13009 | SFQ6: 13010 | SFR6: 13011 | SFS6: 13012 | SFT6: 13013 | SFU6: 13014 | SFV6: 13015 | SFW6: 13016 | SFX6: 13017 | SFY6: 13018 | SFZ6: 13019 | SGA6: 13020 | SGB6: 13021 | SGC6: 13022 | SGD6: 13023 | SGE6: 13024 | SGF6: 13025 | SGG6: 13026 | SGH6: 13027 | SGI6: 13028 | SGJ6: 13029 | SGK6: 13030 | SGL6: 13031 | SGM6: 13032 | SGN6: 13033 | SGO6: 13034 | SGP6: 13035 | SGQ6: 13036 | SGR6: 13037 | SGS6: 13038 | SGT6: 13039 | SGU6: 13040 | SGV6: 13041 | SGW6: 13042 | SGX6: 13043 | SGY6: 13044 | SGZ6: 13045 | SHA6: 13046 | SHB6: 13047 | SHC6: 13048 | SHD6: 13049 | SHE6: 13050 | SHF6: 13051 | SHG6: 13052 | SHH6: 13053 | SHI6: 13054 | SHJ6: 13055 | SHK6: 13056 | SHL6: 13057 | SHM6: 13058 | SHN6: 13059 | SHO6: 13060 | SHP6: 13061 | SHQ6: 13062 | SHR6: 13063 | SHS6: 13064 | SHT6: 13065 | SHU6: 13066 | SHV6: 13067 | SHW6: 13068 | SHX6: 13069 | SHY6: 13070 | SHZ6: 13071 | SIA6: 13072 | SIB6: 13073 | SIC6: 13074 | SID6: 13075 | SIE6: 13076 | SIF6: 13077 | SIG6: 13078 | SIH6: 13079 | SII6: 13080 | SIJ6: 13081 | SIK6: 13082 | SIL6: 13083 | SIM6: 13084 | SIN6: 13085 | SIO6: 13086 | SIP6: 13087 | SIQ6: 13088 | SIR6: 13089 | SIS6: 13090 | SIT6: 13091 | SIU6: 13092 | SIV6: 13093 | SIW6: 13094 | SIX6: 13095 | SIY6: 13096 | SIZ6: 13097 | SJA6: 13098 | SJB6: 13099 | SJC6: 13100 | SJD6: 13101 | SJE6: 13102 | SJF6: 13103 | SJG6: 13104 | SJH6: 13105 | SJI6: 13106 | SJJ6: 13107 | SJK6: 13108 | SJL6: 13109 | SJM6: 13110 | SJN6: 13111 | SJO6: 13112 | SJP6: 13113 | SJQ6: 13114 | SJR6: 13115 | SJS6: 13116 | SJT6: 13117 | SJU6: 13118 | SJV6: 13119 | SJW6: 13120 | SJX6: 13121 | SJY6: 13122 | SJZ6: 13123 | SKA6: 13124 | SKB6: 13125 | SKC6: 13126 | SKD6: 13127 | SKE6: 13128 | SKF6: 13129 | SKG6: 13130 | SKH6: 13131 | SKI6: 13132 | SKJ6: 13133 | SKK6: 13134 | SKL6: 13135 | SKM6: 13136 | SKN6: 13137 | SKO6: 13138 | SKP6: 13139 | SKQ6: 13140 | SKR6: 13141 | SKS6: 13142 | SKT6: 13143 | SKU6: 13144 | SKV6: 13145 | SKW6: 13146 | SKX6: 13147 | SKY6: 13148 | SKZ6: 13149 | SLA6: 13150 | SLB6: 13151 | SLC6: 13152 | SLD6: 13153 | SLE6: 13154 | SLF6: 13155 | SLG6: 13156 | SLH6: 13157 | SLI6: 13158 | SLJ6: 13159 | SLK6: 13160 | SLL6: 13161 | SLM6: 13162 | SLN6: 13163 | SLO6: 13164 | SLP6: 13165 | SLQ6: 13166 | SLR6: 13167 | SLS6: 13168 | SLT6: 13169 | SLU6: 13170 | SLV6: 13171 | SLW6: 13172 | SLX6: 13173 | SLY6: 13174 | SLZ6: 13175 | SMA6: 13176 | SMB6: 13177 | SMC6: 13178 | SMD6: 13179 | SME6: 13180 | SMF6: 13181 | SMG6: 13182 | SMH6: 13183 | SMI6: 13184 | SMJ6: 13185 | SMK6: 13186 | SML6: 13187 | SMM6: 13188 | SMN6: 13189 | SMO6: 13190 | SMP6: 13191 | SMQ6: 13192 | SMR6: 13193 | SMS6: 13194 | SMT6: 13195 | SMU6: 13196 | SMV6: 13197 | SMW6: 13198 | SMX6: 13199 | SMY6: 13200 | SMZ6: 13201 | SNA6: 13202 | SNB6: 13203 | SNC6: 13204 | SND6: 13205 | SNE6: 13206 | SNF6: 13207 | SNG6: 13208 | SNH6: 13209 | SNI6: 13210 | SNJ6: 13211 | SNK6: 13212 | SNL6: 13213 | SNM6: 13214 | SNN6: 13215 | SNO6: 13216 | SNP6: 13217 | SNQ6: 13218 | SNR6: 13219 | SNS6: 13220 | SNT6: 13221 | SNU6: 13222 | SNV6: 13223 | SNW6: 13224 | SNX6: 13225 | SNY6: 13226 | SNZ6: 13227 | SOA6: 13228 | SOB6: 13229 | SOC6: 13230 | SOD6: 13231 | SOE6: 13232 | SOF6: 13233 | SOG6: 13234 | SOH6: 13235 | SOI6: 13236 | SOJ6: 13237 | SOK6: 13238 | SOL6: 13239 | SOM6: 13240 | SON6: 13241 | SOO6: 13242 | SOP6: 13243 | SOQ6: 13244 | SOR6: 13245 | SOS6: 13246 | SOT6: 13247 | SOU6: 13248 | SOV6: 13249 | SOW6: 13250 | SOX6: 13251 | SOY6: 13252 | SOZ6: 13253 | SPA6: 13254 | SPB6: 13255 | SPC6: 13256 | SPD6: 13257 | SPE6: 13258 | SPF6: 13259 | SPG6: 13260 | SPH6: 13261 | SPI6: 13262 | SPJ6: 13263 | SPK6: 13264 | SPL6: 13265 | SPM6: 13266 | SPN6: 13267 | SPO6: 13268 | SPP6: 13269 | SPQ6: 13270 | SPR6: 13271 | SPS6: 13272 | SPT6: 13273 | SPU6: 13274 | SPV6: 13275 | SPW6: 13276 | SPX6: 13277 | SPY6: 13278 | SPZ6: 13279 | SQA6: 13280 | SQB6: 13281 | SQC6: 13282 | SQD6: 13283 | SQE6: 13284 | SQF6: 13285 | SQG6: 13286 | SQH6: 13287 | SQI6: 13288 | SQJ6: 13289 | SQK6: 13290 | SQL6: 13291 | SQM6: 13292 | SQN6: 13293 | SQO6: 13294 | SQP6: 13295 | SQQ6: 13296 | SQR6: 13297 | SQS6: 13298 | SQT6: 13299 | SQU6: 13300 | SQV6: 13301 | SQW6: 13302 | SQX6: 13303 | SQY6: 13304 | SQZ6: 13305 | SRA6: 13306 | SRB6: 13307 | SRC6: 13308 | SRD6: 13309 | SRE6: 13310 | SRF6: 13311 | SRG6: 13312 | SRH6: 13313 | SRI6: 13314 | SRJ6: 13315 | SRK6: 13316 | SRL6: 13317 | SRM6: 13318 | SRN6: 13319 | SRO6: 13320 | SRP6: 13321 | SRQ6: 13322 | SRR6: 13323 | SRS6: 13324 | SRT6: 13325 | SRU6: 13326 | SRV6: 13327 | SRW6: 13328 | SRX6: 13329 | SRY6: 13330 | SRZ6: 13331 | SSA6: 13332 | SSB6: 13333 | SSC6: 13334 | SSD6: 13335 | SSE6: 13336 | SSF6: 13337 | SSG6: 13338 | SSH6: 13339 | SSI6: 13340 | SSJ6: 13341 | SSK6: 13342 | SSL6: 13343 | SSM6: 13344 | SSN6: 13345 | SSO6: 13346 | SSP6: 13347 | SSQ6: 13348 | SSR6: 13349 | SSS6: 13350 | SST6: 13351 | SSU6: 13352 | SSV6: 13353 | SSW6: 13354 | SSX6: 13355 | SSY6: 13356 | SSZ6: 13357 | STA6: 13358 | STB6: 13359 | STC6: 13360 | STD6: 13361 | STE6: 13362 | STF6: 13363 | STG6: 13364 | STH6: 13365 | STI6: 13366 | STJ6: 13367 | STK6: 13368 | STL6: 13369 | STM6: 13370 | STN6: 13371 | STO6: 13372 | STP6: 13373 | STQ6: 13374 | STR6: 13375 | STS6: 13376 | STT6: 13377 | STU6: 13378 | STV6: 13379 | STW6: 13380 | STX6: 13381 | STY6: 13382 | STZ6: 13383 | SUA6: 13384 | SUB6: 13385 | SUC6: 13386 | SUD6: 13387 | SUE6: 13388 | SUF6: 13389 | SUG6: 13390 | SUH6: 13391 | SUI6: 13392 | SUJ6: 13393 | SUK6: 13394 | SUL6: 13395 | SUM6: 13396 | SUN6: 13397 | SUO6: 13398 | SUP6: 13399 | SUQ6: 13400 | SUR6: 13401 | SUS6: 13402 | SUT6: 13403 | SUU6: 13404 | SUV6: 13405 | SUW6: 13406 | SUX6: 13407 | SUY6: 13408 | SUZ6: 13409 | SVA6: 13410 | SVB6: 13411 | SVC6: 13412 | SVD6: 13413 | SVE6: 13414 | SVF6: 13415 | SVG6: 13416 | SVH6: 13417 | SVI6: 13418 | SVJ6: 13419 | SVK6: 13420 | SVL6: 13421 | SVM6: 13422 | SVN6: 13423 | SVO6: 13424 | SVP6: 13425 | SVQ6: 13426 | SVR6: 13427 | SVS6: 13428 | SVT6: 13429 | SVU6: 13430 | SVV6: 13431 | SVW6: 13432 | SVX6: 13433 | SVY6: 13434 | SVZ6: 13435 | SWA6: 13436 | SWB6: 13437 | SWC6: 13438 | SWD6: 13439 | SWE6: 13440 | SWF6: 13441 | SWG6: 13442 | SWH6: 13443 | SWI6: 13444 | SWJ6: 13445 | SWK6: 13446 | SWL6: 13447 | SWM6: 13448 | SWN6: 13449 | SWO6: 13450 | SWP6: 13451 | SWQ6: 13452 | SWR6: 13453 | SWS6: 13454 | SWT6: 13455 | SWU6: 13456 | SWV6: 13457 | SWW6: 13458 | SWX6: 13459 | SWY6: 13460 | SWZ6: 13461 | SXA6: 13462 | SXB6: 13463 | SXC6: 13464 | SXD6: 13465 | SXE6: 13466 | SXF6: 13467 | SXG6: 13468 | SXH6: 13469 | SXI6: 13470 | SXJ6: 13471 | SXK6: 13472 | SXL6: 13473 | SXM6: 13474 | SXN6: 13475 | SXO6: 13476 | SXP6: 13477 | SXQ6: 13478 | SXR6: 13479 | SXS6: 13480 | SXT6: 13481 | SXU6: 13482 | SXV6: 13483 | SXW6: 13484 | SXX6: 13485 | SXY6: 13486 | SXZ6: 13487 | SYA6: 13488 | SYB6: 13489 | SYC6: 13490 | SYD6: 13491 | SYE6: 13492 | SYF6: 13493 | SYG6: 13494 | SYH6: 13495 | SYI6: 13496 | SYJ6: 13497 | SYK6: 13498 | SYL6: 13499 | SYM6: 13500 | SYN6: 13501 | SYO6: 13502 | SYP6: 13503 | SYQ6: 13504 | SYR6: 13505 | SYS6: 13506 | SYT6: 13507 | SYU6: 13508 | SYV6: 13509 | SYW6: 13510 | SYX6: 13511 | SYY6: 13512 | SYZ6: 13513 | SZA6: 13514 | SZB6: 13515 | SZC6: 13516 | SZD6: 13517 | SZE6: 13518 | SZF6: 13519 | SZG6: 13520 | SZH6: 13521 | SZI6: 13522 | SZJ6: 13523 | SZK6: 13524 | SZL6: 13525 | SZM6: 13526 | SZN6: 13527 | SZO6: 13528 | SZP6: 13529 | SZQ6: 13530 | SZR6: 13531 | SZS6: 13532 | SZT6: 13533 | SZU6: 13534 | SZV6: 13535 | SZW6: 13536 | SZX6: 13537 | SZY6: 13538 | SZZ6: 13539 | TAA6: 13540 | TAB6: 13541 | TAC6: 13542 | TAD6: 13543 | TAE6: 13544 | TAF6: 13545 | TAG6: 13546 | TAH6: 13547 | TAI6: 13548 | TAJ6: 13549 | TAK6: 13550 | TAL6: 13551 | TAM6: 13552 | TAN6: 13553 | TAO6: 13554 | TAP6: 13555 | TAQ6: 13556 | TAR6: 13557 | TAS6: 13558 | TAT6: 13559 | TAU6: 13560 | TAV6: 13561 | TAW6: 13562 | TAX6: 13563 | TAY6: 13564 | TAZ6: 13565 | TBA6: 13566 | TBB6: 13567 | TBC6: 13568 | TBD6: 13569 | TBE6: 13570 | TBF6: 13571 | TBG6: 13572 | TBH6: 13573 | TBI6: 13574 | TBJ6: 13575 | TBK6: 13576 | TBL6: 13577 | TBM6: 13578 | TBN6: 13579 | TBO6: 13580 | TBP6: 13581 | TBQ6: 13582 | TBR6: 13583 | TBS6: 13584 | TBT6: 13585 | TBU6: 13586 | TBV6: 13587 | TBW6: 13588 | TBX6: 13589 | TBY6: 13590 | TBZ6: 13591 | TCA6: 13592 | TCB6: 13593 | TCC6: 13594 | TCD6: 13595 | TCE6: 13596 | TCF6: 13597 | TCG6: 13598 | TCH6: 13599 | TCI6: 13600 | TCJ6: 13601 | TCK6: 13602 | TCL6: 13603 | TCM6: 13604 | TCN6: 13605 | TCO6: 13606 | TCP6: 13607 | TCQ6: 13608 | TCR6: 13609 | TCS6: 13610 | TCT6: 13611 | TCU6: 13612 | TCV6: 13613 | TCW6: 13614 | TCX6: 13615 | TCY6: 13616 | TCZ6: 13617 | TDA6: 13618 | TDB6: 13619 | TDC6: 13620 | TDD6: 13621 | TDE6: 13622 | TDF6: 13623 | TDG6: 13624 | TDH6: 13625 | TDI6: 13626 | TDJ6: 13627 | TDK6: 13628 | TDL6: 13629 | TDM6: 13630 | TDN6: 13631 | TDO6: 13632 | TDP6: 13633 | TDQ6: 13634 | TDR6: 13635 | TDS6: 13636 | TDT6: 13637 | TDU6: 13638 | TDV6: 13639 | TDW6: 13640 | TDX6: 13641 | TDY6: 13642 | TDZ6: 13643 | TEA6: 13644 | TEB6: 13645 | TEC6: 13646 | TED6: 13647 | TEE6: 13648 | TEF6: 13649 | TEG6: 13650 | TEH6: 13651 | TEI6: 13652 | TEJ6: 13653 | TEK6: 13654 | TEL6: 13655 | TEM6: 13656 | TEN6: 13657 | TEO6: 13658 | TEP6: 13659 | TEQ6: 13660 | TER6: 13661 | TES6: 13662 | TET6: 13663 | TEU6: 13664 | TEV6: 13665 | TEW6: 13666 | TEX6: 13667 | TEY6: 13668 | TEZ6: 13669 | TFA6: 13670 | TFB6: 13671 | TFC6: 13672 | TFD6: 13673 | TFE6: 13674 | TFF6: 13675 | TFG6: 13676 | TFH6: 13677 | TFI6: 13678 | TFJ6: 13679 | TFK6: 13680 | TFL6: 13681 | TFM6: 13682 | TFN6: 13683 | TFO6: 13684 | TFP6: 13685 | TFQ6: 13686 | TFR6: 13687 | TFS6: 13688 | TFT6: 13689 | TFU6: 13690 | TFV6: 13691 | TFW6: 13692 | TFX6: 13693 | TFY6: 13694 | TFZ6: 13695 | TGA6: 13696 | TGB6: 13697 | TGC6: 13698 | TGD6: 13699 | TGE6: 13700 | TGF6: 13701 | TGG6: 13702 | TGH6: 13703 | TGI6: 13704 | TGJ6: 13705 | TGK6: 13706 | TGL6: 13707 | TGM6: 13708 | TGN6: 13709 | TGO6: 13710 | TGP6: 13711 | TGQ6: 13712 | TGR6: 13713 | TGS6: 13714 | TGT6: 13715 | TGU6: 13716 | TGV6: 13717 | TGW6: 13718 | TGX6: 13719 | TGY6: 13720 | TGZ6: 13721 | THA6: 13722 | THB6: 13723 | THC6: 13724 | THD6: 13725 | THE6: 13726 | THF6: 13727 | THG6: 13728 | THH6: 13729 | THI6: 13730 | THJ6: 13731 | THK6: 13732 | THL6: 13733 | THM6: 13734 | THN6: 13735 | THO6: 13736 | THP6: 13737 | THQ6: 13738 | THR6: 13739 | THS6: 13740 | THT6: 13741 | THU6: 13742 | THV6: 13743 | THW6: 13744 | THX6: 13745 | THY6: 13746 | THZ6: 13747 | TIA6: 13748 | TIB6: 13749 | TIC6: 13750 | TID6: 13751 | TIE6: 13752 | TIF6: 13753 | TIG6: 13754 | TIH6: 13755 | TII6: 13756 | TIJ6: 13757 | TIK6: 13758 | TIL6: 13759 | TIM6: 13760 | TIN6: 13761 | TIO6: 13762 | TIP6: 13763 | TIQ6: 13764 | TIR6: 13765 | TIS6: 13766 | TIT6: 13767 | TIU6: 13768 | TIV6: 13769 | TIW6: 13770 | TIX6: 13771 | TIY6: 13772 | TIZ6: 13773 | TJA6: 13774 | TJB6: 13775 | TJC6: 13776 | TJD6: 13777 | TJE6: 13778 | TJF6: 13779 | TJG6: 13780 | TJH6: 13781 | TJI6: 13782 | TJJ6: 13783 | TJK6: 13784 | TJL6: 13785 | TJM6: 13786 | TJN6: 13787 | TJO6: 13788 | TJP6: 13789 | TJQ6: 13790 | TJR6: 13791 | TJS6: 13792 | TJT6: 13793 | TJU6: 13794 | TJV6: 13795 | TJW6: 13796 | TJX6: 13797 | TJY6: 13798 | TJZ6: 13799 | TKA6: 13800 | TKB6: 13801 | TKC6: 13802 | TKD6: 13803 | TKE6: 13804 | TKF6: 13805 | TKG6: 13806 | TKH6: 13807 | TKI6: 13808 | TKJ6: 13809 | TKK6: 13810 | TKL6: 13811 | TKM6: 13812 | TKN6: 13813 | TKO6: 13814 | TKP6: 13815 | TKQ6: 13816 | TKR6: 13817 | TKS6: 13818 | TKT6: 13819 | TKU6: 13820 | TKV6: 13821 | TKW6: 13822 | TKX6: 13823 | TKY6: 13824 | TKZ6: 13825 | TLA6: 13826 | TLB6: 13827 | TLC6: 13828 | TLD6: 13829 | TLE6: 13830 | TLF6: 13831 | TLG6: 13832 | TLH6: 13833 | TLI6: 13834 | TLJ6: 13835 | TLK6: 13836 | TLL6: 13837 | TLM6: 13838 | TLN6: 13839 | TLO6: 13840 | TLP6: 13841 | TLQ6: 13842 | TLR6: 13843 | TLS6: 13844 | TLT6: 13845 | TLU6: 13846 | TLV6: 13847 | TLW6: 13848 | TLX6: 13849 | TLY6: 13850 | TLZ6: 13851 | TMA6: 13852 | TMB6: 13853 | TMC6: 13854 | TMD6: 13855 | TME6: 13856 | TMF6: 13857 | TMG6: 13858 | TMH6: 13859 | TMI6: 13860 | TMJ6: 13861 | TMK6: 13862 | TML6: 13863 | TMM6: 13864 | TMN6: 13865 | TMO6: 13866 | TMP6: 13867 | TMQ6: 13868 | TMR6: 13869 | TMS6: 13870 | TMT6: 13871 | TMU6: 13872 | TMV6: 13873 | TMW6: 13874 | TMX6: 13875 | TMY6: 13876 | TMZ6: 13877 | TNA6: 13878 | TNB6: 13879 | TNC6: 13880 | TND6: 13881 | TNE6: 13882 | TNF6: 13883 | TNG6: 13884 | TNH6: 13885 | TNI6: 13886 | TNJ6: 13887 | TNK6: 13888 | TNL6: 13889 | TNM6: 13890 | TNN6: 13891 | TNO6: 13892 | TNP6: 13893 | TNQ6: 13894 | TNR6: 13895 | TNS6: 13896 | TNT6: 13897 | TNU6: 13898 | TNV6: 13899 | TNW6: 13900 | TNX6: 13901 | TNY6: 13902 | TNZ6: 13903 | TOA6: 13904 | TOB6: 13905 | TOC6: 13906 | TOD6: 13907 | TOE6: 13908 | TOF6: 13909 | TOG6: 13910 | TOH6: 13911 | TOI6: 13912 | TOJ6: 13913 | TOK6: 13914 | TOL6: 13915 | TOM6: 13916 | TON6: 13917 | TOO6: 13918 | TOP6: 13919 | TOQ6: 13920 | TOR6: 13921 | TOS6: 13922 | TOT6: 13923 | TOU6: 13924 | TOV6: 13925 | TOW6: 13926 | TOX6: 13927 | TOY6: 13928 | TOZ6: 13929 | TPA6: 13930 | TPB6: 13931 | TPC6: 13932 | TPD6: 13933 | TPE6: 13934 | TPF6: 13935 | TPG6: 13936 | TPH6: 13937 | TPI6: 13938 | TPJ6: 13939 | TPK6: 13940 | TPL6: 13941 | TPM6: 13942 | TPN6: 13943 | TPO6: 13944 | TPP6: 13945 | TPQ6: 13946 | TPR6: 13947 | TPS6: 13948 | TPT6: 13949 | TPU6: 13950 | TPV6: 13951 | TPW6: 13952 | TPX6: 13953 | TPY6: 13954 | TPZ6: 13955 | TQA6: 13956 | TQB6: 13957 | TQC6: 13958 | TQD6: 13959 | TQE6: 13960 | TQF6: 13961 | TQG6: 13962 | TQH6: 13963 | TQI6: 13964 | TQJ6: 13965 | TQK6: 13966 | TQL6: 13967 | TQM6: 13968 | TQN6: 13969 | TQO6: 13970 | TQP6: 13971 | TQQ6: 13972 | TQR6: 13973 | TQS6: 13974 | TQT6: 13975 | TQU6: 13976 | TQV6: 13977 | TQW6: 13978 | TQX6: 13979 | TQY6: 13980 | TQZ6: 13981 | TRA6: 13982 | TRB6: 13983 | TRC6: 13984 | TRD6: 13985 | TRE6: 13986 | TRF6: 13987 | TRG6: 13988 | TRH6: 13989 | TRI6: 13990 | TRJ6: 13991 | TRK6: 13992 | TRL6: 13993 | TRM6: 13994 | TRN6: 13995 | TRO6: 13996 | TRP6: 13997 | TRQ6: 13998 | TRR6: 13999 | TRS6: 14000 | TRT6: 14001 | TRU6: 14002 | TRV6: 14003 | TRW6: 14004 | TRX6: 14005 | TRY6: 14006 | TRZ6: 14007 | TSA6: 14008 | TSB6: 14009 | TSC6: 14010 | TSD6: 14011 | TSE6: 14012 | TSF6: 14013 | TSG6: 14014 | TSH6: 14015 | TSI6: 14016 | TSJ6: 14017 | TSK6: 14018 | TSL6: 14019 | TSM6: 14020 | TSN6: 14021 | TSO6: 14022 | TSP6: 14023 | TSQ6: 14024 | TSR6: 14025 | TSS6: 14026 | TST6: 14027 | TSU6: 14028 | TSV6: 14029 | TSW6: 14030 | TSX6: 14031 | TSY6: 14032 | TSZ6: 14033 | TTA6: 14034 | TTB6: 14035 | TTC6: 14036 | TTD6: 14037 | TTE6: 14038 | TTF6: 14039 | TTG6: 14040 | TTH6: 14041 | TTI6: 14042 | TTJ6: 14043 | TTK6: 14044 | TTL6: 14045 | TTM6: 14046 | TTN6: 14047 | TTO6: 14048 | TTP6: 14049 | TTQ6: 14050 | TTR6: 14051 | TTS6: 14052 | TTT6: 14053 | TTU6: 14054 | TTV6: 14055 | TTW6: 14056 | TTX6: 14057 | TTY6: 14058 | TTZ6: 14059 | TUA6: 14060 | TUB6: 14061 | TUC6: 14062 | TUD6: 14063 | TUE6: 14064 | TUF6: 14065 | TUG6: 14066 | TUH6: 14067 | TUI6: 14068 | TUJ6: 14069 | TUK6: 14070 | TUL6: 14071 | TUM6: 14072 | TUN6: 14073 | TUO6: 14074 | TUP6: 14075 | TUQ6: 14076 | TUR6: 14077 | TUS6: 14078 | TUT6: 14079 | TUU6: 14080 | TUV6: 14081 | TUW6: 14082 | TUX6: 14083 | TUY6: 14084 | TUZ6: 14085 | TVA6: 14086 | TVB6: 14087 | TVC6: 14088 | TVD6: 14089 | TVE6: 14090 | TVF6: 14091 | TVG6: 14092 | TVH6: 14093 | TVI6: 14094 | TVJ6: 14095 | TVK6: 14096 | TVL6: 14097 | TVM6: 14098 | TVN6: 14099 | TVO6: 14100 | TVP6: 14101 | TVQ6: 14102 | TVR6: 14103 | TVS6: 14104 | TVT6: 14105 | TVU6: 14106 | TVV6: 14107 | TVW6: 14108 | TVX6: 14109 | TVY6: 14110 | TVZ6: 14111 | TWA6: 14112 | TWB6: 14113 | TWC6: 14114 | TWD6: 14115 | TWE6: 14116 | TWF6: 14117 | TWG6: 14118 | TWH6: 14119 | TWI6: 14120 | TWJ6: 14121 | TWK6: 14122 | TWL6: 14123 | TWM6: 14124 | TWN6: 14125 | TWO6: 14126 | TWP6: 14127 | TWQ6: 14128 | TWR6: 14129 | TWS6: 14130 | TWT6: 14131 | TWU6: 14132 | TWV6: 14133 | TWW6: 14134 | TWX6: 14135 | TWY6: 14136 | TWZ6: 14137 | TXA6: 14138 | TXB6: 14139 | TXC6: 14140 | TXD6: 14141 | TXE6: 14142 | TXF6: 14143 | TXG6: 14144 | TXH6: 14145 | TXI6: 14146 | TXJ6: 14147 | TXK6: 14148 | TXL6: 14149 | TXM6: 14150 | TXN6: 14151 | TXO6: 14152 | TXP6: 14153 | TXQ6: 14154 | TXR6: 14155 | TXS6: 14156 | TXT6: 14157 | TXU6: 14158 | TXV6: 14159 | TXW6: 14160 | TXX6: 14161 | TXY6: 14162 | TXZ6: 14163 | TYA6: 14164 | TYB6: 14165 | TYC6: 14166 | TYD6: 14167 | TYE6: 14168 | TYF6: 14169 | TYG6: 14170 | TYH6: 14171 | TYI6: 14172 | TYJ6: 14173 | TYK6: 14174 | TYL6: 14175 | TYM6: 14176 | TYN6: 14177 | TYO6: 14178 | TYP6: 14179 | TYQ6: 14180 | TYR6: 14181 | TYS6: 14182 | TYT6: 14183 | TYU6: 14184 | TYV6: 14185 | TYW6: 14186 | TYX6: 14187 | TYY6: 14188 | TYZ6: 14189 | TZA6: 14190 | TZB6: 14191 | TZC6: 14192 | TZD6: 14193 | TZE6: 14194 | TZF6: 14195 | TZG6: 14196 | TZH6: 14197 | TZI6: 14198 | TZJ6: 14199 | TZK6: 14200 | TZL6: 14201 | TZM6: 14202 | TZN6: 14203 | TZO6: 14204 | TZP6: 14205 | TZQ6: 14206 | TZR6: 14207 | TZS6: 14208 | TZT6: 14209 | TZU6: 14210 | TZV6: 14211 | TZW6: 14212 | TZX6: 14213 | TZY6: 14214 | TZZ6: 14215 | UAA6: 14216 | UAB6: 14217 | UAC6: 14218 | UAD6: 14219 | UAE6: 14220 | UAF6: 14221 | UAG6: 14222 | UAH6: 14223 | UAI6: 14224 | UAJ6: 14225 | UAK6: 14226 | UAL6: 14227 | UAM6: 14228 | UAN6: 14229 | UAO6: 14230 | UAP6: 14231 | UAQ6: 14232 | UAR6: 14233 | UAS6: 14234 | UAT6: 14235 | UAU6: 14236 | UAV6: 14237 | UAW6: 14238 | UAX6: 14239 | UAY6: 14240 | UAZ6: 14241 | UBA6: 14242 | UBB6: 14243 | UBC6: 14244 | UBD6: 14245 | UBE6: 14246 | UBF6: 14247 | UBG6: 14248 | UBH6: 14249 | UBI6: 14250 | UBJ6: 14251 | UBK6: 14252 | UBL6: 14253 | UBM6: 14254 | UBN6: 14255 | UBO6: 14256 | UBP6: 14257 | UBQ6: 14258 | UBR6: 14259 | UBS6: 14260 | UBT6: 14261 | UBU6: 14262 | UBV6: 14263 | UBW6: 14264 | UBX6: 14265 | UBY6: 14266 | UBZ6: 14267 | UCA6: 14268 | UCB6: 14269 | UCC6: 14270 | UCD6: 14271 | UCE6: 14272 | UCF6: 14273 | UCG6: 14274 | UCH6: 14275 | UCI6: 14276 | UCJ6: 14277 | UCK6: 14278 | UCL6: 14279 | UCM6: 14280 | UCN6: 14281 | UCO6: 14282 | UCP6: 14283 | UCQ6: 14284 | UCR6: 14285 | UCS6: 14286 | UCT6: 14287 | UCU6: 14288 | UCV6: 14289 | UCW6: 14290 | UCX6: 14291 | UCY6: 14292 | UCZ6: 14293 | UDA6: 14294 | UDB6: 14295 | UDC6: 14296 | UDD6: 14297 | UDE6: 14298 | UDF6: 14299 | UDG6: 14300 | UDH6: 14301 | UDI6: 14302 | UDJ6: 14303 | UDK6: 14304 | UDL6: 14305 | UDM6: 14306 | UDN6: 14307 | UDO6: 14308 | UDP6: 14309 | UDQ6: 14310 | UDR6: 14311 | UDS6: 14312 | UDT6: 14313 | UDU6: 14314 | UDV6: 14315 | UDW6: 14316 | UDX6: 14317 | UDY6: 14318 | UDZ6: 14319 | UEA6: 14320 | UEB6: 14321 | UEC6: 14322 | UED6: 14323 | UEE6: 14324 | UEF6: 14325 | UEG6: 14326 | UEH6: 14327 | UEI6: 14328 | UEJ6: 14329 | UEK6: 14330 | UEL6: 14331 | UEM6: 14332 | UEN6: 14333 | UEO6: 14334 | UEP6: 14335 | UEQ6: 14336 | UER6: 14337 | UES6: 14338 | UET6: 14339 | UEU6: 14340 | UEV6: 14341 | UEW6: 14342 | UEX6: 14343 | UEY6: 14344 | UEZ6: 14345 | UFA6: 14346 | UFB6: 14347 | UFC6: 14348 | UFD6: 14349 | UFE6: 14350 | UFF6: 14351 | UFG6: 14352 | UFH6: 14353 | UFI6: 14354 | UFJ6: 14355 | UFK6: 14356 | UFL6: 14357 | UFM6: 14358 | UFN6: 14359 | UFO6: 14360 | UFP6: 14361 | UFQ6: 14362 | UFR6: 14363 | UFS6: 14364 | UFT6: 14365 | UFU6: 14366 | UFV6: 14367 | UFW6: 14368 | UFX6: 14369 | UFY6: 14370 | UFZ6: 14371 | UGA6: 14372 | UGB6: 14373 | UGC6: 14374 | UGD6: 14375 | UGE6: 14376 | UGF6: 14377 | UGG6: 14378 | UGH6: 14379 | UGI6: 14380 | UGJ6: 14381 | UGK6: 14382 | UGL6: 14383 | UGM6: 14384 | UGN6: 14385 | UGO6: 14386 | UGP6: 14387 | UGQ6: 14388 | UGR6: 14389 | UGS6: 14390 | UGT6: 14391 | UGU6: 14392 | UGV6: 14393 | UGW6: 14394 | UGX6: 14395 | UGY6: 14396 | UGZ6: 14397 | UHA6: 14398 | UHB6: 14399 | UHC6: 14400 | UHD6: 14401 | UHE6: 14402 | UHF6: 14403 | UHG6: 14404 | UHH6: 14405 | UHI6: 14406 | UHJ6: 14407 | UHK6: 14408 | UHL6: 14409 | UHM6: 14410 | UHN6: 14411 | UHO6: 14412 | UHP6: 14413 | UHQ6: 14414 | UHR6: 14415 | UHS6: 14416 | UHT6: 14417 | UHU6: 14418 | UHV6: 14419 | UHW6: 14420 | UHX6: 14421 | UHY6: 14422 | UHZ6: 14423 | UIA6: 14424 | UIB6: 14425 | UIC6: 14426 | UID6: 14427 | UIE6: 14428 | UIF6: 14429 | UIG6: 14430 | UIH6: 14431 | UII6: 14432 | UIJ6: 14433 | UIK6: 14434 | UIL6: 14435 | UIM6: 14436 | UIN6: 14437 | UIO6: 14438 | UIP6: 14439 | UIQ6: 14440 | UIR6: 14441 | UIS6: 14442 | UIT6: 14443 | UIU6: 14444 | UIV6: 14445 | UIW6: 14446 | UIX6: 14447 | UIY6: 14448 | UIZ6: 14449 | UJA6: 14450 | UJB6: 14451 | UJC6: 14452 | UJD6: 14453 | UJE6: 14454 | UJF6: 14455 | UJG6: 14456 | UJH6: 14457 | UJI6: 14458 | UJJ6: 14459 | UJK6: 14460 | UJL6: 14461 | UJM6: 14462 | UJN6: 14463 | UJO6: 14464 | UJP6: 14465 | UJQ6: 14466 | UJR6: 14467 | UJS6: 14468 | UJT6: 14469 | UJU6: 14470 | UJV6: 14471 | UJW6: 14472 | UJX6: 14473 | UJY6: 14474 | UJZ6: 14475 | UKA6: 14476 | UKB6: 14477 | UKC6: 14478 | UKD6: 14479 | UKE6: 14480 | UKF6: 14481 | UKG6: 14482 | UKH6: 14483 | UKI6: 14484 | UKJ6: 14485 | UKK6: 14486 | UKL6: 14487 | UKM6: 14488 | UKN6: 14489 | UKO6: 14490 | UKP6: 14491 | UKQ6: 14492 | UKR6: 14493 | UKS6: 14494 | UKT6: 14495 | UKU6: 14496 | UKV6: 14497 | UKW6: 14498 | UKX6: 14499 | UKY6: 14500 | UKZ6: 14501 | ULA6: 14502 | ULB6: 14503 | ULC6: 14504 | ULD6: 14505 | ULE6: 14506 | ULF6: 14507 | ULG6: 14508 | ULH6: 14509 | ULI6: 14510 | ULJ6: 14511 | ULK6: 14512 | ULL6: 14513 | ULM6: 14514 | ULN6: 14515 | ULO6: 14516 | ULP6: 14517 | ULQ6: 14518 | ULR6: 14519 | ULS6: 14520 | ULT6: 14521 | ULU6: 14522 | ULV6: 14523 | ULW6: 14524 | ULX6: 14525 | ULY6: 14526 | ULZ6: 14527 | UMA6: 14528 | UMB6: 14529 | UMC6: 14530 | UMD6: 14531 | UME6: 14532 | UMF6: 14533 | UMG6: 14534 | UMH6: 14535 | UMI6: 14536 | UMJ6: 14537 | UMK6: 14538 | UML6: 14539 | UMM6: 14540 | UMN6: 14541 | UMO6: 14542 | UMP6: 14543 | UMQ6: 14544 | UMR6: 14545 | UMS6: 14546 | UMT6: 14547 | UMU6: 14548 | UMV6: 14549 | UMW6: 14550 | UMX6: 14551 | UMY6: 14552 | UMZ6: 14553 | UNA6: 14554 | UNB6: 14555 | UNC6: 14556 | UND6: 14557 | UNE6: 14558 | UNF6: 14559 | UNG6: 14560 | UNH6: 14561 | UNI6: 14562 | UNJ6: 14563 | UNK6: 14564 | UNL6: 14565 | UNM6: 14566 | UNN6: 14567 | UNO6: 14568 | UNP6: 14569 | UNQ6: 14570 | UNR6: 14571 | UNS6: 14572 | UNT6: 14573 | UNU6: 14574 | UNV6: 14575 | UNW6: 14576 | UNX6: 14577 | UNY6: 14578 | UNZ6: 14579 | UOA6: 14580 | UOB6: 14581 | UOC6: 14582 | UOD6: 14583 | UOE6: 14584 | UOF6: 14585 | UOG6: 14586 | UOH6: 14587 | UOI6: 14588 | UOJ6: 14589 | UOK6: 14590 | UOL6: 14591 | UOM6: 14592 | UON6: 14593 | UOO6: 14594 | UOP6: 14595 | UOQ6: 14596 | UOR6: 14597 | UOS6: 14598 | UOT6: 14599 | UOU6: 14600 | UOV6: 14601 | UOW6: 14602 | UOX6: 14603 | UOY6: 14604 | UOZ6: 14605 | UPA6: 14606 | UPB6: 14607 | UPC6: 14608 | UPD6: 14609 | UPE6: 14610 | UPF6: 14611 | UPG6: 14612 | UPH6: 14613 | UPI6: 14614 | UPJ6: 14615 | UPK6: 14616 | UPL6: 14617 | UPM6: 14618 | UPN6: 14619 | UPO6: 14620 | UPP6: 14621 | UPQ6: 14622 | UPR6: 14623 | UPS6: 14624 | UPT6: 14625 | UPU6: 14626 | UPV6: 14627 | UPW6: 14628 | UPX6: 14629 | UPY6: 14630 | UPZ6: 14631 | UQA6: 14632 | UQB6: 14633 | UQC6: 14634 | UQD6: 14635 | UQE6: 14636 | UQF6: 14637 | UQG6: 14638 | UQH6: 14639 | UQI6: 14640 | UQJ6: 14641 | UQK6: 14642 | UQL6: 14643 | UQM6: 14644 | UQN6: 14645 | UQO6: 14646 | UQP6: 14647 | UQQ6: 14648 | UQR6: 14649 | UQS6: 14650 | UQT6: 14651 | UQU6: 14652 | UQV6: 14653 | UQW6: 14654 | UQX6: 14655 | UQY6: 14656 | UQZ6: 14657 | URA6: 14658 | URB6: 14659 | URC6: 14660 | URD6: 14661 | URE6: 14662 | URF6: 14663 | URG6: 14664 | URH6: 14665 | URI6: 14666 | URJ6: 14667 | URK6: 14668 | URL6: 14669 | URM6: 14670 | URN6: 14671 | URO6: 14672 | URP6: 14673 | URQ6: 14674 | URR6: 14675 | URS6: 14676 | URT6: 14677 | URU6: 14678 | URV6: 14679 | URW6: 14680 | URX6: 14681 | URY6: 14682 | URZ6: 14683 | USA6: 14684 | USB6: 14685 | USC6: 14686 | USD6: 14687 | USE6: 14688 | USF6: 14689 | USG6: 14690 | USH6: 14691 | USI6: 14692 | USJ6: 14693 | USK6: 14694 | USL6: 14695 | USM6: 14696 | USN6: 14697 | USO6: 14698 | USP6: 14699 | USQ6: 14700 | USR6: 14701 | USS6: 14702 | UST6: 14703 | USU6: 14704 | USV6: 14705 | USW6: 14706 | USX6: 14707 | USY6: 14708 | USZ6: 14709 | UTA6: 14710 | UTB6: 14711 | UTC6: 14712 | UTD6: 14713 | UTE6: 14714 | UTF6: 14715 | UTG6: 14716 | UTH6: 14717 | UTI6: 14718 | UTJ6: 14719 | UTK6: 14720 | UTL6: 14721 | UTM6: 14722 | UTN6: 14723 | UTO6: 14724 | UTP6: 14725 | UTQ6: 14726 | UTR6: 14727 | UTS6: 14728 | UTT6: 14729 | UTU6: 14730 | UTV6: 14731 | UTW6: 14732 | UTX6: 14733 | UTY6: 14734 | UTZ6: 14735 | UUA6: 14736 | UUB6: 14737 | UUC6: 14738 | UUD6: 14739 | UUE6: 14740 | UUF6: 14741 | UUG6: 14742 | UUH6: 14743 | UUI6: 14744 | UUJ6: 14745 | UUK6: 14746 | UUL6: 14747 | UUM6: 14748 | UUN6: 14749 | UUO6: 14750 | UUP6: 14751 | UUQ6: 14752 | UUR6: 14753 | UUS6: 14754 | UUT6: 14755 | UUU6: 14756 | UUV6: 14757 | UUW6: 14758 | UUX6: 14759 | UUY6: 14760 | UUZ6: 14761 | UVA6: 14762 | UVB6: 14763 | UVC6: 14764 | UVD6: 14765 | UVE6: 14766 | UVF6: 14767 | UVG6: 14768 | UVH6: 14769 | UVI6: 14770 | UVJ6: 14771 | UVK6: 14772 | UVL6: 14773 | UVM6: 14774 | UVN6: 14775 | UVO6: 14776 | UVP6: 14777 | UVQ6: 14778 | UVR6: 14779 | UVS6: 14780 | UVT6: 14781 | UVU6: 14782 | UVV6: 14783 | UVW6: 14784 | UVX6: 14785 | UVY6: 14786 | UVZ6: 14787 | UWA6: 14788 | UWB6: 14789 | UWC6: 14790 | UWD6: 14791 | UWE6: 14792 | UWF6: 14793 | UWG6: 14794 | UWH6: 14795 | UWI6: 14796 | UWJ6: 14797 | UWK6: 14798 | UWL6: 14799 | UWM6: 14800 | UWN6: 14801 | UWO6: 14802 | UWP6: 14803 | UWQ6: 14804 | UWR6: 14805 | UWS6: 14806 | UWT6: 14807 | UWU6: 14808 | UWV6: 14809 | UWW6: 14810 | UWX6: 14811 | UWY6: 14812 | UWZ6: 14813 | UXA6: 14814 | UXB6: 14815 | UXC6: 14816 | UXD6: 14817 | UXE6: 14818 | UXF6: 14819 | UXG6: 14820 | UXH6: 14821 | UXI6: 14822 | UXJ6: 14823 | UXK6: 14824 | UXL6: 14825 | UXM6: 14826 | UXN6: 14827 | UXO6: 14828 | UXP6: 14829 | UXQ6: 14830 | UXR6: 14831 | UXS6: 14832 | UXT6: 14833 | UXU6: 14834 | UXV6: 14835 | UXW6: 14836 | UXX6: 14837 | UXY6: 14838 | UXZ6: 14839 | UYA6: 14840 | UYB6: 14841 | UYC6: 14842 | UYD6: 14843 | UYE6: 14844 | UYF6: 14845 | UYG6: 14846 | UYH6: 14847 | UYI6: 14848 | UYJ6: 14849 | UYK6: 14850 | UYL6: 14851 | UYM6: 14852 | UYN6: 14853 | UYO6: 14854 | UYP6: 14855 | UYQ6: 14856 | UYR6: 14857 | UYS6: 14858 | UYT6: 14859 | UYU6: 14860 | UYV6: 14861 | UYW6: 14862 | UYX6: 14863 | UYY6: 14864 | UYZ6: 14865 | UZA6: 14866 | UZB6: 14867 | UZC6: 14868 | UZD6: 14869 | UZE6: 14870 | UZF6: 14871 | UZG6: 14872 | UZH6: 14873 | UZI6: 14874 | UZJ6: 14875 | UZK6: 14876 | UZL6: 14877 | UZM6: 14878 | UZN6: 14879 | UZO6: 14880 | UZP6: 14881 | UZQ6: 14882 | UZR6: 14883 | UZS6: 14884 | UZT6: 14885 | UZU6: 14886 | UZV6: 14887 | UZW6: 14888 | UZX6: 14889 | UZY6: 14890 | UZZ6: 14891 | VAA6: 14892 | VAB6: 14893 | VAC6: 14894 | VAD6: 14895 | VAE6: 14896 | VAF6: 14897 | VAG6: 14898 | VAH6: 14899 | VAI6: 14900 | VAJ6: 14901 | VAK6: 14902 | VAL6: 14903 | VAM6: 14904 | VAN6: 14905 | VAO6: 14906 | VAP6: 14907 | VAQ6: 14908 | VAR6: 14909 | VAS6: 14910 | VAT6: 14911 | VAU6: 14912 | VAV6: 14913 | VAW6: 14914 | VAX6: 14915 | VAY6: 14916 | VAZ6: 14917 | VBA6: 14918 | VBB6: 14919 | VBC6: 14920 | VBD6: 14921 | VBE6: 14922 | VBF6: 14923 | VBG6: 14924 | VBH6: 14925 | VBI6: 14926 | VBJ6: 14927 | VBK6: 14928 | VBL6: 14929 | VBM6: 14930 | VBN6: 14931 | VBO6: 14932 | VBP6: 14933 | VBQ6: 14934 | VBR6: 14935 | VBS6: 14936 | VBT6: 14937 | VBU6: 14938 | VBV6: 14939 | VBW6: 14940 | VBX6: 14941 | VBY6: 14942 | VBZ6: 14943 | VCA6: 14944 | VCB6: 14945 | VCC6: 14946 | VCD6: 14947 | VCE6: 14948 | VCF6: 14949 | VCG6: 14950 | VCH6: 14951 | VCI6: 14952 | VCJ6: 14953 | VCK6: 14954 | VCL6: 14955 | VCM6: 14956 | VCN6: 14957 | VCO6: 14958 | VCP6: 14959 | VCQ6: 14960 | VCR6: 14961 | VCS6: 14962 | VCT6: 14963 | VCU6: 14964 | VCV6: 14965 | VCW6: 14966 | VCX6: 14967 | VCY6: 14968 | VCZ6: 14969 | VDA6: 14970 | VDB6: 14971 | VDC6: 14972 | VDD6: 14973 | VDE6: 14974 | VDF6: 14975 | VDG6: 14976 | VDH6: 14977 | VDI6: 14978 | VDJ6: 14979 | VDK6: 14980 | VDL6: 14981 | VDM6: 14982 | VDN6: 14983 | VDO6: 14984 | VDP6: 14985 | VDQ6: 14986 | VDR6: 14987 | VDS6: 14988 | VDT6: 14989 | VDU6: 14990 | VDV6: 14991 | VDW6: 14992 | VDX6: 14993 | VDY6: 14994 | VDZ6: 14995 | VEA6: 14996 | VEB6: 14997 | VEC6: 14998 | VED6: 14999 | VEE6: 15000 | VEF6: 15001 | VEG6: 15002 | VEH6: 15003 | VEI6: 15004 | VEJ6: 15005 | VEK6: 15006 | VEL6: 15007 | VEM6: 15008 | VEN6: 15009 | VEO6: 15010 | VEP6: 15011 | VEQ6: 15012 | VER6: 15013 | VES6: 15014 | VET6: 15015 | VEU6: 15016 | VEV6: 15017 | VEW6: 15018 | VEX6: 15019 | VEY6: 15020 | VEZ6: 15021 | VFA6: 15022 | VFB6: 15023 | VFC6: 15024 | VFD6: 15025 | VFE6: 15026 | VFF6: 15027 | VFG6: 15028 | VFH6: 15029 | VFI6: 15030 | VFJ6: 15031 | VFK6: 15032 | VFL6: 15033 | VFM6: 15034 | VFN6: 15035 | VFO6: 15036 | VFP6: 15037 | VFQ6: 15038 | VFR6: 15039 | VFS6: 15040 | VFT6: 15041 | VFU6: 15042 | VFV6: 15043 | VFW6: 15044 | VFX6: 15045 | VFY6: 15046 | VFZ6: 15047 | VGA6: 15048 | VGB6: 15049 | VGC6: 15050 | VGD6: 15051 | VGE6: 15052 | VGF6: 15053 | VGG6: 15054 | VGH6: 15055 | VGI6: 15056 | VGJ6: 15057 | VGK6: 15058 | VGL6: 15059 | VGM6: 15060 | VGN6: 15061 | VGO6: 15062 | VGP6: 15063 | VGQ6: 15064 | VGR6: 15065 | VGS6: 15066 | VGT6: 15067 | VGU6: 15068 | VGV6: 15069 | VGW6: 15070 | VGX6: 15071 | VGY6: 15072 | VGZ6: 15073 | VHA6: 15074 | VHB6: 15075 | VHC6: 15076 | VHD6: 15077 | VHE6: 15078 | VHF6: 15079 | VHG6: 15080 | VHH6: 15081 | VHI6: 15082 | VHJ6: 15083 | VHK6: 15084 | VHL6: 15085 | VHM6: 15086 | VHN6: 15087 | VHO6: 15088 | VHP6: 15089 | VHQ6: 15090 | VHR6: 15091 | VHS6: 15092 | VHT6: 15093 | VHU6: 15094 | VHV6: 15095 | VHW6: 15096 | VHX6: 15097 | VHY6: 15098 | VHZ6: 15099 | VIA6: 15100 | VIB6: 15101 | VIC6: 15102 | VID6: 15103 | VIE6: 15104 | VIF6: 15105 | VIG6: 15106 | VIH6: 15107 | VII6: 15108 | VIJ6: 15109 | VIK6: 15110 | VIL6: 15111 | VIM6: 15112 | VIN6: 15113 | VIO6: 15114 | VIP6: 15115 | VIQ6: 15116 | VIR6: 15117 | VIS6: 15118 | VIT6: 15119 | VIU6: 15120 | VIV6: 15121 | VIW6: 15122 | VIX6: 15123 | VIY6: 15124 | VIZ6: 15125 | VJA6: 15126 | VJB6: 15127 | VJC6: 15128 | VJD6: 15129 | VJE6: 15130 | VJF6: 15131 | VJG6: 15132 | VJH6: 15133 | VJI6: 15134 | VJJ6: 15135 | VJK6: 15136 | VJL6: 15137 | VJM6: 15138 | VJN6: 15139 | VJO6: 15140 | VJP6: 15141 | VJQ6: 15142 | VJR6: 15143 | VJS6: 15144 | VJT6: 15145 | VJU6: 15146 | VJV6: 15147 | VJW6: 15148 | VJX6: 15149 | VJY6: 15150 | VJZ6: 15151 | VKA6: 15152 | VKB6: 15153 | VKC6: 15154 | VKD6: 15155 | VKE6: 15156 | VKF6: 15157 | VKG6: 15158 | VKH6: 15159 | VKI6: 15160 | VKJ6: 15161 | VKK6: 15162 | VKL6: 15163 | VKM6: 15164 | VKN6: 15165 | VKO6: 15166 | VKP6: 15167 | VKQ6: 15168 | VKR6: 15169 | VKS6: 15170 | VKT6: 15171 | VKU6: 15172 | VKV6: 15173 | VKW6: 15174 | VKX6: 15175 | VKY6: 15176 | VKZ6: 15177 | VLA6: 15178 | VLB6: 15179 | VLC6: 15180 | VLD6: 15181 | VLE6: 15182 | VLF6: 15183 | VLG6: 15184 | VLH6: 15185 | VLI6: 15186 | VLJ6: 15187 | VLK6: 15188 | VLL6: 15189 | VLM6: 15190 | VLN6: 15191 | VLO6: 15192 | VLP6: 15193 | VLQ6: 15194 | VLR6: 15195 | VLS6: 15196 | VLT6: 15197 | VLU6: 15198 | VLV6: 15199 | VLW6: 15200 | VLX6: 15201 | VLY6: 15202 | VLZ6: 15203 | VMA6: 15204 | VMB6: 15205 | VMC6: 15206 | VMD6: 15207 | VME6: 15208 | VMF6: 15209 | VMG6: 15210 | VMH6: 15211 | VMI6: 15212 | VMJ6: 15213 | VMK6: 15214 | VML6: 15215 | VMM6: 15216 | VMN6: 15217 | VMO6: 15218 | VMP6: 15219 | VMQ6: 15220 | VMR6: 15221 | VMS6: 15222 | VMT6: 15223 | VMU6: 15224 | VMV6: 15225 | VMW6: 15226 | VMX6: 15227 | VMY6: 15228 | VMZ6: 15229 | VNA6: 15230 | VNB6: 15231 | VNC6: 15232 | VND6: 15233 | VNE6: 15234 | VNF6: 15235 | VNG6: 15236 | VNH6: 15237 | VNI6: 15238 | VNJ6: 15239 | VNK6: 15240 | VNL6: 15241 | VNM6: 15242 | VNN6: 15243 | VNO6: 15244 | VNP6: 15245 | VNQ6: 15246 | VNR6: 15247 | VNS6: 15248 | VNT6: 15249 | VNU6: 15250 | VNV6: 15251 | VNW6: 15252 | VNX6: 15253 | VNY6: 15254 | VNZ6: 15255 | VOA6: 15256 | VOB6: 15257 | VOC6: 15258 | VOD6: 15259 | VOE6: 15260 | VOF6: 15261 | VOG6: 15262 | VOH6: 15263 | VOI6: 15264 | VOJ6: 15265 | VOK6: 15266 | VOL6: 15267 | VOM6: 15268 | VON6: 15269 | VOO6: 15270 | VOP6: 15271 | VOQ6: 15272 | VOR6: 15273 | VOS6: 15274 | VOT6: 15275 | VOU6: 15276 | VOV6: 15277 | VOW6: 15278 | VOX6: 15279 | VOY6: 15280 | VOZ6: 15281 | VPA6: 15282 | VPB6: 15283 | VPC6: 15284 | VPD6: 15285 | VPE6: 15286 | VPF6: 15287 | VPG6: 15288 | VPH6: 15289 | VPI6: 15290 | VPJ6: 15291 | VPK6: 15292 | VPL6: 15293 | VPM6: 15294 | VPN6: 15295 | VPO6: 15296 | VPP6: 15297 | VPQ6: 15298 | VPR6: 15299 | VPS6: 15300 | VPT6: 15301 | VPU6: 15302 | VPV6: 15303 | VPW6: 15304 | VPX6: 15305 | VPY6: 15306 | VPZ6: 15307 | VQA6: 15308 | VQB6: 15309 | VQC6: 15310 | VQD6: 15311 | VQE6: 15312 | VQF6: 15313 | VQG6: 15314 | VQH6: 15315 | VQI6: 15316 | VQJ6: 15317 | VQK6: 15318 | VQL6: 15319 | VQM6: 15320 | VQN6: 15321 | VQO6: 15322 | VQP6: 15323 | VQQ6: 15324 | VQR6: 15325 | VQS6: 15326 | VQT6: 15327 | VQU6: 15328 | VQV6: 15329 | VQW6: 15330 | VQX6: 15331 | VQY6: 15332 | VQZ6: 15333 | VRA6: 15334 | VRB6: 15335 | VRC6: 15336 | VRD6: 15337 | VRE6: 15338 | VRF6: 15339 | VRG6: 15340 | VRH6: 15341 | VRI6: 15342 | VRJ6: 15343 | VRK6: 15344 | VRL6: 15345 | VRM6: 15346 | VRN6: 15347 | VRO6: 15348 | VRP6: 15349 | VRQ6: 15350 | VRR6: 15351 | VRS6: 15352 | VRT6: 15353 | VRU6: 15354 | VRV6: 15355 | VRW6: 15356 | VRX6: 15357 | VRY6: 15358 | VRZ6: 15359 | VSA6: 15360 | VSB6: 15361 | VSC6: 15362 | VSD6: 15363 | VSE6: 15364 | VSF6: 15365 | VSG6: 15366 | VSH6: 15367 | VSI6: 15368 | VSJ6: 15369 | VSK6: 15370 | VSL6: 15371 | VSM6: 15372 | VSN6: 15373 | VSO6: 15374 | VSP6: 15375 | VSQ6: 15376 | VSR6: 15377 | VSS6: 15378 | VST6: 15379 | VSU6: 15380 | VSV6: 15381 | VSW6: 15382 | VSX6: 15383 | VSY6: 15384 | VSZ6: 15385 | VTA6: 15386 | VTB6: 15387 | VTC6: 15388 | VTD6: 15389 | VTE6: 15390 | VTF6: 15391 | VTG6: 15392 | VTH6: 15393 | VTI6: 15394 | VTJ6: 15395 | VTK6: 15396 | VTL6: 15397 | VTM6: 15398 | VTN6: 15399 | VTO6: 15400 | VTP6: 15401 | VTQ6: 15402 | VTR6: 15403 | VTS6: 15404 | VTT6: 15405 | VTU6: 15406 | VTV6: 15407 | VTW6: 15408 | VTX6: 15409 | VTY6: 15410 | VTZ6: 15411 | VUA6: 15412 | VUB6: 15413 | VUC6: 15414 | VUD6: 15415 | VUE6: 15416 | VUF6: 15417 | VUG6: 15418 | VUH6: 15419 | VUI6: 15420 | VUJ6: 15421 | VUK6: 15422 | VUL6: 15423 | VUM6: 15424 | VUN6: 15425 | VUO6: 15426 | VUP6: 15427 | VUQ6: 15428 | VUR6: 15429 | VUS6: 15430 | VUT6: 15431 | VUU6: 15432 | VUV6: 15433 | VUW6: 15434 | VUX6: 15435 | VUY6: 15436 | VUZ6: 15437 | VVA6: 15438 | VVB6: 15439 | VVC6: 15440 | VVD6: 15441 | VVE6: 15442 | VVF6: 15443 | VVG6: 15444 | VVH6: 15445 | VVI6: 15446 | VVJ6: 15447 | VVK6: 15448 | VVL6: 15449 | VVM6: 15450 | VVN6: 15451 | VVO6: 15452 | VVP6: 15453 | VVQ6: 15454 | VVR6: 15455 | VVS6: 15456 | VVT6: 15457 | VVU6: 15458 | VVV6: 15459 | VVW6: 15460 | VVX6: 15461 | VVY6: 15462 | VVZ6: 15463 | VWA6: 15464 | VWB6: 15465 | VWC6: 15466 | VWD6: 15467 | VWE6: 15468 | VWF6: 15469 | VWG6: 15470 | VWH6: 15471 | VWI6: 15472 | VWJ6: 15473 | VWK6: 15474 | VWL6: 15475 | VWM6: 15476 | VWN6: 15477 | VWO6: 15478 | VWP6: 15479 | VWQ6: 15480 | VWR6: 15481 | VWS6: 15482 | VWT6: 15483 | VWU6: 15484 | VWV6: 15485 | VWW6: 15486 | VWX6: 15487 | VWY6: 15488 | VWZ6: 15489 | VXA6: 15490 | VXB6: 15491 | VXC6: 15492 | VXD6: 15493 | VXE6: 15494 | VXF6: 15495 | VXG6: 15496 | VXH6: 15497 | VXI6: 15498 | VXJ6: 15499 | VXK6: 15500 | VXL6: 15501 | VXM6: 15502 | VXN6: 15503 | VXO6: 15504 | VXP6: 15505 | VXQ6: 15506 | VXR6: 15507 | VXS6: 15508 | VXT6: 15509 | VXU6: 15510 | VXV6: 15511 | VXW6: 15512 | VXX6: 15513 | VXY6: 15514 | VXZ6: 15515 | VYA6: 15516 | VYB6: 15517 | VYC6: 15518 | VYD6: 15519 | VYE6: 15520 | VYF6: 15521 | VYG6: 15522 | VYH6: 15523 | VYI6: 15524 | VYJ6: 15525 | VYK6: 15526 | VYL6: 15527 | VYM6: 15528 | VYN6: 15529 | VYO6: 15530 | VYP6: 15531 | VYQ6: 15532 | VYR6: 15533 | VYS6: 15534 | VYT6: 15535 | VYU6: 15536 | VYV6: 15537 | VYW6: 15538 | VYX6: 15539 | VYY6: 15540 | VYZ6: 15541 | VZA6: 15542 | VZB6: 15543 | VZC6: 15544 | VZD6: 15545 | VZE6: 15546 | VZF6: 15547 | VZG6: 15548 | VZH6: 15549 | VZI6: 15550 | VZJ6: 15551 | VZK6: 15552 | VZL6: 15553 | VZM6: 15554 | VZN6: 15555 | VZO6: 15556 | VZP6: 15557 | VZQ6: 15558 | VZR6: 15559 | VZS6: 15560 | VZT6: 15561 | VZU6: 15562 | VZV6: 15563 | VZW6: 15564 | VZX6: 15565 | VZY6: 15566 | VZZ6: 15567 | WAA6: 15568 | WAB6: 15569 | WAC6: 15570 | WAD6: 15571 | WAE6: 15572 | WAF6: 15573 | WAG6: 15574 | WAH6: 15575 | WAI6: 15576 | WAJ6: 15577 | WAK6: 15578 | WAL6: 15579 | WAM6: 15580 | WAN6: 15581 | WAO6: 15582 | WAP6: 15583 | WAQ6: 15584 | WAR6: 15585 | WAS6: 15586 | WAT6: 15587 | WAU6: 15588 | WAV6: 15589 | WAW6: 15590 | WAX6: 15591 | WAY6: 15592 | WAZ6: 15593 | WBA6: 15594 | WBB6: 15595 | WBC6: 15596 | WBD6: 15597 | WBE6: 15598 | WBF6: 15599 | WBG6: 15600 | WBH6: 15601 | WBI6: 15602 | WBJ6: 15603 | WBK6: 15604 | WBL6: 15605 | WBM6: 15606 | WBN6: 15607 | WBO6: 15608 | WBP6: 15609 | WBQ6: 15610 | WBR6: 15611 | WBS6: 15612 | WBT6: 15613 | WBU6: 15614 | WBV6: 15615 | WBW6: 15616 | WBX6: 15617 | WBY6: 15618 | WBZ6: 15619 | WCA6: 15620 | WCB6: 15621 | WCC6: 15622 | WCD6: 15623 | WCE6: 15624 | WCF6: 15625 | WCG6: 15626 | WCH6: 15627 | WCI6: 15628 | WCJ6: 15629 | WCK6: 15630 | WCL6: 15631 | WCM6: 15632 | WCN6: 15633 | WCO6: 15634 | WCP6: 15635 | WCQ6: 15636 | WCR6: 15637 | WCS6: 15638 | WCT6: 15639 | WCU6: 15640 | WCV6: 15641 | WCW6: 15642 | WCX6: 15643 | WCY6: 15644 | WCZ6: 15645 | WDA6: 15646 | WDB6: 15647 | WDC6: 15648 | WDD6: 15649 | WDE6: 15650 | WDF6: 15651 | WDG6: 15652 | WDH6: 15653 | WDI6: 15654 | WDJ6: 15655 | WDK6: 15656 | WDL6: 15657 | WDM6: 15658 | WDN6: 15659 | WDO6: 15660 | WDP6: 15661 | WDQ6: 15662 | WDR6: 15663 | WDS6: 15664 | WDT6: 15665 | WDU6: 15666 | WDV6: 15667 | WDW6: 15668 | WDX6: 15669 | WDY6: 15670 | WDZ6: 15671 | WEA6: 15672 | WEB6: 15673 | WEC6: 15674 | WED6: 15675 | WEE6: 15676 | WEF6: 15677 | WEG6: 15678 | WEH6: 15679 | WEI6: 15680 | WEJ6: 15681 | WEK6: 15682 | WEL6: 15683 | WEM6: 15684 | WEN6: 15685 | WEO6: 15686 | WEP6: 15687 | WEQ6: 15688 | WER6: 15689 | WES6: 15690 | WET6: 15691 | WEU6: 15692 | WEV6: 15693 | WEW6: 15694 | WEX6: 15695 | WEY6: 15696 | WEZ6: 15697 | WFA6: 15698 | WFB6: 15699 | WFC6: 15700 | WFD6: 15701 | WFE6: 15702 | WFF6: 15703 | WFG6: 15704 | WFH6: 15705 | WFI6: 15706 | WFJ6: 15707 | WFK6: 15708 | WFL6: 15709 | WFM6: 15710 | WFN6: 15711 | WFO6: 15712 | WFP6: 15713 | WFQ6: 15714 | WFR6: 15715 | WFS6: 15716 | WFT6: 15717 | WFU6: 15718 | WFV6: 15719 | WFW6: 15720 | WFX6: 15721 | WFY6: 15722 | WFZ6: 15723 | WGA6: 15724 | WGB6: 15725 | WGC6: 15726 | WGD6: 15727 | WGE6: 15728 | WGF6: 15729 | WGG6: 15730 | WGH6: 15731 | WGI6: 15732 | WGJ6: 15733 | WGK6: 15734 | WGL6: 15735 | WGM6: 15736 | WGN6: 15737 | WGO6: 15738 | WGP6: 15739 | WGQ6: 15740 | WGR6: 15741 | WGS6: 15742 | WGT6: 15743 | WGU6: 15744 | WGV6: 15745 | WGW6: 15746 | WGX6: 15747 | WGY6: 15748 | WGZ6: 15749 | WHA6: 15750 | WHB6: 15751 | WHC6: 15752 | WHD6: 15753 | WHE6: 15754 | WHF6: 15755 | WHG6: 15756 | WHH6: 15757 | WHI6: 15758 | WHJ6: 15759 | WHK6: 15760 | WHL6: 15761 | WHM6: 15762 | WHN6: 15763 | WHO6: 15764 | WHP6: 15765 | WHQ6: 15766 | WHR6: 15767 | WHS6: 15768 | WHT6: 15769 | WHU6: 15770 | WHV6: 15771 | WHW6: 15772 | WHX6: 15773 | WHY6: 15774 | WHZ6: 15775 | WIA6: 15776 | WIB6: 15777 | WIC6: 15778 | WID6: 15779 | WIE6: 15780 | WIF6: 15781 | WIG6: 15782 | WIH6: 15783 | WII6: 15784 | WIJ6: 15785 | WIK6: 15786 | WIL6: 15787 | WIM6: 15788 | WIN6: 15789 | WIO6: 15790 | WIP6: 15791 | WIQ6: 15792 | WIR6: 15793 | WIS6: 15794 | WIT6: 15795 | WIU6: 15796 | WIV6: 15797 | WIW6: 15798 | WIX6: 15799 | WIY6: 15800 | WIZ6: 15801 | WJA6: 15802 | WJB6: 15803 | WJC6: 15804 | WJD6: 15805 | WJE6: 15806 | WJF6: 15807 | WJG6: 15808 | WJH6: 15809 | WJI6: 15810 | WJJ6: 15811 | WJK6: 15812 | WJL6: 15813 | WJM6: 15814 | WJN6: 15815 | WJO6: 15816 | WJP6: 15817 | WJQ6: 15818 | WJR6: 15819 | WJS6: 15820 | WJT6: 15821 | WJU6: 15822 | WJV6: 15823 | WJW6: 15824 | WJX6: 15825 | WJY6: 15826 | WJZ6: 15827 | WKA6: 15828 | WKB6: 15829 | WKC6: 15830 | WKD6: 15831 | WKE6: 15832 | WKF6: 15833 | WKG6: 15834 | WKH6: 15835 | WKI6: 15836 | WKJ6: 15837 | WKK6: 15838 | WKL6: 15839 | WKM6: 15840 | WKN6: 15841 | WKO6: 15842 | WKP6: 15843 | WKQ6: 15844 | WKR6: 15845 | WKS6: 15846 | WKT6: 15847 | WKU6: 15848 | WKV6: 15849 | WKW6: 15850 | WKX6: 15851 | WKY6: 15852 | WKZ6: 15853 | WLA6: 15854 | WLB6: 15855 | WLC6: 15856 | WLD6: 15857 | WLE6: 15858 | WLF6: 15859 | WLG6: 15860 | WLH6: 15861 | WLI6: 15862 | WLJ6: 15863 | WLK6: 15864 | WLL6: 15865 | WLM6: 15866 | WLN6: 15867 | WLO6: 15868 | WLP6: 15869 | WLQ6: 15870 | WLR6: 15871 | WLS6: 15872 | WLT6: 15873 | WLU6: 15874 | WLV6: 15875 | WLW6: 15876 | WLX6: 15877 | WLY6: 15878 | WLZ6: 15879 | WMA6: 15880 | WMB6: 15881 | WMC6: 15882 | WMD6: 15883 | WME6: 15884 | WMF6: 15885 | WMG6: 15886 | WMH6: 15887 | WMI6: 15888 | WMJ6: 15889 | WMK6: 15890 | WML6: 15891 | WMM6: 15892 | WMN6: 15893 | WMO6: 15894 | WMP6: 15895 | WMQ6: 15896 | WMR6: 15897 | WMS6: 15898 | WMT6: 15899 | WMU6: 15900 | WMV6: 15901 | WMW6: 15902 | WMX6: 15903 | WMY6: 15904 | WMZ6: 15905 | WNA6: 15906 | WNB6: 15907 | WNC6: 15908 | WND6: 15909 | WNE6: 15910 | WNF6: 15911 | WNG6: 15912 | WNH6: 15913 | WNI6: 15914 | WNJ6: 15915 | WNK6: 15916 | WNL6: 15917 | WNM6: 15918 | WNN6: 15919 | WNO6: 15920 | WNP6: 15921 | WNQ6: 15922 | WNR6: 15923 | WNS6: 15924 | WNT6: 15925 | WNU6: 15926 | WNV6: 15927 | WNW6: 15928 | WNX6: 15929 | WNY6: 15930 | WNZ6: 15931 | WOA6: 15932 | WOB6: 15933 | WOC6: 15934 | WOD6: 15935 | WOE6: 15936 | WOF6: 15937 | WOG6: 15938 | WOH6: 15939 | WOI6: 15940 | WOJ6: 15941 | WOK6: 15942 | WOL6: 15943 | WOM6: 15944 | WON6: 15945 | WOO6: 15946 | WOP6: 15947 | WOQ6: 15948 | WOR6: 15949 | WOS6: 15950 | WOT6: 15951 | WOU6: 15952 | WOV6: 15953 | WOW6: 15954 | WOX6: 15955 | WOY6: 15956 | WOZ6: 15957 | WPA6: 15958 | WPB6: 15959 | WPC6: 15960 | WPD6: 15961 | WPE6: 15962 | WPF6: 15963 | WPG6: 15964 | WPH6: 15965 | WPI6: 15966 | WPJ6: 15967 | WPK6: 15968 | WPL6: 15969 | WPM6: 15970 | WPN6: 15971 | WPO6: 15972 | WPP6: 15973 | WPQ6: 15974 | WPR6: 15975 | WPS6: 15976 | WPT6: 15977 | WPU6: 15978 | WPV6: 15979 | WPW6: 15980 | WPX6: 15981 | WPY6: 15982 | WPZ6: 15983 | WQA6: 15984 | WQB6: 15985 | WQC6: 15986 | WQD6: 15987 | WQE6: 15988 | WQF6: 15989 | WQG6: 15990 | WQH6: 15991 | WQI6: 15992 | WQJ6: 15993 | WQK6: 15994 | WQL6: 15995 | WQM6: 15996 | WQN6: 15997 | WQO6: 15998 | WQP6: 15999 | WQQ6: 16000 | WQR6: 16001 | WQS6: 16002 | WQT6: 16003 | WQU6: 16004 | WQV6: 16005 | WQW6: 16006 | WQX6: 16007 | WQY6: 16008 | WQZ6: 16009 | WRA6: 16010 | WRB6: 16011 | WRC6: 16012 | WRD6: 16013 | WRE6: 16014 | WRF6: 16015 | WRG6: 16016 | WRH6: 16017 | WRI6: 16018 | WRJ6: 16019 | WRK6: 16020 | WRL6: 16021 | WRM6: 16022 | WRN6: 16023 | WRO6: 16024 | WRP6: 16025 | WRQ6: 16026 | WRR6: 16027 | WRS6: 16028 | WRT6: 16029 | WRU6: 16030 | WRV6: 16031 | WRW6: 16032 | WRX6: 16033 | WRY6: 16034 | WRZ6: 16035 | WSA6: 16036 | WSB6: 16037 | WSC6: 16038 | WSD6: 16039 | WSE6: 16040 | WSF6: 16041 | WSG6: 16042 | WSH6: 16043 | WSI6: 16044 | WSJ6: 16045 | WSK6: 16046 | WSL6: 16047 | WSM6: 16048 | WSN6: 16049 | WSO6: 16050 | WSP6: 16051 | WSQ6: 16052 | WSR6: 16053 | WSS6: 16054 | WST6: 16055 | WSU6: 16056 | WSV6: 16057 | WSW6: 16058 | WSX6: 16059 | WSY6: 16060 | WSZ6: 16061 | WTA6: 16062 | WTB6: 16063 | WTC6: 16064 | WTD6: 16065 | WTE6: 16066 | WTF6: 16067 | WTG6: 16068 | WTH6: 16069 | WTI6: 16070 | WTJ6: 16071 | WTK6: 16072 | WTL6: 16073 | WTM6: 16074 | WTN6: 16075 | WTO6: 16076 | WTP6: 16077 | WTQ6: 16078 | WTR6: 16079 | WTS6: 16080 | WTT6: 16081 | WTU6: 16082 | WTV6: 16083 | WTW6: 16084 | WTX6: 16085 | WTY6: 16086 | WTZ6: 16087 | WUA6: 16088 | WUB6: 16089 | WUC6: 16090 | WUD6: 16091 | WUE6: 16092 | WUF6: 16093 | WUG6: 16094 | WUH6: 16095 | WUI6: 16096 | WUJ6: 16097 | WUK6: 16098 | WUL6: 16099 | WUM6: 16100 | WUN6: 16101 | WUO6: 16102 | WUP6: 16103 | WUQ6: 16104 | WUR6: 16105 | WUS6: 16106 | WUT6: 16107 | WUU6: 16108 | WUV6: 16109 | WUW6: 16110 | WUX6: 16111 | WUY6: 16112 | WUZ6: 16113 | WVA6: 16114 | WVB6: 16115 | WVC6: 16116 | WVD6: 16117 | WVE6: 16118 | WVF6: 16119 | WVG6: 16120 | WVH6: 16121 | WVI6: 16122 | WVJ6: 16123 | WVK6: 16124 | WVL6: 16125 | WVM6: 16126 | WVN6: 16127 | WVO6: 16128 | WVP6: 16129 | WVQ6: 16130 | WVR6: 16131 | WVS6: 16132 | WVT6: 16133 | WVU6: 16134 | WVV6: 16135 | WVW6: 16136 | WVX6: 16137 | WVY6: 16138 | WVZ6: 16139 | WWA6: 16140 | WWB6: 16141 | WWC6: 16142 | WWD6: 16143 | WWE6: 16144 | WWF6: 16145 | WWG6: 16146 | WWH6: 16147 | WWI6: 16148 | WWJ6: 16149 | WWK6: 16150 | WWL6: 16151 | WWM6: 16152 | WWN6: 16153 | WWO6: 16154 | WWP6: 16155 | WWQ6: 16156 | WWR6: 16157 | WWS6: 16158 | WWT6: 16159 | WWU6: 16160 | WWV6: 16161 | WWW6: 16162 | WWX6: 16163 | WWY6: 16164 | WWZ6: 16165 | WXA6: 16166 | WXB6: 16167 | WXC6: 16168 | WXD6: 16169 | WXE6: 16170 | WXF6: 16171 | WXG6: 16172 | WXH6: 16173 | WXI6: 16174 | WXJ6: 16175 | WXK6: 16176 | WXL6: 16177 | WXM6: 16178 | WXN6: 16179 | WXO6: 16180 | WXP6: 16181 | WXQ6: 16182 | WXR6: 16183 | WXS6: 16184 | WXT6: 16185 | WXU6: 16186 | WXV6: 16187 | WXW6: 16188 | WXX6: 16189 | WXY6: 16190 | WXZ6: 16191 | WYA6: 16192 | WYB6: 16193 | WYC6: 16194 | WYD6: 16195 | WYE6: 16196 | WYF6: 16197 | WYG6: 16198 | WYH6: 16199 | WYI6: 16200 | WYJ6: 16201 | WYK6: 16202 | WYL6: 16203 | WYM6: 16204 | WYN6: 16205 | WYO6: 16206 | WYP6: 16207 | WYQ6: 16208 | WYR6: 16209 | WYS6: 16210 | WYT6: 16211 | WYU6: 16212 | WYV6: 16213 | WYW6: 16214 | WYX6: 16215 | WYY6: 16216 | WYZ6: 16217 | WZA6: 16218 | WZB6: 16219 | WZC6: 16220 | WZD6: 16221 | WZE6: 16222 | WZF6: 16223 | WZG6: 16224 | WZH6: 16225 | WZI6: 16226 | WZJ6: 16227 | WZK6: 16228 | WZL6: 16229 | WZM6: 16230 | WZN6: 16231 | WZO6: 16232 | WZP6: 16233 | WZQ6: 16234 | WZR6: 16235 | WZS6: 16236 | WZT6: 16237 | WZU6: 16238 | WZV6: 16239 | WZW6: 16240 | WZX6: 16241 | WZY6: 16242 | WZZ6: 16243 | XAA6: 16244 | XAB6: 16245 | XAC6: 16246 | XAD6: 16247 | XAE6: 16248 | XAF6: 16249 | XAG6: 16250 | XAH6: 16251 | XAI6: 16252 | XAJ6: 16253 | XAK6: 16254 | XAL6: 16255 | XAM6: 16256 | XAN6: 16257 | XAO6: 16258 | XAP6: 16259 | XAQ6: 16260 | XAR6: 16261 | XAS6: 16262 | XAT6: 16263 | XAU6: 16264 | XAV6: 16265 | XAW6: 16266 | XAX6: 16267 | XAY6: 16268 | XAZ6: 16269 | XBA6: 16270 | XBB6: 16271 | XBC6: 16272 | XBD6: 16273 | XBE6: 16274 | XBF6: 16275 | XBG6: 16276 | XBH6: 16277 | XBI6: 16278 | XBJ6: 16279 | XBK6: 16280 | XBL6: 16281 | XBM6: 16282 | XBN6: 16283 | XBO6: 16284 | XBP6: 16285 | XBQ6: 16286 | XBR6: 16287 | XBS6: 16288 | XBT6: 16289 | XBU6: 16290 | XBV6: 16291 | XBW6: 16292 | XBX6: 16293 | XBY6: 16294 | XBZ6: 16295 | XCA6: 16296 | XCB6: 16297 | XCC6: 16298 | XCD6: 16299 | XCE6: 16300 | XCF6: 16301 | XCG6: 16302 | XCH6: 16303 | XCI6: 16304 | XCJ6: 16305 | XCK6: 16306 | XCL6: 16307 | XCM6: 16308 | XCN6: 16309 | XCO6: 16310 | XCP6: 16311 | XCQ6: 16312 | XCR6: 16313 | XCS6: 16314 | XCT6: 16315 | XCU6: 16316 | XCV6: 16317 | XCW6: 16318 | XCX6: 16319 | XCY6: 16320 | XCZ6: 16321 | XDA6: 16322 | XDB6: 16323 | XDC6: 16324 | XDD6: 16325 | XDE6: 16326 | XDF6: 16327 | XDG6: 16328 | XDH6: 16329 | XDI6: 16330 | XDJ6: 16331 | XDK6: 16332 | XDL6: 16333 | XDM6: 16334 | XDN6: 16335 | XDO6: 16336 | XDP6: 16337 | XDQ6: 16338 | XDR6: 16339 | XDS6: 16340 | XDT6: 16341 | XDU6: 16342 | XDV6: 16343 | XDW6: 16344 | XDX6: 16345 | XDY6: 16346 | XDZ6: 16347 | XEA6: 16348 | XEB6: 16349 | XEC6: 16350 | XED6: 16351 | XEE6: 16352 | XEF6: 16353 | XEG6: 16354 | XEH6: 16355 | XEI6: 16356 | XEJ6: 16357 | XEK6: 16358 | XEL6: 16359 | XEM6: 16360 | XEN6: 16361 | XEO6: 16362 | XEP6: 16363 | XEQ6: 16364 | XER6: 16365 | XES6: 16366 | XET6: 16367 | XEU6: 16368 | XEV6: 16369 | XEW6: 16370 | XEX6: 16371 | XEY6: 16372 | XEZ6: 16373 | XFA6: 16374 | XFB6: 16375 | XFC6: 16376 | XFD6: 16377
